Workbook

Sheet AER only (hidden)
B1: Data in these columns used for data validation and database purposes.
B2: Date last modified: | C2: 2017-01-16 | D2: added (Albury and Victora) for AGN
C3: 2016-10-17 | D3: updated TransGrid's correct legal name, corrected TasNetworks (T) to June financial year
C4: 2017-02-01 | D4: inserted Power and Water, added NRs (dms_FeederCat_1 and dms_FeederCat_2)
C5: 2017-03-03 | D5: inserted AEMO as a business | AB5: FOR ELECTRICITY BUSINESSES ONLY
C6: 2018-03-28 | D6: major changes to accommodate STPIS
C7: Template Version | D7: 5 | AB7: Feeder Types | AF7: TasNetworks (D) | AG7: MAIFI flag | AH7: Feeder Names
AB8: CBD | AC8: Urban | AD8: Short rural | AE8: long rural | AF8: EXTRA
B9: dms_TradingName_List | C9: dms_TradingNameFull_List | D9: dms_ABN_List | E9: dms_JurisdictionList | F9: dms_Sector_List | G9: dms_Segment_List | H9: dms_FormControl_List | I9: dms_RPT_List | J9: dms_RPTMonth_List | K9: dms_CRCPlength_List | L9: dms_FRCPlength_List | M9: dms_663_List | N9: dms_DeterminationRef_List | O9: dms_Addr1_List | P9: dms_Addr2_List | Q9: dms_Suburb_List | R9: dms_State_List | S9: dms_PostCode_List | T9: dms_PAddr1_List | U9: dms_PAddr2_List | V9: dms_PSuburb_List | W9: dms_PState_List | X9: dms_PPostCode_List | Y9: dms_ContactName1_List | Z9: dms_ContactPh1_List | AA9: dms_ContactEmail_List | AB9: dms_CBD_flag | AC9: dms_Urban_flag | AD9: dms_ShortRural_flag | AE9: dms_LongRural_flag | AF9: dms_FeederType_5_flag | AG9: dms_MAIFI_flag_List | AH9: dms_FeederName_1 | AI9: dms_FeederName_2 | AJ9: dms_FeederName_3 | AK9: dms_FeederName_4 | AL9: dms_FeederName_5 | AM9: Column1
B10: ActewAGL Distribution | C10: ActewAGL Distribution | D10: 76670568688 | E10: ACT | F10: Electricity | G10: Distribution | H10: Revenue cap | I10: Financial | J10: June | K10: 5 | L10: 5 | M10: 5 | N10: 2014-19 Distribution Determination | O10: 40 Bunda Street | Q10: CANBERRA | R10: ACT | S10: 2600 | T10: GPO BOX 366 | V10: CANBERRA | W10: ACT | X10: 2601 | Y10: Robert Walker | Z10: 02 6248 3847 | AA10: robert.walker@actewagle.com.au | AB10: NO | AC10: YES | AD10: YES | AE10: NO | AF10: NO | AH10: CBD | AI10: Urban | AJ10: Short rural | AK10: Long rural | AM10: ActewAGL Distribution
B11: ActewAGL Distribution (Tx Assets) | C11: ActewAGL Distribution (Tx Assets) | D11: 76670568688 | E11: ACT | F11: Electricity | G11: Distribution | H11: Revenue cap | I11: Financial | J11: June | K11: 5 | L11: 5 | M11: 5 | N11: distribution determination | O11: 40 Bunda Street | Q11: CANBERRA | R11: ACT | S11: 2600 | T11: GPO BOX 366 | V11: CANBERRA | W11: ACT | X11: 2601 | Y11: Robert Walker | Z11: 02 6248 3847 | AA11: robert.walker@actewagle.com.au | AB11: NO | AC11: YES | AD11: YES | AE11: NO | AF11: NO | AH11: CBD | AI11: Urban | AJ11: Short rural | AK11: Long rural | AM11: ActewAGL Distribution (Tx Assets)
B12: ActewAGL Gas | C12: ActewAGL Gas | D12: 76670568688 | E12: ACT | F12: Gas | G12: Distribution | H12: Weighted average price cap | I12: Financial | J12: June | K12: 5 | L12: 5 | M12: x | O12: 40 Bunda Street | Q12: CANBERRA | R12: ACT | S12: 2600 | T12: GPO BOX 366 | V12: CANBERRA | W12: ACT | X12: 2601 | Y12: Philip Deamer | Z12: 02 6248 3438 | AA12: GasAAReview@actewagl.com.au | AH12: CBD | AI12: Urban | AJ12: Short rural | AK12: Long rural | AM12: ActewAGL Gas
B13: AEMO | C13: Australian Energy Market Operator Ltd | D13: 94072010327 | E13: Vic | F13: Electricity | G13: Transmission | H13: - | I13: Financial | J13: March | K13: 5 | L13: 5 | M13: x | N13: - | O13: Level 22 | P13: 530 Collins Street | Q13: MELBOURNE | R13: VIC | S13: 3000 | T13: GPO Box 2008 | V13: MELBOURNE | W13: VIC | X13: 3001 | AB13: n/a | AC13: n/a | AD13: n/a | AE13: n/a | AF13: n/a | AH13: CBD | AI13: Urban | AJ13: Short rural | AK13: Long rural | AM13: AEMO
B14: AGN (Albury and Victoria) | C14: Australian Gas Networks Limited (reporting data for Albury and Victoria) | D14: 19078551685 | E14: Vic | F14: Gas | G14: Distribution | H14: Weighted average price cap | I14: Calendar | J14: December | K14: 5 | L14: 5 | M14: x | O14: Level 6 | P14: 400 King William Street | Q14: ADELAIDE | R14: SA | S14: 5000 | T14: PO Box 6468 | U14: Halifax Street | V14: ADELAIDE | W14: SA | X14: 5000 | Y14: Craig de Laine | Z14: 08 8418 1129 | AA14: craig.delaine@agn.com.au | AB14: n/a | AC14: n/a | AD14: n/a | AE14: n/a | AF14: n/a | AH14: CBD | AI14: Urban | AJ14: Short rural | AK14: Long rural | AM14: AGN (Albury)
B15: AGN (Albury) | C15: Australian Gas Networks Limited (reporting data for Albury) | D15: 19078551685 | E15: Vic | F15: Gas | G15: Distribution | H15: Weighted average price cap | I15: Calendar | J15: December | K15: 5 | L15: 5 | M15: x | O15: Level 6 | P15: 400 King William Street | Q15: ADELAIDE | R15: SA | S15: 5000 | T15: PO Box 6468 | U15: Halifax Street | V15: ADELAIDE | W15: SA | X15: 5000 | Y15: Craig de Laine | Z15: 08 8418 1129 | AA15: craig.delaine@agn.com.au | AB15: n/a | AC15: n/a | AD15: n/a | AE15: n/a | AF15: n/a | AH15: CBD | AI15: Urban | AJ15: Short rural | AK15: Long rural
B16: AGN (SA) | C16: Australian Gas Networks Limited (reporting data for SA) | D16: 19078551685 | E16: SA | F16: Gas | G16: Distribution | H16: Weighted average price cap | I16: Financial | J16: June | K16: 5 | L16: 5 | M16: 5 | N16: distribution determination | O16: Level 6 | P16: 400 King William Street | Q16: ADELAIDE | R16: SA | S16: 5000 | T16: PO Box 6468 | U16: Halifax Street | V16: ADELAIDE | W16: SA | X16: 5000 | Y16: Craig de Laine | Z16: 08 8418 1129 | AA16: craig.delaine@agn.com.au | AB16: n/a | AC16: n/a | AD16: n/a | AE16: n/a | AF16: n/a | AH16: CBD | AI16: Urban | AJ16: Short rural | AK16: Long rural | AM16: AGN (SA)
B17: AGN (Victoria) | C17: Australian Gas Networks Limited (reporting data for Victoria) | D17: 19078551685 | E17: Vic | F17: Gas | G17: Distribution | H17: Weighted average price cap | I17: Calendar | J17: December | K17: 5 | L17: 5 | M17: x | O17: Level 6 | P17: 400 King William Street | Q17: ADELAIDE | R17: SA | S17: 5000 | T17: PO Box 6468 | U17: Halifax Street | V17: ADELAIDE | W17: SA | X17: 5000 | Y17: Craig de Laine | Z17: 08 8418 1129 | AA17: craig.delaine@agn.com.au | AB17: n/a | AC17: n/a | AD17: n/a | AE17: n/a | AF17: n/a | AH17: CBD | AI17: Urban | AJ17: Short rural | AK17: Long rural | AM17: AGN (Victoria)
B18: Amadeus | C18: APT Pipelines (NT) Pty Ltd | D18: 39009737393 | E18: NT | F18: Gas | G18: Transmission | H18: Weighted average price cap | I18: Financial | J18: June | K18: 5 | L18: 5 | M18: x | N18: n/a | O18: Level 19, HSBC Building | P18: 580 George Street | Q18: SYDNEY | R18: NSW | S18: 2000 | T18: Level 19, HSBC Building | U18: 580 George Street | V18: SYDNEY | W18: NSW | X18: 2000 | Y18: Alexandra Curran | Z18: 02 9275 0020 | AA18: alexandra.curran@apa.com.au | AB18: n/a | AC18: n/a | AD18: n/a | AE18: n/a | AF18: n/a | AH18: CBD | AI18: Urban | AJ18: Short rural | AK18: Long rural | AM18: Amadeus
B19: APA GasNet | C19: APA GasNet Australia (Operations) Pty Ltd | D19: 065083009 | E19: Vic | F19: Gas | G19: Transmission | H19: Weighted average price cap | I19: Calendar | J19: December | K19: 5 | L19: 5 | M19: x | O19: Level 19, HSBC Building | P19: 580 George Street | Q19: SYDNEY | R19: NSW | S19: 2000 | T19: PO Box R41 | V19: ROYAL EXCHANGE | W19: NSW | X19: 1225 | Y19: Alexandra Curran | Z19: 02 9275 0020 | AA19: alexandra.curran@apa.com.au | AB19: n/a | AC19: n/a | AD19: n/a | AE19: n/a | AF19: n/a | AH19: CBD | AI19: Urban | AJ19: Short rural | AK19: Long rural | AM19: APA GasNet
B20: Ausgrid | C20: Ausgrid | D20: 78508211731 | E20: NSW | F20: Electricity | G20: Distribution | H20: Revenue cap | I20: Financial | J20: June | K20: 5 | L20: 5 | M20: 5 | N20: 2014-19 Distribution Determination | O20: 570 George St | Q20: SYDNEY | R20: NSW | S20: 2000 | T20: GPO Box 4009 | V20: SYDNEY | W20: NSW | X20: 2001 | Y20: John Thomson | Z20: 02 9269 2312 | AA20: john.thomson@ausgrid.com.au | AB20: YES | AC20: YES | AD20: YES | AE20: YES | AF20: NO | AH20: CBD | AI20: Urban | AJ20: Short rural | AK20: Long rural | AM20: Ausgrid
B21: Ausgrid (Tx Assets) | C21: Ausgrid (Tx Assets) | D21: 67505337385 | E21: NSW | F21: Electricity | G21: Distribution | H21: Revenue cap | I21: Financial | J21: June | K21: 5 | L21: 5 | M21: 5 | N21: distribution determination | O21: 570 George St | Q21: SYDNEY | R21: NSW | S21: 2000 | T21: GPO Box 4009 | V21: SYDNEY | W21: NSW | X21: 2001 | Y21: John Thomson | Z21: 02 9269 2312 | AA21: john.thomson@ausgrid.com.au | AB21: YES | AC21: YES | AD21: YES | AE21: YES | AF21: NO | AH21: CBD | AI21: Urban | AJ21: Short rural | AK21: Long rural | AM21: Ausgrid (Tx Assets)
B22: AusNet (D) | C22: AusNet Electricity Services Pty Ltd | D22: 91064651118 | E22: Vic | F22: Electricity | G22: Distribution | H22: Revenue cap | I22: Calendar | J22: December | K22: 5 | L22: 5 | M22: 2 | N22: 2016-20 Distribution Determination | O22: Level 32 | P22: 2 Southbank Boulevard | Q22: SOUTHBANK | R22: Vic | S22: 3006 | T22: Locked Bag 14051 | V22: MELBOURNE CITY MAIL CENTRE | W22: VIC | X22: 8001 | Y22: please provide contact details | AC22: YES | AD22: YES | AE22: YES | AF22: NO | AH22: CBD | AI22: Urban | AJ22: Short rural | AK22: Long rural | AM22: AusNet (D)
B23: AusNet (Gas) | C23: AusNet Gas Services | D23: 086015036 | E23: Vic | F23: Gas | G23: Distribution | H23: Weighted average price cap | I23: Calendar | J23: December | K23: 5 | L23: 5 | M23: X | O23: Level 19, HSBC Building | P23: 580 George Street | Q23: SYDNEY | R23: NSW | S23: 2000 | T23: PO Box R41 | V23: ROYAL EXCHANGE | W23: NSW | X23: 1225 | Y23: Alexandra Curran | Z23: 02 9275 0020 | AA23: alexandra.curran@apa.com.au | AB23: n/a | AC23: n/a | AD23: n/a | AE23: n/a | AF23: n/a | AH23: CBD | AI23: Urban | AJ23: Short rural | AK23: Long rural | AM23: AusNet (Gas)
B24: AusNet (T) | C24: Ausnet Services (Transmission) Ltd | D24: 48116124362 | E24: Vic | F24: Electricity | G24: Transmission | H24: Revenue cap | I24: Financial | J24: March | K24: 5 | L24: 5 | M24: 2 | N24: transmission determination | O24: Level 32 | P24: 2 Southbank Boulevard | Q24: SOUTHBANK | R24: Vic | S24: 3006 | T24: Locked Bag 14051 | V24: MELBOURNE CITY MAIL CENTRE | W24: Vic | X24: 8001 | Y24: Clare Thompson | Z24: 03 9695 6670 | AA24: clare.e.thompson@ausnetservices.com.au | AB24: n/a | AC24: n/a | AD24: n/a | AE24: n/a | AF24: n/a | AH24: CBD | AI24: Urban | AJ24: Short rural | AK24: Long rural | AM24: AusNet (T)
B25: Australian Distribution Co. | C25: Australian Distribution Co. | D25: 11222333444 | E25: - | F25: Electricity | G25: Distribution | H25: Revenue cap | I25: Financial | J25: June | K25: 5 | L25: 5 | M25: 2 | N25: distribution determination | O25: 123 Straight Street | Q25: SYDNEY | R25: NSW | S25: 2000 | T25: PO Box 123 | V25: SYDNEY | W25: NSW | X25: 2000 | Y25: Bob Smith | Z25: 02 1234 5678 | AA25: bob@auselec.net.au | AB25: n/a | AC25: n/a | AD25: n/a | AE25: n/a | AF25: NO | AH25: CBD | AI25: Urban | AJ25: Short rural | AK25: Long rural | AM25: Australian Distribution Co.
B26: Australian Distribution Co. (Vic) | C26: Australian Distribution Co. (Victoria) | D26: 11222333444 | E26: Vic | F26: Electricity | G26: Distribution | H26: Revenue cap | I26: Calendar | J26: December | K26: 5 | L26: 5 | M26: 2 | N26: distribution determination | O26: 123 Straight Street | Q26: MELBOURNE | R26: Vic | S26: 3000 | T26: PO Box 123 | V26: MELBOURNE | W26: VIC | X26: 3000 | Y26: Bob Smith | Z26: 02 1234 5678 | AA26: bob@auselec.net.au | AB26: n/a | AC26: n/a | AD26: n/a | AE26: n/a | AF26: NO | AH26: CBD | AI26: Urban | AJ26: Short rural | AK26: Long rural | AM26: Australian Distribution Co. (Vic)
B27: Australian Transmission Co. | C27: Australian Transmission Co. | D27: 11222333444 | E27: - | F27: Electricity | G27: Transmission | H27: Revenue cap | I27: Financial | J27: June | K27: 5 | L27: 5 | M27: 5 | N27: transmission determination | O27: 123 Straight Street | Q27: SYDNEY | R27: NSW | S27: 2000 | T27: PO Box 123 | V27: SYDNEY | W27: NSW | X27: 2000 | Y27: Bob Smith | Z27: 02 1234 5678 | AA27: bob@auselec.net.au | AB27: n/a | AC27: n/a | AD27: n/a | AE27: n/a | AF27: NO | AH27: CBD | AI27: Urban | AJ27: Short rural | AK27: Long rural | AM27: Australian Transmission Co.
B28: Central Ranges Pipeline (D) | C28: Central Ranges Pipeline Pty Ltd | D28: 108218355 | E28: NSW | F28: Gas | G28: Distribution | H28: Weighted average price cap | I28: Financial | J28: June | K28: 15 | L28: 5 | M28: 5 | N28: distribution determination | O28: Level 19 | P28: 580 George Street | Q28: SYDNEY | R28: NSW | S28: 2000 | T28: PO Box R41 | V28: ROYAL EXCHANGE | W28: NSW | X28: 1225 | Y28: Scott Young | Z28: 02 9275 0031 | AA28: scott.young@apa.com.au | AB28: n/a | AC28: n/a | AD28: n/a | AE28: n/a | AF28: n/a | AH28: CBD | AI28: Urban | AJ28: Short rural | AK28: Long rural
B29: Central Ranges Pipeline (T) | C29: Central Ranges Pipeline Pty Ltd | D29: 108218355 | E29: NSW | F29: Gas | G29: Distribution | H29: Weighted average price cap | I29: Financial | J29: June | K29: 14 | L29: 5 | M29: 5 | N29: transmission determination | O29: Level 19 | P29: 580 George Street | Q29: SYDNEY | R29: NSW | S29: 2000 | T29: PO Box R41 | V29: ROYAL EXCHANGE | W29: NSW | X29: 1225 | Y29: Scott Young | Z29: 02 9275 0031 | AA29: scott.young@apa.com.au | AB29: n/a | AC29: n/a | AD29: n/a | AE29: n/a | AF29: n/a | AH29: CBD | AI29: Urban | AJ29: Short rural | AK29: Long rural
B30: CitiPower | C30: CitiPower | D30: 76064651056 | E30: Vic | F30: Electricity | G30: Distribution | H30: Revenue cap | I30: Calendar | J30: December | K30: 5 | L30: 5 | M30: 2 | N30: 2016-20 Distribution Determination | O30: 40 Market Street | Q30: MELBOURNE | R30: Vic | S30: 3000 | T30: Locked Bag 14090 | V30: MELBOURNE | W30: VIC | X30: 8001 | Y30: Hannah Williams | Z30: 03 9683 4088 | AA30: hwilliams@powercor.com.au | AB30: YES | AC30: YES | AD30: NO | AE30: NO | AF30: NO | AH30: CBD | AI30: Urban | AJ30: Short rural | AK30: Long rural | AM30: CitiPower
B31: Directlink | C31: Directlink | D31: 16779340889 | E31: Qld | F31: Electricity | G31: Transmission | H31: Revenue cap | I31: Financial | J31: June | K31: 9 | L31: 5 | M31: 5 | N31: transmission determination | O31: Level 19, HSBC Building | P31: 580 George Street | Q31: SYDNEY | R31: NSW | S31: 2000 | T31: PO Box R41 | V31: ROYAL EXCHANGE | W31: NSW | X31: 1225 | Y31: Scott Young | Z31: 02 9275 0031 | AA31: scott.young@apa.com.au | AB31: n/a | AC31: n/a | AD31: n/a | AE31: n/a | AF31: n/a | AH31: CBD | AI31: Urban | AJ31: Short rural | AK31: Long rural | AM31: Directlink
B32: ElectraNet | C32: ElectraNet | D32: 41094482416 | E32: SA | F32: Electricity | G32: Transmission | H32: Revenue cap | I32: Financial | J32: June | K32: 5 | L32: 5 | M32: 5 | N32: transmission determination | O32: 52-55 East Terrace | P32: Rymill Park | Q32: ADELAIDE | R32: SA | S32: 5000 | T32: PO Box 7096 | U32: Hutt Street Post Office | V32: ADELAIDE | W32: SA | X32: 5000 | Y32: Bill Jackson | Z32: 08 8404 7969 | AA32: jackson.bill@electranet.com.au | AB32: n/a | AC32: n/a | AD32: n/a | AE32: n/a | AF32: n/a | AH32: CBD | AI32: Urban | AJ32: Short rural | AK32: Long rural | AM32: ElectraNet
B33: Endeavour Energy | C33: Endeavour Energy | D33: 11247365823 | E33: NSW | F33: Electricity | G33: Distribution | H33: Revenue cap | I33: Financial | J33: June | K33: 5 | L33: 5 | M33: 5 | N33: 2014-19 Distribution Determination | O33: 51 Huntingwood Drive | Q33: HUNTINGWOOD | R33: NSW | S33: 2148 | T33: PO Box 811 | V33: SEVEN HILLS | W33: NSW | X33: 1730 | Y33: Jon Hocking | Z33: 02 9853 4386 / 0407 348 156 | AA33: Jon.Hocking@Endeavourenergy.com.au | AB33: NO | AC33: YES | AD33: YES | AE33: YES | AF33: NO | AH33: CBD | AI33: Urban | AJ33: Short rural | AK33: Long rural | AM33: Endeavour Energy
B34: Energex | C34: Energex | D34: 40078849055 | E34: Qld | F34: Electricity | G34: Distribution | H34: Revenue cap | I34: Financial | J34: June | K34: 5 | L34: 5 | M34: 5 | N34: 2015-20 Distribution Determination | O34: 26 Reddacliff Street | Q34: NEWSTEAD | R34: Qld | S34: 4006 | T34: 26 Reddacliff Street | V34: NEWSTEAD | W34: QLD | X34: 4006 | Y34: Nicola Roscoe | Z34: 07 3664 5891 | AA34: nicolaroscoe@energex.com.au | AB34: YES | AC34: YES | AD34: YES | AE34: NO | AF34: NO | AH34: CBD | AI34: Urban | AJ34: Short rural | AK34: Long rural | AM34: Energex
B35: Ergon Energy | C35: Ergon Energy | D35: 50087646062 | E35: Qld | F35: Electricity | G35: Distribution | H35: Revenue cap | I35: Financial | J35: June | K35: 5 | L35: 5 | M35: 5 | N35: 2015-20 Distribution Determination | O35: 22 Walker Street | Q35: TOWNSVILLE | R35: Qld | S35: 4810 | T35: Po Box 264 | V35: FORTITUDE VALLEY | W35: QLD | X35: 4006 | Y35: Jenny Doyle, Group Manager Regulatory Affairs | Z35: (07) 3851 6416 | AA35: jenny.doyle@ergon.com.au | AB35: NO | AC35: YES | AD35: YES | AE35: YES | AF35: NO | AH35: CBD | AI35: Urban | AJ35: Short rural | AK35: Long rural | AM35: Ergon Energy
B36: Essential Energy | C36: Essential Energy | D36: 37428185226 | E36: NSW | F36: Electricity | G36: Distribution | H36: Revenue cap | I36: Financial | J36: June | K36: 5 | L36: 5 | M36: 5 | N36: 2014-19 Distribution Determination | O36: 8 Buller Street | Q36: PORT MACQUARIE | R36: NSW | S36: 2444 | T36: PO Box 5730 | V36: PORT MACQUARIE | W36: NSW | X36: 2444 | Y36: Catherine Waddell | Z36: 02 6338 3553 | AA36: catherine.waddell@essentialenergy.com.au | AB36: NO | AC36: NO | AD36: YES | AE36: YES | AF36: NO | AH36: CBD | AI36: Urban | AJ36: Short rural | AK36: Long rural | AM36: Essential Energy
B37: Jemena Electricity | C37: Jemena Electricity | D37: 82064651083 | E37: Vic | F37: Electricity | G37: Distribution | H37: Revenue cap | I37: Calendar | J37: December | K37: 5 | L37: 5 | M37: 2 | N37: 2016-20 Distribution Determination | O37: Level 16 | P37: 567 Collins Street | Q37: MELBOURNE | R37: VIC | S37: 3000 | T37: PO Box 16182 | V37: MELBOURNE | W37: VIC | X37: 8001 | Y37: Matthew Serpell | Z37: 03 9173 8231 | AA37: matthew.serpell@jemena.com.au | AB37: NO | AC37: NO | AD37: YES | AE37: NO | AF37: NO | AH37: CBD | AI37: Urban | AJ37: Short rural | AK37: Long rural | AM37: Jemena Electricity
B38: JGN | C38: Jemena Gas Networks (NSW) Ltd | D38: 003 004 322 | E38: NSW | F38: Gas | G38: Distribution | H38: Weighted average price cap | I38: Financial | J38: June | K38: 5 | L38: 5 | Y38: please provide contact details | AB38: n/a | AC38: n/a | AD38: n/a | AE38: n/a | AF38: n/a | AH38: CBD | AI38: Urban | AJ38: Short rural | AK38: Long rural | AM38: JGN
B39: Multinet Gas | C39: Multinet Gas (DB No.1) Pty Ltd (ACN 086 026 986), Multinet Gas (DB No.2) Pty Ltd (ACN 086 230 122) | D39: 086026986 | E39: Vic | F39: Gas | G39: Distribution | H39: Weighted average price cap | I39: Calendar | J39: December | K39: 5 | L39: 5 | M39: x | O39: 43-45 Centreway | Q39: MT WAVERLEY | R39: Vic | S39: 3149 | Y39: Andrew Schille | Z39: 03 8846 9860 | AA39: andrew.schille@ue.com.au | AB39: n/a | AC39: n/a | AD39: n/a | AE39: n/a | AF39: n/a | AH39: CBD | AI39: Urban | AJ39: Short rural | AK39: Long rural | AM39: Multinet Gas
B40: Murraylink | C40: Murraylink | D40: 79181207909 | E40: SA | F40: Electricity | G40: Transmission | H40: Revenue cap | I40: Financial | J40: June | K40: 5 | L40: 5 | M40: 5 | N40: transmission determination | O40: Level 19 | P40: 580 George Street | Q40: SYDNEY | R40: NSW | S40: 2000 | T40: PO Box R41 | V40: ROYAL EXCHANGE | W40: NSW | X40: 1225 | Y40: Scott Young | Z40: 02 9275 0031 | AA40: scott.young@apa.com.au | AB40: n/a | AC40: n/a | AD40: n/a | AE40: n/a | AF40: n/a | AH40: CBD | AI40: Urban | AJ40: Short rural | AK40: Long rural | AM40: Murraylink
B41: Power and Water | C41: Power and Water Corporation | D41: 15947352360 | E41: NT | F41: Electricity | G41: Distribution | H41: Revenue cap | I41: Financial | J41: June | K41: 5 | L41: 5 | M41: x | N41: distribution determination | O41: GPO Box 1921 | Q41: DARWIN | R41: NT | S41: 801 | T41: GPO Box 1921 | V41: DARWIN | W41: NT | X41: 801 | Y41: Lucy Moon | Z41: 08 8924 5822 | AA41: Lucy.Moon@powerwater.com.au | AB41: YES | AC41: YES | AD41: YES | AE41: YES | AF41: NO | AH41: CBD | AI41: Urban | AJ41: Short rural | AK41: Long rural
B42: Powercor Australia | C42: Powercor Australia | D42: 89064651109 | E42: Vic | F42: Electricity | G42: Distribution | H42: Revenue cap | I42: Calendar | J42: December | K42: 5 | L42: 5 | M42: 2 | N42: 2016-20 Distribution Determination | O42: 40 Market Street | Q42: MELBOURNE | R42: Vic | S42: 3000 | T42: Locked bag 14090 | V42: MELBOURNE | W42: VIC | X42: 8001 | Y42: Hannah Williams | Z42: 03 9683 4088 | AA42: hwilliams@powercor.com.au | AD42: YES | AE42: YES | AF42: NO | AH42: CBD | AI42: Urban | AJ42: Short rural | AK42: Long rural | AM42: Powercor Australia
B43: Powerlink | C43: Queensland Electricity Transmission Corporation Limited trading as Powerlink Queensland | D43: 82078849233 | E43: Qld | F43: Electricity | G43: Transmission | H43: Revenue cap | I43: Financial | J43: June | K43: 5 | L43: 5 | M43: 5 | N43: transmission determination | O43: 33 Harold St | Q43: VIRGINIA | R43: Qld | S43: 4014 | T43: PO Box 1193 | V43: VIRGINIA | W43: QLD | X43: 4014 | Y43: Jennifer Harris | Z43: 07 3860 2667 | AA43: jharris@powerlink.com.au | AB43: n/a | AC43: n/a | AD43: n/a | AE43: n/a | AF43: n/a | AH43: CBD | AI43: Urban | AJ43: Short rural | AK43: Long rural | AM43: Powerlink
B44: Roma to Brisbane Pipeline | C44: APT Petroleum Pipelines Limited t/a Roma to Brisbane Pipeline | D44: 009 737 393 | E44: Qld | F44: Gas | G44: Transmission | H44: Weighted average price cap | I44: Financial | J44: June | K44: 5 | L44: 5 | M44: x | N44: n/a | O44: 580 George Street | Q44: SYDNEY | R44: NSW | S44: 2000 | T44: PO Box R41 | V44: ROYAL EXCHANGE | W44: NSW | X44: 1225 | Y44: Mark Allen | Z44: 02 9275 0010 | AA44: mark.allen@apa.com.au | AB44: n/a | AC44: n/a | AD44: n/a | AE44: n/a | AF44: n/a | AH44: CBD | AI44: Urban | AJ44: Short rural | AK44: Long rural | AM44: Roma to Brisbane Pipeline
B45: SA Power Networks | C45: SA Power Networks | D45: 13332330749 | E45: SA | F45: Electricity | G45: Distribution | H45: Revenue cap | I45: Financial | J45: June | K45: 5 | L45: 5 | M45: 5 | N45: 2015-20 Distribution Determination | O45: 1 Anzac Highway | Q45: KESWICK | R45: SA | S45: 5035 | T45: GPO Box 77 | V45: ADELAIDE | W45: SA | X45: 5000 | Y45: Richard Sibly | Z45: 08 8404 5613 | AA45: richard.sibly@sapowernetworks.com.au | AB45: NO | AC45: NO | AD45: YES | AE45: YES | AF45: NO | AH45: CBD | AI45: Urban | AJ45: Short rural | AK45: Long rural | AM45: SA Power Networks
B46: TasNetworks (D) | C46: TasNetworks (D) | D46: 24167357299 | E46: Tas | F46: Electricity | G46: Distribution | H46: Revenue cap | I46: Financial | J46: June | K46: 5 | L46: 5 | M46: 5 | N46: distribution determination | O46: 1-7 Maria Street | Q46: LENAH VALLEY | R46: Tas | S46: 7008 | T46: PO Box 606 | V46: MOONAH | W46: Tas | X46: 7009 | Y46: John Sayers | Z46: 03 6271 6469 | AA46: john.sayers@tasnetworks.com.au | AB46: YES | AC46: YES | AD46: YES | AE46: YES | AF46: YES | AH46: Critical Infrastructure | AI46: High density commercial | AJ46: Urban | AK46: High density rural | AL46: Low density rural | AM46: TasNetworks (D)
B47: TasNetworks (T) | C47: TasNetworks (T) | D47: 24167357299 | E47: Tas | F47: Electricity | G47: Transmission | H47: Revenue cap | I47: Financial | J47: June | K47: 5 | L47: 5 | M47: 5 | N47: transmission determination | O47: 1-7 Maria Street | Q47: LENAH VALLEY | R47: Tas | S47: 7008 | T47: PO Box 606 | V47: MOONAH | W47: Tas | X47: 7009 | Y47: John Sayers | Z47: 03 6271 6469 | AA47: john.sayers@tasnetworks.com.au | AB47: n/a | AC47: n/a | AD47: n/a | AE47: n/a | AF47: n/a | AH47: CBD | AI47: Urban | AJ47: Short rural | AK47: Long rural | AM47: TasNetworks (T)
B48: TransGrid | C48: NSW Electricity Networks Operations Pty Ltd trading as TransGrid | D48: 609169959 | E48: NSW | F48: Electricity | G48: Transmission | H48: Revenue cap | I48: Financial | J48: June | K48: 5 | L48: 4 | M48: 5 | N48: transmission determination | O48: 180 Thomas Street | Q48: SYDNEY | R48: NSW | S48: 2000 | T48: PO Box A1000 | V48: SYDNEY SOUTH | W48: NSW | X48: 1235 | Y48: Garrie Chubb | Z48: 0408 210 221 | AA48: garrie.chubb@transgrid.com.au | AB48: n/a | AC48: n/a | AD48: n/a | AE48: n/a | AF48: n/a | AH48: CBD | AI48: Urban | AJ48: Short rural | AK48: Long rural | AM48: TransGrid
B49: United Energy | C49: United Energy | D49: 70064651029 | E49: Vic | F49: Electricity | G49: Distribution | H49: Revenue cap | I49: Calendar | J49: December | K49: 5 | L49: 5 | M49: 2 | N49: 2016-20 Distribution Determination | O49: Level 3 | P49: 6 Nexus Court | Q49: MULGRAVE | R49: Vic | S49: 3149 | T49: PO Box 449 | V49: MOUNT WAVERLEY | W49: VIC | X49: 3170 | Y49: Mathew Abraham | Z49: 03 8846 9758 | AA49: mathew.abraham@ue.com.au | AB49: NO | AC49: NO | AD49: YES | AE49: NO | AF49: NO | AH49: CBD | AI49: Urban | AJ49: Short rural | AK49: Long rural | AM49: United Energy
B50: Western Power (D) | C50: Western Power (D) | D50: 18540492861 | E50: WA | F50: Electricity | G50: Distribution | H50: Revenue cap | I50: Financial | J50: June | K50: 12 | L50: 4 | M50: x | N50: distribution determination | O50: 363 Wellington Street | Q50: PERTH | R50: WA | S50: 6000 | T50: GPO Box L921 | V50: PERTH | W50: WA | X50: 6842 | Y50: Judy Hunter | Z50: 08 9326 6239 | AA50: judy.hunter@westernpower.com.au | AB50: NO | AC50: NO | AD50: YES | AE50: YES | AF50: NO | AG50: NO | AH50: CBD | AI50: Urban | AJ50: Short rural | AK50: Long rural | AM50: Western Power (D)
B51: Western Power (T) | C51: Western Power (T) | D51: 18540492861 | E51: WA | F51: Electricity | G51: Transmission | H51: Revenue cap | I51: Financial | J51: June | K51: 12 | L51: 4 | M51: x | N51: transmission determination | O51: 363 Wellington Street | Q51: PERTH | R51: WA | S51: 6000 | T51: GPO Box L921 | V51: PERTH | W51: WA | X51: 6842 | Y51: Judy Hunter | Z51: 08 9326 6239 | AA51: judy.hunter@westernpower.com.au | AB51: n/a | AC51: n/a | AD51: n/a | AE51: n/a | AF51: n/a | AH51: CBD | AI51: Urban | AJ51: Short rural | AK51: Long rural | AM51: Western Power (T)
Y54: For EB & Reset RINs only | AD54: For AARs only
B55: The Reg Year Ending (dms_RYE) must be set to the last year of the regulatory period. For forecast data is is usually (FRCP_y5) for actual it is a single year (CRY). For historical actual data the RYE will need to be set manually in the business details sheet by setting the dms_Multiyear_flag to 1 and putting the correct value in 'dms_Specified_FinalYear. See cells C67:C68 | G55: =IF(dms_RPT="financial",VALUE(LEFT(CRCP_y1,4)-1)&"-"&TEXT(VALUE(RIGHT(CRCP_y1,2)-1),"00"),VALUE(LEFT(CRCP_y1,4)-1)) -> 2014-15 | N55: Drop down selector box for CA & Reset RINs. | O55: For CA & Reset RINs only | Y55: for DNSP only | AD55: For DNSPs only | AJ55: Reason for interruption | AK55: dms_Reason_Interruption_Detailed | AL55: dms_Reason_Interruption | AM55: dms_STPIS_Exclusion_List
B56: dms_Model_List | C56: DELETE NR 'CRY' IF NOT AN ANNUAL RIN (EB, CA , ARR) | E56: dms_RYE_Formula_Result | N56: dms_0203_ProjectType | O56: dms_020303_01_UOM | P56: dms_020501_01_UOM | Q56: dms_020501_02_UOM | R56: dms_020501_03_UOM | S56: dms_020501_04_UOM | T56: dms_020603_01_UOM | U56: dms_020701_01_UOM | V56: dms_020701_02_UOM | W56: dms_040102_01_UOM | X56: dms_040102_04_UOM | Y56: dms_030601_01_UOM | Z56: dms_030601_02_UOM | AA56: dms_030701_01_UOM | AB56: dms_030702_01_UOM | AC56: dms_030703_01_UOM | AD56: dms_030605_UOM | AE56: dms_03060703_UOM | AJ56: Animal | AK56: Animal impact | AL56: Animal | AM56: Weather
B57: ARR | C57: ANNUAL REPORTING STATEMENT | E57: =LEFT(dms_SingleYear_FinalYear_Result,2)&RIGHT(dms_SingleYear_FinalYear_Result,2) -> 2018 | F57: =LEFT(dms_SingleYear_FinalYear_Result,2)&RIGHT(dms_SingleYear_FinalYear_Result,2) | H57: Formula errors are OK | N57: New line on new route - single circuit | O57: Circuit line length in km | P57: 0's | Q57: 0's | R57: 0's | S57: 0's | T57: 0's | U57: km | V57: km | W57: 0's | X57: days | Y57: minutes/customer | Z57: minutes/customer | AA57: Customer / km | AB57: % | AC57: km | AD57: number | AE57: number | AK57: Animal nesting/burrowing, etc and other | AL57: Asset failure | AM57: Equipment failure
B58: CA | C58: CATEGORY ANALYSIS | E58: =LEFT(dms_SingleYear_FinalYear_Result,2)&RIGHT(dms_SingleYear_FinalYear_Result,2) -> 2018 | F58: =LEFT(dms_SingleYear_FinalYear_Result,2)&RIGHT(dms_SingleYear_FinalYear_Result,2) | H58: Formula errors are OK | N58: New line on new route - dual circuit | O58: Circuit line length in km | P58: 0's | Q58: 0's | R58: 0's | S58: 0's | T58: 0's | U58: 0's | V58: 0's | W58: 0's | X58: 0's | Y58: minutes/customer | Z58: minutes/customer | AA58: MWh/customer | AB58: Number of spans | AD58: number | AE58: number | AK58: Other | AL58: Other | AM58: Operational error
B59: CPI | C59: CPI | N59: New line on new route - other | O59: Circuit line length in km | P59: MVA added | Q59: MVA added | R59: MVA added | S59: MVA added | T59: 0's | U59: km | V59: km | W59: 0's | X59: $0s | Y59: interruptions/customer | Z59: interruptions/customer | AA59: kVA / customer | AB59: Number of spans | AD59: number | AE59: number | AJ59: Asset failure | AK59: LV | AL59: Overloads | AM59: Vegetation
B60: EB | C60: ECONOMIC BENCHMARKING | E60: =LEFT(dms_SingleYear_FinalYear_Result,2)&RIGHT(dms_SingleYear_FinalYear_Result,2) -> 2018 | F60: =LEFT(dms_SingleYear_FinalYear_Result,2)&RIGHT(dms_SingleYear_FinalYear_Result,2) | H60: Formula errors are OK | N60: Line rebuild over existing route - single circuit | O60: Circuit line length in km | P60: 0's | Q60: 0's | R60: 0's | S60: 0's | T60: 0's | U60: km | V60: km | W60: $0s | X60: 0's | Y60: interruptions/customer | Z60: interruptions/customer | AB60: Number of spans | AD60: number | AE60: number | AK60: Distribution substation | AL60: Planned | AM60: Animals
B61: PTRM | C61: POST TAX REVENUE MODEL | E61: =LEFT(dms_MultiYear_FinalYear_Result,2)&RIGHT(dms_MultiYear_FinalYear_Result,2) -> 2025 | F61: =LEFT(dms_MultiYear_FinalYear_Result,2)&RIGHT(dms_MultiYear_FinalYear_Result,2) | N61: Line rebuild over existing route - dual circuit | O61: Number | P61: total spend $0s | Q61: total spend $0s | R61: total spend $0s | S61: total spend $0s | T61: (per cent) | U61: 0's | V61: 0's | AB61: Number of spans | AD61: number | AE61: (per cent) | AK61: HV | AL61: Network business | AM61: Third party impacts
B62: Reset | C62: REGULATORY REPORTING STATEMENT | E62: =LEFT(dms_MultiYear_FinalYear_Result,2)&RIGHT(dms_MultiYear_FinalYear_Result,2) -> 2025 | F62: =LEFT(dms_MultiYear_FinalYear_Result,2)&RIGHT(dms_MultiYear_FinalYear_Result,2) | H62: Formula errors are OK | N62: Reconductor - Single circuit | O62: Number | P62: net circuit km added | Q62: net circuit km added | R62: net circuit km added | S62: net circuit km added | U62: years | V62: years | AB62: Years | AD62: number | AK62: Zone substation | AL62: Third party | AM62: Transmission failure
B63: RFM | C63: ROLL FORWARD MODEL | E63: =LEFT(dms_CRCP_FinalYear_Result,2)&RIGHT(dms_CRCP_FinalYear_Result,2) -> 2018 | F63: =LEFT(dms_CRCP_FinalYear_Result,2)&RIGHT(dms_CRCP_FinalYear_Result,2) | N63: Reconductor - Dual circuit | O63: Number | P63: total spend $0s | Q63: total spend $0s | R63: total spend $0s | S63: total spend $0s | AB63: Years | AD63: number | AK63: Subtransmission | AL63: Unknown | AM63: Load shedding
B64: WACC | C64: WEIGHTED AVERAGE COST OF CAPITAL | E64: =LEFT(dms_MultiYear_FinalYear_Result,2)&RIGHT(dms_MultiYear_FinalYear_Result,2) -> 2025 | F64: =LEFT(dms_MultiYear_FinalYear_Result,2)&RIGHT(dms_MultiYear_FinalYear_Result,2) | N64: Other | P64: net circuit km added | Q64: net circuit km added | R64: net circuit km added | S64: net circuit km added | AB64: Trees | AD64: number | AJ64: Other | AK64: insert description of 'other' | AL64: Vegetation | AM64: Inter-distributor connection failure
P65: total spend $0s | Q65: total spend $0s | R65: total spend $0s | S65: total spend $0s | AB65: Trees | AD65: number | AJ65: Overloads | AK65: - | AL65: Weather | AM65: Other
B66: dms_DataQuality_List | P66: 0's | R66: $0s | AB66: Defects | AD66: number | AJ66: Planned | AK66: - | AL66: 2 - STPIS Exclusion (3.3)(a)
B67: Actual | P67: 0's | AB67: Defects | AD67: number | AJ67: Network business | AK67: Network error | AL67: 3 - STPIS Exclusion (3.3)(a)
B68: Estimate | P68: 0's | AB68: Spans | AD68: number | AK68: Switching and protection error | AL68: 4 - STPIS Exclusion (3.3)(a)
B69: Consolidated | P69: $0s | AB69: km | AD69: (per cent) | AJ69: Third party | AK69: Fire | AL69: 5 - STPIS Exclusion (3.3)(a)
B70: Recast | AB70: Spans | AD70: (per cent) | AK70: Other | AL70: 6 - STPIS Exclusion (3.3)(a)
B71: Public | AK71: Dig-in | AL71: 7 - STPIS Exclusion (3.3)(a)
AK72: Unauthorised access
B73: For all files either AER or business needs to be able to specify the type of submission | C73: For PTRM & RFM templates we must provide a choice in case they change their form of control - otherwise it is drawn from the business specific lookup table above. | O73: For PTRM files - this field set the text for the named range "DMS_Xfactor" which in all cases is simply the text "x factors" - this saves putting in each old gas PTRM file | Y73: for TNSP only | AK73: Vehicle impact
B74: dms_SourceList | C74: dms_FormControl_Choices | O74: DMS_Xfactor | Y74: dms_030601_01_UOM | AA74: dms_030701_01_UOM | AB74: dms_030702_01_UOM | AJ74: Unknown | AK74: Unknown
B75: After appeal | C75: Revenue cap | O75: x factors | Y75: % | AA75: Number of spans | AB75: km | AJ75: Vegetation | AK75: Blow-in/Fall-in - NSP responsibility
B76: Draft decision | C76: Revenue yield | Y76: number | AA76: Years | AB76: % | AK76: Grow-in - NSP responsibility
B77: Final decision | C77: Weighted average price cap | Y77: number | AA77: Trees | AB77: km | AK77: Blow-in/Fall-in - Other responsible party
B78: PTRM update 1 | Y78: % | AA78: Defects | AB78: number | AK78: Grow-in - Other responsible party
B79: PTRM update 2 | Y79: number | AA79: Number of spans | AJ79: Weather
B80: PTRM update 3 | Y80: number | AA80: km | AJ80: 2 - STPIS Exclusion (3.3)(a)
B81: PTRM update 4 | Y81: % | AA81: km | AJ81: 3 - STPIS Exclusion (3.3)(a)
B82: PTRM update 5 | Y82: number | AA82: Number of spans | AJ82: 4 - STPIS Exclusion (3.3)(a)
B83: PTRM update 6 | Y83: number | AJ83: 5 - STPIS Exclusion (3.3)(a)
B84: PTRM update 7 | Y84: % | AJ84: 6 - STPIS Exclusion (3.3)(a)
B85: Regulatory proposal | Y85: number | AJ85: 7 - STPIS Exclusion (3.3)(a)
B86: Reporting | Y86: %
B87: Revised regulatory proposal | Y87: number
Y88: %
Y89: number
B93: These are indeces and lookup values for various dates. All step from the value placed in FRCP_y1 on the business and other details worksheet | C93: =IF(dms_FifthFeeder_flag_NSP="NO","This NSP has only 4 feeder categories","This NSP has 5 feeder categories") -> This NSP has only 4 feeder categories | L93: These date tables are currently used in the Recast templates to provide column headings and conditional formatting
B94: dms_FRCPlength_Num_List | C94: dms_FinalYear_List | D94: dms_CRCPlength_Num_List | E94: dms_CFinalYear_List | F94: dms_FRCP_years | H94: dms_CRCP_years | J94: dms_CRCP_index | L94: CRY from input cell on business sheet | M94: CRY - financial | N94: dms_FinYears | O94: CRY calendar | P94: dms_CalYears | Y94: These "row descriptions" are the column headings in the various templates but become row descriptions in the ETL process
B95: 1 | C95: dms_FRCP_y1 | D95: 1 | E95: CRCP_y1 | F95: =FRCP_y1 -> 2020-21 | G95: dms_FRCP_y1 | H95: =IF(dms_RPT="financial",VALUE(LEFT(dms_FRCP_y1,4)-1)&"-"&TEXT(VALUE(MID(dms_FRCP_y1,3,2)),"00"),VALUE(LEFT(dms_FRCP_y1,4)-1)) -> 2019-20 | I95: dms_CRCP_yZ | J95: 1 | L95: =CRY -> 2017-18 | M95: =VALUE(LEFT(CRY,4))&"-"&TEXT(MID(CRY,3,2)+1,"00") -> 2017-18 | N95: dms_CRYf_y1 | O95: =VALUE(LEFT(CRY,4)+1) -> 2018 | P95: dms_CRYc_y1 | Z95: Table 6.3 sustained interruptions - row descriptions
B96: 2 | C96: dms_FRCP_y2 | D96: 2 | E96: CRCP_y2 | F96: =IF(dms_RPT="financial",VALUE(LEFT(dms_FRCP_y1,4)+1)&"-"&TEXT(VALUE(RIGHT(dms_FRCP_y1,2)+1),"00"),VALUE(LEFT(dms_FRCP_y1,4)+1)) -> 2021-22 | G96: dms_FRCP_y2 | H96: =IF(dms_RPT="financial",VALUE(LEFT(dms_CRCP_yZ,4)-1)&"-"&TEXT(VALUE(MID(dms_CRCP_yZ,3,2)),"00"),VALUE(LEFT(dms_CRCP_yZ,4)-1)) -> 2018-19 | I96: dms_CRCP_yY | J96: 2 | M96: =VALUE(LEFT(dms_CRYf_y1,4)+1)&"-"&TEXT(MID(dms_CRYf_y1,3,2)+2,"00") -> 2018-19 | N96: dms_CRYf_y2 | O96: =VALUE(LEFT(dms_CRYc_y1,4)+1) -> 2019 | P96: dms_CRYc_y2 | Z96: dms_060301_CustNo_Affected_Row | AA96: dms_060301_Avg_Duration_Sustained_Int_Row | AB96: dms_060301_Effect_unplanned_SAIDI_Row | AC96: dms_060301_Effect_unplanned_SAIFI_Row
B97: 3 | C97: =IF(dms_Model="ARR",15,9) | D97: 3 | E97: =IF(dms_Model="ARR",15,9) | F97: =IF(dms_RPT="financial",VALUE(LEFT(dms_FRCP_y2,4)+1)&"-"&TEXT(VALUE(RIGHT(dms_FRCP_y2,2)+1),"00"),VALUE(LEFT(dms_FRCP_y2,4)+1)) -> 2022-23 | G97: dms_FRCP_y3 | H97: =IF(dms_RPT="financial",VALUE(LEFT(dms_CRCP_yY,4)-1)&"-"&TEXT(VALUE(MID(dms_CRCP_yY,3,2)),"00"),VALUE(LEFT(dms_CRCP_yY,4)-1)) -> 2017-18 | I97: dms_CRCP_yX | J97: 3 | M97: =VALUE(LEFT(dms_CRYf_y2,4)+1)&"-"&TEXT(MID(dms_CRYf_y2,3,2)+2,"00") -> 2019-20 | N97: dms_CRYf_y3 | O97: =VALUE(LEFT(dms_CRYc_y2,4)+1) -> 2020 | P97: dms_CRYc_y3 | Z97: Number of customers affected by the interruption | AA97: Average duration of sustained customer interruption | AB97: Effect on unplanned SAIDI | AC97: Effect on unplanned SAIFI
B98: 4 | C98: dms_FRCP_y4 | D98: 4 | E98: CRCP_y4 | F98: =IF(dms_RPT="financial",VALUE(LEFT(dms_FRCP_y3,4)+1)&"-"&TEXT(VALUE(RIGHT(dms_FRCP_y3,2)+1),"00"),VALUE(LEFT(dms_FRCP_y3,4)+1)) -> 2023-24 | G98: dms_FRCP_y4 | H98: =IF(dms_RPT="financial",VALUE(LEFT(dms_CRCP_yX,4)-1)&"-"&TEXT(VALUE(MID(dms_CRCP_yX,3,2)),"00"),VALUE(LEFT(dms_CRCP_yX,4)-1)) -> 2016-17 | I98: dms_CRCP_yW | J98: 4 | M98: =VALUE(LEFT(dms_CRYf_y3,4)+1)&"-"&TEXT(MID(dms_CRYf_y3,3,2)+2,"00") -> 2020-21 | N98: dms_CRYf_y4 | O98: =VALUE(LEFT(dms_CRYc_y3,4)+1) -> 2021 | P98: dms_CRYc_y4
B99: 5 | C99: dms_FRCP_y5 | D99: 5 | E99: CRCP_y5 | F99: =IF(dms_RPT="financial",VALUE(LEFT(dms_FRCP_y4,4)+1)&"-"&TEXT(VALUE(RIGHT(dms_FRCP_y4,2)+1),"00"),VALUE(LEFT(dms_FRCP_y4,4)+1)) -> 2024-25 | G99: dms_FRCP_y5 | H99: =IF(dms_RPT="financial",VALUE(LEFT(dms_CRCP_yW,4)-1)&"-"&TEXT(VALUE(MID(dms_CRCP_yW,3,2)),"00"),VALUE(LEFT(dms_CRCP_yW,4)-1)) -> 2015-16 | I99: dms_CRCP_yV | J99: 5 | M99: =VALUE(LEFT(dms_CRYf_y4,4)+1)&"-"&TEXT(MID(dms_CRYf_y4,3,2)+2,"00") -> 2021-22 | N99: dms_CRYf_y5 | O99: =VALUE(LEFT(dms_CRYc_y4,4)+1) -> 2022 | P99: dms_CRYc_y5
B100: 6 | C100: dms_FRCP_y6 | D100: 6 | E100: CRCP_y6 | F100: =IF(dms_RPT="financial",VALUE(LEFT(dms_FRCP_y5,4)+1)&"-"&TEXT(VALUE(RIGHT(dms_FRCP_y5,2)+1),"00"),VALUE(LEFT(dms_FRCP_y5,4)+1)) -> 2025-26 | G100: dms_FRCP_y6 | H100: =IF(dms_RPT="financial",VALUE(LEFT(dms_CRCP_yV,4)-1)&"-"&TEXT(VALUE(MID(dms_CRCP_yV,3,2)),"00"),VALUE(LEFT(dms_CRCP_yV,4)-1)) -> 2014-15 | I100: dms_CRCP_yU | J100: 6 | M100: =VALUE(LEFT(dms_CRYf_y5,4)+1)&"-"&TEXT(MID(dms_CRYf_y5,3,2)+2,"00") -> 2022-23 | N100: dms_CRYf_y6 | O100: =VALUE(LEFT(dms_CRYc_y5,4)+1) -> 2023 | P100: dms_CRYc_y6
B101: 7 | C101: dms_FRCP_y7 | D101: 7 | E101: CRCP_y7 | F101: =IF(dms_RPT="financial",VALUE(LEFT(dms_FRCP_y6,4)+1)&"-"&TEXT(VALUE(RIGHT(dms_FRCP_y6,2)+1),"00"),VALUE(LEFT(dms_FRCP_y6,4)+1)) -> 2026-27 | G101: dms_FRCP_y7 | H101: =IF(dms_RPT="financial",VALUE(LEFT(dms_CRCP_yU,4)-1)&"-"&TEXT(VALUE(MID(dms_CRCP_yU,3,2)),"00"),VALUE(LEFT(dms_CRCP_yU,4)-1)) -> 2013-14 | I101: dms_CRCP_yT | J101: 7 | M101: =VALUE(LEFT(dms_CRYf_y6,4)+1)&"-"&TEXT(MID(dms_CRYf_y6,3,2)+2,"00") -> 2023-24 | N101: dms_CRYf_y7 | O101: =VALUE(LEFT(dms_CRYc_y6,4)+1) -> 2024 | P101: dms_CRYc_y7 | Z101: Table 6.1 telephone answering - row descriptions and start date
B102: 8 | C102: dms_FRCP_y8 | D102: 8 | E102: CRCP_y8 | F102: =IF(dms_RPT="financial",VALUE(LEFT(dms_FRCP_y7,4)+1)&"-"&TEXT(VALUE(RIGHT(dms_FRCP_y7,2)+1),"00"),VALUE(LEFT(dms_FRCP_y7,4)+1)) -> 2027-28 | G102: dms_FRCP_y8 | H102: =IF(dms_RPT="financial",VALUE(LEFT(dms_CRCP_yT,4)-1)&"-"&TEXT(VALUE(MID(dms_CRCP_yT,3,2)),"00"),VALUE(LEFT(dms_CRCP_yT,4)-1)) -> 2012-13 | I102: dms_CRCP_yS | J102: 8 | M102: =VALUE(LEFT(dms_CRYf_y7,4)+1)&"-"&TEXT(MID(dms_CRYf_y7,3,2)+2,"00") -> 2024-25 | N102: dms_CRYf_y8 | O102: =VALUE(LEFT(dms_CRYc_y7,4)+1) -> 2025 | P102: dms_CRYc_y8 | Z102: dms_060101_Rows | AA102: dms_060102_Rows | AB102: dms_060101_StartDateTxt
B103: 9 | C103: dms_FRCP_y9 | D103: 9 | E103: CRCP_y9 | F103: =IF(dms_RPT="financial",VALUE(LEFT(dms_FRCP_y8,4)+1)&"-"&TEXT(VALUE(RIGHT(dms_FRCP_y8,2)+1),"00"),VALUE(LEFT(dms_FRCP_y8,4)+1)) -> 2028-29 | G103: dms_FRCP_y9 | H103: =IF(dms_RPT="financial",VALUE(LEFT(dms_CRCP_yS,4)-1)&"-"&TEXT(VALUE(MID(dms_CRCP_yS,3,2)),"00"),VALUE(LEFT(dms_CRCP_yS,4)-1)) -> 2011-12 | I103: dms_CRCP_yR | J103: 9 | M103: =VALUE(LEFT(dms_CRYf_y8,4)+1)&"-"&TEXT(MID(dms_CRYf_y8,3,2)+2,"00") -> 2025-26 | N103: dms_CRYf_y9 | O103: =VALUE(LEFT(dms_CRYc_y8,4)+1) -> 2026 | P103: dms_CRYc_y9 | Z103: Total number of calls (after removing excluded events) | AA103: Number of calls answered within 30 seconds (after excluding excluded events) | AB103: =dms_060701_StartDateTxt -> 1-Jul-2017
B104: 10 | C104: =IFERROR(IF(dms_Model="ARR",(MAX(0,dms_0608_LastRow-dms_0608_OffsetRows)),"not an ARR"),"6.8 not present") | D104: 10 | E104: =IFERROR(IF(dms_Model="ARR",(MAX(0,dms_0608_LastRow-dms_0608_OffsetRows)),"not an ARR"),"6.8 not present") | F104: =IF(dms_RPT="financial",VALUE(LEFT(dms_FRCP_y9,4)+1)&"-"&TEXT(VALUE(RIGHT(dms_FRCP_y9,2)+1),"00"),VALUE(LEFT(dms_FRCP_y9,4)+1)) -> 2029-30 | G104: dms_FRCP_y10 | H104: =IF(dms_RPT="financial",VALUE(LEFT(dms_CRCP_yR,4)-1)&"-"&TEXT(VALUE(MID(dms_CRCP_yR,3,2)),"00"),VALUE(LEFT(dms_CRCP_yR,4)-1)) -> 2010-11 | I104: dms_CRCP_yQ | J104: 10 | M104: =VALUE(LEFT(dms_CRYf_y9,4)+1)&"-"&TEXT(MID(dms_CRYf_y9,3,2)+2,"00") -> 2026-27 | N104: dms_CRYf_y10 | O104: =VALUE(LEFT(dms_CRYc_y9,4)+1) -> 2027 | P104: dms_CRYc_y10
B105: 11 | C105: dms_FRCP_y11 | D105: 11 | E105: CRCP_y11 | F105: =IF(dms_RPT="financial",VALUE(LEFT(dms_FRCP_y10,4)+1)&"-"&TEXT(VALUE(RIGHT(dms_FRCP_y10,2)+1),"00"),VALUE(LEFT(dms_FRCP_y10,4)+1)) -> 2030-31 | G105: dms_FRCP_y11 | H105: =IF(dms_RPT="financial",VALUE(LEFT(dms_CRCP_yQ,4)-1)&"-"&TEXT(VALUE(MID(dms_CRCP_yQ,3,2)),"00"),VALUE(LEFT(dms_CRCP_yQ,4)-1)) -> 2009-10 | I105: dms_CRCP_yP | J105: 11 | M105: =VALUE(LEFT(dms_CRYf_y10,4)+1)&"-"&TEXT(MID(dms_CRYf_y10,3,2)+2,"00") -> 2027-28 | N105: dms_CRYf_y11 | O105: =VALUE(LEFT(dms_CRYc_y10,4)+1) -> 2028 | P105: dms_CRYc_y11
B106: 12 | C106: dms_FRCP_y12 | D106: 12 | E106: CRCP_y12 | F106: =IF(dms_RPT="financial",VALUE(LEFT(dms_FRCP_y11,4)+1)&"-"&TEXT(VALUE(RIGHT(dms_FRCP_y11,2)+1),"00"),VALUE(LEFT(dms_FRCP_y11,4)+1)) -> 2031-32 | G106: dms_FRCP_y12 | H106: =IF(dms_RPT="financial",VALUE(LEFT(dms_CRCP_yP,4)-1)&"-"&TEXT(VALUE(MID(dms_CRCP_yP,3,2)),"00"),VALUE(LEFT(dms_CRCP_yP,4)-1)) -> 2008-09 | I106: dms_CRCP_yO | J106: 12 | M106: =VALUE(LEFT(dms_CRYf_y11,4)+1)&"-"&TEXT(MID(dms_CRYf_y11,3,2)+2,"00") -> 2028-29 | N106: dms_CRYf_y12 | O106: =VALUE(LEFT(dms_CRYc_y11,4)+1) -> 2029 | P106: dms_CRYc_y12
B107: 13 | C107: dms_FRCP_y13 | D107: 13 | E107: CRCP_y13 | F107: =IF(dms_RPT="financial",VALUE(LEFT(dms_FRCP_y12,4)+1)&"-"&TEXT(VALUE(RIGHT(dms_FRCP_y12,2)+1),"00"),VALUE(LEFT(dms_FRCP_y12,4)+1)) -> 2032-33 | G107: dms_FRCP_y13 | H107: =IF(dms_RPT="financial",VALUE(LEFT(dms_CRCP_yO,4)-1)&"-"&TEXT(VALUE(MID(dms_CRCP_yO,3,2)),"00"),VALUE(LEFT(dms_CRCP_yO,4)-1)) -> 2007-08 | I107: dms_CRCP_yN | J107: 13 | M107: =VALUE(LEFT(dms_CRYf_y12,4)+1)&"-"&TEXT(MID(dms_CRYf_y12,3,2)+2,"00") -> 2029-30 | N107: dms_CRYf_y13 | O107: =VALUE(LEFT(dms_CRYc_y12,4)+1) -> 2030 | P107: dms_CRYc_y13 | AE107: dms_0603_FeederList | AF107: =INDEX(dms_FeederName_1,MATCH(dms_TradingName,dms_TradingName_List)) -> CBD | AG107: =INDEX(dms_FeederName_2,MATCH(dms_TradingName,dms_TradingName_List)) -> Urban | AH107: =INDEX(dms_FeederName_3,MATCH(dms_TradingName,dms_TradingName_List)) -> Short rural | AI107: =INDEX(dms_FeederName_4,MATCH(dms_TradingName,dms_TradingName_List)) -> Long rural | AJ107: =INDEX(dms_FeederName_5,MATCH(dms_TradingName,dms_TradingName_List)) -> 
B108: 14 | C108: dms_FRCP_y14 | D108: 14 | E108: CRCP_y14 | F108: =IF(dms_RPT="financial",VALUE(LEFT(dms_FRCP_y13,4)+1)&"-"&TEXT(VALUE(RIGHT(dms_FRCP_y13,2)+1),"00"),VALUE(LEFT(dms_FRCP_y13,4)+1)) -> 2033-34 | G108: dms_FRCP_y14 | H108: =IF(dms_RPT="financial",VALUE(LEFT(dms_CRCP_yN,4)-1)&"-"&TEXT(VALUE(MID(dms_CRCP_yN,3,2)),"00"),VALUE(LEFT(dms_CRCP_yN,4)-1)) -> 2006-07 | I108: dms_CRCP_yM | J108: 14 | M108: =VALUE(LEFT(dms_CRYf_y13,4)+1)&"-"&TEXT(MID(dms_CRYf_y13,3,2)+2,"00") -> 2030-31 | N108: dms_CRYf_y14 | O108: =VALUE(LEFT(dms_CRYc_y13,4)+1) -> 2031 | P108: dms_CRYc_y14 | Z108: Table 6.7.1 - daily performance data - unplanned - MAIFI -- row descriptions and header named range values
B109: 15 | C109: dms_FRCP_y15 | D109: 15 | E109: CRCP_y15 | F109: =IF(dms_RPT="financial",VALUE(LEFT(dms_FRCP_y14,4)+1)&"-"&TEXT(VALUE(RIGHT(dms_FRCP_y14,2)+1),"00"),VALUE(LEFT(dms_FRCP_y14,4)+1)) -> 2034-35 | G109: dms_FRCP_y15 | H109: =IF(dms_RPT="financial",VALUE(LEFT(dms_CRCP_yM,4)-1)&"-"&TEXT(VALUE(MID(dms_CRCP_yM,3,2)),"00"),VALUE(LEFT(dms_CRCP_yM,4)-1)) -> 2005-06 | I109: dms_CRCP_yL | J109: 15 | M109: =VALUE(LEFT(dms_CRYf_y14,4)+1)&"-"&TEXT(MID(dms_CRYf_y14,3,2)+2,"00") -> 2031-32 | N109: dms_CRYf_y15 | O109: =VALUE(LEFT(dms_CRYc_y14,4)+1) -> 2032 | P109: dms_CRYc_y15 | Z109: These headings (Lists) are determined from the INDEX/MATCH function on the NSP selected on the Business & other details sheet
M110: =VALUE(LEFT(dms_CRYf_y15,4)+1)&"-"&TEXT(MID(dms_CRYf_y15,3,2)+2,"00") -> 2032-33 | N110: dms_CRYf_y16 | O110: =VALUE(LEFT(dms_CRYc_y15,4)+1) -> 2033 | P110: dms_CRYc_y16 | Y110: dms_060701_Feeder_Header_Lvl4 | Z110: =INDEX(dms_FeederName_1,MATCH(dms_TradingName,dms_TradingName_List)) -> CBD | AA110: =INDEX(dms_FeederName_1,MATCH(dms_TradingName,dms_TradingName_List)) -> CBD | AB110: =INDEX(dms_FeederName_2,MATCH(dms_TradingName,dms_TradingName_List)) -> Urban | AC110: =INDEX(dms_FeederName_2,MATCH(dms_TradingName,dms_TradingName_List)) -> Urban | AD110: =INDEX(dms_FeederName_3,MATCH(dms_TradingName,dms_TradingName_List)) -> Short rural | AE110: =INDEX(dms_FeederName_3,MATCH(dms_TradingName,dms_TradingName_List)) -> Short rural | AF110: =INDEX(dms_FeederName_4,MATCH(dms_TradingName,dms_TradingName_List)) -> Long rural | AG110: =INDEX(dms_FeederName_4,MATCH(dms_TradingName,dms_TradingName_List)) -> Long rural | AH110: =IF((INDEX(dms_FeederName_5,MATCH(dms_TradingName,dms_TradingName_List))=0),"Network",(INDEX(dms_FeederName_5,MATCH(dms_TradingName,dms_TradingName_List)))) ->  | AI110: =IF((INDEX(dms_FeederName_5,MATCH(dms_TradingName,dms_TradingName_List))=0),"Network",(INDEX(dms_FeederName_5,MATCH(dms_TradingName,dms_TradingName_List)))) ->  | AJ110: Network | AK110: Network
B111: These are drop down lists for businesses to select the correct FRCP_y1 on the business and other details worksheet. This also populates the column headings in the worksheets | M111: =VALUE(LEFT(dms_CRYf_y16,4)+1)&"-"&TEXT(MID(dms_CRYf_y16,3,2)+2,"00") -> 2033-34 | N111: dms_CRYf_y17 | O111: =VALUE(LEFT(dms_CRYc_y16,4)+1) -> 2034 | P111: dms_CRYc_y17
B112: dms_RCP_fyear_list | C112: dms_CRY_ListF | D112: dms_CRY_ListC | E112: dms_RCP_cyear_list | F112: dms_FRCP_fyear_list | G112: dms_FRCP_ListF | H112: dms_FRCP_ListC | I112: dms_FRCP_cyear_list | M112: =VALUE(LEFT(dms_CRYf_y17,4)+1)&"-"&TEXT(MID(dms_CRYf_y17,3,2)+2,"00") -> 2034-35 | N112: dms_CRYf_y18 | O112: =VALUE(LEFT(dms_CRYc_y17,4)+1) -> 2035 | P112: dms_CRYc_y18 | Y112: dms_060701_Rows | Z112: All events | AA112: After removing excluded events | AB112: All events | AC112: After removing excluded events | AD112: All events | AE112: After removing excluded events | AF112: All events | AG112: After removing excluded events | AH112: All events | AI112: After removing excluded events | AJ112: All events | AK112: After removing excluded events
B113: dms_fy1 | C113: 2005-06 | D113: 2006 | E113: dms_cy1 | F113: dms_frcp_fy1 | G113: 2010-11 | H113: 2011 | I113: dms_crcp_cy1 | M113: =VALUE(LEFT(dms_CRYf_y18,4)+1)&"-"&TEXT(MID(dms_CRYf_y18,3,2)+2,"00") -> 2035-36 | N113: dms_CRYf_y19 | O113: =VALUE(LEFT(dms_CRYc_y18,4)+1) -> 2036 | P113: dms_CRYc_y19 | Z113: the number of column headings changes from 10 to 12 depending on the number of feeder categories for the NSP
B114: dms_fy2 | C114: 2006-07 | D114: 2007 | E114: dms_cy2 | F114: dms_frcp_fy2 | G114: 2011-12 | H114: 2012 | I114: dms_crcp_cy2 | M114: =VALUE(LEFT(dms_CRYf_y19,4)+1)&"-"&TEXT(MID(dms_CRYf_y19,3,2)+2,"00") -> 2036-37 | N114: dms_CRYf_y20 | O114: =VALUE(LEFT(dms_CRYc_y19,4)+1) -> 2037 | P114: dms_CRYc_y20
B115: dms_fy3 | C115: 2007-08 | D115: 2008 | E115: dms_cy3 | F115: dms_frcp_fy3 | G115: 2012-13 | H115: 2013 | I115: dms_crcp_cy3
B116: dms_fy4 | C116: 2008-09 | D116: 2009 | E116: dms_cy4 | F116: dms_frcp_fy4 | G116: 2013-14 | H116: 2014 | I116: dms_crcp_cy4
B117: dms_fy5 | C117: 2009-10 | D117: 2010 | E117: dms_cy5 | F117: dms_frcp_fy5 | G117: 2014-15 | H117: 2015 | I117: dms_crcp_cy5
B118: dms_fy6 | C118: 2010-11 | D118: 2011 | E118: dms_cy6 | F118: dms_frcp_fy6 | G118: 2015-16 | H118: 2016 | I118: dms_crcp_cy6 | Z118: Table 6.8.1 - row descriptions
B119: dms_fy7 | C119: 2011-12 | D119: 2012 | E119: dms_cy7 | F119: dms_frcp_fy7 | G119: 2016-17 | H119: 2017 | I119: dms_crcp_cy7 | Z119: dms_060801_01_Rows | AA119: dms_060801_02_Rows | AB119: dms_060801_03_Rows | AC119: dms_060801_04_Rows
B120: dms_fy8 | C120: 2012-13 | D120: 2013 | E120: dms_cy8 | F120: dms_frcp_fy8 | G120: 2017-18 | H120: 2018 | I120: dms_crcp_cy8 | L120: 2005-06 | M120: 2006 | Z120: Number of interruptions | AA120: Duration of interruptions | AB120: Total unplanned minutes off supply | AC120: Effect on unplanned MAIFI
B121: dms_fy9 | C121: 2013-14 | D121: 2014 | E121: dms_cy9 | F121: dms_frcp_fy9 | G121: 2018-19 | H121: 2019 | I121: dms_crcp_cy9 | L121: 2006-07 | M121: 2007
B122: dms_fy10 | C122: 2014-15 | D122: 2015 | E122: dms_cy10 | F122: dms_frcp_fy10 | G122: 2019-20 | H122: 2020 | I122: dms_crcp_cy10 | L122: 2007-08 | M122: 2008
B123: dms_fy11 | C123: 2015-16 | D123: 2016 | E123: dms_cy11 | F123: dms_frcp_fy11 | G123: 2020-21 | H123: 2021 | I123: dms_crcp_cy11 | L123: 2008-09 | M123: 2009
B124: dms_fy12 | C124: 2016-17 | D124: 2017 | E124: dms_cy12 | F124: dms_frcp_fy12 | G124: 2021-22 | H124: 2022 | I124: dms_crcp_cy12 | L124: 2009-10 | M124: 2010
B125: dms_fy13 | C125: 2017-18 | D125: 2018 | E125: dms_cy13 | F125: dms_frcp_fy13 | G125: 2022-23 | H125: 2023 | I125: dms_crcp_cy13 | L125: 2010-11 | M125: 2011 | Z125: Table 7.9.4 - market impact component - row descriptions
B126: dms_fy14 | C126: 2018-19 | D126: 2019 | E126: dms_cy14 | F126: dms_frcp_fy14 | G126: 2023-24 | H126: 2024 | I126: dms_crcp_cy14 | L126: 2011-12 | M126: 2012 | Y126: dms_070904_01_Rows | Z126: without exclusions | AA126: with exclusions
B127: dms_fy15 | C127: 2019-20 | D127: 2020 | E127: dms_cy15 | F127: dms_frcp_fy15 | G127: 2024-25 | H127: 2025 | I127: dms_crcp_cy15 | L127: 2012-13 | M127: 2013
B128: dms_fy16 | C128: 2020-21 | D128: 2021 | E128: dms_cy16 | L128: 2013-14 | M128: 2014
B129: dms_fy17 | C129: 2021-22 | D129: 2022 | E129: dms_cy17 | L129: 2014-15 | M129: 2015
B130: dms_fy18 | C130: 2022-23 | D130: 2023 | E130: dms_cy18 | L130: 2015-16 | M130: 2016
B131: dms_fy19 | C131: 2023-24 | D131: 2024 | E131: dms_cy19 | L131: 2016-17 | M131: 2017 | Z131: Use this to add to existing files
B132: dms_fy20 | C132: 2024-25 | D132: 2025 | E132: dms_cy20 | L132: 2017-18 | M132: 2018 | Z132: ARR's 6.8 STPIS exclusions
L133: 2018-19 | M133: 2019 | Z133: dms_060801_Event_Date | AA133: dms_060801_OutageID | AB133: dms_060801_FeederID | AC133: dms_060801_FeederClass | AD133: dms_060801_CauseID | AE133: dms_060801_01_Values | AF133: dms_060801_02_Values | AG133: dms_060801_03_Values | AH133: dms_060801_Excl_Cat | AI133: dms_060801_04_Values
L134: 2019-20 | M134: 2020
L135: 2020-21 | M135: 2021
L136: 2021-22 | M136: 2022 | Z136: CA 6.3 sustained interruptions
L137: 2022-23 | M137: 2023 | Z137: dms_060301_Event_Date | AA137: dms_060301_Event_Time | AB137: dms_060301_AssetID | AC137: dms_060301_FeederClass | AD137: dms_060301_Reason | AE137: dms_060301_DetailedReason | AF137: dms_060301_CustNo_Affected_Values | AG137: dms_060301_Avg_Duration_Sustained_Int_Values | AH137: dms_060301_Effect_unplanned_SAIDI_Values | AI137: dms_060301_Effect_unplanned_SAIFI_Values | AJ137: dms_060301_MED
L138: 2023-24 | M138: 2024
L139: 2024-25 | M139: 2025
L140: 2025-26 | M140: 2026
L141: 2026-27 | M141: 2027
L142: 2027-28 | M142: 2028
L143: 2028-29 | M143: 2029
L144: 2029-30 | M144: 2030
L145: 2030-31 | M145: 2031
L146: 2031-32 | M146: 2032
L147: 2032-33 | M147: 2033
L148: 2033-34 | M148: 2034
L149: 2034-35 | M149: 2035
L150: 2035-36 | M150: 2036

Sheet Instructions
B2: =CONCATENATE(dms_Segment," Network Service Provider") -> Distribution Network Service Provider
B3: Annual Reporting RIN Template
C4: =CONCATENATE("This template is to be used by ",dms_TradingName," to fulfil its reporting obligations to the AER.") -> This template is to be used by SA Power Networks to fulfil its reporting obligations to the AER.
C5: INSTRUCTIONS
C6: Complete the Business & other details worksheet before entering data or values in any other worksheets. The Business & other details worksheet is linked to other worksheets within the workbook and automatically generates certain column headings and conditional formatting.
C8: Identifying CONFIDENTIAL INFORMATION: Please use the macro at the top of each worksheet to identify confidential information.
C9: -Do this by selecting the cell or cells that contain confidential information and then run the Mark selection as CONFIDENTIAL macro. This will format the cells a specific colour that is identified by the AER's database which in turn marks that information as confidential. -To reverse this, select the cell or cells and run the Return selection to NON-CONFIDENTIAL macro
C11: UNITS OF MEASURE All amounts are to be unrounded and reported in nominal terms on a one for one basis: that is 1000 is to be entered as '1000'.
C13: COLOUR CODING OF INPUT / NON-INPUT CELLS:
D14: Yellow = Input cell (mandatory)
D15: Darker yellow = input cell (mandatory)
D16: Orange = input cell (if data available)
D17: Grey = Not applicable/No inputs required
D18: Leave coloured cells blank if no information exists. PLEASE DO NOT ENTER TEXT into cells that are to contain numeric data.
C21: WORKSHEET NAVIGATION Many tables in the worksheets have been "grouped" to allow for easy navigation. To ungroup or group data use the outline symbols in the left margin of excel (for Row groupings) or above the columns (for column groupings).
C23: RETURNING COMPLETED RESPONSES Please return four (4) files to the AER: 1. A confidential version which must contain a complete set of all responses with confidential information marked using the Mark selected cells CONFIDENTIAL macro and which has been completed using the locked template file provided by the AER. 2. An actual and an estimate version with confidential information marked using the Mark selected cells CONFIDENTIAL macro and which has been completed using the locked template file provided by the AER. 3. A public version with confidential information either removed completely or aggregated in some form together with writtten consent to disclose the public version of the response. Use the drop down box on the Business and other details worksheet to identify the file as either confidential ('consolidated') or public.
C25: SUBMITTING AMENDED DATA TO THE AER If an NSP wishes to correct data previously submitted to the AER it should resubmit that data using the original completed submission as the starting point. Please make any necessary changes to the data. Data that is not being amended should be left unchanged. NSPs must identify the reason for the amendments in the Amendment Reason box on the Business and other details worksheet. NSPs may provide further details regarding any amendments in the Amendments worksheet. .
C26: NSP may use Amended Data macro to highlight cells that contain amended data. NB: if data is also CONFIDENTIAL, re-apply the Confidentiality macro after applying the Amended macro
C27: Please resubmit two (2) files - a confidential version and a public version of the amended submission to the AER

Sheet Contents
B1: REGULATORY REPORTING STATEMENT
B2: =INDEX(dms_TradingNameFull_List,MATCH(dms_TradingName,dms_TradingName_List)) -> SA Power Networks
B3: =CONCATENATE((LOOKUP(dms_Model,dms_Model_List,dms_Worksheet_List))&" "&CRY) -> CATEGORY ANALYSIS 2017-18
B4: CONTENTS
E7: 1. Business details | L7: 2. Expenditure
E27: 4. Alternative control services | L27: 5. Network information | S27: 6. Service & quality

Sheet Business & other details
B1: =IF(dms_DataQuality="backcast",INDEX(dms_Worksheet_List,MATCH(dms_Model,dms_Model_List))&" BACKCAST",INDEX(dms_Worksheet_List,MATCH(dms_Model,dms_Model_List))) -> CATEGORY ANALYSIS
B2: =INDEX(dms_TradingNameFull_List,MATCH(dms_TradingName,dms_TradingName_List)) -> SA Power Networks
B3: =IF(SUM(dms_SingleYear_Model)>0,CONCATENATE(CRY),CONCATENATE(FRCP_y1," to ",dms_MultiYear_FinalYear_Result)) -> 2017-18
B4: BUSINESS & OTHER DETAILS
B7: Instructions
B8: Complete the following business details regulatory template before entering data or values in any other regulatory template. This regulatory template is linked to other cells within the spreadsheet and automatically generates column headings and conditional formatting to distinguish business specific input and non-input cells.
B10: SUBMISSION PARTICULARS INPUT SHEETS
B12: ENTITY DETAILS
B14: Short name | C14: SA Power Networks | F14: Select business name from drop down list first
B15: ACN / ABN | C15: =INDEX(dms_ABN_List,MATCH(dms_TradingName,dms_TradingName_List)) -> 13332330749
B18: Business address | C18: Address 1 | E18: =INDEX(dms_Addr1_List,MATCH(dms_TradingName,dms_TradingName_List)) -> 1 Anzac Highway
D19: Address 2 | E19: =IF(ISBLANK(INDEX(dms_Addr2_List,MATCH(dms_TradingName,dms_TradingName_List))),"",(INDEX(dms_Addr2_List,MATCH(dms_TradingName,dms_TradingName_List)))) -> 
C20: Suburb | E20: =INDEX(dms_Suburb_List,MATCH(dms_TradingName,dms_TradingName_List)) -> KESWICK
D21: State | E21: =INDEX(dms_State_List,MATCH(dms_TradingName,dms_TradingName_List)) -> SA | F21: p/code | G21: =INDEX(dms_PostCode_List,MATCH(dms_TradingName,dms_TradingName_List)) -> 5035
B23: Postal address | C23: Address 1 | E23: =INDEX(dms_PAddr1_List,MATCH(dms_TradingName,dms_TradingName_List)) -> GPO Box 77
D24: Address 2 | E24: =IF(ISBLANK(INDEX(dms_PAddr2_List,MATCH(dms_TradingName,dms_TradingName_List))),"",(INDEX(dms_PAddr2_List,MATCH(dms_TradingName,dms_TradingName_List)))) -> 
C25: Suburb | E25: =INDEX(dms_PSuburb_List,MATCH(dms_TradingName,dms_TradingName_List)) -> ADELAIDE
D26: State | E26: =INDEX(dms_PState_List,MATCH(dms_TradingName,dms_TradingName_List)) -> SA | F26: p/code | G26: =INDEX(dms_PPostCode_List,MATCH(dms_TradingName,dms_TradingName_List)) -> 5000
B29: Contact name/s | C29: =INDEX(dms_ContactName1_List,MATCH(dms_TradingName,dms_TradingName_List)) -> Richard Sibly
B30: Contact phone/s | C30: =INDEX(dms_ContactPh1_List,MATCH(dms_TradingName,dms_TradingName_List)) -> 08 8404 5613
B31: Contact email address/s | C31: =INDEX(dms_ContactEmail_List,MATCH(dms_TradingName,dms_TradingName_List)) -> richard.sibly@sapowernetworks.com.au
B33: REGULATORY CONTROL PERIODS
B35: Forthcoming regulatory control period | C35: 2020-21 | D35: =dms_FRCP_y2 -> 2021-22 | E35: =dms_FRCP_y3 -> 2022-23 | F35: =dms_FRCP_y4 -> 2023-24 | G35: =dms_FRCP_y5 -> 2024-25
C36: =dms_FRCP_y6 -> 2025-26 | D36: =dms_FRCP_y7 -> 2026-27 | E36: =dms_FRCP_y8 -> 2027-28 | F36: =dms_FRCP_y9 -> 2028-29 | G36: =dms_FRCP_y10 -> 2029-30
B39: Current regulatory control period | C39: =dms_CRCP_FirstYear_Result -> 2015-16 | D39: =IF(dms_RPT="financial",VALUE(LEFT(CRCP_y1,4)+1)&"-"&TEXT(MID(CRCP_y1,3,2)+2,"00"),VALUE(LEFT(CRCP_y1,4)+1)) -> 2016-17 | E39: =IF(dms_RPT="financial",VALUE(LEFT(CRCP_y1,4)+2)&"-"&TEXT(VALUE(MID(CRCP_y1,3,2)+3),"00"),VALUE(LEFT(CRCP_y1,4)+2)) -> 2017-18 | F39: =IF(dms_RPT="financial",VALUE(LEFT(CRCP_y1,4)+3)&"-"&TEXT(MID(CRCP_y1,3,2)+4,"00"),VALUE(LEFT(CRCP_y1,4)+3)) -> 2018-19 | G39: =IF(dms_RPT="financial",VALUE(LEFT(CRCP_y1,4)+4)&"-"&TEXT(MID(CRCP_y1,3,2)+5,"00"),VALUE(LEFT(CRCP_y1,4)+4)) -> 2019-20
C40: =IF(dms_RPT="financial",VALUE(LEFT(CRCP_y1,4)+5)&"-"&TEXT(MID(CRCP_y1,3,2)+6,"00"),VALUE(LEFT(CRCP_y1,4)+5)) -> 2020-21 | D40: =IF(dms_RPT="financial",VALUE(LEFT(CRCP_y1,4)+6)&"-"&TEXT(MID(CRCP_y1,3,2)+7,"00"),VALUE(LEFT(CRCP_y1,4)+6)) -> 2021-22 | E40: =IF(dms_RPT="financial",VALUE(LEFT(CRCP_y1,4)+7)&"-"&TEXT(MID(CRCP_y1,3,2)+8,"00"),VALUE(LEFT(CRCP_y1,4)+7)) -> 2022-23 | F40: =IF(dms_RPT="financial",VALUE(LEFT(CRCP_y1,4)+8)&"-"&TEXT(MID(CRCP_y1,3,2)+9,"00"),VALUE(LEFT(CRCP_y1,4)+8)) -> 2023-24 | G40: =IF(dms_RPT="financial",VALUE(LEFT(CRCP_y1,4)+9)&"-"&TEXT(MID(CRCP_y1,3,2)+10,"00"),VALUE(LEFT(CRCP_y1,4)+9)) -> 2024-25
C41: =IF(dms_RPT="financial",VALUE(LEFT(CRCP_y1,4)+10)&"-"&TEXT(MID(CRCP_y1,3,2)+11,"00"),VALUE(LEFT(CRCP_y1,4)+10)) -> 2025-26 | D41: =IF(dms_RPT="financial",VALUE(LEFT(CRCP_y1,4)+11)&"-"&TEXT(MID(CRCP_y1,3,2)+12,"00"),VALUE(LEFT(CRCP_y1,4)+11)) -> 2026-27 | E41: =IF(dms_RPT="financial",VALUE(LEFT(CRCP_y1,4)+12)&"-"&TEXT(MID(CRCP_y1,3,2)+13,"00"),VALUE(LEFT(CRCP_y1,4)+12)) -> 2027-28 | F41: =IF(dms_RPT="financial",VALUE(LEFT(CRCP_y1,4)+13)&"-"&TEXT(MID(CRCP_y1,3,2)+14,"00"),VALUE(LEFT(CRCP_y1,4)+13)) -> 2028-29 | G41: =IF(dms_RPT="financial",VALUE(LEFT(CRCP_y1,4)+14)&"-"&TEXT(MID(CRCP_y1,3,2)+15,"00"),VALUE(LEFT(CRCP_y1,4)+14)) -> 2029-30
B44: Previous regulatory control period | C44: =IF(dms_RPT="financial",VALUE(LEFT(PRCP_y2,4)-1)&"-"&TEXT(VALUE(MID(PRCP_y2,3,2)),"00"),VALUE(LEFT(PRCP_y2,4)-1)) -> 2010-11 | D44: =IF(dms_RPT="financial",VALUE(LEFT(PRCP_y3,4)-1)&"-"&TEXT(VALUE(MID(PRCP_y3,3,2)),"00"),VALUE(LEFT(PRCP_y3,4)-1)) -> 2011-12 | E44: =IF(dms_RPT="financial",VALUE(LEFT(PRCP_y4,4)-1)&"-"&TEXT(VALUE(MID(PRCP_y4,3,2)),"00"),VALUE(LEFT(PRCP_y4,4)-1)) -> 2012-13 | F44: =IF(dms_RPT="financial",VALUE(LEFT(PRCP_y5,4)-1)&"-"&TEXT(VALUE(RIGHT(PRCP_y5,2)-1),"00"),VALUE(LEFT(PRCP_y5,4)-1)) -> 2013-14 | G44: =IF(dms_RPT="financial",VALUE(LEFT(CRCP_y1,4)-1)&"-"&TEXT(VALUE(RIGHT(CRCP_y1,2)-1),"00"),VALUE(LEFT(CRCP_y1,4)-1)) -> 2014-15
B48: Commencing regulatory year | C48: 2017-18 | D48: CRY
B50: Last completed regulatory year | C50: 2017-18 | D50: dms_FinalYear
C54: IF THIS IS AN ABC RIN - make sure the the named range CRY is applied and the named range dms_dollar_nom_UOM is applied
C55: IF THIS IS A RESET RIN - make sure the named ranges CRY and dms_dollar_nom_UOM are NOT present in the workbook
C56: FOR ABC RINS THAT SPAN MULTIPLE YEARS - make sure MultiYear Flag is set and final year entered as required
B58: Source | C58: Reporting | E58: Please select the correct submission type from the dropdown list.
B59: Data quality (actual, estimate, public, consolidated) | C59: Consolidated | E59: Use Consolidated for Consolidated Confidential version Use Public for Consolidated Public version
B60: Amended RIN submission - amendment reason | C60: .
B61: Submission Date | C61: 2018-10-31 | D61: dms_SubmissionDate | E61: Please enter date this file submitted to AER (dd/mm/yyyy)
B62: EBSS - First application of scheme in forthcoming period? | C62: No
B63: Sector | C63: =INDEX(dms_Sector_List,MATCH(dms_TradingName,dms_TradingName_List)) -> Electricity | D63: dms_Sector | E63: =INDEX(dms_Sector_List,MATCH(dms_TradingName,dms_TradingName_List))
B64: Segment | C64: =INDEX(dms_Segment_List,MATCH(dms_TradingName,dms_TradingName_List)) -> Distribution | D64: dms_Segment | E64: =INDEX(dms_Segment_List,MATCH(dms_TradingName,dms_TradingName_List))
B65: Regulatory Year Ending | C65: =IF(dms_MultiYear_Flag=1,LEFT(dms_Specified_FinalYear,2)&RIGHT(dms_Specified_FinalYear,2),INDEX(dms_RYE_Formula_Result,MATCH(dms_Model,dms_Model_List))) -> 2018 | D65: dms_RYE | E65: =IF(dms_MultiYear_Flag=1,LEFT(dms_Specified_FinalYear,2)&RIGHT(dms_Specified_FinalYear,2),INDEX(dms_RYE_Formula_Result,MATCH(dms_Model,dms_Model_List)))
B66: Reporting Period Type | C66: =INDEX(dms_RPT_List,MATCH(dms_TradingName,dms_TradingName_List)) -> Financial | D66: dms_RPT | E66: =INDEX(dms_RPT_List,MATCH(dms_TradingName,dms_TradingName_List))
B67: Model or RIN Type | C67: CA | D67: dms_Model | E67: Drop down selection
B68: EB/CA Unit of Measure for Monetary Values | C68: $0s | D68: dms_dollar_nom_UOM | E68: If the cover sheet is attached to an ABC RIN make the NAMED RANGE on this field is set
B69: Security Classification | C69: Public | D69: dms_Classification | E69: Always Public
B70: Dollar $ real month | C70: =INDEX(dms_RPTMonth_List,MATCH(dms_TradingName,dms_TradingName_List)) -> June | D70: dms_RPTMonth | E70: =INDEX(dms_RPTMonth_List,MATCH(dms_TradingName,dms_TradingName_List))
B71: Dollar $ real (the last month before the FRCP_y1) | C71: =IF(SUM(dms_SingleYear_Model)>0,CONCATENATE(dms_RPTMonth)&" "&VALUE((LEFT(CRY,2))&RIGHT(CRY,2)),CONCATENATE(dms_RPTMonth)&" "&VALUE((LEFT(dms_CRCP_FinalYear_Result,2)&RIGHT(dms_CRCP_FinalYear_Result,2)))) -> June 2018 | D71: dms_DollarReal | E71: =IF(SUM(dms_SingleYear_Model)>0,CONCATENATE(dms_RPTMonth)&" "&VALUE((LEFT(CRY,2))&RIGHT(CRY,2)),CONCATENATE(dms_RPTMonth)&" "&VALUE((LEFT(dms_CRCP_FinalYear_Result,2)&RIGHT(dms_CRCP_FinalYear_Result,2))))
B72: Dollar $ real previous year (PRCP_y5) | C72: =IF(SUM(dms_SingleYear_Model)>0,CONCATENATE(dms_RPTMonth)&" "&VALUE(((LEFT(CRY,2))&RIGHT(CRY,2))-1),CONCATENATE(dms_RPTMonth)&" "&VALUE(((LEFT(dms_CRCP_FirstYear_Result,2)&RIGHT(dms_CRCP_FirstYear_Result,2))))-1) -> June 2017 | D72: dms_DollarReal_Prev | E72: =IF(SUM(dms_SingleYear_Model)>0,CONCATENATE(dms_RPTMonth)&" "&VALUE(((LEFT(CRY,2))&RIGHT(CRY,2))-1),CONCATENATE(dms_RPTMonth)&" "&VALUE(((LEFT(dms_CRCP_FirstYear_Result,2)&RIGHT(dms_CRCP_FirstYear_Result,2))))-1)
B73: Form of control | C73: =INDEX(dms_FormControl_List,MATCH(dms_TradingName,dms_TradingName_List)) -> Revenue cap | D73: dms_FormControl | E73: =INDEX(dms_FormControl_List,MATCH(dms_TradingName,dms_TradingName_List))
B74: Calendar Year for table 3.6 data | C74: =VALUE(dms_RYE)-1 -> 2017 | D74: dms_0306_Year | E74: =VALUE(dms_RYE)-1
B75: Jurisdiction | C75: =INDEX(dms_JurisdictionList,MATCH(dms_TradingName,dms_TradingName_List)) -> SA | D75: dms_Jurisdiction | E75: =INDEX(dms_JurisdictionList,MATCH(dms_TradingName,dms_TradingName_List))
B76: FOR ABC RINS THAT SPAN MULTIPLE YEARS
B77: Is this a multi year ABC RIN? | C77: No
B78: Backcast Multiyear EB, CA or ARR? | C78: =IF(dms_MultiYear_ResponseFlag="No",0,1) -> 0 | D78: dms_MultiYear_Flag | E78: This is set from the answer provided above
C79: =IF(dms_MultiYear_Flag=1,"Specify Final Reg Year here eg 2016 or 2015-16","not a Multi Reg Year submission") -> not a Multi Reg Year submission | D79: dms_Specified_FinalYear | E79: The result here is returned to dms_CRCP_FinalYear_Result if response to Q in C73 is "yes" and dms_MultiYear_Flag is set to 1
B80: This block works out the various RYE's for both ABC RINs and Reset RINS
B81: Single Year Model T/F | C81: =IF(dms_Model="EB",1,0) -> 0 | D81: dms_EB
C82: =IF(dms_Model="CA",1,0) -> 1 | D82: dms_CA | E82: =dms_SingleYear_Model
C83: =IF(dms_Model="ARR",1,0) -> 0 | D83: dms_ARR
B84: Single Year Final Year Reference | C84: CRY | D84: dms_SingleYear_FinalYear_Ref | E84: This is the reference for EB, CA & ARR RINs
B85: Single Year Final Year Result | C85: =IFERROR(IF(SUM(dms_SingleYear_Model)<>0,(INDIRECT(dms_SingleYear_FinalYear_Ref)),"not a single year RIN"),"CRY not present") -> 2017-18 | D85: dms_SingleYear_FinalYear_Result | E85: =IFERROR(IF(SUM(dms_SingleYear_Model)<>0,(INDIRECT(dms_SingleYear_FinalYear_Ref)),"not a single year RIN"),"CRY not present")
B86: FRCP length in years | C86: =INDEX(dms_FRCPlength_List,MATCH(dms_TradingName,dms_TradingName_List)) -> 5 | D86: dms_FRCPlength_Num | E86: =INDEX(dms_FRCPlength_List,MATCH(dms_TradingName,dms_TradingName_List))
B87: Multi Year Final Year Reference | C87: =INDEX(dms_FinalYear_List,MATCH(dms_FRCPlength_Num,dms_FRCPlength_Num_List)) -> dms_FRCP_y5 | D87: dms_MultiYear_FinalYear_Ref | E87: =INDEX(dms_FinalYear_List,MATCH(dms_FRCPlength_Num,dms_FRCPlength_Num_List))
B88: Multi Year Final Year Result | C88: =IF(dms_MultiYear_Flag=0,INDIRECT(dms_MultiYear_FinalYear_Ref),dms_Specified_FinalYear) -> 2024-25 | D88: dms_MultiYear_FinalYear_Result | E88: =IF(dms_MultiYear_Flag=0,INDIRECT(dms_MultiYear_FinalYear_Ref),dms_Specified_FinalYear) | I88: Formula errors OK
B89: CRCP length in years | C89: =INDEX(dms_CRCPlength_List,MATCH(dms_TradingName,dms_TradingName_List)) -> 5 | D89: dms_CRCPlength_Num | E89: =INDEX(dms_CRCPlength_List,MATCH(dms_TradingName,dms_TradingName_List))
B90: CRCP Final Year Reference | C90: =INDEX(dms_CFinalYear_List,MATCH(dms_CRCPlength_Num,dms_CRCPlength_Num_List)) -> CRCP_y5 | D90: dms_CRCP_FinalYear_Ref | E90: =INDEX(dms_CFinalYear_List,MATCH(dms_CRCPlength_Num,dms_CRCPlength_Num_List))
B91: CRCP First Year Result | C91: =INDEX(dms_CRCP_years,MATCH(dms_CRCPlength_Num,dms_CRCP_index)) -> 2015-16 | D91: dms_CRCP_FirstYear_Result | E91: =INDEX(dms_CRCP_years,MATCH(dms_CRCPlength_Num,dms_CRCP_index))
B92: CRCP Final Year Result | C92: =IF(dms_MultiYear_Flag=0,(IF(SUM(dms_SingleYear_Model)>0,CRY,dms_CRCP_yZ)),dms_Specified_FinalYear) -> 2017-18 | D92: dms_CRCP_FinalYear_Result | E92: =IF(dms_MultiYear_Flag=0,(IF(SUM(dms_SingleYear_Model)>0,CRY,dms_CRCP_yZ)),dms_Specified_FinalYear)
B93: FOR CATEGORY ANALYSIS FILES
B94: How many rows in tables 6.3 sustained interruptions? | C94: =IF(dms_Model<>"CA","not a CA","Is a CA") -> Is a CA | D94: dms_060301_MaxRows only returns a valid value when cover sheet is attached to a CA file
B95: Table 6.3.1 - last row reference | C95: =IFERROR(IF(dms_Model="CA", LOOKUP(2,1/(dms_060301_Avg_Duration_Sustained_Int_Values<>""), (ROW(dms_060301_Avg_Duration_Sustained_Int_Values))), "not a CA"),"no data in 6.3 or 6.3 not present") -> 11998 | D95: dms_060301_LastRow | E95: =IFERROR(IF(dms_Model="CA",LOOKUP(2,1/(dms_060301_Avg_Duration_Sustained_Int_Values<>""),(ROW(dms_060301_Avg_Duration_Sustained_Int_Values))),"not a CA"),"6.3 not present")
B96: Table 6.3.1 - max number rows | C96: =IFERROR(IF(dms_Model="CA",(dms_060301_LastRow-15),"not a CA"),"no data in 6.3 or 6.3 not present") -> 11983 | D96: dms_060301_MaxRows | E96: =IFERROR(IF(dms_Model="CA",(dms_060301_LastRow-15),"not a CA"),"6.3 not present")
B97: Table 6.6.3 - Public lighting repair - no. business days | C97: =INDEX(dms_663_List,MATCH(dms_TradingName,dms_TradingName_List)) -> 5 | D97: dms_663 | E97: =INDEX(dms_663_List,MATCH(dms_TradingName,dms_TradingName_List))
B98: FOR ARR or RESET FILES
B99: How many rows in tables 6.1 or 6.7? (leap year?) | C99: insert dms_LeapYear NR if required | D99: dms_LeapYear is used to determine dms_060701_Max_Rows BUT it is only found on worksheet 6.1 or 6.7 and the date value in the cell is used to determine whether it is a leap year
B100: Is dms_LeapYear named range present? | C100: =IFERROR(IF(dms_LeapYear,"yes"),"no") -> no
B101: Table 6.7.1 - includes a leap year? | C101: =IFERROR(IF(MONTH(DATE(YEAR(dms_LeapYear),2,29))=2,"is a leap year","not a leap year"), "dms_LeapYear not present") -> dms_LeapYear not present | D101: dms_LeapYear_Result | E101: =IFERROR(IF(MONTH(DATE(YEAR(dms_LeapYear),2,29))=2,"is a leap year","not a leap year"),"dms_LeapYear not present")
B102: Table 6.7.1 - Last row (leap year/ non leap year) | C102: =IFERROR(IF(dms_Model="ARR", IF(dms_LeapYear_Result="is a leap year",366,365), (IF(dms_Model="Reset", (IF(dms_LeapYear_Result="is a leap year",1827,1826)), "not a relevant RIN type"))), "dms_LeapYear in either 6.1 or 6.7 not present") -> not a relevant RIN type | D102: dms_060701_MaxRows | E102: =IFERROR(IF(dms_Model="ARR",IF(dms_LeapYear_Result="is a leap year",366,365),(IF(dms_Model="Reset",(IF(dms_LeapYear_Result="is a leap year",1827,1826)),"not a relevant RIN type"))),"dms_LeapYear in either 6.1 or 6.7 not present")
B103: How many columns in 6.7? (4 or 5 feeder categories) | C103: =IF(dms_FifthFeeder_flag_NSP="NO","This NSP has only 4 feeder categories","This NSP has 5 feeder categories") -> This NSP has only 4 feeder categories
B104: Table 6.7.1 - Last column (# of feeder categories > 4) | C104: =IF(dms_FifthFeeder_flag_NSP="NO",10,12) -> 10 | D104: dms_060701_MaxCols | E104: =IF(dms_FifthFeeder_flag_NSP="NO",8,10)
B105: Table 6.7.1 - Number of offset rows | C105: =IF(dms_Model="ARR",15,9) -> 9 | D105: dms_060701_OffsetRows | E105: =IF(dms_Model="ARR",15,9)
B106: Start date for telephone answering in 6.1 or 6.7? | E106: Using 060701 as naming standard not 060101
B107: Table 6.1.1 and 6.7.1 - Start Date as Text | C107: =IF(SUM(dms_SingleYear_Model)>0,(CONCATENATE(IF(LEN(CRY)=4,"1-Jan-","1-Jul-"),LEFT(CRY,4))),(CONCATENATE(IF(LEN(CRCP_y4)=4,"1-Jan-","1-Jul-"),LEFT(CRCP_y4,4)))) -> 1-Jul-2017 | D107: dms_060701_StartDateTxt | E107: =IF(SUM(dms_SingleYear_Model)>1,(CONCATENATE(IF(LEN(CRY)=4,"1-Jan-","1-Jul-"),LEFT(CRY,4))),(CONCATENATE(IF(LEN(CRCP_y4)=4,"1-Jan-","1-Jul-"),LEFT(CRCP_y4,4))))
B108: Table 6.1.1 and 6.7.1 - Start Date as Date Value | C108: =DATEVALUE(dms_060701_StartDateTxt) -> 42917 | D108: dms_060701_StartDateVal | E108: =DATEVALUE(dms_060701_StartDateTxt)
B109: FOR ANNUAL REPORTING RINS
B110: How many rows in table 6.8? | C110: insert dms_060801_StartCell NR if required | D110: dms_060801_StartCell is only found on worksheet 6.8 and is used to determine the starting date for the date range
B111: Table 6.8 - Number of offset rows | C111: =IFERROR(IF(dms_Model="ARR",(ROW(dms_060801_StartCell)-1),"not an ARR"),"6.8 not present") -> not an ARR | D111: dms_0608_OffsetRows | E111: =IFERROR(IF(dms_Model="ARR",(ROW(dms_060801_StartCell)-1),"not an ARR"),"6.8 not present")
B112: Table 6.8 - Last row | C112: =IFERROR(IF(dms_060801_StartCell<>"",IF(dms_Model="ARR",(LOOKUP(2,1/(dms_060801_01_Values<>""),(ROW(dms_060801_01_Values)))),"not an ARR"),0),"6.8 not present") -> 6.8 not present | D112: dms_0608_LastRow | E112: =IFERROR(IF(dms_060801_StartCell<>"",IF(dms_Model="ARR",(LOOKUP(2,1/(dms_060801_01_Values<>""),(ROW(dms_060801_01_Values)))),"not an ARR"),0),"6.8 not present")
B113: Table 6.8 - MaxRows | C113: =IFERROR(IF(dms_Model="ARR",(MAX(0,dms_0608_LastRow-dms_0608_OffsetRows)),"not an ARR"),"6.8 not present") -> not an ARR | D113: dms_060801_MaxRows | E113: =IFERROR(IF(dms_Model="ARR",(MAX(0,dms_0608_LastRow-dms_0608_OffsetRows)),"not an ARR"),"6.8 not present")
B114: FOR TNSP FILES
B115: Table 7.9.4 only appears in TNSPs Reset RIN
B116: Table 7.9.4 - first year | C116: =LEFT(PRCP_y3,4) -> 2012 | D116: dms_070904_Start_Year | E116: =LEFT(PRCP_y3,4)
B117: MISC
B118: Distribution Determination Reference | C118: =INDEX(dms_DeterminationRef_List,MATCH(dms_TradingName,dms_TradingName_List)) -> 2015-20 Distribution Determination | D118: dms_DeterminationRef
B119: Is this Submission File a Subset File | C119: NO | D119: dms_Partial
B120: CBD Feeder for this business | C120: =INDEX(dms_CBD_flag,MATCH(dms_TradingName,dms_TradingName_List)) -> NO | D120: dms_CBD_flag_NSP
B121: Urban Feeder for this business | C121: =INDEX(dms_Urban_flag,MATCH(dms_TradingName,dms_TradingName_List)) -> NO | D121: dms_Urban_flag_NSP
B122: Short rural Feeder for this business | C122: =INDEX(dms_ShortRural_flag,MATCH(dms_TradingName,dms_TradingName_List)) -> YES | D122: dms_ShortRural_flag_NSP
B123: Long rural Feeder for this business | C123: =INDEX(dms_LongRural_flag,MATCH(dms_TradingName,dms_TradingName_List)) -> YES | D123: dms_LongRural_flag_NSP
B124: Fifth Feeder Category (eg. TasNetworks (D)) | C124: =INDEX(dms_FeederType_5_flag,MATCH(dms_TradingName,dms_TradingName_List)) -> NO | D124: dms_FifthFeeder_flag_NSP | E124: =INDEX(dms_FeederType_5_flag,MATCH(dms_TradingName,dms_TradingName_List))
B126: discard this record? | C126: NO | D126: dms_DISCARD | E126: If record is to be discarded from DB set this flag to YES
B128: USES NAMED RANGES FLAG | C128: yes | D128: dms_Defined_Names_Used
B130: REGULATORY YEARS FOR MULTI RYE SUBMISSIONS
B131: Multiple RYE flag | C131: NO | D131: dms_Multi_RYE_flag
C132: Manually specify RYE | D132: Named ranges to apply
C133: 2013 | D133: dms_RYE_01
C134: 2014 | D134: dms_RYE_02
C135: 2015 | D135: dms_RYE_03
C136: 2016 | D136: dms_RYE_04
C137: 2017 | D137: dms_RYE_05

Sheet 2.1 Expenditure summary
B1: REGULATORY REPORTING STATEMENT
B2: =INDEX(dms_TradingNameFull_List,MATCH(dms_TradingName,dms_TradingName_List)) -> SA Power Networks
B3: =CONCATENATE((LOOKUP(dms_Model,dms_Model_List,dms_Worksheet_List))&" "&CRY) -> CATEGORY ANALYSIS 2017-18
B4: 2.1 EXPENDITURE SUMMARY & RECONCILIATION
B6: There are SIX tables on this worksheet. Each has been grouped for ease of navigation. See the Instructions sheet on how to group or ungroup tables.
B8: 2.1.1 - STANDARD CONTROL SERVICES CAPEX
C9: EXPENDITURE ($0's)
C10: =CRY -> 2017-18
B11: Replacement expenditure | C11: 143580748.9
B12: Connections | C12: 68973178.14
B13: Augmentation Expenditure | C13: 87165260.98
B14: Non-network | C14: 109262862.1
B15: capitalised network overheads | C15: 6904976.35
B16: capitalised corporate overheads | C16: -6939995.24
B17: Metering | C17: 0
B18: Public Lighting | C18: 0
B26: balancing item | C26: -8978387.81
B27: capcons (included in the above) | C27: 29535992.12
B28: TOTAL GROSS CAPEX (including capcons) | C28: =+SUM(C11:C26) -> 399968643.4
B30: 2.1.2 - STANDARD CONTROL SERVICES OPEX
C31: EXPENDITURE ($0's)
C32: =CRY -> 2017-18
B33: Vegetation management | C33: 37453791.97
B34: Maintenance | C34: 34387330.09
B35: Emergency response | C35: 34675799.24
B36: Non-network | C36: 41720858.21
B37: network overheads | C37: 80106719.63
B38: corporate overheads | C38: 72593463.51
B39: Metering | C39: 0
B40: Public Lighting | C40: 0
B48: balancing item | C48: -49722218.21
B49: TOTAL OPEX | C49: =+SUM(C33:C48) -> 251215744.4
B51: 2.1.3 - ALTERNATIVE CONTROL SERVICES CAPEX
C52: EXPENDITURE ($0's)
C53: =CRY -> 2017-18
B54: Connections | C54: 0
B55: capitalised network overheads | C55: 97967.13
B56: capitalised corporate overheads | C56: -34130.23
B57: Metering | C57: 4927667.18
B58: Public lighting | C58: 0
B59: Fee and quoted | C59: 0
B67: balancing item | C67: 0
B68: TOTAL CAPEX | C68: =+SUM(C54:C67) -> 4991504.08
B70: 2.1.4 - ALTERNATIVE CONTROL SERVICES OPEX
C71: EXPENDITURE ($0's)
C72: =CRY -> 2017-18
B73: Connections | C73: 0
B74: network overheads | C74: 2483734.08
B75: corporate overheads | C75: 878189.6
B76: Metering | C76: 4670009.52
B77: Public lighting | C77: 0
B78: Fee and quoted | C78: 0
B79: Non-network | C79: 254033.66
B86: balancing item | C86: -254033.66
B87: TOTAL OPEX | C87: =+SUM(C73:C86) -> 8031933.2
B89: 2.1.5 - DUAL FUNCTION ASSETS CAPEX
C90: EXPENDITURE ($0's)
C91: =CRY -> 2017-18
B92: Replacement expenditure | C92: 0
B93: Connections | C93: 0
B94: Augmentation Expenditure | C94: 0
B95: Non-network | C95: 0
B96: Capitalised network overheads | C96: 0
B97: Capitalised corporate overheads | C97: 0
B105: balancing item | C105: 0
B106: capcons (included in the above) | C106: 0
B107: TOTAL GROSS CAPEX (including capcons) | C107: =SUM(C92:C105) -> 0
B109: 2.1.6 - DUAL FUNCTION ASSETS OPEX
C110: EXPENDITURE ($0's)
C111: =CRY -> 2017-18
B112: Vegetation management | C112: 0
B113: Maintenance | C113: 0
B114: Emergency response | C114: 0
B115: Non-network | C115: 0
B116: Network overheads | C116: 0
B117: Corporate overheads | C117: 0
B125: balancing item | C125: 0
B126: TOTAL OPEX | C126: =SUM(C112:C125) -> 0

Sheet 2.2 Repex
B1: REGULATORY REPORTING STATEMENT
B2: =INDEX(dms_TradingNameFull_List,MATCH(dms_TradingName,dms_TradingName_List)) -> SA Power Networks
B3: =CONCATENATE((LOOKUP(dms_Model,dms_Model_List,dms_Worksheet_List))&" "&CRY) -> CATEGORY ANALYSIS 2017-18
B4: 2.2 REPEX
B6: There are TWO tables on this worksheet. Each has been grouped for ease of navigation. See the Instructions sheet on how to group or ungroup tables.
B8: 2.2.1 - REPLACEMENT EXPENDITURE, VOLUMES AND ASSET FAILURES BY ASSET CATEGORY
E9: EXPENDITURE ($0's) | F9: ASSET REPLACEMENTS (0's) | G9: ASSET FAILURES (0's)
B10: ASSET GROUP | C10: ASSET CATEGORY | E10: =CRY -> 2017-18 | F10: =CRY -> 2017-18 | G10: =CRY -> 2017-18
B11: POLES BY: HIGHEST OPERATING VOLTAGE ; MATERIAL TYPE; STAKING (IF WOOD) | C11: Staking of a wooden pole
C12: ˂ = 1 kV; Wood
C13: > 1 kV & < = 11 kV; Wood
C14: ˃ 11 kV & < = 22 kV; Wood
C15: > 22 kV & < = 66 kV; Wood
C16: > 66 kV & < = 132 kV; Wood
C17: > 132 kV; Wood
C18: ˂ = 1 kV; Concrete
C19: > 1 kV & < = 11 kV; Concrete
C20: ˃ 11 kV & < = 22 kV; Concrete
C21: > 22 kV & < = 66 kV; Concrete
C22: > 66 kV & < = 132 kV; Concrete
C23: > 132 kV; Concrete
C24: ˂ = 1 kV; Steel
C25: > 1 kV & < = 11 kV; Steel
C26: ˃ 11 kV & < = 22 kV; Steel
C27: > 22 kV & < = 66 kV; Steel
C28: > 66 kV & < = 132 kV; Steel
C29: > 132 kV; Steel
C30: Other
B31: POLE TOP STRUCTURES BY: HIGHEST OPERATING VOLTAGE | C31: ˂ = 1 kV | E31: 6273970.56 | F31: 7510 | G31: 2877
C32: > 1 kV & < = 11 kV | E32: 11547393.46 | F32: 6216 | G32: 1105
C33: ˃ 11 kV & < = 22 kV | E33: 2887675.881 | F33: 1320 | G33: 376
C34: > 22 kV & < = 66 kV | E34: 3799179.692 | F34: 806 | G34: 109
C35: > 66 kV & < = 132 kV | E35: 3059.866717 | F35: 1 | G35: -
C36: > 132 kV | G36: -
C37: Other | G37: -
B38: OVERHEAD CONDUCTORS BY: HIGHEST OPERATING VOLTAGE; NUMBER OF PHASES (AT HV) | C38: ˂ = 1 kV | E38: 900301.1045 | F38: 22.332 | G38: 834
C39: > 1 kV & < = 11 kV | E39: 961450.8153 | F39: 39.75 | G39: 179
C40: ˃ 11 kV & < = 22 kV ; SWER | E40: 258709.8041 | F40: 7.728 | G40: 81
C41: ˃ 11 kV & < = 22 kV ; Single-Phase | G41: 0
C42: ˃ 11 kV & < = 22 kV ; Multiple-Phase | G42: 0
C43: > 22 kV & < = 66 kV | E43: 2216494.404 | F43: 16.525 | G43: 5
C44: > 66 kV & < = 132 kV | G44: 0
C45: > 132 kV | G45: 0
C46: Other | G46: 0
B47: UNDERGROUND CABLES BY: HIGHEST OPERATING VOLTAGE | C47: ˂ = 1 kV | E47: 7508843.904 | F47: 6.945 | G47: 569
C48: > 1 kV & < = 11 kV | E48: 4881212.191 | F48: 3.531 | G48: 136
C49: > 11 kV & < = 22 kV | E49: 16898.12832 | F49: 0.02 | G49: 2
C50: > 22 kV & < = 33 kV | E50: 110164.7064 | F50: 0.03 | G50: 3
C51: > 33 kV & < = 66 kV | E51: 1160917.128 | F51: 0.08 | G51: 0
C52: > 66 kV & < = 132 kV | F52: 0 | G52: 0
C53: > 132 kV | F53: 0 | G53: 0
C54: Other | F54: 0 | G54: 0
B55: SERVICE LINES BY: CONNECTION VOLTAGE; CUSTOMER TYPE; CONNECTION COMPLEXITY | C55: ˂ = 11 kV ; Residential ; Simple Type | E55: 7900886.851 | F55: 16209 | G55: 5973
C56: ˂ = 11 kV ; Commercial & Industrial ; Simple Type
C57: ˂ = 11 kV ; Residential ; Complex Type
C58: ˂ = 11 kV ; Commercial & Industrial ; Complex Type | E58: 876414.002 | F58: 1798 | G58: 663
C59: ˂ = 11 kV ; Subdivision ; Complex Type
C60: > 11 kV & < = 22 kV ; Commercial & Industrial
C61: > 11 kV & < = 22 kV ; Subdivision
C62: > 22 kV & < = 33 kV ; Commercial & Industrial
C63: > 22 kV & < = 33 kV ; Subdivision
C64: > 33 kV & < = 66 kV ; Commercial & Industrial
C65: > 33 kV & < = 66 kV ; Subdivision
C66: > 66 kV & < = 132 kV ; Commercial & Industrial
C67: > 66 kV & < = 132 kV ; Subdivision
C68: > 132 kV ; Commercial & Industrial
C69: > 132 kV ; Subdivision
C70: Other
B71: TRANSFORMERS BY: MOUNTING TYPE; HIGHEST OPERATING VOLTAGE ; AMPERE RATING; NUMBER OF PHASES (AT LV) | C71: Pole Mounted ; < = 22kV ; < = 60 kVA ; Single Phase | E71: 4876827.591 | F71: 302 | G71: 49
C72: Pole Mounted ; < = 22kV ; > 60 kVA and < = 600 kVA ; Single Phase | E72: 488969.0419 | F72: 14 | G72: 2
C73: Pole Mounted ; < = 22kV ; > 600 kVA ; Single Phase
C74: Pole Mounted ; < = 22kV ; < = 60 kVA ; Multiple Phase | E74: 1115956.28 | F74: 60 | G74: 10
C75: Pole Mounted ; < = 22kV ; > 60 kVA and < = 600 kVA ; Multiple Phase | E75: 4193057.071 | F75: 241 | G75: 20
C76: Pole Mounted ; < = 22kV ; > 600 kVA ; Multiple Phase
C77: Kiosk Mounted ; < = 22kV ; < = 60 kVA ; Single Phase | E77: 10670.94913 | F77: 1
C78: Kiosk Mounted ; < = 22kV ; > 60 kVA and < = 600 kVA ; Single Phase
C79: Kiosk Mounted ; < = 22kV ; > 600 kVA ; Single Phase
C80: Kiosk Mounted ; < = 22kV ; < = 60 kVA ; Multiple Phase | E80: 155134.087 | F80: 2 | G80: 1
C81: Kiosk Mounted ; < = 22kV ; > 60 kVA and < = 600 kVA ; Multiple Phase | E81: 1502546.026 | F81: 60 | G81: 5
C82: Kiosk Mounted ; < = 22kV ; > 600 kVA ; Multiple Phase | E82: 833787.7447 | F82: 15 | G82: 4
C83: Ground Outdoor / Indoor Chamber Mounted; ˂ 22 kV ; < = 60 kVA ; Single Phase
C84: Ground Outdoor / Indoor Chamber Mounted; ˂ 22 kV ; > 60 kVA and < = 600 kVA ; Single Phase
C85: Ground Outdoor / Indoor Chamber Mounted; ˂ 22 kV ; > 600 kVA ; Single Phase
C86: Ground Outdoor / Indoor Chamber Mounted; ˂ 22 kV ; < = 60 kVA ; Multiple Phase
C87: Ground Outdoor / Indoor Chamber Mounted; ˂ 22 kV ; > 60 kVA and < = 600 kVA ; Multiple Phase
C88: Ground Outdoor / Indoor Chamber Mounted; ˂ 22 kV ; > 600 kVA ; Multiple Phase | F88: 1
C89: Ground Outdoor / Indoor Chamber Mounted; > = 22 kV & < = 33 kV ; < = 15 MVA | E89: 348396.2959 | F89: 3
C90: Ground Outdoor / Indoor Chamber Mounted; > = 22 kV & < = 33 kV ; > 15 MVA and < = 40 MVA
C91: Ground Outdoor / Indoor Chamber Mounted; > = 22 kV & < = 33 kV ; > 40 MVA
C92: Ground Outdoor / Indoor Chamber Mounted; > 33 kV & < = 66 kV ; < = 15 MVA | E92: 228599.2617 | F92: 1 | G92: 1
C93: Ground Outdoor / Indoor Chamber Mounted; > 33 kV & < = 66 kV ; > 15 MVA and < = 40 MVA | E93: 267931.7174 | F93: 2 | G93: 2
C94: Ground Outdoor / Indoor Chamber Mounted; > 33 kV & < = 66 kV ; > 40 MVA
C95: Ground Outdoor / Indoor Chamber Mounted; > 66 kV & < = 132 kV ; < = 100 MVA
C96: Ground Outdoor / Indoor Chamber Mounted; > 66 kV & < = 132 kV ; > 100 MVA
C97: Ground Outdoor / Indoor Chamber Mounted; > 132 kV ; < = 100 MVA
C98: Ground Outdoor / Indoor Chamber Mounted; > 132 kV ; > 100 MVA
C99: Other
B100: SWITCHGEAR BY: HIGHEST OPERATING VOLTAGE ; SWITCH FUNCTION | C100: ˂ = 11 kV ; FUSE
C101: ˂ = 11 kV ; Switch | E101: 100474.1207 | F101: 2
C102: ˂ = 11 kV ; Circuit Breaker | E102: 12220623.73 | F102: 29
C103: > 11 kV & < = 22 kV ; Switch
C104: > 11 kV & < = 22 kV ; Circuit Breaker
C105: > 22 kV & < = 33 kV ; Switch | E105: 68853.11798 | F105: 1
C106: > 22 kV & < = 33 kV ; Circuit Breaker | E106: 3039771.021 | F106: 3
C107: > 33 kV & < = 66 kV ; Switch | E107: 92066.19874 | F107: 5
C108: > 33 kV & < = 66 kV ; Circuit Breaker | E108: 1028902.229 | F108: 1
C109: > 66 kV & < = 132 kV ; Switch
C110: > 66 kV & < = 132 kV ; Circuit Breaker
C111: > 132 kV ; Switch
C112: > 132 kV ; Circuit Breaker
C113: Other
B114: PUBLIC LIGHTING BY: ASSET TYPE ; LIGHTING OBLIGATION | C114: Luminaires ; Major Road
C115: Luminaires ; Minor Road
C116: Brackets ; Major Road
C117: Brackets ; Minor Road
C118: Lamps ; Major Road
C119: Lamps ; Minor Road
C120: Poles / Columns ; Major Road
C121: Poles / Columns ; Minor Road
C122: Other
B123: SCADA, NETWORK CONTROL AND PROTECTION SYSTEMS BY: FUNCTION | C123: Field Devices | E123: 5794116.954 | F123: 106 | G123: 29
C124: Local Network Wiring Assets
C125: Communications Network Assets | E125: 4355466.246 | F125: 10 | G125: 0
C126: Master Station Assets
C127: Communications Site Infrastructure
C128: Communications Linear Assets | E128: 659791.7217 | F128: 0.88 | G128: 0.74
C129: AFLC
C130: Other
B131: OTHER BY: DNSP DEFINED | C131: ˂ = 1 kV; stobie pole | E131: 4901855.162 | F131: 569 | G131: 48
C132: > 1 kV & < = 11 kV; stobie pole | E132: 10131436.62 | F132: 1037 | G132: 121
C133: ˃ 11 kV & < = 22 kV; stobie pole | E133: 3173474.076 | F133: 321 | G133: 40
C134: > 22 kV & < = 66 kV; stobie pole | E134: 841103.0939 | F134: 52 | G134: 1
C135: > 66 kV & < = 132 kV; stobie pole | F135: 0 | G135: 0
C136: > 132 kV; stobie pole | F136: 0 | G136: 0
C137: Pole REFURBISHED; STOBIE Pole | E137: 9470902.986 | F137: 6112 | G137: 0
C138: Pole Mounted ;> = 22 kV & < = 33 kV ; < = 60kVA | E138: 29760.52559 | F138: 3
C139: Pole Mounted ;> = 22 kV & < = 33 kV ; > 60 KVA AND < = 600 KVA | E139: 517288.5515 | F139: 11 | G139: 5
C140: Kiosk Mounted; > = 22 kV & < = 33 kV ;
C141: Recloser ;SWITCHGEAR | E141: 5085627.765 | F141: 124 | G141: 49
C142: Sectionalizer ;SWITCHGEAR | F142: 0 | G142: 34
C143: >= 11 kV & < ≈ 22 kV ; LOAD BREAK SWITCH; GROUND LEVEL (Switching Cubicle);SWITCHGEAR | E143: 3791049.598 | F143: 137 | G143: 10
C144: > 22 kV & < ≈ 33 kV ; LOAD BREAK SWITCH; GROUND LEVEL (Switching Cubicle);SWITCHGEAR | F144: 0 | G144: 0
C145: OTHER - Non Category Substation asset replacement/refurbishment | E145: 8370326.781 | F145: 99 | G145: 4
C146: Pipework Bus Substation Replacements | E146: 2433159.941 | F146: 3
C147: ˂ = 11 kV ; Circuit Breaker REFURBISHED | E147: 1305674.171 | F147: 85
C148: > 22 kV & < = 33 kV ; Circuit Breaker REFURBISHED | E148: 48472.80717
C149: > 33 kV & < = 66 kV ; Circuit Breaker REFURBISHED | E149: 8919.679037
C150: Ground Outdoor / Indoor Chamber Mounted; ˂ 22 kV ; > 600 kVA ; Multiple Phase REFURBISHED | E150: 1947.073547
C151: Ground Outdoor / Indoor Chamber Mounted; > = 22 kV & < = 33 kV ; < = 15 MVA REFURBISHED | E151: 39186.99539 | F151: 1
C152: Ground Outdoor / Indoor Chamber Mounted; > 33 kV & < = 66 kV ; < = 15 MVA REFURBISHED | E152: 311961.5939 | F152: 4
C153: Ground Outdoor / Indoor Chamber Mounted; > 33 kV & < = 66 kV ; > 15 MVA and < = 40 MVA REFURBISHED | E153: 433087.7029 | F153: 9
B157: 2.2.2 - SELECTED ASSET CHARACTERISTICS
E158: ASSET VOLUMES CURRENTLY IN COMMISSION | F158: ASSET REPLACEMENTS (0's)
B159: ASSET GROUP | C159: METRIC | D159: UNITS | E159: =CRY -> 2017-18 | F159: =CRY -> 2017-18
B160: TOTAL POLES BY: FEEDER TYPE | C160: Total CBD poles | D160: Number | E160: 283.2810237 | F160: 12
C161: Total urban poles | D161: Number | E161: 223851.967 | F161: 834
C162: Total rural long poles | D162: Number | E162: 323719.8243 | F162: 718
C163: Total rural short poles | D163: Number | E163: 99641.92769 | F163: 415
B164: OVERHEAD CONDUCTORS BY: CONDUCTOR LENGTH BY FEEDER TYPE | C164: Conductors CBD | D164: KM | E164: 59.44249053 | F164: 0.08
C165: Conductors urban | D165: KM | E165: 55120.90882 | F165: 19.16
C166: Conductors rural long | D166: KM | E166: 87791.87044 | F166: 61.422
C167: Conductors rural short | D167: KM | E167: 31320.77825 | F167: 5.673
B168: OVERHEAD CONDUCTORS BY: CONDUCTOR LENGTH MATERIAL TYPE | C168: OH conductor LV ABC | D168: KM | E168: 8146.658053
C169: OH conductor steel | D169: KM | E169: 41625.17988 | F169: 9.893
C170: OH conductor ACSR | D170: KM | E170: 38935.73058 | F170: 45.324
C171: OH conductor AAAC | D171: KM | E171: 6230.837462
C172: OH conductor AAC | D172: KM | E172: 33965.63192 | F172: 12.12
C173: OH conductor HDBC | D173: KM | E173: 45388.96211
C174: Other | D174: KM | E174: 0 | F174: 18.998
B175: UNDERGROUND CABLES BY: CABLE LENGTH BY FEEDER TYPE | C175: Cable CBD | D175: KM | E175: 271.9469147 | F175: 0.89
C176: Cable urban | D176: KM | E176: 11143.10668 | F176: 7.22
C177: Cable rural long | D177: KM | E177: 3205.757359 | F177: 1.426
C178: Cable rural short | D178: KM | E178: 3443.189046 | F178: 1.07
B179: TRANSFORMERS BY: TOTAL MVA | C179: Total MVA replaced | D179: MVA | E179: 133 | F179: -
C180: Total MVA disposed of | D180: MVA | E180: 73 | F180: -

Sheet 2.3(a) Augex
B1: REGULATORY REPORTING STATEMENT
B2: =INDEX(dms_TradingNameFull_List,MATCH(dms_TradingName,dms_TradingName_List)) -> SA Power Networks
B3: =CONCATENATE((LOOKUP(dms_Model,dms_Model_List,dms_Worksheet_List))&" "&CRY) -> CATEGORY ANALYSIS 2017-18
B4: 2.3 AUGEX PROJECT DATA
B7: There are TWO tables on this worksheet - each has been 'grouped' for easy navigation. Both ROWS and COLUMNS have been grouped. See the Instructions sheet on how to group or ungroup tables.
B9: 2.3.1 - AUGEX ASSET DATA - SUBTRANSMISSION SUBSTATIONS, SWITCHING STATIONS AND ZONE SUBSTATIONS
B10: NOTE: DNSP MUST PROVIDE EXPENDITURE INFORMATION ON A PROJECT CLOSE BASIS.
B11: PROJECT DESCRIPTION AND CHANGES | L11: PLANT AND EQUIPMENT EXPENDITURE AND VOLUME | X11: OTHER EXPENDITURE | Z11: TOTAL DIRECT EXPENDITURE ($0's) | AA11: YEARS INCURRED | AB11: ALL RELATED PARTY CONTRACTS | AD11: ALL NON RELATED PARTY CONTRACTS | AE11: LAND AND EASEMENTS
B12: SUBSTATION ID | C12: SUBSTATION TYPE (drop down) | D12: PROJECT ID | E12: PROJECT TYPE (drop down) | F12: PROJECT TRIGGER (drop down) | G12: VOLTAGE (KV) | H12: SUBSTATION RATING NORMAL CYCLIC (MVA) | J12: SUBSTATION RATING N-1 EMERGENCY (MVA) | L12: TRANSFORMERS | O12: SWITCHGEAR | Q12: CAPACITORS | U12: OTHER PLANT ITEM | V12: INSTALLATION (LABOUR) | X12: CIVIL WORKS | Y12: OTHER DIRECT | AB12: RELATED PARTY MARGINS | AC12: TOTAL | AE12: LAND PURCHASE | AF12: EASEMENTS
H13: PRE | I13: POST | J13: PRE | K13: POST | L13: UNITS ADDED | M13: MVA ADDED | N13: EXPENDITURE ($0's) | O13: UNITS ADDED | P13: EXPENDITURE ($0's) | Q13: MVAR ADDED | R13: EXPENDITURE ($0's) | U13: EXPENDITURE ($0's) | V13: VOLUME | W13: EXPENDITURE ($0's) | X13: EXPENDITURE ($0's) | AB13: EXPENDITURE ($0's) | AE13: EXPENDITURE ($0's)
Z14: =SUM(N14,P14,R14,U14,W14,X14,Y14) -> 0
Z15: 0
Z16: 0
Z17: 0
Z18: 0
Z19: 0
Z20: 0
Z21: 0
Z22: 0
Z23: 0
Z24: 0
Z25: 0
Z26: 0
Z27: 0
Z28: 0
Z29: 0
Z30: 0
Z31: 0
Z32: 0
Z33: 0
Z34: 0
Z35: 0
Z36: 0
Z37: 0
Z38: 0
Z39: 0
Z40: 0
Z41: 0
Z42: 0
Z43: 0
Z44: 0
Z45: 0
Z46: =SUM(N46,P46,R46,U46,W46,X46,Y46) -> 0
Z47: 0
Z48: 0
Z49: 0
Z50: 0
Z51: 0
Z52: 0
Z53: 0
Z54: 0
Z55: 0
Z56: 0
Z57: 0
Z58: 0
Z59: 0
Z60: 0
Z61: 0
Z62: 0
Z63: 0
Z64: 0
Z65: 0
D66: 25257343.96
B69: AUG232_1 | C69: AUG232_2 | D69: AUG232_3 | E69: AUG232_4 | F69: AUG232_5 | G69: AUG232_6 | H69: ED_AUG232_00001 | I69: ED_AUG232_00002 | J69: ED_AUG232_00003 | K69: ED_AUG232_00004 | L69: ED_AUG232_00005 | M69: ED_AUG232_00006 | N69: ED_AUG232_00007 | O69: ED_AUG232_00008 | P69: ED_AUG232_00009 | Q69: ED_AUG232_00010 | R69: ED_AUG232_00011 | S69: ED_AUG232_00012 | T69: ED_AUG232_00013 | U69: ED_AUG232_00014 | V69: ED_AUG232_00015 | W69: ED_AUG232_00016 | X69: ED_AUG232_00017 | Y69: ED_AUG232_00018 | Z69: ED_AUG232_00019 | AA69: ED_AUG232_00020 | AB69: ED_AUG232_00021
B70: 2.3.2 - AUGEX ASSET DATA - SUBTRANSMISSION LINES
B71: NOTE: DNSP MUST PROVIDE EXPENDITURE INFORMATION ON A PROJECT CLOSE BASIS.
B72: PROJECT DESCRIPTION AND CHANGES | L72: PLANT AND EQUIPMENT EXPENDITURE AND VOLUME | X72: OTHER EXPENDITURE | Z72: TOTAL DIRECT EXPENDITURE ($0's) | AA72: YEARS INCURRED | AB72: ALL RELATED PARTY CONTRACTS | AD72: ALL NON RELATED PARTY CONTRACTS | AE72: LAND AND EASEMENTS
B73: LINE ID | C73: PROJECT ID | D73: PROJECT TYPE | E73: PROJECT TRIGGER | G73: VOLTAGE (KV) | H73: ROUTE LINE LENGTH ADDED | L73: POLES/TOWERS (INCLUDING STRUCTURES, AND CIVIL WORKS) | O73: OVERHEAD LINES | R73: UNDERGROUND CABLES | U73: OTHER PLANT ITEM | V73: INSTALLATION (LABOUR) | X73: CIVIL WORKS | Y73: OTHER DIRECT | AB73: RELATED PARTY MARGINS | AC73: TOTAL | AE73: LAND PURCHASE | AF73: EASEMENTS
H74: KM ADDED | L74: POLES/TOWERS ADDED | M74: POLES/TOWERS UPGRADED | N74: EXPENDITURE ($0's) | O74: CIRCUIT KM ADDED | P74: CIRCUIT KM UPGRADED | Q74: EXPENDITURE ($0's) | R74: CIRCUIT KM ADDED | S74: CIRCUIT KM UPGRADED | T74: EXPENDITURE ($0's) | U74: EXPENDITURE ($0's) | V74: VOLUME | W74: EXPENDITURE ($0's) | X74: EXPENDITURE ($0's) | AB74: EXPENDITURE ($0's) | AE74: EXPENDITURE ($0's)
Z75: =SUM(N75,Q75,T75,U75,W75,X75,Y75) -> 0 | AH75: New line on new route - single circuit
Z76: 0 | AH76: New line on new route - dual circuit
Z77: 0 | AH77: New line on new route - other
Z78: 0 | AH78: Line rebuild over existing route - single circuit
Z79: 0 | AH79: Line rebuild over existing route - dual circuit
Z80: 0 | AH80: Reconductor - Single circuit
Z81: 0 | AH81: Reconductor - Dual circuit
Z82: 0 | AH82: Reconductor - Other
Z83: 0 | AH83: Line upgrade - raising/retensoring
Z84: 0 | AH84: Line upgrade - voltage upgrade
Z85: 0 | AH85: Line upgrade - capacity
Z86: 0 | AH86: String spare circuit
Z87: 0 | AH87: Other
Z88: 0
Z89: 0
Z90: 0
Z91: 0
Z92: 0
Z93: 0
Z94: 0
Z95: 0
Z96: 0
Z97: 0
Z98: 0
Z99: 0
Z100: 0
Z101: 0
Z102: 0
Z103: 0
Z104: 0
Z105: 0
Z106: 0
Z107: =SUM(N107,Q107,T107,U107,W107,X107,Y107) -> 0
Z108: 0
Z109: 0
Z110: 0
Z111: 0
Z112: 0
Z113: 0
Z114: 0
Z115: 0
Z116: 0
Z117: 0
Z118: 0
Z119: 0
Z120: 0
Z121: 0
Z122: 0
Z123: 0
Z124: 0
Z125: 0
Z126: 0
Z127: 0
Z128: 0
C129: Non material projects - [actual] | D129: 4284754.742

Sheet 2.3(b) Augex
B1: REGULATORY REPORTING STATEMENT
B2: =INDEX(dms_TradingNameFull_List,MATCH(dms_TradingName,dms_TradingName_List)) -> SA Power Networks
B3: =CONCATENATE((LOOKUP(dms_Model,dms_Model_List,dms_Worksheet_List))&" "&CRY) -> CATEGORY ANALYSIS 2017-18
B4: 2.3 AUGEX DATA
B6: There are TWO tables on this worksheet. Each has been grouped for ease of navigation. See the Instructions sheet on how to group or ungroup tables.
B8: 2.3.3 - AUGEX DATA - HV/LV FEEDERS AND DISTRIBUTION SUBSTATIONS
B9: NOTE: DNSP MUST PROVIDE EXPENDITURE INFORMATION ON AN AS INCURRED BASIS.
B10: DESCRIPTOR METRICS
B11: PROJECT TYPE | D11: UNITS ADDED (0's) | E11: UNITS UPGRADED (0's)
C12: UNITS | D12: =CRY -> 2017-18 | E12: =CRY -> 2017-18
B13: HV Feeder Augmentations - Overhead Lines | C13: Circuit line length in km | D13: 3.31 | E13: 0.479
B14: HV Feeder Augmentations - Underground Cables | C14: Circuit line length in km | D14: 0.543 | E14: 0
B15: LV Feeder Augmentations - Overhead Lines | C15: Circuit line length in km | D15: 0.27 | E15: 8.5
B16: LV Feeder Augmentations - Underground Cables | C16: Circuit line length in km | D16: 0.309 | E16: 0
B17: Distribution Substation Augmentations - Pole Mounted | C17: Number | D17: 66 | E17: 67
B18: Distribution Substation Augmentations - Ground Mounted | C18: Number | D18: 1 | E18: 4
B19: Distribution Substation Augmentations - Indoor | C19: Number | D19: 0 | E19: 0
B21: COST METRICS
B22: TOTAL DIRECT EXPENDITURE - Project Type | D22: EXPENDITURE ($0's)
D23: =CRY -> 2017-18
B24: HV Feeder Augmentations - Overhead Lines | D24: 0
B25: HV Feeder Augmentations - Underground Cables | D25: 0
B26: HV Feeder Non-Material Projects | D26: 29433544.72
B27: LV Feeder Augmentations - Overhead Lines | D27: 417555.5279
B28: LV Feeder Augmentations - Underground Cables | D28: 0
B29: LV Feeder Non-Material Projects | D29: 2194005.954
B30: Distribution Substation Augmentations - Pole Mounted | D30: 1621391.216
B31: Distribution Substation Augmentations - Ground Mounted | D31: 122402.762
B32: Distribution Substation Augmentations - Indoor | D32: 0
B35: 2.3.4 - AUGEX DATA - TOTAL EXPENDITURE
B36: AUGMENTATION CAPEX (As incurred) | D36: EXPENDITURE ($0's)
D37: =CRY -> 2017-18
B38: Subtransmission Substations, Switching Stations, Zone Substations | D38: 28021903.66
B39: Subtransmission Lines | D39: 23342927.24
B40: HV Feeders | D40: 29433544.72
B41: HV Feeders - Land Purchases and Easements
B42: Distribution Substations | D42: 1743793.978
B43: Distribution Substations - Land Purchases And Easements
B44: LV Feeders | D44: 2611561.482
B45: LV Feeders - Land Purchases And Easements
B46: Other Assets | D46: 2011530.2

Sheet 2.5 Connections
B1: REGULATORY REPORTING STATEMENT
B2: =INDEX(dms_TradingNameFull_List,MATCH(dms_TradingName,dms_TradingName_List)) -> SA Power Networks
B3: =CONCATENATE((LOOKUP(dms_Model,dms_Model_List,dms_Worksheet_List))&" "&CRY) -> CATEGORY ANALYSIS 2017-18
B4: 2.5 CONNECTIONS
B6: There are TWO tables on this worksheet. Each has been grouped for ease of navigation. See the Instructions sheet on how to group or ungroup tables.
B8: 2.5.1 - DESCRIPTOR METRICS
B9: <<<GROUP-ROW>>>
E11: VOLUMES AND EXPENDITURE
B12: CONNECTION SUBCATEGORY | C12: DESCRIPTOR METRIC | D12: UNITS | E12: =CRY -> 2017-18
B13: RESIDENTIAL | C13: Underground connections | D13: 0's | E13: 10593
C14: Overhead connections | D14: 0's | E14: 355
C15: Distribution substation installed | D15: MVA added | E15: 5.986
C16: Distribution substations installed | D16: 0's | E16: 117
C17: Distribution substation installed | D17: total spend $0s | E17: 2457407.718
C18: Augmentation HV | D18: net circuit km added | E18: 3.9
C19: Augmentation HV | D19: total spend $0s | E19: 586431.1163
C20: Augmentation LV | D20: net circuit km added | E20: 4.588
C21: Augmentation LV | D21: total spend $0s | E21: 793027.3874
C22: Mean days to connect residential customer with LV single phase connection | D22: 0's | E22: 13
C23: Volume of GSL breaches for residential customers | D23: 0's | E23: 217
C24: Volume of customer complaints relating to connection services | D24: 0's | E24: 56
C25: GSL payments | D25: $0s | E25: 61020
B26: COMMERCIAL/INDUSTRIAL | C26: Underground connections | D26: 0's | E26: 902
C27: Overhead connections | D27: 0's | E27: 224
C28: Distribution substation installed | D28: MVA added | E28: 75.902
C29: Distribution substations installed | D29: 0's | E29: 275
C30: Distribution substation installed | D30: total spend $0s | E30: 10661740.28
C31: Augmentation HV | D31: net circuit km added | E31: 44.772
C32: Augmentation HV | D32: total spend $0s | E32: 8441495.03
C33: Augmentation LV | D33: net circuit km added | E33: 4.233
C34: Augmentation LV | D34: total spend $0s | E34: 1435843.128
B35: SUBDIVISION | C35: Underground connections | D35: 0's | E35: 319
C36: Overhead connections | D36: 0's | E36: 79
C37: Distribution substation installed | D37: MVA added | E37: 19.656
C38: Distribution substations installed | D38: 0's | E38: 83
C39: Distribution substation installed | D39: total spend $0s | E39: 3323533.644
C40: Augmentation HV | D40: net circuit km added | E40: 8.485
C41: Augmentation HV | D41: total spend $0s | E41: 1494632.455
C42: Augmentation LV | D42: net circuit km added | E42: 17.243
C43: Augmentation LV | D43: total spend $0s | E43: 4740593.94
C44: Cost per lot ($) | D44: $0s | E44: 1026.752819
B45: EMBEDDED GENERATION | C45: Underground connections | D45: 0's | E45: 6797
C46: Overhead connections | D46: 0's | E46: 854
C47: Distribution substation installed | D47: MVA added | E47: 5.715
C48: Distribution substations installed | D48: 0's | E48: 19
C49: Distribution substation installed | D49: total spend $0s | E49: 727685.9584
C50: Augmentation HV | D50: net circuit km added | E50: 0.112
C51: Augmentation HV | D51: total spend $0s | E51: 21117.40284
C52: Augmentation LV | D52: net circuit km added | E52: 0.014
C53: Augmentation LV | D53: total spend $0s | E53: 4748.838791
B57: 2.5.2 - COST METRICS BY CONNECTION CLASSIFICATION
D58: EXPENDITURE ($0's) | E58: VOLUMES (0's)
B59: CONNECTION SUBCATEGORY | C59: CONNECTION CLASSIFICATION | D59: =CRY -> 2017-18 | E59: =CRY -> 2017-18
B60: RESIDENTIAL | C60: Simple connection LV | D60: 8016518.377 | E60: 10692
C61: Complex connection LV | D61: 6320460.034 | E61: 256
C62: Complex connection HV | D62: 0 | E62: 0
B63: COMMERCIAL/INDUSTRIAL | C63: Simple connection LV | D63: 1284446.663 | E63: 666
C64: Complex connection HV (customer connected at LV, minor HV works) | D64: 18815494.37 | E64: 360
C65: Complex connection HV (customer connected at LV, upstream asset works) | D65: 11353899.75 | E65: 81
C66: Complex connection HV (customer connected at HV) | D66: 2404053.682 | E66: 19
C67: Complex connection sub-transmission
B68: SUBDIVISION | C68: Complex connection LV | D68: 1477881.35 | E68: 262
C69: Complex connection HV (no upstream asset works) | D69: 3904220.252 | E69: 91
C70: Complex connection HV (with upstream asset works) | D70: 1870985.104 | E70: 45
B71: EMBEDDED GENERATION | C71: Simple connection LV | D71: 4384365.185 | E71: 7380
C72: Complex connection HV (small capacity) | D72: 1112199.893 | E72: 251
C73: Complex connection HV (large capacity) | D73: 7853316.254 | E73: 20

Sheet 2.7 Vegetation management
B1: REGULATORY REPORTING STATEMENT
B2: =INDEX(dms_TradingNameFull_List,MATCH(dms_TradingName,dms_TradingName_List)) -> SA Power Networks
B3: =CONCATENATE((LOOKUP(dms_Model,dms_Model_List,dms_Worksheet_List))&" "&CRY) -> CATEGORY ANALYSIS 2017-18
B4: 2.7 VEGETATION MANAGEMENT
B6: There are THREE tables on this worksheet. Each has been grouped (and sub-grouped) for ease of navigation. See the Instructions sheet on how to group or ungroup tables.
B8: Please enter a description for each Zone in table 2.7.1 - Urban and CBD. The zone description will then autopopulate in tables 2.7.1 - Rural and 2.7.2.
A11: ` | B11: 2.7.1 - DESCRIPTOR METRICS BY ZONE
B12: URBAN AND CBD
E13: =CRY -> 2017-18
B14: ZONES | C14: ASSET | D14: UNITS
B15: ZONE 1 | C15: Route line length within zone | D15: km
C16: Number of maintenance spans | D16: 0's
C17: Total length of maintenance spans | D17: km
C18: Length of vegetation corridors | D18: km
C19: Average number of trees per maintenance span | D19: 0's
C20: Average frequency of cutting cycle | D20: years
B21: ZONE 2 | C21: Route line length within zone | D21: km
C22: Number of maintenance spans | D22: 0's
C23: Total length of maintenance spans | D23: km
C24: Length of vegetation corridors | D24: km
C25: Average number of trees per maintenance span | D25: 0's
C26: Average frequency of cutting cycle | D26: years
B27: ZONE 3 | C27: Route line length within zone | D27: km
C28: Number of maintenance spans | D28: 0's
C29: Total length of maintenance spans | D29: km
C30: Length of vegetation corridors | D30: km
C31: Average number of trees per maintenance span | D31: 0's
C32: Average frequency of cutting cycle | D32: years
B33: ZONE 4 | C33: Route line length within zone | D33: km
C34: Number of maintenance spans | D34: 0's
C35: Total length of maintenance spans | D35: km
C36: Length of vegetation corridors | D36: km
C37: Average number of trees per maintenance span | D37: 0's
C38: Average frequency of cutting cycle | D38: years
B39: ZONE 5 | C39: Route line length within zone | D39: km
C40: Number of maintenance spans | D40: 0's
C41: Total length of maintenance spans | D41: km
C42: Length of vegetation corridors | D42: km
C43: Average number of trees per maintenance span | D43: 0's
C44: Average frequency of cutting cycle | D44: years
B45: ZONE 6 | C45: Route line length within zone | D45: km
C46: Number of maintenance spans | D46: 0's
C47: Total length of maintenance spans | D47: km
C48: Length of vegetation corridors | D48: km
C49: Average number of trees per maintenance span | D49: 0's
C50: Average frequency of cutting cycle | D50: years
B51: ZONE 7 | C51: Route line length within zone | D51: km
C52: Number of maintenance spans | D52: 0's
C53: Total length of maintenance spans | D53: km
C54: Length of vegetation corridors | D54: km
C55: Average number of trees per maintenance span | D55: 0's
C56: Average frequency of cutting cycle | D56: years
B57: ZONE 8 | C57: Route line length within zone | D57: km
C58: Number of maintenance spans | D58: 0's
C59: Total length of maintenance spans | D59: km
C60: Length of vegetation corridors | D60: km
C61: Average number of trees per maintenance span | D61: 0's
C62: Average frequency of cutting cycle | D62: years
B63: ZONE 9 | C63: Route line length within zone | D63: km
C64: Number of maintenance spans | D64: 0's
C65: Total length of maintenance spans | D65: km
C66: Length of vegetation corridors | D66: km
C67: Average number of trees per maintenance span | D67: 0's
C68: Average frequency of cutting cycle | D68: years
B69: ZONE 10 | C69: Route line length within zone | D69: km
C70: Number of maintenance spans | D70: 0's
C71: Total length of maintenance spans | D71: km
C72: Length of vegetation corridors | D72: km
C73: Average number of trees per maintenance span | D73: 0's
C74: Average frequency of cutting cycle | D74: years
B75: ZONE 11 | C75: Route line length within zone | D75: km
C76: Number of maintenance spans | D76: 0's
C77: Total length of maintenance spans | D77: km
C78: Length of vegetation corridors | D78: km
C79: Average number of trees per maintenance span | D79: 0's
C80: Average frequency of cutting cycle | D80: years
B81: ZONE 12 | C81: Route line length within zone | D81: km
C82: Number of maintenance spans | D82: 0's
C83: Total length of maintenance spans | D83: km
C84: Length of vegetation corridors | D84: km
C85: Average number of trees per maintenance span | D85: 0's
C86: Average frequency of cutting cycle | D86: years
B87: ZONE 13 | C87: Route line length within zone | D87: km
C88: Number of maintenance spans | D88: 0's
C89: Total length of maintenance spans | D89: km
C90: Length of vegetation corridors | D90: km
C91: Average number of trees per maintenance span | D91: 0's
C92: Average frequency of cutting cycle | D92: years
B93: ZONE 14 | C93: Route line length within zone | D93: km
C94: Number of maintenance spans | D94: 0's
C95: Total length of maintenance spans | D95: km
C96: Length of vegetation corridors | D96: km
C97: Average number of trees per maintenance span | D97: 0's
C98: Average frequency of cutting cycle | D98: years
B99: ZONE 15 | C99: Route line length within zone | D99: km
C100: Number of maintenance spans | D100: 0's
C101: Total length of maintenance spans | D101: km
C102: Length of vegetation corridors | D102: km
C103: Average number of trees per maintenance span | D103: 0's
C104: Average frequency of cutting cycle | D104: years
B105: ZONE 16 | C105: Route line length within zone | D105: km
C106: Number of maintenance spans | D106: 0's
C107: Total length of maintenance spans | D107: km
C108: Length of vegetation corridors | D108: km
C109: Average number of trees per maintenance span | D109: 0's
C110: Average frequency of cutting cycle | D110: years
B111: ZONE 17 | C111: Route line length within zone | D111: km
C112: Number of maintenance spans | D112: 0's
C113: Total length of maintenance spans | D113: km
C114: Length of vegetation corridors | D114: km
C115: Average number of trees per maintenance span | D115: 0's
C116: Average frequency of cutting cycle | D116: years
B117: ZONE 18 | C117: Route line length within zone | D117: km
C118: Number of maintenance spans | D118: 0's
C119: Total length of maintenance spans | D119: km
C120: Length of vegetation corridors | D120: km
C121: Average number of trees per maintenance span | D121: 0's
C122: Average frequency of cutting cycle | D122: years
B124: RURAL
E125: =CRY -> 2017-18
B126: ZONES | C126: ASSET | D126: UNITS
B127: =B15 -> ZONE 1 | C127: Route line length within zone | D127: km
C128: Number of maintenance spans | D128: 0's
C129: Total length of maintenance spans | D129: km
C130: Length of vegetation corridors | D130: km
C131: Average number of trees per maintenance span | D131: 0's
C132: Average frequency of cutting cycle | D132: years
B133: =B21 -> ZONE 2 | C133: Route line length within zone | D133: km
C134: Number of maintenance spans | D134: 0's
C135: Total length of maintenance spans | D135: km
C136: Length of vegetation corridors | D136: km
C137: Average number of trees per maintenance span | D137: 0's
C138: Average frequency of cutting cycle | D138: years
B139: =B27 -> ZONE 3 | C139: Route line length within zone | D139: km
C140: Number of maintenance spans | D140: 0's
C141: Total length of maintenance spans | D141: km
C142: Length of vegetation corridors | D142: km
C143: Average number of trees per maintenance span | D143: 0's
C144: Average frequency of cutting cycle | D144: years
B145: =B33 -> ZONE 4 | C145: Route line length within zone | D145: km
C146: Number of maintenance spans | D146: 0's
C147: Total length of maintenance spans | D147: km
C148: Length of vegetation corridors | D148: km
C149: Average number of trees per maintenance span | D149: 0's
C150: Average frequency of cutting cycle | D150: years
B151: =B39 -> ZONE 5 | C151: Route line length within zone | D151: km
C152: Number of maintenance spans | D152: 0's
C153: Total length of maintenance spans | D153: km
C154: Length of vegetation corridors | D154: km
C155: Average number of trees per maintenance span | D155: 0's
C156: Average frequency of cutting cycle | D156: years
B157: =B45 -> ZONE 6 | C157: Route line length within zone | D157: km
C158: Number of maintenance spans | D158: 0's
C159: Total length of maintenance spans | D159: km
C160: Length of vegetation corridors | D160: km
C161: Average number of trees per maintenance span | D161: 0's
C162: Average frequency of cutting cycle | D162: years
B163: =B51 -> ZONE 7 | C163: Route line length within zone | D163: km
C164: Number of maintenance spans | D164: 0's
C165: Total length of maintenance spans | D165: km
C166: Length of vegetation corridors | D166: km
C167: Average number of trees per maintenance span | D167: 0's
C168: Average frequency of cutting cycle | D168: years
B169: =B57 -> ZONE 8 | C169: Route line length within zone | D169: km
C170: Number of maintenance spans | D170: 0's
C171: Total length of maintenance spans | D171: km
C172: Length of vegetation corridors | D172: km
C173: Average number of trees per maintenance span | D173: 0's
C174: Average frequency of cutting cycle | D174: years
B175: =B63 -> ZONE 9 | C175: Route line length within zone | D175: km
C176: Number of maintenance spans | D176: 0's
C177: Total length of maintenance spans | D177: km
C178: Length of vegetation corridors | D178: km
C179: Average number of trees per maintenance span | D179: 0's
C180: Average frequency of cutting cycle | D180: years
B181: =B69 -> ZONE 10 | C181: Route line length within zone | D181: km
C182: Number of maintenance spans | D182: 0's
C183: Total length of maintenance spans | D183: km
C184: Length of vegetation corridors | D184: km
C185: Average number of trees per maintenance span | D185: 0's
C186: Average frequency of cutting cycle | D186: years
B187: =B75 -> ZONE 11 | C187: Route line length within zone | D187: km
C188: Number of maintenance spans | D188: 0's
C189: Total length of maintenance spans | D189: km
C190: Length of vegetation corridors | D190: km
C191: Average number of trees per maintenance span | D191: 0's
C192: Average frequency of cutting cycle | D192: years
B193: =B81 -> ZONE 12 | C193: Route line length within zone | D193: km
C194: Number of maintenance spans | D194: 0's
C195: Total length of maintenance spans | D195: km
C196: Length of vegetation corridors | D196: km
C197: Average number of trees per maintenance span | D197: 0's
C198: Average frequency of cutting cycle | D198: years
B199: =B87 -> ZONE 13 | C199: Route line length within zone | D199: km
C200: Number of maintenance spans | D200: 0's
C201: Total length of maintenance spans | D201: km
C202: Length of vegetation corridors | D202: km
C203: Average number of trees per maintenance span | D203: 0's
C204: Average frequency of cutting cycle | D204: years
B205: =B93 -> ZONE 14 | C205: Route line length within zone | D205: km
... 201 more rows

Sheet 2.8 Maintenance
B1: REGULATORY REPORTING STATEMENT
B2: =INDEX(dms_TradingNameFull_List,MATCH(dms_TradingName,dms_TradingName_List)) -> SA Power Networks
B3: =CONCATENATE((LOOKUP(dms_Model,dms_Model_List,dms_Worksheet_List))&" "&CRY) -> CATEGORY ANALYSIS 2017-18
B4: 2.8 MAINTENANCE
B6: There are TWO tables on this worksheet. Each has been grouped for ease of navigation. See the Instructions sheet on how to group or ungroup tables.
B8: 2.8.1 - DESCRIPTOR METRICS FOR ROUTINE AND NON-ROUTINE MAINTENANCE
F9: ASSET QUANTITY (0's) | H9: AVERAGE AGE OF ASSET GROUP | I9: INSPECTION CYCLE (YEARS) | J9: MAINTENANCE CYCLE (YEARS)
F10: AT YEAR END | G10: INSPECTED / MAINTAINED
B11: MAINTENANCE ACTIVITY | C11: MAINTENANCE ASSET CATEGORY | D11: ASSET QUANTITY | E11: Units | F11: =CRY -> 2017-18 | G11: =CRY -> 2017-18 | H11: =CRY -> 2017-18
B12: Pole top, overhead line & service line maintenance | C12: Pole tops and overhead lines | D12: Number of poles | E12: Number | F12: 647497 | G12: 100102 | H12: 45.6 | I12: 5 | J12: 0
C13: Service lines | D13: Number of customers | E13: Number | F13: 796125 | H13: 28.64 | I13: 10 | J13: 0
B14: Pole inspection and treatment | C14: All poles | D14: Number of poles | E14: Number | F14: 647497 | G14: 100102 | H14: 45.6 | I14: 5 | J14: 0
B15: Overhead asset inspection | C15: All overhead assets | D15: Line patrolled (route KM) | E15: KM | F15: 65326 | G15: 49898 | H15: 50.5 | I15: 5 | J15: 0
B16: Network underground cable maintenance: by voltage | C16: LV - 11 to 22 KV | D16: Length (KM) | E16: KM | F16: 17876 | G16: 835.48 | H16: 24 | I16: 0 | J16: 0
C17: 33 KV and above | D17: Length (KM) | E17: KM | F17: 188 | G17: 11.64 | H17: 28.9 | I17: 0.5 | J17: 0
B18: Network underground cable maintenance: by location | C18: Cbd | D18: Length (KM) | E18: KM | F18: 272 | G18: 15.47 | H18: 28.9 | I18: 0 | J18: 0
C19: Non-CBD | D19: Length (KM) | E19: KM | F19: 17792 | G19: 831.65 | H19: 24 | I19: 0 | J19: 0
B20: Distribution substation equipment & property maintenance | C20: Distribution substation transformers | D20: Number of installed transformers | E20: Number | F20: 75945 | G20: 401 | H20: 30.2 | I20: 5 | J20: 0
C21: Distribution substation switchgear (within-substations and stand-alone switchgear) | D21: Number of switches | E21: Number | F21: 9621 | G21: 1807 | H21: 13.9 | I21: 1 | J21: 0
C22: Distribution substation - other equipment | D22: Earth mat | E22: Number | F22: 0 | G22: 0 | H22: 0 | I22: 0 | J22: 0
C23: Distribution substation - property | D23: Number of distribution substation properties maintained | E23: Number | F23: 730 | G23: 35 | H23: 41 | I23: 0 | J23: 0
B24: Zone substation equipment maintenance | C24: Transformers - zone substation | D24: Number | E24: Number | F24: 750 | G24: 613 | H24: 31.425 | I24: 0.5 | J24: 6
C25: Transformers - distribution | D25: Number of distribution transformers within zone substation | E25: Number | F25: 338 | G25: 0 | H25: 21 | I25: 0.5 | J25: 0
C26: Transformers - HV | D26: Number of HV transformers | E26: Number | F26: 0 | G26: 0 | H26: 0 | I26: 0 | J26: 0
C27: Zone substation - other equipment | D27: <DNSP to nominate> | E27: Number | F27: 341 | G27: 239 | H27: 5.5 | I27: 0.5 | J27: 10
B28: Zone substation property maintenance | C28: All zone substation properties | D28: Number of zone substation properties maintained | E28: Number | F28: 417 | G28: 1008 | H28: 42 | I28: 0.5 | J28: 4.5
B29: Public lighting maintenance | C29: Minor roads | D29: Number of public lights maintained | E29: Number | F29: 0 | G29: 0 | H29: 0 | I29: 0 | J29: 0
C30: Major roads | D30: Number of public lights maintained | E30: Number | F30: 0 | G30: 0 | H30: 0 | I30: 0 | J30: 0
B31: SCADA & network control maintenance | C31: SCADA & network control | D31: Number of systems | E31: Number | F31: 345 | G31: 0 | H31: 10 | I31: 0 | J31: 0
B32: Protection systems maintenance | C32: Protection systems | D32: Number of systems | E32: Number | F32: 6491 | G32: 233 | H32: 34.6 | I32: 0.5 | J32: 4.5
B33: Subtransmission asset maintenance | C33: Subtransmission asset maintenance - for DNSPs with dual function assets | D33: <DNSP to nominate> | E33: Number | F33: 0 | G33: 0 | H33: 0 | I33: 0 | J33: 0
B34: Various assets | C34: includes rates, electricity, communications equip, metering | D34: Various | E34: Number | F34: 6045 | G34: 311 | H34: 11 | I34: 1.5 | J34: 1.5
B35: Ground clearance - access tracks | C35: Access tracks | D35: Number | E35: Number | F35: 0 | G35: 0 | H35: 0 | I35: 0 | J35: 0
B36: Other | C36: (1) Substation asset inspection | D36: No. of sites | F36: 408 | G36: 441 | H36: 42 | I36: 0.5 | J36: 0
C37: (2) Zone substation equipment maintenance (switchgear) | D37: No. of CBs and disconnectors | F37: 5920 | G37: 619 | H37: 33.5 | I37: 0.5 | J37: 4.5
C38: (3) Numbers of signages and IDs replaced | D38: No. of sites | F38: 75945 | G38: 2049 | H38: 0 | I38: 0 | J38: 0
C39: (4) Power Station Maintenance, Asset Records Feeder Diagram Maintenance, Compliance Audting, Asset Location Services, Customer Service Penalties | D39: Units not quoted as various UOM | F39: 0 | G39: 0 | H39: 0 | I39: 0 | J39: 0
B48: 2.8.2 - COST METRICS FOR ROUTINE AND NON-ROUTINE MAINTENANCE
F49: EXPENDITURE ($0'S)
F50: ROUTINE MAINTENANCE | G50: NON-ROUTINE MAINTENANCE
B51: MAINTENANCE ACTIVITY | C51: MAINTENANCE ASSET CATEGORY | D51: ASSET QUANTITY | E51: Units | F51: =CRY -> 2017-18 | G51: =CRY -> 2017-18
B52: Pole top, overhead line & service line maintenance | C52: Pole tops and overhead lines | D52: Number of poles | E52: Number | F52: 19658.93 | G52: 1444777.37
C53: Service lines | D53: Number of customers | E53: Number | F53: 0 | G53: 0
B54: Pole inspection and treatment | C54: All poles | D54: Number of poles | E54: Number | F54: 5241065.13 | G54: 0
B55: Overhead asset inspection | C55: All overhead assets | D55: Line patrolled (route KM) | E55: KM | F55: 4939638.58 | G55: 0
B56: Network underground cable maintenance: by voltage | C56: LV - 11 to 22 KV | D56: Length (KM) | E56: KM | F56: 572731.5 | G56: 639203.82
C57: 33 KV and above | D57: Length (KM) | E57: KM | F57: 10310.81 | G57: 0
B58: Network underground cable maintenance: by location | C58: Cbd | D58: Length (KM) | E58: KM | F58: 583042.31 | G58: 639203.82
C59: Non-CBD | D59: Length (KM) | E59: KM
B60: Distribution substation equipment & property maintenance | C60: Distribution substation transformers | D60: Number of installed transformers | E60: Number | F60: 4550.28 | G60: 933998.8
C61: Distribution substation switchgear (within-substations and stand-alone switchgear) | D61: Number of switches | E61: Number | F61: 250988.67 | G61: 160069.21
C62: Distribution substation - other equipment | D62: Earth mat | E62: Number | F62: 0 | G62: 0
C63: Distribution substation - property | D63: Number of distribution substation properties maintained | E63: Number | F63: 0 | G63: 25289.11
B64: Zone substation equipment maintenance | C64: Transformers - zone substation | D64: Number | E64: Number | F64: 1390177.2 | G64: 1429181.9
C65: Transformers - distribution | D65: Number of distribution transformers within zone substation | E65: Number | F65: 0 | G65: 0
C66: Transformers - HV | D66: Number of HV transformers | E66: Number | F66: 0 | G66: 0
C67: Zone substation - other equipment | D67: =IF(ISBLANK(D27),"",D27) -> <DNSP to nominate> | E67: =IF(ISBLANK(E27),"",E27) -> Number | F67: 953798.54 | G67: 670461.52
B68: Zone substation property maintenance | C68: All zone substation properties | D68: Number of zone substation properties maintained | E68: Number | F68: 1086746.96 | G68: 819584.59
B69: Public lighting maintenance | C69: Minor roads | D69: Number of public lights maintained | E69: Number | F69: 0 | G69: 0
C70: Major roads | D70: Number of public lights maintained | E70: Number | F70: 0 | G70: 0
B71: SCADA & network control maintenance | C71: SCADA & network control | D71: Number of systems | E71: Number | F71: 0 | G71: 724338.7
B72: Protection systems maintenance | C72: Protection systems | D72: Number of systems | E72: Number | F72: 652255.53 | G72: 168426.46
B73: Subtransmission asset maintenance | C73: Subtransmission asset maintenance - for DNSPs with dual function assets | D73: =IF(ISBLANK(D33),"",D33) -> <DNSP to nominate> | E73: =IF(ISBLANK(E33),"",E33) -> Number | F73: 0 | G73: 0
B74: Various assets | C74: includes rates, electricity, communications equip, metering | D74: Various | E74: Number | F74: 503219.83 | G74: 7494285
B75: Ground clearance - access tracks | C75: Access tracks | D75: Number | E75: Number | F75: 0 | G75: 0
B76: Other | C76: =IF(ISBLANK(C36),"",C36) -> (1) Substation asset inspection | D76: No. of sites | F76: 948743.22 | G76: 0
C77: (2) Zone substation equipment maintenance (switchgear) | D77: No. of CBs and disconnectors | F77: 814670.01 | G77: 498911.24
C78: (3) Numbers of signages and IDs replaced | D78: No. of sites | F78: 0 | G78: 1162381.71
C79: (4) Power Station Maintenance, Asset Records Feeder Diagram Maintenance, Compliance Audting, Asset Location Services, Customer Service Penalties | D79: Units not quoted as various UOM | F79: 827864.76 | G79: 0

Sheet 2.9 Emergency Response
B1: REGULATORY REPORTING STATEMENT
B2: =INDEX(dms_TradingNameFull_List,MATCH(dms_TradingName,dms_TradingName_List)) -> SA Power Networks
B3: =CONCATENATE((LOOKUP(dms_Model,dms_Model_List,dms_Worksheet_List))&" "&CRY) -> CATEGORY ANALYSIS 2017-18
B4: 2.9 EMERGENCY RESPONSE
B7: There is ONE table on this worksheet. It has been sub-grouped for ease of navigation. See the Instructions sheet on how to group or ungroup tables.
B9: 2.9.1 - EMERGENCY RESPONSE EXPENDITURE (OPEX)
C10: EXPENDITURE ($0's)
C11: =CRY -> 2017-18
B12: (A) TOTAL EMERGENCY RESPONSE EXPENDITURE
B13: Total Expenditure | C13: 34675799.24
B14: (B) MAJOR EVENTS O&M EXPENDITURE
B58: (C) MAJOR EVENT DAYS O&M EXPENDITURE

Sheet 2.6 Non-network
B1: REGULATORY REPORTING STATEMENT
B2: =INDEX(dms_TradingNameFull_List,MATCH(dms_TradingName,dms_TradingName_List)) -> SA Power Networks
B3: =CONCATENATE((LOOKUP(dms_Model,dms_Model_List,dms_Worksheet_List))&" "&CRY) -> CATEGORY ANALYSIS 2017-18
B4: 2.6 NON NETWORK EXPENDITURE
B6: There are THREE tables on this worksheet. Each has been grouped (and sub-grouped) for ease of navigation. See the Instructions sheet on how to group or ungroup tables.
B8: 2.6.1 - NON-NETWORK EXPENDITURE
F9: EXPENDITURE ($0's)
B10: SERVICE SUBCATEGORY | C10: ASSET CATEGORY | F10: =CRY -> 2017-18
B11: OPEX
B12: IT & COMMUNICATIONS | C12: Client device expenditure | F12: 1185100
C13: Recurrent expenditure | F13: 20543466
C14: Non-recurrent expenditure | F14: 729430
B15: MOTOR VEHICLES | C15: Car | F15: 601594
C16: Light commercial vehicle | F16: 1969370
C17: Elevated work platform (LCV) | F17: 0
C18: Elevated work platform (HCV) | F18: 5503360
C19: Heavy commercial vehicle | F19: 1669927
B20: BUILDINGS AND PROPERTY | C20: Total buildings and property expenditure | F20: 4454813
B21: OTHER | C21: Other expenditure | F21: =SUM(F22:F32) -> 5317832
B22: OTHER - DNSP nominated | C22: TEC Vehicles | F22: 238857
C23: Cranes | F23: 1405478
C24: Trailers | F24: 474622
C25: Other Commercial Vehicles | F25: 707323
C26: Network Telephony (A80) | F26: 2491552
C27: ADMS | F27: -
C28: OMS | F28: -
C29: V&V Rollout | F29: 0
C30: Other Network Strategic | F30: 0
C31: Non-Network Telecommunications | F31: 0
C32: Non-Network Other Plant and Tools | F32: 0
B33: CAPEX
B34: IT & COMMUNICATIONS | C34: Client device expenditure | F34: 6,076,992
C35: Recurrent expenditure | F35: 24,106,720
C36: Non-recurrent expenditure | F36: 32,936,740
B37: MOTOR VEHICLES | C37: Car | F37: 657794
C38: Light commercial vehicle | F38: 6205282
C39: Elevated work platform (LCV) | F39: -
C40: Elevated work platform (HCV) | F40: 4265932
C41: Heavy commercial vehicle | F41: 3870295
B42: BUILDINGS AND PROPERTY | C42: Total buildings and property expenditure | F42: 11369907
B43: OTHER | C43: Other expenditure | F43: =SUM(F44:F54) -> 19773201
B44: OTHER - DNSP nominated | C44: =IF(ISBLANK(C22),"",C22) -> TEC Vehicles | F44: 1985025
C45: =IF(ISBLANK(C23),"",C23) -> Cranes | F45: 750897
C46: Trailers | F46: 448265
C47: Other Commercial Vehicles | F47: 673430
C48: Network Telephony (A80) | F48: 0
C49: ADMS | F49: 238911
C50: OMS | F50: 2184082
C51: V&V Rollout | F51: 1331303
C52: Other Network Strategic | F52: 5889930
C53: Non-Network Telecommunications | F53: 1227949
C54: Non-Network Other Plant and Tools | F54: 5043409
B58: 2.6.2 - ANNUAL DESCRIPTOR METRICS - IT & COMMUNICATIONS EXPENDITURE
F59: VOLUMES (0's)
B61: NON-NETWORK CATEGORY | C61: DESCRIPTOR METRIC | F61: =CRY -> 2017-18
B62: IT & COMMUNICATIONS | C62: Employee numbers | F62: 1734
C63: User numbers | F63: 2030
C64: Number of devices | F64: 5892
B67: 2.6.3 - ANNUAL DESCRIPTOR METRICS - MOTOR VEHICLES
F68: VOLUMES / %
B69: NON-NETWORK CATEGORY | C69: ASSET CATEGORY | D69: DESCRIPTOR METRIC | E69: UNITS | F69: =CRY -> 2017-18
B70: MOTOR VEHICLES | C70: CAR | D70: Average kilometres travelled | E70: 0's | F70: 9300
D71: Number purchased | E71: 0's | F71: 19
D72: Number leased | E72: 0's | F72: 1
D73: Number in fleet | E73: 0's | F73: 67
D74: Proportion of total fleet expenditure allocated as regulatory expenditure | E74: (per cent) | F74: 0.8863
C75: LIGHT COMMERCIAL VEHICLE | D75: Average kilometres travelled | E75: 0's | F75: 17184
D76: Number purchased | E76: 0's | F76: 132
D77: Number leased | E77: 0's | F77: 21
D78: Number in fleet | E78: 0's | F78: 392
D79: Proportion of total fleet expenditure allocated as regulatory expenditure | E79: (per cent) | F79: 0.9392
C80: ELEVATED WORK PLATFORM (LCV) | D80: Average kilometres travelled | E80: 0's | F80: 0
D81: Number purchased | E81: 0's | F81: 0
D82: Number leased | E82: 0's | F82: 0
D83: Number in fleet | E83: 0's | F83: 0
D84: Proportion of total fleet expenditure allocated as regulatory expenditure | E84: (per cent) | F84: 0
C85: ELEVATED WORK PLATFORM (HCV) | D85: Average kilometres travelled | E85: 0's | F85: 13543
D86: Number purchased | E86: 0's | F86: 15
D87: Number leased | E87: 0's | F87: 0
D88: Number in fleet | E88: 0's | F88: 114
D89: Proportion of total fleet expenditure allocated as regulatory expenditure | E89: (per cent) | F89: 0.8686
C90: HEAVY COMMERCIAL VEHICLE | D90: Average kilometres travelled | E90: 0's | F90: 9260
D91: Number purchased | E91: 0's | F91: 1
D92: Number leased | E92: 0's | F92: 2
D93: Number in fleet | E93: 0's | F93: 65
D94: Proportion of total fleet expenditure allocated as regulatory expenditure | E94: (per cent) | F94: 0.9251

Sheet 2.10 Overheads
B1: REGULATORY REPORTING STATEMENT
B2: =INDEX(dms_TradingNameFull_List,MATCH(dms_TradingName,dms_TradingName_List)) -> SA Power Networks
B3: =CONCATENATE((LOOKUP(dms_Model,dms_Model_List,dms_Worksheet_List))&" "&CRY) -> CATEGORY ANALYSIS 2017-18
B4: 2.10 OVERHEADS
B6: =CONCATENATE("Please note. This worksheet 2.10 Overheads is the original worksheet. We have also included a different version of the Overheads template (worksheet 2.10A Overheads) which collects the information in a different way. ",dms_TradingName, " is not obliged to complete worksheet 2.10A. However, the AER would prefer to collect Overheads information as presented in the revised worksheet 2.10A Overheads. If ",dms_TradingName," is prepared to complete worksheet 2.10A in lieu of the original worksheet 2.10 Overheads, please indicate that choice by selecting from the drop down list at the right. ",dms_TradingName, " is only required to complete one version of the Overheads worksheet in order to comply with the Category Analysis RIN.") -> Please note. This worksheet 2.10 Overheads is the original worksheet. We have also included a different version of the Overheads template (worksheet 2.10A Overheads) which collects the information in a different way. SA Power Networks is not obliged to complete worksheet 2.10A. However, the AER would prefer to collect Overheads information as presented in the revised worksheet 2.10A Overheads. If SA Power Networks is prepared to complete worksheet 2.10A in lieu of the original worksheet 2.10 Overheads, please indicate that choice by selecting from the drop down list at the right. SA Power Networks is only required to complete one version of the Overheads worksheet in order to comply with the Category Analysis RIN. | D6: Choose Response drop down selection
D7: Worksheet 2.10A
B11: There are TWO tables on this worksheet. Each has been grouped (and sub-grouped) for ease of navigation. See the Instructions sheet on how to group or ungroup tables.
B13: =CONCATENATE("Instructions Please enter a description for each expenditure category as currently reported under ",dms_TradingName,"'s annual RIN.") -> Instructions Please enter a description for each expenditure category as currently reported under SA Power Networks's annual RIN.
B15: 2.10.1 - NETWORK OVERHEADS EXPENDITURE
D16: EXPENDITURE ($0's)
D17: =CRY -> 2017-18
B18: NETWORK OVERHEADS
B19: Standard Control Services
B47: Alternative Control Services
B75: Negotiated Services | C75: Total
B76: Unregulated Services | C76: Total
B79: CAPITALISED NETWORK OVERHEADS
B80: Standard Control Services
B104: 2.10.2 - CORPORATE OVERHEADS EXPENDITURE
D105: EXPENDITURE ($0's)
D106: =CRY -> 2017-18
B107: CORPORATE OVERHEADS
B108: Standard Control Services
B129: Alternative Control Services
B150: Negotiated Services | C150: Total
B151: Unregulated Services | C151: Total
B153: CAPITALISED CORPORATE OVERHEADS
B154: Standard Control Services

Sheet 2.10(A) Overheads
B1: REGULATORY REPORTING STATEMENT
B2: =INDEX(dms_TradingNameFull_List,MATCH(dms_TradingName,dms_TradingName_List)) -> SA Power Networks
B3: =CONCATENATE((LOOKUP(dms_Model,dms_Model_List,dms_Worksheet_List))&" "&CRY) -> CATEGORY ANALYSIS 2017-18
B4: 2.10(A) OVERHEADS
B6: This worksheet may be completed on a voluntary basis. Please see worksheet 2.10 for an explanation of Overheads reporting options.
B9: There are TWO tables on this worksheet. Each has been grouped (and sub-grouped) for ease of navigation. See the Instructions sheet on how to group or ungroup tables.
B11: 2.10.1 - NETWORK OVERHEADS EXPENDITURE
D12: EXPENDITURE ($0's)
D13: =CRY -> 2017-18
B14: OPEX
B15: Standard Control Services | C15: Total | D15: 80106719.63
B16: Alternative Control Services | C16: Total | D16: 2483734.08
B17: CAPEX
B18: Standard Control Services | C18: Total | D18: 6904976.35
B19: Alternative Control Services | C19: Total | D19: 97967.13
B20: OTHER DISTRIBUTION SERVICES
B21: Negotiated Services | C21: Total | D21: 1355923.85
B22: Unregulated Services | C22: Total | D22: 0
B26: 2.10.2 - CORPORATE OVERHEADS EXPENDITURE
D27: EXPENDITURE ($0's)
D28: =CRY -> 2017-18
B29: OPEX
B30: Standard Control Services | C30: Total | D30: 72593463.51
B31: Alternative Control Services | C31: Total | D31: 878189.6
B32: CAPEX
B33: Standard Control Services | C33: Total | D33: -6939995.24
B34: Alternative Control Services | C34: Total | D34: -34130.23
B35: OTHER DISTRIBUTION SERVICES
B36: Negotiated Services | C36: Total | D36: 8606957.27
B37: Unregulated Services | C37: Total | D37: 0

Sheet 2.11 Labour
B1: REGULATORY REPORTING STATEMENT
B2: =INDEX(dms_TradingNameFull_List,MATCH(dms_TradingName,dms_TradingName_List)) -> SA Power Networks
B3: =CONCATENATE((LOOKUP(dms_Model,dms_Model_List,dms_Worksheet_List))&" "&CRY) -> CATEGORY ANALYSIS 2017-18
B4: 2.11 LABOUR
B6: There are TWO tables on this worksheet. Each has been grouped for ease of navigation. See the Instructions sheet on how to group or ungroup tables.
B8: 2.11.1 - COST METRICS PER ANNUM
D9: ASL (0's) | E9: TOTAL LABOUR EXPENDITURE ($0's) | F9: AVERAGE PRODUCTIVE WORK HOURS PER ASL (0's) | G9: STAND-DOWN OCCURENCES PER ASL (0's)
D11: =CRY -> 2017-18 | E11: =CRY -> 2017-18 | F11: =CRY -> 2017-18 | G11: =CRY -> 2017-18
B12: INTERNAL LABOUR EXPENDITURE
B13: CORPORATE OVERHEADS | C13: Executive manager | D13: 24 | E13: 10396835 | F13: 1926.1 | G13: -
C14: Senior manager | D14: 19 | E14: 3737862 | F14: 1809.4 | G14: -
C15: Manager | D15: 16 | E15: 2196861 | F15: 1607.8 | G15: -
C16: Professional | D16: 25 | E16: 3779636 | F16: 1689 | G16: 0.3
C17: Semi professional | D17: 111 | E17: 16429561 | F17: 1630.5 | G17: -
C18: Support staff | D18: 131 | E18: 17015934 | F18: 1626 | G18: 0.1
C19: Intern, junior staff, apprentice | D19: 1 | E19: 152860 | F19: 1583.1 | G19: -
B20: NETWORK OVERHEADS | C20: Executive manager | D20: 14 | E20: 4236362 | F20: 1924.3 | G20: -
C21: Senior manager | D21: 33 | E21: 6700850 | F21: 1848.6 | G21: -
C22: Manager | D22: 68 | E22: 10247350 | F22: 1714.1 | G22: 3.2
C23: Professional | D23: 111 | E23: 15335558 | F23: 1662.9 | G23: 0
C24: Semi professional | D24: 326 | E24: 46249534 | F24: 1710.8 | G24: 3.7
C25: Support staff | D25: 176 | E25: 20343537 | F25: 1719.6 | G25: 3.5
C26: Intern, junior staff, apprentice | D26: 7 | E26: 85684 | F26: 1668.1 | G26: -
B27: TOTAL DIRECT NETWORK LABOUR | C27: Skilled electrical worker | D27: 533 | E27: 74195992 | F27: 1914.9 | G27: 49.9
C28: Skilled non electical worker | D28: 19 | E28: 2075219 | F28: 1755.2 | G28: 5.3
C29: Apprentice | D29: 60 | E29: 3054902 | F29: 1738.9 | G29: 25.1
C30: Unskilled worker | D30: 60 | E30: 5147777 | F30: 1768.2 | G30: 15.3
B33: 2.11.2 - DESCRIPTOR METRICS
D34: ORDINARY TIME (0's) | F34: OVERTIME (0's)
D35: PER ASL | E35: HOURLY RATE PER ASL | F35: PER ASL | G35: HOURLY RATE PER ASL
D36: =CRY -> 2017-18 | E36: =CRY -> 2017-18 | F36: =CRY -> 2017-18 | G36: =CRY -> 2017-18
B37: AVERAGE PRODUCTIVE WORK HOURS PER ASL
B38: CORPORATE OVERHEADS | C38: Executive manager | D38: 1926.06 | E38: 221.05 | F38: - | G38: -
C39: Senior manager | D39: 1777.86 | E39: 107.25 | F39: 31.54 | G39: 148.11
C40: Manager | D40: 1598.4 | E40: 85.97 | F40: 9.39 | G40: 104.01
C41: Professional | D41: 1657.18 | E41: 89.8 | F41: 31.84 | G41: 108.2
C42: Semi professional | D42: 1610.54 | E42: 92.43 | F42: 19.99 | G42: 108.86
C43: Support staff | D43: 1596.43 | E43: 80.49 | F43: 29.54 | G43: 98.42
C44: Intern, junior staff, apprentice | D44: 1583.09 | E44: 66.15 | F44: - | G44: -
B45: NETWORK OVERHEADS | C45: Executive manager | D45: 1924.32 | E45: 152.37 | F45: - | G45: -
C46: Senior manager | D46: 1841.19 | E46: 111.12 | F46: 7.38 | G46: 169.05
C47: Manager | D47: 1588.88 | E47: 85.51 | F47: 125.24 | G47: 123.72
C48: Professional | D48: 1614.75 | E48: 84.38 | F48: 48.16 | G48: 115.64
C49: Semi professional | D49: 1613.68 | E49: 82.58 | F49: 97.13 | G49: 117.86
C50: Support staff | D50: 1650.46 | E50: 68.34 | F50: 69.12 | G50: 94.18
C51: Intern, junior staff, apprentice | D51: 1665.06 | E51: 9.59 | F51: 3.04 | G51: 15.28
B52: TOTAL DIRECT NETWORK LABOUR | C52: Skilled electrical worker | D52: 1594.02 | E52: 65.29 | F52: 320.83 | G52: 114.35
C53: Skilled non electical worker | D53: 1611.34 | E53: 60.13 | F53: 143.88 | G53: 89.29
C54: Apprentice | D54: 1601.82 | E54: 28.54 | F54: 137.09 | G54: 40.67
C55: Unskilled worker | D55: 1642.64 | E55: 49.26 | F55: 125.58 | G55: 72.48

Sheet 2.12 Input tables
B1: REGULATORY REPORTING STATEMENT
B2: =INDEX(dms_TradingNameFull_List,MATCH(dms_TradingName,dms_TradingName_List)) -> SA Power Networks
B3: =CONCATENATE((LOOKUP(dms_Model,dms_Model_List,dms_Worksheet_List))&" "&CRY) -> CATEGORY ANALYSIS 2017-18
B4: 2.12 INPUT TABLES
B6: There is ONE table on this worksheet. It has been sub-grouped for ease of navigation. See the Instructions sheet on how to group or ungroup tables.
B8: 2.12.1 - INPUT TABLES
D9: DIRECT MATERIAL EXPENDITURE | E9: DIRECT LABOUR EXPENDITURE | F9: CONTRACT EXPENDITURE | G9: OTHER EXPENDITURE | H9: RELATED PARTY CONTRACT EXPENDITURE | I9: RELATED PARTY CONTRACT MARGIN EXPENDITURE
D10: EXPENDITURE ($0's)
D11: =CRY -> 2017-18 | E11: 2017-18 | F11: 2017-18 | G11: 2017-18 | H11: 2017-18 | I11: 2017-18
B12: VEGETATION MANAGEMENT | C12: ='2.7 Vegetation management'!B15 -> ZONE 1 | H12: 0 | I12: 0
C13: ='2.7 Vegetation management'!B21 -> ZONE 2
C14: ='2.7 Vegetation management'!B27 -> ZONE 3
C15: ='2.7 Vegetation management'!B33 -> ZONE 4
C16: ='2.7 Vegetation management'!B39 -> ZONE 5
C17: ='2.7 Vegetation management'!B45 -> ZONE 6
C18: ='2.7 Vegetation management'!B51 -> ZONE 7
C19: ='2.7 Vegetation management'!B57 -> ZONE 8
C20: ='2.7 Vegetation management'!B63 -> ZONE 9
C21: ='2.7 Vegetation management'!B69 -> ZONE 10
C22: ='2.7 Vegetation management'!B75 -> ZONE 11
C23: ='2.7 Vegetation management'!B81 -> ZONE 12
C24: ='2.7 Vegetation management'!B87 -> ZONE 13
C25: ='2.7 Vegetation management'!B93 -> ZONE 14
C26: ='2.7 Vegetation management'!B99 -> ZONE 15
C27: ='2.7 Vegetation management'!B105 -> ZONE 16
C28: ='2.7 Vegetation management'!B111 -> ZONE 17
C29: ='2.7 Vegetation management'!B117 -> ZONE 18
B30: ROUTINE MAINTENANCE | C30: Pole top, overhead line & service line maintenance | D30: 1038.59 | E30: 6444.78 | F30: 10603.17 | G30: 1401.69
C31: Pole inspection and treatment | D31: 4336.45 | E31: 54882.82 | F31: 5098843.06 | G31: 914.38
C32: Overhead asset inspection | D32: 43926.36 | E32: 1732057.47 | F32: 3109527.78 | G32: 4065.37
C33: Network underground cable maintenance | D33: 10821.7 | E33: 209844.9 | F33: 345814.81 | G33: 10993.48
C34: Distribution substation equipment & property maintenance | D34: 100.93 | E34: 251026.53 | F34: 3848.73 | G34: 500.8
C35: Zone substation equipment maintenance | D35: 490519.21 | E35: 1406288.02 | F35: 342376.28 | G35: 99280.17
C36: Zone substation property maintenance | D36: 9767.73 | E36: 181314.41 | F36: 868713.15 | G36: 12965.9
C37: Public lighting maintenance
C38: Scada & network control maintenance
C39: Protection systems maintenance | D39: 9908.13 | E39: 530623.44 | F39: 45242.37 | G39: 65753.22
C40: Subtransmission asset maintenance - for dnsps with dual function assets
C41: Other | D41: 159913.78 | E41: 1855604.5 | F41: 966795.71 | G41: 96619.29
B42: NON-ROUTINE MAINTENANCE | C42: Pole top, overhead line & service line maintenance | D42: 92431.38 | E42: 669233.9 | F42: 573872.1 | G42: 100000.97
C43: Pole inspection and treatment
C44: Overhead asset inspection
C45: Network underground cable maintenance | D45: 94270.52 | E45: 337695.4 | F45: 167898.12 | G45: 36636.72
C46: Distribution substation equipment & property maintenance | D46: 272088.62 | E46: 375899.8 | F46: 404462.89 | G46: 60394.19
C47: Zone substation equipment maintenance | D47: 148619.73 | E47: 1534774.52 | F47: 267341.36 | G47: 144603.76
C48: Zone substation property maintenance | D48: 26832.52 | E48: 169512.8 | F48: 604010.66 | G48: 9504.39
C49: Public lighting maintenance
C50: SCADA & network control maintenance | D50: 38916.18 | E50: 224843.09 | F50: 431082.29 | G50: 22556.96
C51: Protection systems maintenance | D51: 8738.5 | E51: 132791.77 | F51: 10019.56 | G51: 16715.32
C52: Subtransmission asset maintenance - for DNSP with dual function assets
C53: Other | D53: 164719.08 | E53: 1607957.92 | F53: 7130690.94 | G53: 137410.43
B54: OVERHEADS | C54: Network overheads | D54: 2671174.09 | E54: 35340187.54 | F54: 16141410.04 | G54: 21329656.82
C55: Corporate overheads | D55: 7979380.78 | E55: 31780979.69 | F55: 1642352 | G55: 24990309.6
B56: AUGMENTATION | C56: Subtransmission substations, switching stations, zone substations | D56: 8666872.36 | E56: 9896229.94 | F56: 8129463.98 | G56: 1184056.17
C57: Subtransmission lines | D57: 17523538.06 | E57: 3107504.53 | F57: 2433899.64 | G57: 234488.93
C58: HV feeders | D58: 7999040.79 | E58: 8902601.27 | F58: 11232361.58 | G58: 1098808.17
C59: Distribution substations | D59: 758088.91 | E59: 670431.02 | F59: 52322.62 | G59: 262016.36
C60: LV feeders | D60: 795787.61 | E60: 1004058.89 | F60: 78360.03 | G60: 731954.59
C61: Other assets | D61: 315067.89 | E61: 842958.06 | F61: 728590.47 | G61: 111893.18
B62: CONNECTIONS | C62: Simple and complex customer connections | D62: 15741647.32 | E62: 37086008.51 | F62: 13928015.17 | G62: 2119031.43
B63: EMERGENCY RESPONSE | C63: Major storms | D63: 1441302.5 | E63: 19771628.72 | F63: 10950127.74 | G63: 2323369.66
C64: Major event days
B65: PUBLIC LIGHTING | C65: All public lighting services
B66: METERING | C66: All metering services | D66: 3180460.28 | E66: 1873199.18 | F66: 3710101.42 | G66: 490192.45
B67: FEE-BASED SERVICES | C67: All fee-based services
B68: QUOTED SERVICES | C68: All quoted services
B69: REPLACEMENT | C69: Poles | D69: 3309969.04 | E69: 6674779.45 | F69: 16443114.25 | G69: 1284594.12
C70: Pole top structures | D70: 5117256.1 | E70: 12775330.34 | F70: 4613598.17 | G70: 1778859.56
C71: Overhead conductors | D71: 605134.5 | E71: 2468647.61 | F71: 860700.25 | G71: 360267.93
C72: Underground cables | D72: 588319.74 | E72: 3177979.31 | F72: 9121473.88 | G72: 342976.81
C73: Service lines | D73: 422721.74 | E73: 5592218.45 | F73: 1895837.18 | G73: 773556.74
C74: Transformers | D74: 6343935.51 | E74: 5339453.72 | F74: 1998775.14 | G74: 788746.04
C75: Switchgear | D75: 8574596.43 | E75: 10179155.72 | F75: 5767333.02 | G75: 623472.13
C76: Public lighting
C77: SCADA network control and protection systems | D77: 3296410.04 | E77: 4838793.13 | F77: 2376619.88 | G77: 181009.35
C78: Other | D78: 4182721.39 | E78: 5152604.73 | F78: 3190583.43 | G78: 270371.75
B79: NON-NETWORK EXPENDITURE | C79: IT and communications | D79: 13602183 | E79: 19909691 | F79: 3067265.56 | G79: 41320244.36
C80: Motor vehicles | D80: 17672400 | E80: 2618895 | F80: 251258 | G80: 4201001
C81: Buildings and property | D81: 1680773 | E81: 1106205 | F81: 575054.44 | G81: 11979663
C82: Other | D82: 7896771 | E82: 4031333 | F82: 5438647 | G82: 7724282

Sheet 4.1 Public lighting
B1: REGULATORY REPORTING STATEMENT
B2: =INDEX(dms_TradingNameFull_List,MATCH(dms_TradingName,dms_TradingName_List)) -> SA Power Networks
B3: =CONCATENATE((LOOKUP(dms_Model,dms_Model_List,dms_Worksheet_List))&" "&CRY) -> CATEGORY ANALYSIS 2017-18
B4: 4.1 PUBLIC LIGHTING
B7: There are THREE tables on this worksheet. Each has been grouped for ease of navigation. See the Instructions sheet on how to group or ungroup tables.
B9: 4.1.1 - DESCRIPTOR METRICS OVER YEAR
E10: VOLUME (0's)
C11: LIGHT TYPE | E11: =CRY -> 2017-18
B12: POPULATION OF LIGHTS
B214: 4.1.2 - DESCRIPTOR METRICS ANNUALLY
E217: VOLUMES & EXPENDITURE
B218: SERVICE/SERVICE QUALITY | C218: DESCRIPTOR METRIC | D218: UNITS | E218: =CRY -> 2017-18
B219: LIGHT INSTALLATION | C219: Major road light installation | D219: 0's
C220: Minor road light installation | D220: 0's
C221: Number of poles installed | D221: 0's
C222: Total cost | D222: $0s
B223: LIGHT REPLACEMENT | C223: Major road light replacement | D223: 0's
C224: Minor road light replacement | D224: 0's
C225: Number of poles replaced | D225: 0's
C226: Total cost | D226: $0s
B227: LIGHT MAINTENANCE | C227: Major road light maintenance | D227: 0's
C228: Minor road light maintenance | D228: 0's
C229: Number of poles installed | D229: 0's
C230: Total cost | D230: $0s
B231: QUALITY OF SUPPLY | C231: Mean days to rectify/replace public lighting assets | D231: days
C232: GSO breaches | D232: 0's
C233: GSL payments | D233: $0s
C234: Customer complaints | D234: 0's
B237: 4.1.3 - COST METRICS
E238: AVERAGE UNIT COST ($)
B239: ACTIVITY TYPE | C239: LIGHT TYPE | E239: =CRY -> 2017-18
B240: LIGHT INSTALLATION
B340: LIGHT REPLACEMENT
B440: LIGHT MAINTENANCE

Sheet 4.2 Metering
B1: REGULATORY REPORTING STATEMENT
B2: =INDEX(dms_TradingNameFull_List,MATCH(dms_TradingName,dms_TradingName_List)) -> SA Power Networks
B3: =CONCATENATE((LOOKUP(dms_Model,dms_Model_List,dms_Worksheet_List))&" "&CRY) -> CATEGORY ANALYSIS 2017-18
B4: 4.2 METERING
B6: There are TWO tables on this worksheet. Each has been grouped for ease of navigation. See the Instructions sheet on how to group or ungroup tables.
B8: 4.2.1 - METERING DESCRIPTOR METRIC
D9: VOLUMES (0's)
B10: Asset Category | C10: Asset Subcategory | D10: =CRY -> 2017-18
B11: Meter Type 4 | C11: Single phase meter population | D11: 0
C12: Multi phase meter population | D12: 225
C13: Current transformer connected meter population | D13: 181
C14: Direct connect meter population | D14: 44
B15: Meter Type 5 | C15: Single phase meter population | D15: 370
C16: Multi phase meter population | D16: 9118
C17: Current transformer connected meter population | D17: 4802
C18: Direct connect meter population | D18: 4686
B19: Meter Type 6 | C19: Single phase meter population | D19: 808243
C20: Multi phase meter population | D20: 177531
C21: Current transformer connected meter population | D21: 76
C22: Direct connect meter population | D22: 985698
B25: 4.2.2 - COST METRICS
D26: VOLUMES (0's) | E26: EXPENDITURE ($0's)
B27: Service Subcategory | C27: Meter Type | D27: =CRY -> 2017-18 | E27: =CRY -> 2017-18
B28: Meter purchase | C28: Meter Type 4 | D28: 0 | E28: 0
C29: Meter Type 5 | D29: 84 | E29: 8756
C30: Meter Type 6 | D30: 11542 | E30: 56513
B31: Meter testing | C31: Meter Type 4 | D31: 6 | E31: 21269.28
C32: Meter Type 5 | D32: 35 | E32: 13237.2
C33: Meter Type 6 | D33: 1944 | E33: 321706.05
B34: Meter investigation | C34: Meter Type 4 | D34: 11 | E34: 32706.69
C35: Meter Type 5 | D35: 173 | E35: 113801.51
C36: Meter Type 6 | D36: 3693 | E36: 518858.83
B37: Scheduled meter reading | C37: Meter Type 4
C38: Meter Type 5
C39: Meter Type 6
B40: Special meter reading | C40: Meter Type 4 | D40: 0 | E40: 0
C41: Meter Type 5 | D41: 0 | E41: 0
C42: Meter Type 6 | D42: 0 | E42: 0
B43: New meter installation | C43: Meter Type 4 | D43: 82 | E43: 27728.66
C44: Meter Type 5 | D44: 44 | E44: 141319.46
C45: Meter Type 6 | D45: 10090 | E45: 2539712.62
B46: Meter replacement | C46: Meter Type 4 | D46: 80 | E46: 86276.89
C47: Meter Type 5 | D47: 1296 | E47: 248042.39
C48: Meter Type 6 | D48: 9366 | E48: 1884587.15
B49: Meter maintenance | C49: Meter Type 4 | D49: 32 | E49: 136805.36
C50: Meter Type 5 | D50: 635 | E50: 414526.56
C51: Meter Type 6 | D51: 0 | E51: 0
B52: Remote meter reading | C52: Meter Type 4
B53: Remote meter re-configuration | C53: Meter Type 4
B54: Other metering | C54: Meter Type 4
C55: Meter Type 5
C56: Meter Type 6
C57: Meter Type 7
B58: IT infrastructure capex | C58: Meter Type 4
B59: IT infrastructure opex | C59: Meter Type 4
B60: Communications infrastructure capex | C60: Meter Type 4
B61: Communications infrastructure opex | C61: Meter Type 4

Sheet 4.3 Fee-based services
B1: REGULATORY REPORTING STATEMENT
B2: =INDEX(dms_TradingNameFull_List,MATCH(dms_TradingName,dms_TradingName_List)) -> SA Power Networks
B3: =CONCATENATE((LOOKUP(dms_Model,dms_Model_List,dms_Worksheet_List))&" "&CRY) -> CATEGORY ANALYSIS 2017-18
B4: 4.3 ANCILLARY SERVICES - FEE BASED SERVICES
B6: 4.3.1 - COST METRICS FOR FEE-BASED SERVICES
D7: EXPENDITURE ($0's) | F7: VOLUMES (0's)
B8: SERVICE | C8: SERVICE SUBCATEGORY | D8: =CRY -> 2017-18 | F8: =CRY -> 2017-18
B9: Common Fee-Based Services | C9: Energisation | E9: ED_FEE431_00001
C10: De-energisation | E10: ED_FEE431_00002
C11: Re-energisation | E11: ED_FEE431_00003
B12: Miscellaneous Fee-Based Services | C12: < Enter description for service > | E12: ED_FEE431_00004
E13: ED_FEE431_00005
E14: ED_FEE431_00006
E15: ED_FEE431_00007
E16: ED_FEE431_00008
E17: ED_FEE431_00009
E18: ED_FEE431_00010
E19: ED_FEE431_00011
E20: ED_FEE431_00012
E21: ED_FEE431_00013
E22: ED_FEE431_00014
E23: ED_FEE431_00015
E24: ED_FEE431_00016
E25: ED_FEE431_00017
E26: ED_FEE431_00018
E27: ED_FEE431_00019
E28: ED_FEE431_00020
E29: ED_FEE431_00021
E30: ED_FEE431_00022
E31: ED_FEE431_00023
E32: ED_FEE431_00024
E33: ED_FEE431_00025
E34: ED_FEE431_00026
E35: ED_FEE431_00027
E36: ED_FEE431_00028
E37: ED_FEE431_00029
E38: ED_FEE431_00030
E39: ED_FEE431_00031
E40: ED_FEE431_00032
E41: ED_FEE431_00033
E42: ED_FEE431_00034
E43: ED_FEE431_00035
E44: ED_FEE431_00036
E45: ED_FEE431_00037
E46: ED_FEE431_00038
E47: ED_FEE431_00039
E48: ED_FEE431_00040
E49: ED_FEE431_00041
E50: ED_FEE431_00042
E51: ED_FEE431_00043
E52: ED_FEE431_00044
E53: ED_FEE431_00045
E54: ED_FEE431_00046
E55: ED_FEE431_00047
E56: ED_FEE431_00048
E57: ED_FEE431_00049
E58: ED_FEE431_00050
E59: ED_FEE431_00051
E60: ED_FEE431_00052
E61: ED_FEE431_00053
E62: ED_FEE431_00054
E63: ED_FEE431_00055
E64: ED_FEE431_00056
E65: ED_FEE431_00057
E66: ED_FEE431_00058
E67: ED_FEE431_00059
E68: ED_FEE431_00060
E69: ED_FEE431_00061
E70: ED_FEE431_00062
E71: ED_FEE431_00063
E72: ED_FEE431_00064
E73: ED_FEE431_00065
E74: ED_FEE431_00066
E75: ED_FEE431_00067
E76: ED_FEE431_00068
E77: ED_FEE431_00069
E78: ED_FEE431_00070
E79: ED_FEE431_00071
E80: ED_FEE431_00072
E81: ED_FEE431_00073
E82: ED_FEE431_00074
E83: ED_FEE431_00075
E84: ED_FEE431_00076
E85: ED_FEE431_00077
E86: ED_FEE431_00078
E87: ED_FEE431_00079
E88: ED_FEE431_00080
E89: ED_FEE431_00081
E90: ED_FEE431_00082
E91: ED_FEE431_00083
E92: ED_FEE431_00084
E93: ED_FEE431_00085
E94: ED_FEE431_00086
E95: ED_FEE431_00087
E96: ED_FEE431_00088
E97: ED_FEE431_00089
E98: ED_FEE431_00090
E99: ED_FEE431_00091
E100: ED_FEE431_00092
E101: ED_FEE431_00093
E102: ED_FEE431_00094
E103: ED_FEE431_00095
E104: ED_FEE431_00096
E105: ED_FEE431_00097
E106: ED_FEE431_00098
E107: ED_FEE431_00099
E108: ED_FEE431_00100
E109: ED_FEE431_00101
E110: ED_FEE431_00102
E111: ED_FEE431_00103
E112: ED_FEE431_00104
E113: ED_FEE431_00105
E114: ED_FEE431_00106
E115: ED_FEE431_00107
E116: ED_FEE431_00108
E117: ED_FEE431_00109
E118: ED_FEE431_00110
E119: ED_FEE431_00111
E120: ED_FEE431_00112
E121: ED_FEE431_00113
E122: ED_FEE431_00114
E123: ED_FEE431_00115
E124: ED_FEE431_00116
E125: ED_FEE431_00117
E126: ED_FEE431_00118
E127: ED_FEE431_00119
E128: ED_FEE431_00120
E129: ED_FEE431_00121
E130: ED_FEE431_00122
E131: ED_FEE431_00123
E132: ED_FEE431_00124
E133: ED_FEE431_00125
E134: ED_FEE431_00126
E135: ED_FEE431_00127
E136: ED_FEE431_00128
E137: ED_FEE431_00129
E138: ED_FEE431_00130
E139: ED_FEE431_00131
E140: ED_FEE431_00132
E141: ED_FEE431_00133
E142: ED_FEE431_00134
E143: ED_FEE431_00135
E144: ED_FEE431_00136
E145: ED_FEE431_00137
E146: ED_FEE431_00138
E147: ED_FEE431_00139
E148: ED_FEE431_00140
E149: ED_FEE431_00141
E150: ED_FEE431_00142
E151: ED_FEE431_00143
E152: ED_FEE431_00144
E153: ED_FEE431_00145
E154: ED_FEE431_00146
E155: ED_FEE431_00147
E156: ED_FEE431_00148
E157: ED_FEE431_00149
E158: ED_FEE431_00150
E159: ED_FEE431_00151
E160: ED_FEE431_00152
E161: ED_FEE431_00153
E162: ED_FEE431_00154
E163: ED_FEE431_00155
E164: ED_FEE431_00156
E165: ED_FEE431_00157
E166: ED_FEE431_00158
E167: ED_FEE431_00159
E168: ED_FEE431_00160
E169: ED_FEE431_00161
E170: ED_FEE431_00162
E171: ED_FEE431_00163
E172: ED_FEE431_00164
E173: ED_FEE431_00165
E174: ED_FEE431_00166
E175: ED_FEE431_00167
E176: ED_FEE431_00168
E177: ED_FEE431_00169
E178: ED_FEE431_00170
E179: ED_FEE431_00171
E180: ED_FEE431_00172
E181: ED_FEE431_00173
E182: ED_FEE431_00174
E183: ED_FEE431_00175
E184: ED_FEE431_00176
E185: ED_FEE431_00177
E186: ED_FEE431_00178
E187: ED_FEE431_00179
E188: ED_FEE431_00180
E189: ED_FEE431_00181
E190: ED_FEE431_00182
E191: ED_FEE431_00183
E192: ED_FEE431_00184
E193: ED_FEE431_00185
E194: ED_FEE431_00186
E195: ED_FEE431_00187
E196: ED_FEE431_00188
E197: ED_FEE431_00189
E198: ED_FEE431_00190
E199: ED_FEE431_00191
E200: ED_FEE431_00192
E201: ED_FEE431_00193
... 278 more rows

Sheet 4.4 Quoted services
B1: REGULATORY REPORTING STATEMENT
B2: =INDEX(dms_TradingNameFull_List,MATCH(dms_TradingName,dms_TradingName_List)) -> SA Power Networks
B3: =CONCATENATE((LOOKUP(dms_Model,dms_Model_List,dms_Worksheet_List))&" "&CRY) -> CATEGORY ANALYSIS 2017-18
B4: 4.4 ANCILLARY SERVICES - QUOTED SERVICES
B6: 4.4.1 - COST METRICS FOR QUOTED SERVICES
D7: EXPENDITURE ($0's) | F7: VOLUMES (0's)
B8: SERVICE | C8: SERVICE SUBCATEGORY | D8: =CRY -> 2017-18 | F8: =CRY -> 2017-18
B9: Quoted Services | C9: < Enter description for service subcategory > | E9: ED_QUO441_00001
E10: ED_QUO441_00002
E11: ED_QUO441_00003
E12: ED_QUO441_00004
E13: ED_QUO441_00005
E14: ED_QUO441_00006
E15: ED_QUO441_00007
E16: ED_QUO441_00008
E17: ED_QUO441_00009
E18: ED_QUO441_00010
E19: ED_QUO441_00011
E20: ED_QUO441_00012
E21: ED_QUO441_00013
E22: ED_QUO441_00014
E23: ED_QUO441_00015
E24: ED_QUO441_00016
E25: ED_QUO441_00017
E26: ED_QUO441_00018
E27: ED_QUO441_00019
E28: ED_QUO441_00020
E29: ED_QUO441_00021
E30: ED_QUO441_00022
E31: ED_QUO441_00023
E32: ED_QUO441_00024
E33: ED_QUO441_00025
E34: ED_QUO441_00026
E35: ED_QUO441_00027
E36: ED_QUO441_00028
E37: ED_QUO441_00029
E38: ED_QUO441_00030
E39: ED_QUO441_00031
E40: ED_QUO441_00032
E41: ED_QUO441_00033
E42: ED_QUO441_00034
E43: ED_QUO441_00035
E44: ED_QUO441_00036
E45: ED_QUO441_00037
E46: ED_QUO441_00038
E47: ED_QUO441_00039
E48: ED_QUO441_00040
E49: ED_QUO441_00041
E50: ED_QUO441_00042
E51: ED_QUO441_00043
E52: ED_QUO441_00044
E53: ED_QUO441_00045
E54: ED_QUO441_00046
E55: ED_QUO441_00047
E56: ED_QUO441_00048
E57: ED_QUO441_00049
E58: ED_QUO441_00050
E59: ED_QUO441_00051
E60: ED_QUO441_00052
E61: ED_QUO441_00053
E62: ED_QUO441_00054
E63: ED_QUO441_00055
E64: ED_QUO441_00056
E65: ED_QUO441_00057
E66: ED_QUO441_00058
E67: ED_QUO441_00059
E68: ED_QUO441_00060
E69: ED_QUO441_00061
E70: ED_QUO441_00062
E71: ED_QUO441_00063
E72: ED_QUO441_00064
E73: ED_QUO441_00065
E74: ED_QUO441_00066
E75: ED_QUO441_00067
E76: ED_QUO441_00068
E77: ED_QUO441_00069
E78: ED_QUO441_00070
E79: ED_QUO441_00071
E80: ED_QUO441_00072
E81: ED_QUO441_00073
E82: ED_QUO441_00074
E83: ED_QUO441_00075
E84: ED_QUO441_00076
E85: ED_QUO441_00077
E86: ED_QUO441_00078
E87: ED_QUO441_00079
E88: ED_QUO441_00080
E89: ED_QUO441_00081
E90: ED_QUO441_00082
E91: ED_QUO441_00083
E92: ED_QUO441_00084
E93: ED_QUO441_00085
E94: ED_QUO441_00086
E95: ED_QUO441_00087
E96: ED_QUO441_00088
E97: ED_QUO441_00089
E98: ED_QUO441_00090
E99: ED_QUO441_00091
E100: ED_QUO441_00092
E101: ED_QUO441_00093
E102: ED_QUO441_00094
E103: ED_QUO441_00095
E104: ED_QUO441_00096
E105: ED_QUO441_00097
E106: ED_QUO441_00098
E107: ED_QUO441_00099
E108: ED_QUO441_00100
E109: ED_QUO441_00101
E110: ED_QUO441_00102
E111: ED_QUO441_00103
E112: ED_QUO441_00104
E113: ED_QUO441_00105
E114: ED_QUO441_00106
E115: ED_QUO441_00107
E116: ED_QUO441_00108
E117: ED_QUO441_00109
E118: ED_QUO441_00110
E119: ED_QUO441_00111
E120: ED_QUO441_00112
E121: ED_QUO441_00113
E122: ED_QUO441_00114
E123: ED_QUO441_00115
E124: ED_QUO441_00116
E125: ED_QUO441_00117
E126: ED_QUO441_00118
E127: ED_QUO441_00119
E128: ED_QUO441_00120
E129: ED_QUO441_00121
E130: ED_QUO441_00122
E131: ED_QUO441_00123
E132: ED_QUO441_00124
E133: ED_QUO441_00125
E134: ED_QUO441_00126
E135: ED_QUO441_00127
E136: ED_QUO441_00128
E137: ED_QUO441_00129
E138: ED_QUO441_00130
E139: ED_QUO441_00131
E140: ED_QUO441_00132
E141: ED_QUO441_00133
E142: ED_QUO441_00134
E143: ED_QUO441_00135
E144: ED_QUO441_00136
E145: ED_QUO441_00137
E146: ED_QUO441_00138
E147: ED_QUO441_00139
E148: ED_QUO441_00140
E149: ED_QUO441_00141
E150: ED_QUO441_00142
E151: ED_QUO441_00143
E152: ED_QUO441_00144
E153: ED_QUO441_00145
E154: ED_QUO441_00146
E155: ED_QUO441_00147
E156: ED_QUO441_00148
E157: ED_QUO441_00149
E158: ED_QUO441_00150
E159: ED_QUO441_00151
E160: ED_QUO441_00152
E161: ED_QUO441_00153
E162: ED_QUO441_00154
E163: ED_QUO441_00155
E164: ED_QUO441_00156
E165: ED_QUO441_00157
E166: ED_QUO441_00158
E167: ED_QUO441_00159
E168: ED_QUO441_00160
E169: ED_QUO441_00161
E170: ED_QUO441_00162
E171: ED_QUO441_00163
E172: ED_QUO441_00164
E173: ED_QUO441_00165
E174: ED_QUO441_00166
E175: ED_QUO441_00167
E176: ED_QUO441_00168
E177: ED_QUO441_00169
E178: ED_QUO441_00170
E179: ED_QUO441_00171
E180: ED_QUO441_00172
E181: ED_QUO441_00173
E182: ED_QUO441_00174
E183: ED_QUO441_00175
E184: ED_QUO441_00176
E185: ED_QUO441_00177
E186: ED_QUO441_00178
E187: ED_QUO441_00179
E188: ED_QUO441_00180
E189: ED_QUO441_00181
E190: ED_QUO441_00182
E191: ED_QUO441_00183
E192: ED_QUO441_00184
E193: ED_QUO441_00185
E194: ED_QUO441_00186
E195: ED_QUO441_00187
E196: ED_QUO441_00188
E197: ED_QUO441_00189
E198: ED_QUO441_00190
E199: ED_QUO441_00191
E200: ED_QUO441_00192
E201: ED_QUO441_00193
... 280 more rows

Sheet 5.2 Asset Age Profile
B1: REGULATORY REPORTING STATEMENT
B2: =INDEX(dms_TradingNameFull_List,MATCH(dms_TradingName,dms_TradingName_List)) -> SA Power Networks
B3: =CONCATENATE((LOOKUP(dms_Model,dms_Model_List,dms_Worksheet_List))&" "&CRY) -> CATEGORY ANALYSIS 2017-18
B4: 5.2 ASSET AGE PROFILE
B6: There is ONE table on this worksheet. Both the ROWS and COLUMNS have been 'grouped' for easy navigation. See the Instructions sheet on how to group or ungroup data.
B8: 5.2.1 - ASSET AGE PROFILE
D9: ECONOMIC LIFE (YEARS) | F9: INSTALLED ASSETS -˃ QUANTITY CURRENTLY IN COMMISSION BY YEAR
B10: ASSET GROUP | C10: ASSET CATEGORY | D10: MEAN | E10: STANDARD DEVIATION | F10: =CRY -> 2017-18 | G10: =IF(dms_RPT="financial",(VALUE(LEFT(F10,4)-1)&"-"&MID(F10,3,2)),VALUE(LEFT(F10,4)-1)) -> 2016-17 | H10: =IF(dms_RPT="financial",(VALUE(LEFT(G10,4)-1)&"-"&MID(G10,3,2)),VALUE(LEFT(G10,4)-1)) -> 2015-16 | I10: 2014-15 | J10: 2013-14 | K10: 2012-13 | L10: 2011-12 | M10: 2010-11 | N10: 2009-10 | O10: 2008-09 | P10: 2007-08 | Q10: 2006-07 | R10: 2005-06 | S10: 2004-05 | T10: 2003-04 | U10: 2002-03 | V10: 2001-02 | W10: 2000-01 | X10: 1999-00 | Y10: 1998-99 | Z10: 1997-98 | AA10: 1996-97 | AB10: 1995-96 | AC10: 1994-95 | AD10: 1993-94 | AE10: 1992-93 | AF10: 1991-92 | AG10: 1990-91 | AH10: 1989-90 | AI10: 1988-89 | AJ10: 1987-88 | AK10: 1986-87 | AL10: 1985-86 | AM10: =IF(dms_RPT="financial",(VALUE(LEFT(AL10,4)-1)&"-"&MID(AL10,3,2)),VALUE(LEFT(AL10,4)-1)) -> 1984-85 | AN10: 1983-84 | AO10: 1982-83 | AP10: 1981-82 | AQ10: 1980-81 | AR10: 1979-80 | AS10: 1978-79 | AT10: 1977-78 | AU10: 1976-77 | AV10: 1975-76 | AW10: 1974-75 | AX10: 1973-74 | AY10: 1972-73 | AZ10: 1971-72 | BA10: 1970-71 | BB10: 1969-70 | BC10: 1968-69 | BD10: 1967-68 | BE10: 1966-67 | BF10: 1965-66 | BG10: 1964-65 | BH10: 1963-64 | BI10: 1962-63 | BJ10: 1961-62 | BK10: 1960-61 | BL10: 1959-60 | BM10: 1958-59 | BN10: 1957-58 | BO10: 1956-57 | BP10: 1955-56 | BQ10: 1954-55 | BR10: 1953-54 | BS10: =IF(dms_RPT="financial",(VALUE(LEFT(BR10,4)-1)&"-"&MID(BR10,3,2)),VALUE(LEFT(BR10,4)-1)) -> 1952-53 | BT10: 1951-52 | BU10: 1950-51 | BV10: 1949-50 | BW10: 1948-49 | BX10: 1947-48 | BY10: 1946-47 | BZ10: 1945-46 | CA10: 1944-45 | CB10: 1943-44 | CC10: 1942-43 | CD10: 1941-42 | CE10: 1940-41 | CF10: 1939-40 | CG10: 1938-39 | CH10: 1937-38 | CI10: 1936-37 | CJ10: 1935-36 | CK10: 1934-35 | CL10: 1933-34 | CM10: 1932-33 | CN10: 1931-32 | CO10: 1930-31 | CP10: 1929-30 | CQ10: 1928-29 | CR10: 1927-28 | CS10: 1926-27 | CT10: 1925-26 | CU10: 1924-25 | CV10: 1923-24 | CW10: 1922-23 | CX10: 1921-22 | CY10: =IF(dms_RPT="financial",(VALUE(LEFT(CX10,4)-1)&"-"&MID(CX10,3,2)),VALUE(LEFT(CX10,4)-1)) -> 1920-21 | CZ10: 1919-20 | DA10: 1918-19 | DB10: 1917-18 | DC10: 1916-17 | DD10: 1915-16 | DE10: 1914-15 | DF10: 1913-14 | DG10: 1912-13 | DH10: =IF(dms_RPT="financial",(VALUE(LEFT(DG10,4)-1)&"-"&MID(DG10,3,2)),VALUE(LEFT(DG10,4)-1)) -> 1911-12 | DI10: =IF(dms_RPT="financial",(VALUE(LEFT(DH10,4)-1)&"-"&MID(DH10,3,2)),VALUE(LEFT(DH10,4)-1)) -> 1910-11 | DJ10: =IF(dms_RPT="financial",(VALUE(LEFT(DI10,4)-1)&"-"&MID(DI10,3,2)),VALUE(LEFT(DI10,4)-1)) -> 1909-10
B11: POLES BY: HIGHEST OPERATING VOLTAGE ; MATERIAL TYPE; STAKING (IF WOOD) | C11: Staking of a wooden pole
C12: ˂ = 1 kV; Wood
C13: > 1 kV & < = 11 kV; Wood
C14: ˃ 11 kV & < = 22 kV; Wood
C15: > 22 kV & < = 66 kV; Wood
C16: > 66 kV & < = 132 kV; Wood
C17: > 132 kV; Wood
C18: ˂ = 1 kV; Concrete
C19: > 1 kV & < = 11 kV; Concrete
C20: ˃ 11 kV & < = 22 kV; Concrete
C21: > 22 kV & < = 66 kV; Concrete
C22: > 66 kV & < = 132 kV; Concrete
C23: > 132 kV; Concrete
C24: ˂ = 1 kV; Steel
C25: > 1 kV & < = 11 kV; Steel
C26: ˃ 11 kV & < = 22 kV; Steel
C27: > 22 kV & < = 66 kV; Steel
C28: > 66 kV & < = 132 kV; Steel
C29: > 132 kV; Steel
C30: Other
B31: OVERHEAD CONDUCTORS BY: HIGHEST OPERATING VOLTAGE; NUMBER OF PHASES (AT HV) | C31: ˂ = 1 kV | D31: 82.66594627 | E31: 9.092081515 | F31: 22.332 | G31: 31 | H31: 17.9 | I31: 226.6710927 | J31: 285.2961372 | K31: 23.33895242 | L31: 36.06808976 | M31: 28.85764162 | N31: 32.635 | O31: 29.66944 | P31: 265.7418813 | Q31: 97.47004499 | R31: 245.6672297 | S31: 186.5105179 | T31: 103.615163 | U31: 164.7925726 | V31: 136.7978616 | W31: 187.1222267 | X31: 428.4218707 | Y31: 26.66003116 | Z31: 178.7657653 | AA31: 7.954681383 | AB31: 426.0570285 | AC31: 229.2832324 | AD31: 239.2606245 | AE31: 9.777020592 | AF31: 518.1818839 | AG31: 734.1114881 | AH31: 534.7351423 | AI31: 637.3200393 | AJ31: 321.8476984 | AK31: 581.0076848 | AL31: 555.2392199 | AM31: 550.9747158 | AN31: 843.4031914 | AO31: 676.4047559 | AP31: 522.8295929 | AQ31: 662.848287 | AR31: 847.8160981 | AS31: 472.7275608 | AT31: 594.6161434 | AU31: 1056.596272 | AV31: 782.2072513 | AW31: 1425.215072 | AX31: 1208.764762 | AY31: 1871.135788 | AZ31: 582.7911315 | BA31: 1656.426542 | BB31: 2099.671371 | BC31: 1065.737402 | BD31: 2775.376505 | BE31: 1075.161077 | BF31: 2884.429493 | BG31: 3205.985039 | BH31: 3843.203372 | BI31: 3922.990004 | BJ31: 3563.821855 | BK31: 4616.980552 | BL31: 3247.206482 | BM31: 2866.908348 | BN31: 2865.467216 | BO31: 2752.776264 | BP31: 981.3196856 | BQ31: 4621.683181 | BR31: 2728.947527 | BS31: 1242.411062 | BT31: 528.4057906 | BU31: 18.06045709 | BV31: 88.30823279 | BW31: 9.439949645 | BX31: 20.26233544 | BY31: 94.09432571 | BZ31: 97.52999236 | CA31: 123.8086052 | CB31: 52.38153643 | CC31: 46.34271739 | CD31: 97.32173076 | CE31: 116.7468244 | CF31: 800.5103236 | CG31: 277.2079081 | CH31: 252.9549673 | CI31: 269.2902554 | CJ31: 243.9340807 | CK31: 322.4350456 | CL31: 82.52620832 | CM31: 22.40071782 | CN31: 10.12273854 | CO31: 1.38429912 | CP31: 3.551436076 | CQ31: 0 | CR31: 0 | CS31: 0 | CT31: 0 | CU31: 0 | CV31: 1.036657443
C32: > 1 kV & < = 11 kV | D32: 81.84757524 | E32: 9.046964974 | F32: 39.75 | G32: 21.05 | H32: 27.35178121 | I32: 78.74230319 | J32: 106.6361774 | K32: 150.9518857 | L32: 147.459846 | M32: 268.5531458 | N32: 211.604996 | O32: 101.8115685 | P32: 227.020287 | Q32: 51.41811051 | R32: 215.9357749 | S32: 47.39625384 | T32: 41.91221986 | U32: 257.5618759 | V32: 299.4655075 | W32: 197.5265229 | X32: 260.739352 | Y32: 13.75549847 | Z32: 321.5919474 | AA32: 204.6520169 | AB32: 492.1177147 | AC32: 137.8475081 | AD32: 222.4314335 | AE32: 231.5325224 | AF32: 573.8963497 | AG32: 420.7238915 | AH32: 589.8349794 | AI32: 885.287124 | AJ32: 503.4739708 | AK32: 693.4162715 | AL32: 424.495487 | AM32: 360.3674649 | AN32: 641.0693617 | AO32: 479.6697135 | AP32: 689.241734 | AQ32: 642.2736695 | AR32: 936.82687 | AS32: 818.0066213 | AT32: 430.9399791 | AU32: 828.319766 | AV32: 890.5232447 | AW32: 1371.005592 | AX32: 953.0659809 | AY32: 1434.365801 | AZ32: 1277.435325 | BA32: 1316.347132 | BB32: 1959.755312 | BC32: 1929.521365 | BD32: 2610.272903 | BE32: 1629.760649 | BF32: 2009.423269 | BG32: 2383.541817 | BH32: 2050.484348 | BI32: 2222.912703 | BJ32: 1830.5604 | BK32: 2275.067807 | BL32: 1305.987459 | BM32: 826.0531361 | BN32: 1110.682791 | BO32: 1265.913355 | BP32: 1443.114943 | BQ32: 2577.114973 | BR32: 951.2769928 | BS32: 495.6252027 | BT32: 122.8675023 | BU32: 8.128213052 | BV32: 45.81373232 | BW32: 1.20304684 | BX32: 394.857399 | BY32: 73.36087867 | BZ32: 22.45717644 | CA32: 36.88295064 | CB32: 13.31783438 | CC32: 15.72757585 | CD32: 26.13334823 | CE32: 118.5676607 | CF32: 111.9346963 | CG32: 35.0471518 | CH32: 41.29862745 | CI32: 39.87282553 | CJ32: 34.32744324 | CK32: 52.22858023 | CL32: 14.41617969 | CM32: 5.113145485 | CN32: 4.057545677 | CO32: 0.1945777675 | CP32: 1.753247985 | CQ32: 0 | CR32: 0 | CS32: 0 | CT32: 0 | CU32: 0 | CV32: 0.7166553722
C33: ˃ 11 kV & < = 22 kV ; SWER | D33: 80.45145523 | E33: 8.96947352 | F33: 7.728 | G33: 2.04 | H33: 1.48 | I33: 30.34136 | J33: 18.36929 | K33: 1.48985 | L33: 15.70435 | M33: 37.14086 | N33: 13.61499 | O33: 18.35233 | P33: 18.62379016 | Q33: 10.4681049 | R33: 18.25748236 | S33: 29.87928025 | T33: 11.74859237 | U33: 18.96127351 | V33: 10.74614751 | W33: 88.70457252 | X33: 74.06814366 | Y33: 1.984009323 | Z33: 78.9995879 | AA33: 1.153289054 | AB33: 83.3060082 | AC33: 67.91440931 | AD33: 89.34850882 | AE33: 4.520986309 | AF33: 129.2542037 | AG33: 79.2300949 | AH33: 227.957992 | AI33: 104.6550208 | AJ33: 112.6010862 | AK33: 183.8135439 | AL33: 168.2470463 | AM33: 96.10374593 | AN33: 102.1554224 | AO33: 146.5255365 | AP33: 200.9459407 | AQ33: 111.2869436 | AR33: 263.2314953 | AS33: 120.4052926 | AT33: 191.2184234 | AU33: 418.1720382 | AV33: 847.3428847 | AW33: 824.8437553 | AX33: 878.3613822 | AY33: 598.8520961 | AZ33: 330.4523443 | BA33: 760.2486457 | BB33: 1951.213005 | BC33: 1074.952589 | BD33: 3079.739059 | BE33: 747.5263497 | BF33: 1962.884472 | BG33: 1927.725093 | BH33: 1975.562296 | BI33: 1905.975591 | BJ33: 1770.342885 | BK33: 1402.426242 | BL33: 1109.62058 | BM33: 974.2928877 | BN33: 724.9750412 | BO33: 225.3855222 | BP33: 130.7847139 | BQ33: 313.6062549 | BR33: 110.7368057 | BS33: 33.72219267 | BT33: 8.947710529 | BU33: 3.101332366 | BV33: 6.132255924 | BW33: 0 | BX33: 9.708933092 | BY33: 2.018965323 | BZ33: 0 | CA33: 1.686153134 | CB33: 0.7797621891 | CC33: 7.723919107 | CD33: 3.088411765 | CE33: 2.677577785 | CF33: 1.25401412 | CG33: 2.098861791 | CH33: 2.013123787 | CI33: 0 | CJ33: 0 | CK33: 7.031914603 | CL33: 0 | CM33: 0 | CN33: 0 | CO33: 0 | CP33: 0.6653343716 | CQ33: 0 | CR33: 0 | CS33: 0 | CT33: 0 | CU33: 0 | CV33: 0
C34: ˃ 11 kV & < = 22 kV ; Single-Phase | D34: 0 | E34: 0 | F34: 0 | G34: 0 | H34: 0 | I34: 0 | J34: 0 | K34: 0 | L34: 0 | M34: 0 | N34: 0 | O34: 0 | Q34: 0 | R34: 0 | S34: 0 | T34: 0 | U34: 0 | V34: 0 | W34: 0 | X34: 0 | Y34: 0 | Z34: 0 | AA34: 0 | AB34: 0 | AC34: 0 | AD34: 0 | AE34: 0 | AF34: 0 | AG34: 0 | AH34: 0 | AI34: 0 | AJ34: 0 | AK34: 0 | AL34: 0 | AM34: 0 | AN34: 0 | AO34: 0 | AP34: 0 | AQ34: 0 | AR34: 0 | AS34: 0 | AT34: 0 | AU34: 0 | AV34: 0 | AW34: 0 | AX34: 0 | AY34: 0 | AZ34: 0 | BA34: 0 | BB34: 0 | BC34: 0 | BD34: 0 | BE34: 0 | BF34: 0 | BG34: 0 | BH34: 0 | BI34: 0 | BJ34: 0 | BK34: 0 | BL34: 0 | BM34: 0 | BN34: 0 | BO34: 0 | BP34: 0 | BQ34: 0 | BR34: 0 | BS34: 0 | BT34: 0 | BU34: 0 | BV34: 0 | BW34: 0 | BX34: 0 | BY34: 0 | BZ34: 0 | CA34: 0 | CB34: 0 | CC34: 0 | CD34: 0 | CE34: 0 | CF34: 0 | CG34: 0 | CH34: 0 | CI34: 0 | CJ34: 0 | CK34: 0 | CL34: 0 | CM34: 0 | CN34: 0 | CO34: 0 | CP34: 0 | CQ34: 0 | CR34: 0 | CS34: 0 | CT34: 0 | CU34: 0 | CV34: 0
C35: ˃ 11 kV & < = 22 kV ; Multiple-Phase | D35: 0 | E35: 0 | F35: 0 | G35: 0 | H35: 0 | I35: 0 | J35: 0 | K35: 0 | L35: 0 | M35: 0 | N35: 0 | O35: 0 | Q35: 0 | R35: 0 | S35: 0 | T35: 0 | U35: 0 | V35: 0 | W35: 0 | X35: 0 | Y35: 0 | Z35: 0 | AA35: 0 | AB35: 0 | AC35: 0 | AD35: 0 | AE35: 0 | AF35: 0 | AG35: 0 | AH35: 0 | AI35: 0 | AJ35: 0 | AK35: 0 | AL35: 0 | AM35: 0 | AN35: 0 | AO35: 0 | AP35: 0 | AQ35: 0 | AR35: 0 | AS35: 0 | AT35: 0 | AU35: 0 | AV35: 0 | AW35: 0 | AX35: 0 | AY35: 0 | AZ35: 0 | BA35: 0 | BB35: 0 | BC35: 0 | BD35: 0 | BE35: 0 | BF35: 0 | BG35: 0 | BH35: 0 | BI35: 0 | BJ35: 0 | BK35: 0 | BL35: 0 | BM35: 0 | BN35: 0 | BO35: 0 | BP35: 0 | BQ35: 0 | BR35: 0 | BS35: 0 | BT35: 0 | BU35: 0 | BV35: 0 | BW35: 0 | BX35: 0 | BY35: 0 | BZ35: 0 | CA35: 0 | CB35: 0 | CC35: 0 | CD35: 0 | CE35: 0 | CF35: 0 | CG35: 0 | CH35: 0 | CI35: 0 | CJ35: 0 | CK35: 0 | CL35: 0 | CM35: 0 | CN35: 0 | CO35: 0 | CP35: 0 | CQ35: 0 | CR35: 0 | CS35: 0 | CT35: 0 | CU35: 0 | CV35: 0
C36: > 22 kV & < = 66 kV | D36: 86.35426432 | E36: 9.292699518 | F36: 16.525 | G36: 9.04 | H36: 1.425 | I36: 13.1381 | J36: 68.47530438 | K36: 9.95757 | L36: 14.5324702 | M36: 37.6962 | N36: 63.3626 | O36: 70.59536 | P36: 76.85641766 | Q36: 53.77377515 | R36: 30.05129823 | S36: 30.62959006 | T36: 42.04685374 | U36: 37.52470233 | V36: 71.78134136 | W36: 24.10936853 | X36: 100.374765 | Y36: 15.36694084 | Z36: 261.9706527 | AA36: 2.771473703 | AB36: 44.20632189 | AC36: 39.99193757 | AD36: 102.4907639 | AE36: 0 | AF36: 123.1368017 | AG36: 221.0996947 | AH36: 197.4999663 | AI36: 259.9296952 | AJ36: 84.61269852 | AK36: 200.0285397 | AL36: 188.9287085 | AM36: 210.5182696 | AN36: 72.45919584 | AO36: 95.99444258 | AP36: 27.47568015 | AQ36: 159.1952967 | AR36: 192.3956977 | AS36: 54.92519818 | AT36: 43.99302745 | AU36: 347.5451435 | AV36: 656.4103641 | AW36: 188.2768109 | AX36: 102.7242365 | AY36: 468.8927872 | AZ36: 163.8920538 | BA36: 196.2348782 | BB36: 636.6540013 | BC36: 255.3045531 | BD36: 656.5922051 | BE36: 538.0859184 | BF36: 1186.880106 | BG36: 1127.568065 | BH36: 952.5817609 | BI36: 814.1688219 | BJ36: 463.495327 | BK36: 624.4156969 | BL36: 551.6371987 | BM36: 306.0557529 | BN36: 115.7043902 | BO36: 469.2735558 | BP36: 277.4839677 | BQ36: 719.7454371 | BR36: 260.7951468 | BS36: 175.994037 | BT36: 66.89518835 | BU36: 60.00322996 | BV36: 56.72476128 | BW36: 11.12661147 | BX36: 4.734376469 | BY36: 22.42931833 | BZ36: 3.596748744 | CA36: 54.31146979 | CB36: 0 | CC36: 125.0654421 | CD36: 110.9898931 | CE36: 34.52126486 | CF36: 37.24403092 | CG36: 17.11295921 | CH36: 14.52200474 | CI36: 20.56982847 | CJ36: 0.7359792935 | CK36: 9.441785079 | CL36: 4.047019943 | CM36: 0.3791524194 | CN36: 0 | CO36: 0 | CP36: 0 | CQ36: 0 | CR36: 0 | CS36: 0 | CT36: 0 | CU36: 0 | CV36: 0
C37: > 66 kV & < = 132 kV | D37: 80.71020121 | E37: 8.983885641 | F37: 0 | G37: 0 | H37: 0 | I37: 0 | J37: 0 | K37: 0 | L37: 0 | M37: 0 | N37: 0 | O37: 0 | P37: 0 | Q37: 0 | R37: 0 | S37: 0 | T37: 0 | U37: 0 | V37: 0 | W37: 0 | X37: 0 | Y37: 0 | Z37: 0 | AA37: 0 | AB37: 0 | AC37: 0 | AD37: 0 | AE37: 0 | AF37: 0 | AG37: 0 | AH37: 0 | AI37: 0 | AJ37: 0 | AK37: 0 | AL37: 0 | AM37: 0 | AN37: 0 | AO37: 0 | AP37: 0 | AQ37: 0 | AR37: 0 | AS37: 0 | AT37: 0 | AU37: 0 | AV37: 0 | AW37: 0 | AX37: 0 | AY37: 0 | AZ37: 0 | BA37: 0 | BB37: 0 | BC37: 0 | BD37: 0 | BE37: 0 | BF37: 0 | BG37: 0 | BH37: 0 | BI37: 0 | BJ37: 0 | BK37: 0 | BL37: 0 | BM37: 0 | BN37: 0 | BO37: 0 | BP37: 0 | BQ37: 0 | BR37: 0 | BS37: 0 | BT37: 0 | BU37: 0 | BV37: 0 | BW37: 0 | BX37: 0 | BY37: 0 | BZ37: 0 | CA37: 0 | CB37: 0 | CC37: 0 | CD37: 0 | CE37: 0 | CF37: 0 | CG37: 0 | CH37: 0 | CI37: 0 | CJ37: 0 | CK37: 0 | CL37: 0 | CM37: 0 | CN37: 0 | CO37: 0 | CP37: 0 | CQ37: 0 | CR37: 0 | CS37: 0 | CT37: 0 | CU37: 0 | CV37: 0
C38: > 132 kV | D38: 0 | E38: 0
C39: Other | E39: 0
B40: UNDERGROUND CABLES BY: HIGHEST OPERATING VOLTAGE | C40: ˂ = 1 kV | D40: 62.75176133 | E40: 7.921600933 | F40: 6.945 | G40: 0 | H40: 5.063880285 | I40: 38.17605388 | J40: 184.8695376 | K40: 190.140562 | L40: 258.8767637 | M40: 323.7399883 | N40: 459.3754513 | O40: 495.4260018 | P40: 452.2374136 | Q40: 496.8748654 | R40: 457.0539957 | S40: 503.8195994 | T40: 473.2216212 | U40: 403.5074186 | V40: 444.557073 | W40: 308.3746253 | X40: 236.9668581 | Y40: 256.2778174 | Z40: 220.6668095 | AA40: 241.7338712 | AB40: 196.48377 | AC40: 333.3963223 | AD40: 503.4582293 | AE40: 453.6217402 | AF40: 329.1876225 | AG40: 468.2463192 | AH40: 398.6132451 | AI40: 402.3285275 | AJ40: 272.7810973 | AK40: 341.5145309 | AL40: 461.9389766 | AM40: 437.6264186 | AN40: 278.4270928 | AO40: 151.9089758 | AP40: 157.7191078 | AQ40: 127.4956395 | AR40: 103.0876173 | AS40: 161.0320116 | AT40: 262.3689942 | AU40: 278.7020034 | AV40: 263.0134936 | AW40: 182.1651654 | AX40: 119.5264284 | AY40: 63.44896195 | AZ40: 53.38350009 | BA40: 38.62343926 | BB40: 388.8556885 | BC40: 0.2125605959 | BD40: 0.9338142383 | BE40: 0 | BF40: 0.03936813608 | BG40: 0 | BH40: 0.1293133914 | BI40: 0 | BJ40: 0 | BK40: 0.465856277 | BL40: 0 | BM40: 0 | BN40: 0 | BO40: 0.3165341671 | BP40: 41.04242668 | BQ40: 0 | BR40: 0 | BS40: 0 | BT40: 0 | BU40: 0 | BV40: 0 | BW40: 0 | BX40: 0 | BY40: 0 | BZ40: 0 | CA40: 0 | CB40: 0 | CC40: 0 | CD40: 0 | CE40: 0 | CF40: 0 | CG40: 0 | CH40: 0 | CI40: 0 | CJ40: 0 | CK40: 0 | CL40: 0 | CM40: 0 | CN40: 0 | CO40: 0 | CP40: 0 | CQ40: 0 | CR40: 0 | CS40: 0 | CT40: 0 | CU40: 0 | CV40: 0 | CW40: 0 | CX40: 0 | CY40: 0 | CZ40: 0 | DA40: 0 | DB40: 0 | DC40: 0 | DD40: 0 | DE40: 0 | DF40: 0 | DG40: 0 | DH40: 0
C41: > 1 kV & < = 11 kV | D41: 60.283066 | E41: 7.764217024 | F41: 3.531 | G41: 0 | H41: 1.524675418 | I41: 16.43005915 | J41: 65.79758957 | K41: 91.13575485 | L41: 111.998606 | M41: 127.4303352 | N41: 155.6930221 | O41: 162.2754566 | P41: 161.857711 | Q41: 137.505847 | R41: 127.2653747 | S41: 120.5945973 | T41: 104.5177427 | U41: 113.2125866 | V41: 108.6074764 | W41: 77.06305882 | X41: 80.93615488 | Y41: 79.3140068 | Z41: 75.34110369 | AA41: 65.32510235 | AB41: 46.58329205 | AC41: 103.3796139 | AD41: 115.2858128 | AE41: 97.03121055 | AF41: 87.99400338 | AG41: 126.994905 | AH41: 114.2097632 | AI41: 120.4341168 | AJ41: 90.40229123 | AK41: 120.9408625 | AL41: 167.1377614 | AM41: 134.8045426 | AN41: 81.92089625 | AO41: 42.82022519 | AP41: 57.20754208 | AQ41: 34.49829382 | AR41: 34.2409924 | AS41: 47.42894835 | AT41: 56.88962554 | AU41: 85.33823722 | AV41: 80.88725477 | AW41: 41.73566202 | AX41: 54.29094395 | AY41: 19.12390575 | AZ41: 16.42004828 | BA41: 24.24416554 | BB41: 60.0234284 | BC41: 0.5494045351 | BD41: 0.5716933329 | BE41: 1.599602938 | BF41: 1.061163026 | BG41: 0.4332195481 | BH41: 0.792546441 | BI41: 0 | BJ41: 0.3102142481 | BK41: 0.2625799165 | BL41: 29.79397011 | BM41: 0 | BN41: 0 | BO41: 0 | BP41: 0 | BQ41: 0 | BR41: 0 | BS41: 0 | BT41: 0 | BU41: 0 | BV41: 0 | BW41: 0 | BX41: 0 | BY41: 0 | BZ41: 0 | CA41: 0 | CB41: 0 | CC41: 0 | CD41: 0 | CE41: 0 | CF41: 0 | CG41: 0 | CH41: 0 | CI41: 0 | CJ41: 0 | CK41: 0 | CL41: 0 | CM41: 0 | CN41: 0 | CO41: 0 | CP41: 0 | CQ41: 0 | CR41: 0 | CS41: 0 | CT41: 0 | CU41: 0 | CV41: 0 | CW41: 0 | CX41: 0 | CY41: 0 | CZ41: 0 | DA41: 0 | DB41: 0 | DC41: 0 | DD41: 0 | DE41: 0 | DF41: 0 | DG41: 0 | DH41: 0
C42: > 11 kV & < = 22 kV | D42: 62.19016009 | E42: 7.886073807 | F42: 0.02 | G42: 0.3828872991 | H42: 0.03302017719 | I42: 0.3451464595 | J42: 1.059886539 | K42: 0.6063605205 | L42: 2.937817394 | M42: 0.2640024315 | N42: 0.7596108318 | O42: 0.7169169656 | P42: 1.035622824 | Q42: 2.043246984 | R42: 1.64899096 | S42: 3.425102264 | T42: 1.200099996 | U42: 3.954753244 | V42: 0.8630373645 | W42: 0.7667652035 | X42: 2.725840087 | Y42: 0.6150313744 | Z42: 0.9948857091 | AA42: 2.488742985 | AB42: 0.07147033908 | AC42: 1.907710163 | AD42: 0.2138484513 | AE42: 0.9138395186 | AF42: 0.1107032015 | AG42: 4.461490667 | AH42: 1.393537085 | AI42: 1.226198165 | AJ42: 3.502413506 | AK42: 1.02412691 | AL42: 2.08923553 | AM42: 0.3221668621 | AN42: 2.535851771 | AO42: 1.027942575 | AP42: 0.03975873928 | AQ42: 0.3488398275 | AR42: 3.694823301 | AS42: 0 | AT42: 0 | AU42: 0.779826518 | AV42: 0.09846127651 | AW42: 0.1314814537 | AX42: 0.07770748366 | AY42: 0 | AZ42: 0 | BA42: 0.6169514366 | BB42: 4.733222266 | BC42: 0 | BD42: 0 | BE42: 0 | BF42: 0.06426704857 | BG42: 0.1182489234 | BH42: 0 | BI42: 0.1174662229 | BJ42: 0.381003926 | BK42: 0.109639218 | BL42: 0 | BM42: 0 | BN42: 0 | BO42: 0 | BP42: 0 | BQ42: 0 | BR42: 0 | BS42: 0 | BT42: 0 | BU42: 0 | BV42: 0 | BW42: 0 | BX42: 0 | BY42: 0 | BZ42: 0 | CA42: 0 | CB42: 0 | CC42: 0 | CD42: 0 | CE42: 0 | CF42: 0 | CG42: 0 | CH42: 0 | CI42: 0 | CJ42: 0 | CK42: 0 | CL42: 0 | CM42: 0 | CN42: 0 | CO42: 0 | CP42: 0 | CQ42: 0 | CR42: 0 | CS42: 0 | CT42: 0 | CU42: 0 | CV42: 0 | CW42: 0 | CX42: 0 | CY42: 0 | CZ42: 0 | DA42: 0 | DB42: 0 | DC42: 0 | DD42: 0 | DE42: 0 | DF42: 0 | DG42: 0 | DH42: 0
C43: > 22 kV & < = 33 kV | D43: 83.85285618 | E43: 9.157120518 | F43: 0.03 | G43: 0.07840396922 | H43: 1.726219265 | I43: 2.164586174 | J43: 8.102437676 | K43: 1.698541964 | L43: 3.076131083 | M43: 5.206233506 | N43: 5.940370528 | O43: 3.56680493 | P43: 15.90483663 | Q43: 3.543416933 | R43: 2.293366894 | S43: 0.6721095416 | T43: 2.004685421 | U43: 1.188001865 | V43: 0.950261525 | W43: 0.4564591195 | X43: 0.6811358936 | Y43: 4.085156078 | Z43: 0.6350710219 | AA43: 1.896482074 | AB43: 1.674104216 | AC43: 4.100168643 | AD43: 0.1735926638 | AE43: 0.620583332 | AF43: 2.984385119 | AG43: 0.4422047075 | AH43: 0.3679884539 | AI43: 0.2986597497 | AJ43: 0.276445668 | AK43: 18.40750465 | AL43: 2.463291074 | AM43: 0.1195587161 | AN43: 0.1714818745 | AO43: 0.1418179484 | AP43: 0.009594496665 | AQ43: 0.1550696414 | AR43: 0.4201486528 | AS43: 0.5464235165 | AT43: 0.06561506955 | AU43: 1.236369416 | AV43: 0 | AW43: 0 | AX43: 0 | AY43: 0 | AZ43: 0.5524398303 | BA43: 9.907717475 | BB43: 0.09821378292 | BC43: 0 | BD43: 0 | BE43: 0 | BF43: 0 | BG43: 0.153342632 | BH43: 0 | BI43: 0.2387900905 | BJ43: 0 | BK43: 0.4654459647 | BL43: 0.419889037 | BM43: 1.777250699 | BN43: 0.06933999178 | BO43: 2.580739001 | BP43: 1.283788804 | BQ43: 15.877323 | BR43: 0 | BS43: 0 | BT43: 0 | BU43: 0 | BV43: 0 | BW43: 0 | BX43: 0 | BY43: 0 | BZ43: 0 | CA43: 0 | CB43: 0 | CC43: 0 | CD43: 0 | CE43: 0 | CF43: 0 | CG43: 0 | CH43: 0 | CI43: 0 | CJ43: 0 | CK43: 0 | CL43: 0 | CM43: 0 | CN43: 0 | CO43: 0 | CP43: 0 | CQ43: 0 | CR43: 0 | CS43: 0 | CT43: 0 | CU43: 0 | CV43: 0 | CW43: 0 | CX43: 0 | CY43: 0 | CZ43: 0 | DA43: 0 | DB43: 0 | DC43: 0 | DD43: 0 | DE43: 0 | DF43: 0 | DG43: 0 | DH43: 0
C44: > 33 kV & < = 66 kV | D44: 72.91313874 | E44: 8.538919061 | F44: 0.08 | G44: 0 | H44: 1.403315127 | I44: 0 | J44: 4.068111467 | K44: 0.05458131528 | L44: 0 | M44: 6.326295391 | N44: 1.576578261 | O44: 0.9963151868 | P44: 0 | Q44: 0 | R44: 0.04728790814 | S44: 0 | T44: 0 | U44: 0.7515587771 | V44: 0.4063441302 | W44: 2.856859374 | X44: 0 | Y44: 0 | Z44: 0 | AA44: 0 | AB44: 0 | AC44: 0 | AD44: 0 | AE44: 0 | AF44: 0 | AG44: 2.612550107 | AH44: 3.271132848 | AI44: 0.1255181458 | AJ44: 0 | AK44: 4.73940302 | AL44: 0 | AM44: 1.140474248 | AN44: 0 | AO44: 0 | AP44: 0 | AQ44: 0 | AR44: 0 | AS44: 0 | AT44: 0 | AU44: 0 | AV44: 0 | AW44: 0 | AX44: 0 | AY44: 0 | AZ44: 4.873168479 | BA44: 4.916680509 | BB44: 1.083259754 | BC44: 1.9834689 | BD44: 1.824345437 | BE44: 0.6568835956 | BF44: 0.1438709019 | BG44: 3.397187566 | BH44: 2.001543434 | BI44: 1.376287788 | BJ44: 0.5673853421 | BK44: 0 | BL44: 0.4094840712 | BM44: 0 | BN44: 0.2300503571 | BO44: 0 | BP44: 0 | BQ44: 0.08005855766 | BR44: 0 | BS44: 0 | BT44: 0 | BU44: 0 | BV44: 0 | BW44: 0 | BX44: 0 | BY44: 0 | BZ44: 0 | CA44: 0 | CB44: 0 | CC44: 0 | CD44: 0 | CE44: 0 | CF44: 0 | CG44: 0 | CH44: 0 | CI44: 0 | CJ44: 0 | CK44: 0 | CL44: 0 | CM44: 0 | CN44: 0 | CO44: 0 | CP44: 0 | CQ44: 0 | CR44: 0 | CS44: 0 | CT44: 0 | CU44: 0 | CV44: 0 | CW44: 0 | CX44: 0 | CY44: 0 | CZ44: 0 | DA44: 0 | DB44: 0 | DC44: 0 | DD44: 0 | DE44: 0 | DF44: 0 | DG44: 0 | DH44: 0
C45: > 66 kV & < = 132 kV | D45: 0 | E45: 0 | F45: 0 | G45: 0 | H45: 0 | I45: 0 | J45: 0 | K45: 0 | L45: 0 | M45: 0 | N45: 0 | O45: 0 | P45: 0 | Q45: 0 | R45: 0 | S45: 0 | T45: 0 | U45: 0 | V45: 0 | W45: 0 | X45: 0 | Y45: 0 | Z45: 0 | AA45: 0 | AB45: 0 | AC45: 0 | AD45: 0 | AE45: 0 | AF45: 0 | AG45: 0 | AH45: 0 | AI45: 0 | AJ45: 0 | AK45: 0 | AL45: 0 | AM45: 0 | AN45: 0 | AO45: 0 | AP45: 0 | AQ45: 0 | AR45: 0 | AS45: 0 | AT45: 0 | AU45: 0 | AV45: 0 | AW45: 0 | AX45: 0 | AY45: 0 | AZ45: 0 | BA45: 0 | BB45: 0 | BC45: 0 | BD45: 0 | BE45: 0 | BF45: 0 | BG45: 0 | BH45: 0 | BI45: 0 | BJ45: 0 | BK45: 0 | BL45: 0 | BM45: 0 | BN45: 0 | BO45: 0 | BP45: 0 | BQ45: 0 | BR45: 0 | BS45: 0 | BT45: 0 | BU45: 0 | BV45: 0 | BW45: 0 | BX45: 0 | BY45: 0 | BZ45: 0 | CA45: 0 | CB45: 0 | CC45: 0 | CD45: 0 | CE45: 0 | CF45: 0 | CG45: 0 | CH45: 0 | CI45: 0 | CJ45: 0 | CK45: 0 | CL45: 0 | CM45: 0 | CN45: 0 | CO45: 0 | CP45: 0 | CQ45: 0 | CR45: 0 | CS45: 0 | CT45: 0 | CU45: 0 | CV45: 0 | CW45: 0 | CX45: 0 | CY45: 0 | CZ45: 0 | DA45: 0 | DB45: 0 | DC45: 0 | DD45: 0 | DE45: 0 | DF45: 0 | DG45: 0 | DH45: 0
C46: > 132 kV | E46: 0
C47: Other | E47: 0
B48: SERVICE LINES BY: CONNECTION VOLTAGE; CUSTOMER TYPE; CONNECTION COMPLEXITY | C48: ˂ = 11 kV ; Residential ; Simple Type | D48: 53.65980816 | E48: 7.325285535 | F48: 22773 | G48: 18846 | H48: 18759 | I48: 13148 | J48: 13315 | K48: 5803 | L48: 6454 | M48: 7928 | N48: 8539 | O48: 8756 | P48: 8607 | Q48: 8302 | R48: 8357 | S48: 8631 | T48: 9607 | U48: 11477 | V48: 13145 | W48: 14986 | X48: 14238 | Y48: 11711 | Z48: 10625 | AA48: 10196 | AB48: 11618 | AC48: 14504 | AD48: 15997 | AE48: 16273 | AF48: 16491 | AG48: 15826 | AH48: 15392 | AI48: 15612 | AJ48: 16043 | AK48: 16566 | AL48: 16276 | AM48: 16247 | AN48: 15054 | AO48: 12707 | AP48: 11648 | AQ48: 10039 | AR48: 7843 | AS48: 6923 | AT48: 7564 | AU48: 11936 | AV48: 15690 | AW48: 15583 | AX48: 17652 | AY48: 14908 | AZ48: 15049 | BA48: 10068 | BB48: 8741 | BC48: 8708 | BD48: 9871 | BE48: 9873 | BF48: 9841 | BG48: 9840 | BH48: 4820 | BI48: 4822 | BJ48: 12148 | BK48: 9819 | BL48: 1886 | BM48: 1883 | BN48: 938 | BO48: 938 | BP48: 216 | BQ48: 216 | BR48: 76 | BS48: 76 | BT48: 64 | BU48: 64 | BV48: 38 | BW48: 38 | BX48: 17 | BY48: 17 | BZ48: 5 | CA48: 5 | CB48: 2 | CC48: 2 | CD48: 8 | CE48: 8 | CF48: - | CG48: - | CH48: - | CI48: - | CJ48: - | CK48: - | CL48: - | CM48: - | CN48: - | CO48: - | CP48: - | CQ48: - | CR48: - | CS48: - | CT48: - | CU48: - | CV48: - | CW48: - | CX48: - | CY48: - | CZ48: - | DA48: - | DB48: - | DC48: - | DD48: - | DE48: - | DF48: - | DG48: - | DH48: - | DI48: - | DJ48: -
C49: ˂ = 11 kV ; Commercial & Industrial ; Simple Type | E49: 0
C50: ˂ = 11 kV ; Residential ; Complex Type | E50: 0
C51: ˂ = 11 kV ; Commercial & Industrial ; Complex Type | D51: 51.47296037 | E51: 7.174465859 | F51: 2658 | G51: 2087 | H51: 2160 | I51: 1958 | J51: 1709 | K51: 901 | L51: 864 | M51: 844 | N51: 831 | O51: 868 | P51: 891 | Q51: 909 | R51: 956 | S51: 922 | T51: 1349 | U51: 1740 | V51: 2211 | W51: 2454 | X51: 2137 | Y51: 2025 | Z51: 1860 | AA51: 2012 | AB51: 2191 | AC51: 2126 | AD51: 1954 | AE51: 1909 | AF51: 1980 | AG51: 2048 | AH51: 2354 | AI51: 2413 | AJ51: 2354 | AK51: 2505 | AL51: 2251 | AM51: 1849 | AN51: 1836 | AO51: 1854 | AP51: 1736 | AQ51: 1608 | AR51: 1305 | AS51: 1070 | AT51: 1020 | AU51: 1111 | AV51: 1213 | AW51: 1197 | AX51: 1320 | AY51: 1181 | AZ51: 1402 | BA51: 933 | BB51: 943 | BC51: 937 | BD51: 1043 | BE51: 1045 | BF51: 1175 | BG51: 1173 | BH51: 416 | BI51: 416 | BJ51: 517 | BK51: 341 | BL51: 95 | BM51: 94 | BN51: 47 | BO51: 47 | BP51: 17 | BQ51: 17 | BR51: 7 | BS51: 7 | BT51: 6 | BU51: 6 | BV51: 4 | BW51: 4 | BX51: 2 | BY51: 2 | BZ51: 1 | CA51: 1 | CB51: - | CC51: - | CD51: 2 | CE51: 2
C52: ˂ = 11 kV ; Subdivision ; Complex Type | E52: 0
C53: > 11 kV & < = 22 kV ; Commercial & Industrial | E53: 0
C54: > 11 kV & < = 22 kV ; Subdivision | E54: 0
C55: > 22 kV & < = 33 kV ; Commercial & Industrial | E55: 0
C56: > 22 kV & < = 33 kV ; Subdivision | E56: 0
C57: > 33 kV & < = 66 kV ; Commercial & Industrial | E57: 0
C58: > 33 kV & < = 66 kV ; Subdivision | E58: 0
C59: > 66 kV & < = 132 kV ; Commercial & Industrial | E59: 0
C60: > 66 kV & < = 132 kV ; Subdivision | E60: 0
C61: > 132 kV ; Commercial & Industrial | E61: 0
C62: > 132 kV ; Subdivision | E62: 0
C63: Other | E63: 0
B64: TRANSFORMERS BY: MOUNTING TYPE; HIGHEST OPERATING VOLTAGE ; AMPERE RATING; NUMBER OF PHASES (AT LV) | C64: Pole Mounted ; < = 22kV ; < = 60 kVA ; Single Phase | D64: 62.73684287 | E64: 7.920659245 | F64: 755.5098726 | G64: 530.769594 | H64: 443.7425074 | I64: 513.555445 | J64: 285.9461416 | K64: 197.9627134 | L64: 296.4658994 | M64: 329.9378557 | N64: 347.1520047 | O64: 363.4098121 | P64: 385.4056692 | Q64: 417.9212839 | R64: 435.1354329 | S64: 418.8776255 | T64: 398.7944517 | U64: 440.8734826 | V64: 483.9088551 | W64: 564.2415504 | X64: 626.4037551 | Y64: 552.7654511 | Z64: 523.1188611 | AA64: 558.5035007 | AB64: 691.4349846 | AC64: 964.9486853 | AD64: 961.1233189 | AE64: 785.1564625 | AF64: 909.4808719 | AG64: 1173.431157 | AH64: 1092.14212 | AI64: 869.3145243 | AJ64: 881.7469652 | AK64: 914.26258 | AL64: 985.9882008 | AM64: 992.6825921 | AN64: 978.3374679 | AO64: 1029.023573 | AP64: 1037.630648 | AQ64: 933.3894122 | AR64: 832.0172014 | AS64: 724.906941 | AT64: 647.4432705 | AU64: 656.050345 | AV64: 885.5723316 | AW64: 813.8467108 | AX64: 572.8486249 | AY64: 547.983743 | AZ64: 616.840339 | BA64: 907.5681887 | BB64: 878.8779404 | BC64: 557.5471591 | BD64: 484.8651967 | BE64: 616.840339 | BF64: 792.8071954 | BG64: 668.482786 | BH64: 467.6510477 | BI64: 484.8651967 | BJ64: 448.5242155 | BK64: 544.1583766 | BL64: 493.4722712 | BM64: 483.9088551 | BN64: 389.2310356 | BO64: 138.6695336 | BP64: 300.2912658 | BQ64: 193.1810054 | BR64: 15.30146577 | BS64: 8.607074498 | BT64: 2.869024833 | BU64: 3.825366443 | BV64: 1.912683222 | BW64: 0.9563416108 | BX64: 0.9563416108 | BY64: 0 | BZ64: 0 | CA64: 0 | CB64: 0 | CC64: 0 | CD64: 0 | CE64: 0 | CF64: 0.9563416108 | CG64: 0.9563416108 | CH64: 0 | CI64: 0 | CJ64: 0 | CK64: 0 | CL64: 0 | CM64: 0 | CN64: 0 | CO64: 0 | CP64: 0 | CQ64: 0 | CR64: 0 | CS64: 0 | CT64: 0 | CU64: 0 | CV64: 0 | CW64: 0 | CX64: 0 | CY64: 0 | CZ64: 0 | DA64: 0 | DB64: 0 | DC64: 0 | DD64: 0 | DE64: 0 | DF64: 0 | DG64: 0 | DH64: 0 | DI64: 0 | DJ64: 0
C65: Pole Mounted ; < = 22kV ; > 60 kVA and < = 600 kVA ; Single Phase | D65: 70.98335766 | E65: 8.425162174 | F65: 19.38878255 | G65: 14.56341611 | H65: 9.563416108 | I65: 8.607074498 | J65: 17.214149 | K65: 65.29317987 | L65: 126.0229436 | M65: 123.6736765 | N65: 169.4907571 | O65: 333.0251725 | P65: 428.4410417 | Q65: 448.698849 | R65: 459.13129 | S65: 456.1749484 | T65: 424.702992 | U65: 321.3744396 | V65: 439.917141 | W65: 460.6115323 | X65: 233.347353 | Y65: 197.0063718 | Z65: 167.3597819 | AA65: 131.0188007 | AB65: 134.8441671 | AC65: 175.9668564 | AD65: 189.3556389 | AE65: 164.4907571 | AF65: 167.3597819 | AG65: 219.9585705 | AH65: 246.7361356 | AI65: 218.0458873 | AJ65: 215.1768624 | AK65: 205.6134463 | AL65: 219.9585705 | AM65: 238.1290611 | AN65: 234.3036947 | AO65: 281.1644336 | AP65: 263.9502846 | AQ65: 206.5697879 | AR65: 182.6612477 | AS65: 268.7319926 | AT65: 273.5137007 | AU65: 140.5822168 | AV65: 142.4949 | AW65: 158.7527074 | AX65: 137.713192 | AY65: 123.3680678 | AZ65: 153.0146577 | BA65: 146.3202665 | BB65: 115.7173349 | BC65: 110.9356269 | BD65: 134.8441671 | BE65: 146.3202665 | BF65: 173.0978316 | BG65: 149.1892913 | BH65: 74.59464565 | BI65: 61.20586309 | BJ65: 47.81708054 | BK65: 135.8005087 | BL65: 125.280751 | BM65: 34.42829799 | BN65: 53.55513021 | BO65: 96.59050269 | BP65: 280.208092 | BQ65: 209.4388128 | BR65: 8.607074498 | BS65: 13.38878255 | BT65: 6.694391276 | BU65: 13.38878255 | BV65: 13.38878255 | BW65: 0 | BX65: 0 | BY65: 0 | BZ65: 0 | CA65: 0 | CB65: 0 | CC65: 0 | CD65: 0 | CE65: 0 | CF65: 0 | CG65: 0 | CH65: 0 | CI65: 0 | CJ65: 0 | CK65: 0 | CL65: 0 | CM65: 0 | CN65: 0 | CO65: 0 | CP65: 0 | CQ65: 0 | CR65: 0 | CS65: 0 | CT65: 0 | CU65: 0 | CV65: 0 | CW65: 0 | CX65: 0 | CY65: 0 | CZ65: 0 | DA65: 0 | DB65: 0 | DC65: 0 | DD65: 0 | DE65: 0 | DF65: 0 | DG65: 0 | DH65: 0 | DI65: 0 | DJ65: 0
C66: Pole Mounted ; < = 22kV ; > 600 kVA ; Single Phase | D66: 63.48884422 | E66: 7.967988719 | F66: 0 | G66: 0 | H66: 0 | I66: 0 | J66: 0 | K66: 0 | L66: 0 | M66: 0 | N66: 0 | O66: 0.9563416108 | P66: 0.9563416108 | Q66: 0.9563416108 | R66: 0.9563416108 | S66: 0.9563416108 | T66: 0.9563416108 | U66: 0.9563416108 | V66: 0.9563416108 | W66: 0.9563416108 | X66: 0.9563416108 | Y66: 0.9563416108 | Z66: 0.9563416108 | AA66: 0 | AB66: 0 | AC66: 0 | AD66: 0.9563416108 | AE66: 0.9563416108 | AF66: 0 | AG66: 0 | AH66: 0.9563416108 | AI66: 1.912683222 | AJ66: 1.912683222 | AK66: 0.9563416108 | AL66: 0 | AM66: 0 | AN66: 0 | AO66: 1.912683222 | AP66: 2.869024833 | AQ66: 1.912683222 | AR66: 0.9563416108 | AS66: 3.825366443 | AT66: 7.650732887 | AU66: 4.781708054 | AV66: 1.912683222 | AW66: 3.825366443 | AX66: 1.912683222 | AY66: 0 | AZ66: 3.825366443 | BA66: 27.73390671 | BB66: 24.86488188 | BC66: 0.9563416108 | BD66: 1.912683222 | BE66: 5.738049665 | BF66: 7.650732887 | BG66: 5.738049665 | BH66: 3.825366443 | BI66: 12.43244094 | BJ66: 10.51975772 | BK66: 5.738049665 | BL66: 5.738049665 | BM66: 5.738049665 | BN66: 7.650732887 | BO66: 6.694391276 | BP66: 12.43244094 | BQ66: 7.650732887 | BR66: 0.9563416108 | BS66: 0.9563416108 | BT66: 0 | BU66: 0.9563416108 | BV66: 0.9563416108 | BW66: 0 | BX66: 0 | BY66: 0 | BZ66: 0 | CA66: 0 | CB66: 0 | CC66: 0 | CD66: 0 | CE66: 0 | CF66: 0 | CG66: 0 | CH66: 0 | CI66: 0 | CJ66: 0 | CK66: 0 | CL66: 0 | CM66: 0 | CN66: 0 | CO66: 0 | CP66: 0 | CQ66: 0 | CR66: 0 | CS66: 0 | CT66: 0 | CU66: 0 | CV66: 0 | CW66: 0 | CX66: 0 | CY66: 0 | CZ66: 0 | DA66: 0 | DB66: 0 | DC66: 0 | DD66: 0 | DE66: 0 | DF66: 0 | DG66: 0 | DH66: 0 | DI66: 0 | DJ66: 0
C67: Pole Mounted ; < = 22kV ; < = 60 kVA ; Multiple Phase | D67: 56.28845099 | E67: 7.502562961 | F67: 56.42415504 | G67: 176.923198 | H67: 131.9751423 | I67: 167.3597819 | J67: 57.38049665 | K67: 21.99585705 | L67: 26.7775651 | M67: 24.86488188 | N67: 21.99585705 | O67: 11.47609933 | P67: 1.912683222 | Q67: 1.912683222 | R67: 1.912683222 | S67: 0 | T67: 0.9563416108 | U67: 0 | V67: 0 | W67: 1.912683222 | X67: 1.912683222 | Y67: 6.694391276 | Z67: 33.47195638 | AA67: 34.42829799 | AB67: 42.07903088 | AC67: 65.98757115 | AD67: 60.24952148 | AE67: 58.33683826 | AF67: 65.98757115 | AG67: 75.55098726 | AH67: 93.72147786 | AI67: 79.3763537 | AJ67: 57.38049665 | AK67: 59.29317987 | AL67: 63.11854632 | AM67: 63.11854632 | AN67: 55.46781343 | AO67: 70.7692792 | AP67: 80.33269531 | AQ67: 68.85659598 | AR67: 65.98757115 | AS67: 49.72976376 | AT67: 51.64244699 | AU67: 52.5987886 | AV67: 47.81708054 | AW67: 44.94805571 | AX67: 49.72976376 | AY67: 45.90439732 | AZ67: 35.3846396 | BA67: 40.16634766 | BB67: 25.82122349 | BC67: 34.42829799 | BD67: 32.51561477 | BE67: 33.47195638 | BF67: 35.3846396 | BG67: 28.69024833 | BH67: 19.12683222 | BI67: 25.82122349 | BJ67: 19.12683222 | BK67: 19.12683222 | BL67: 13.38878255 | BM67: 8.607074498 | BN67: 9.563416108 | BO67: 25.82122349 | BP67: 53.55513021 | BQ67: 29.64658994 | BR67: 0 | BS67: 0 | BT67: 0 | BU67: 0 | BV67: 0 | BW67: 0 | BX67: 0 | BY67: 0 | BZ67: 0 | CA67: 0 | CB67: 0 | CC67: 0 | CD67: 0 | CE67: 0 | CF67: 0 | CG67: 0 | CH67: 0 | CI67: 0 | CJ67: 0 | CK67: 0 | CL67: 0 | CM67: 0 | CN67: 0 | CO67: 0 | CP67: 0 | CQ67: 0 | CR67: 0 | CS67: 0 | CT67: 0 | CU67: 0 | CV67: 0 | CW67: 0 | CX67: 0 | CY67: 0 | CZ67: 0 | DA67: 0 | DB67: 0 | DC67: 0 | DD67: 0 | DE67: 0 | DF67: 0 | DG67: 0 | DH67: 0 | DI67: 0 | DJ67: 0
C68: Pole Mounted ; < = 22kV ; > 60 kVA and < = 600 kVA ; Multiple Phase | D68: 56.1194753 | E68: 7.4912933 | F68: 743.0774316 | G68: 436.0917745 | H68: 329.9378557 | I68: 350.0210296 | J68: 210.3951544 | K68: 179.7922228 | L68: 256.2995517 | M68: 318.4617564 | N68: 262.993943 | O68: 94.67781947 | P68: 12.43244094 | Q68: 18.17049061 | R68: 16.25780738 | S68: 1.912683222 | T68: 0.9563416108 | U68: 5.738049665 | V68: 4.781708054 | W68: 0 | X68: 0 | Y68: 8.607074498 | Z68: 32.51561477 | AA68: 30.60293155 | AB68: 42.07903088 | AC68: 52.5987886 | AD68: 40.16634766 | AE68: 43.03537249 | AF68: 47.81708054 | AG68: 60.24952148 | AH68: 51.64244699 | AI68: 55.46781343 | AJ68: 69.81293759 | AK68: 62.1622047 | AL68: 54.51147182 | AM68: 54.51147182 | AN68: 52.5987886 | AO68: 50.68610537 | AP68: 50.68610537 | AQ68: 44.94805571 | AR68: 43.03537249 | AS68: 60.24952148 | AT68: 63.11854632 | AU68: 48.77342215 | AV68: 43.03537249 | AW68: 38.25366443 | AX68: 26.7775651 | AY68: 30.60293155 | AZ68: 27.73390671 | BA68: 19.12683222 | BB68: 20.08317383 | BC68: 14.34512416 | BD68: 13.38878255 | BE68: 16.25780738 | BF68: 36.34098121 | BG68: 36.34098121 | BH68: 17.214149 | BI68: 6.694391276 | BJ68: 6.694391276 | BK68: 33.47195638 | BL68: 25.82122349 | BM68: 3.825366443 | BN68: 7.650732887 | BO68: 29.64658994 | BP68: 72.68196242 | BQ68: 37.29732282 | BR68: 0 | BS68: 0 | BT68: 0 | BU68: 0 | BV68: 0 | BW68: 0 | BX68: 0 | BY68: 0 | BZ68: 0 | CA68: 0 | CB68: 0 | CC68: 0 | CD68: 0 | CE68: 0 | CF68: 0 | CG68: 0 | CH68: 0 | CI68: 0 | CJ68: 0 | CK68: 0 | CL68: 0 | CM68: 0 | CN68: 0 | CO68: 0 | CP68: 0 | CQ68: 0 | CR68: 0 | CS68: 0 | CT68: 0 | CU68: 0 | CV68: 0 | CW68: 0 | CX68: 0 | CY68: 0 | CZ68: 0 | DA68: 0 | DB68: 0 | DC68: 0 | DD68: 0 | DE68: 0 | DF68: 0 | DG68: 0 | DH68: 0 | DI68: 0 | DJ68: 0
C69: Pole Mounted ; < = 22kV ; > 600 kVA ; Multiple Phase | D69: 60.90116844 | E69: 7.803920069 | F69: 0 | G69: 0.9563416108 | H69: 0 | I69: 0 | J69: 0 | K69: 0 | L69: 0 | M69: 0.9563416108 | N69: 0.9563416108 | O69: 0 | P69: 0 | Q69: 0 | R69: 0 | S69: 0 | T69: 0 | U69: 0.9563416108 | V69: 0.9563416108 | W69: 0.9563416108 | X69: 0 | Y69: 0 | Z69: 0 | AA69: 0 | AB69: 0 | AC69: 0 | AD69: 0 | AE69: 0 | AF69: 0 | AG69: 0 | AH69: 0 | AI69: 0 | AJ69: 0 | AK69: 0 | AL69: 0 | AM69: 0 | AN69: 0 | AO69: 0 | AP69: 0.9563416108 | AQ69: 0.9563416108 | AR69: 0 | AS69: 0 | AT69: 0 | AU69: 0.9563416108 | AV69: 0.9563416108 | AW69: 0.9563416108 | AX69: 0 | AY69: 0 | AZ69: 0 | BA69: 0.9563416108 | BB69: 3.825366443 | BC69: 0 | BD69: 0 | BE69: 0 | BF69: 0 | BG69: 0 | BH69: 0.9563416108 | BI69: 1.912683222 | BJ69: 0.9563416108 | BK69: 0.9563416108 | BL69: 0.9563416108 | BM69: 0 | BN69: 0 | BO69: 0.9563416108 | BP69: 1.912683222 | BQ69: 0.9563416108 | BR69: 0 | BS69: 0 | BT69: 0 | BU69: 0 | BV69: 0 | BW69: 0 | BX69: 0 | BY69: 0 | BZ69: 0 | CA69: 0 | CB69: 0 | CC69: 0 | CD69: 0 | CE69: 0 | CF69: 0 | CG69: 0 | CH69: 0 | CI69: 0 | CJ69: 0 | CK69: 0 | CL69: 0 | CM69: 0 | CN69: 0 | CO69: 0 | CP69: 0 | CQ69: 0 | CR69: 0 | CS69: 0 | CT69: 0 | CU69: 0 | CV69: 0 | CW69: 0 | CX69: 0 | CY69: 0 | CZ69: 0 | DA69: 0 | DB69: 0 | DC69: 0 | DD69: 0 | DE69: 0 | DF69: 0 | DG69: 0 | DH69: 0 | DI69: 0 | DJ69: 0
C70: Kiosk Mounted ; < = 22kV ; < = 60 kVA ; Single Phase | D70: 70.34616886 | E70: 8.387262298 | F70: 3.825366443 | G70: 2.869024833 | H70: 0.9563416108 | I70: 3.825366443 | J70: 0 | K70: 0.9563416108 | L70: 1.912683222 | M70: 1.912683222 | N70: 0.9563416108 | O70: 3.825366443 | P70: 7.650732887 | Q70: 8.607074498 | R70: 9.563416108 | S70: 6.694391276 | T70: 5.738049665 | U70: 7.650732887 | V70: 4.781708054 | W70: 2.869024833 | X70: 6.694391276 | Y70: 7.650732887 | Z70: 7.650732887 | AA70: 8.607074498 | AB70: 8.607074498 | AC70: 9.563416108 | AD70: 11.47609933 | AE70: 13.38878255 | AF70: 15.30146577 | AG70: 16.25780738 | AH70: 13.38878255 | AI70: 18.17049061 | AJ70: 29.64658994 | AK70: 23.90854027 | AL70: 7.650732887 | AM70: 2.869024833 | AN70: 1.912683222 | AO70: 0.9563416108 | AP70: 0.9563416108 | AQ70: 0.9563416108 | AR70: 0.9563416108 | AS70: 0.9563416108 | AT70: 0.9563416108 | AU70: 0 | AV70: 0 | AW70: 0 | AX70: 0.9563416108 | AY70: 0.9563416108 | AZ70: 0 | BA70: 1.912683222 | BB70: 1.912683222 | BC70: 0 | BD70: 0 | BE70: 0 | BF70: 0.9563416108 | BG70: 0.9563416108 | BH70: 1.912683222 | BI70: 1.912683222 | BJ70: 0.9563416108 | BK70: 1.912683222 | BL70: 1.912683222 | BM70: 0 | BN70: 0 | BO70: 1.912683222 | BP70: 2.869024833 | BQ70: 1.912683222 | BR70: 0.9563416108 | BS70: 0 | BT70: 0 | BU70: 0 | BV70: 0 | BW70: 0 | BX70: 0 | BY70: 0 | BZ70: 0 | CA70: 0 | CB70: 0 | CC70: 0 | CD70: 0 | CE70: 0 | CF70: 0 | CG70: 0 | CH70: 0 | CI70: 0 | CJ70: 0 | CK70: 0 | CL70: 0 | CM70: 0 | CN70: 0 | CO70: 0 | CP70: 0 | CQ70: 0 | CR70: 0 | CS70: 0 | CT70: 0 | CU70: 0 | CV70: 0 | CW70: 0 | CX70: 0 | CY70: 0 | CZ70: 0 | DA70: 0 | DB70: 0 | DC70: 0 | DD70: 0 | DE70: 0 | DF70: 0 | DG70: 0 | DH70: 0 | DI70: 0 | DJ70: 0
C71: Kiosk Mounted ; < = 22kV ; > 60 kVA and < = 600 kVA ; Single Phase | D71: 73.17278783 | E71: 8.554109412 | F71: 0 | G71: 0 | H71: 0 | I71: 0 | J71: 0 | K71: 12.43244094 | L71: 25.82122349 | M71: 39.21000604 | N71: 128.1497759 | O71: 251.5178437 | P71: 230.4783282 | Q71: 200.8317383 | R71: 241.9544275 | S71: 251.5178437 | T71: 227.6093034 | U71: 208.4824712 | V71: 164.4907571 | W71: 146.3202665 | X71: 159.709049 | Y71: 163.5344155 | Z71: 136.7568504 | AA71: 109.9792852 | AB71: 155.8836826 | AC71: 219.0022289 | AD71: 222.8275953 | AE71: 190.3119806 | AF71: 232.3910114 | AG71: 306.9856571 | AH71: 331.850539 | AI71: 291.6841913 | AJ71: 264.9066262 | AK71: 326.1124893 | AL71: 357.6717625 | AM71: 290.7278497 | AN71: 181.7049061 | AO71: 154.927341 | AP71: 151.1019745 | AQ71: 126.2370926 | AR71: 128.1497759 | AS71: 192.2246638 | AT71: 256.2995517 | AU71: 219.9585705 | AV71: 179.7922228 | AW71: 142.4949 | AX71: 82.24537853 | AY71: 45.90439732 | AZ71: 41.12268927 | BA71: 36.34098121 | BB71: 20.08317383 | BC71: 5.738049665 | BD71: 16.25780738 | BE71: 28.69024833 | BF71: 75.55098726 | BG71: 76.50732887 | BH71: 30.60293155 | BI71: 29.64658994 | BJ71: 21.03951544 | BK71: 65.98757115 | BL71: 60.24952148 | BM71: 8.607074498 | BN71: 15.30146577 | BO71: 47.81708054 | BP71: 99.45952753 | BQ71: 60.24952148 | BR71: 3.825366443 | BS71: 5.738049665 | BT71: 1.912683222 | BU71: 4.781708054 | BV71: 2.869024833 | BW71: 0 | BX71: 0 | BY71: 0 | BZ71: 0 | CA71: 0 | CB71: 0 | CC71: 0 | CD71: 0 | CE71: 0 | CF71: 0 | CG71: 0 | CH71: 0 | CI71: 0 | CJ71: 0 | CK71: 0 | CL71: 0 | CM71: 0 | CN71: 0 | CO71: 0 | CP71: 0 | CQ71: 0 | CR71: 0 | CS71: 0 | CT71: 0 | CU71: 0 | CV71: 0 | CW71: 0 | CX71: 0 | CY71: 0 | CZ71: 0 | DA71: 0 | DB71: 0 | DC71: 0 | DD71: 0 | DE71: 0 | DF71: 0 | DG71: 0 | DH71: 0 | DI71: 0 | DJ71: 0
C72: Kiosk Mounted ; < = 22kV ; > 600 kVA ; Single Phase | D72: 73.89913289 | E72: 8.596460486 | F72: 0 | G72: 0 | H72: 0 | I72: 0 | J72: 0 | K72: 1.912683222 | L72: 0.9563416108 | M72: 0 | N72: 10.51975772 | O72: 31.55927316 | P72: 37.29732282 | Q72: 38.25366443 | R72: 50.68610537 | S72: 57.38049665 | T72: 58.33683826 | U72: 47.81708054 | V72: 36.34098121 | W72: 38.25366443 | X72: 45.90439732 | Y72: 50.68610537 | Z72: 34.42829799 | AA72: 19.12683222 | AB72: 21.99585705 | AC72: 25.82122349 | AD72: 29.64658994 | AE72: 23.90854027 | AF72: 17.214149 | AG72: 26.7775651 | AH72: 33.47195638 | AI72: 32.51561477 | AJ72: 25.82122349 | AK72: 25.82122349 | AL72: 26.7775651 | AM72: 14.34512416 | AN72: 9.563416108 | AO72: 16.25780738 | AP72: 13.38878255 | AQ72: 8.607074498 | AR72: 9.563416108 | AS72: 16.25780738 | AT72: 21.03951544 | AU72: 10.51975772 | AV72: 2.869024833 | AW72: 7.650732887 | AX72: 8.607074498 | AY72: 16.25780738 | AZ72: 16.25780738 | BA72: 6.694391276 | BB72: 4.781708054 | BC72: 4.781708054 | BD72: 3.825366443 | BE72: 6.694391276 | BF72: 11.47609933 | BG72: 7.650732887 | BH72: 4.781708054 | BI72: 21.99585705 | BJ72: 21.99585705 | BK72: 14.34512416 | BL72: 16.25780738 | BM72: 3.825366443 | BN72: 4.781708054 | BO72: 20.08317383 | BP72: 31.55927316 | BQ72: 11.47609933 | BR72: 0.9563416108 | BS72: 1.912683222 | BT72: 0.9563416108 | BU72: 5.738049665 | BV72: 5.738049665 | BW72: 0 | BX72: 0 | BY72: 0 | BZ72: 0 | CA72: 0 | CB72: 0 | CC72: 0 | CD72: 0 | CE72: 0.9563416108 | CF72: 0.9563416108 | CG72: 0 | CH72: 0 | CI72: 0 | CJ72: 0 | CK72: 0 | CL72: 0 | CM72: 0 | CN72: 0 | CO72: 0 | CP72: 0 | CQ72: 0 | CR72: 0 | CS72: 0 | CT72: 0 | CU72: 0 | CV72: 0 | CW72: 0 | CX72: 0 | CY72: 0 | CZ72: 0 | DA72: 0 | DB72: 0 | DC72: 0 | DD72: 0 | DE72: 0 | DF72: 0 | DG72: 0 | DH72: 0 | DI72: 0 | DJ72: 0
C73: Kiosk Mounted ; < = 22kV ; < = 60 kVA ; Multiple Phase | D73: 62.59287151 | E73: 7.91156568 | F73: 0 | G73: 0.9563416108 | H73: 4.781708054 | I73: 2.869024833 | J73: 5.738049665 | K73: 0 | L73: 0 | M73: 0 | N73: 0 | O73: 0 | P73: 0 | Q73: 0 | R73: 0 | S73: 0 | T73: 0 | U73: 0 | V73: 0 | W73: 0 | X73: 0 | Y73: 0 | Z73: 0 | AA73: 0 | AB73: 0 | AC73: 0 | AD73: 0 | AE73: 0 | AF73: 0 | AG73: 0 | AH73: 0 | AI73: 0 | AJ73: 0.9563416108 | AK73: 0 | AL73: 0 | AM73: 0 | AN73: 0 | AO73: 0 | AP73: 0 | AQ73: 0 | AR73: 0 | AS73: 0 | AT73: 0 | AU73: 0 | AV73: 0 | AW73: 0 | AX73: 0 | AY73: 0 | AZ73: 0 | BA73: 0 | BB73: 0 | BC73: 0 | BD73: 0 | BE73: 0 | BF73: 0 | BG73: 0 | BH73: 0 | BI73: 0.9563416108 | BJ73: 0.9563416108 | BK73: 0.9563416108 | BL73: 0.9563416108 | BM73: 0 | BN73: 0 | BO73: 0.9563416108 | BP73: 0.9563416108 | BQ73: 0 | BR73: 0 | BS73: 0 | BT73: 0 | BU73: 0 | BV73: 0 | BW73: 0 | BX73: 0 | BY73: 0 | BZ73: 0 | CA73: 0 | CB73: 0 | CC73: 0 | CD73: 0 | CE73: 0 | CF73: 0 | CG73: 0 | CH73: 0 | CI73: 0 | CJ73: 0 | CK73: 0 | CL73: 0 | CM73: 0 | CN73: 0 | CO73: 0 | CP73: 0 | CQ73: 0 | CR73: 0 | CS73: 0 | CT73: 0 | CU73: 0 | CV73: 0 | CW73: 0 | CX73: 0 | CY73: 0 | CZ73: 0 | DA73: 0 | DB73: 0 | DC73: 0 | DD73: 0 | DE73: 0 | DF73: 0 | DG73: 0 | DH73: 0 | DI73: 0 | DJ73: 0
C74: Kiosk Mounted ; < = 22kV ; > 60 kVA and < = 600 kVA ; Multiple Phase | D74: 56.29344659 | E74: 7.50289588 | F74: 147.2766081 | G74: 152.0583161 | H74: 228.565645 | I74: 201.7880799 | J74: 184.5739309 | K74: 78.42001209 | L74: 153.9709993 | M74: 225.6966202 | N74: 166.4034403 | O74: 43.9917141 | P74: 20.08317383 | Q74: 28.69024833 | R74: 21.03951544 | S74: 15.30146577 | T74: 2.869024833 | U74: 6.694391276 | V74: 6.694391276 | W74: 1.912683222 | X74: 0.9563416108 | Y74: 1.912683222 | Z74: 21.99585705 | AA74: 21.99585705 | AB74: 26.7775651 | AC74: 49.72976376 | AD74: 44.94805571 | AE74: 53.55513021 | AF74: 58.33683826 | AG74: 37.29732282 | AH74: 27.73390671 | AI74: 30.60293155 | AJ74: 30.60293155 | AK74: 41.12268927 | AL74: 45.90439732 | AM74: 39.21000604 | AN74: 20.08317383 | AO74: 25.82122349 | AP74: 24.86488188 | AQ74: 21.03951544 | AR74: 22.95219866 | AS74: 17.214149 | AT74: 19.12683222 | AU74: 21.03951544 | AV74: 23.90854027 | AW74: 19.12683222 | AX74: 14.34512416 | AY74: 7.650732887 | AZ74: 2.869024833 | BA74: 10.51975772 | BB74: 6.694391276 | BC74: 1.912683222 | BD74: 3.825366443 | BE74: 6.694391276 | BF74: 13.38878255 | BG74: 14.34512416 | BH74: 2.869024833 | BI74: 5.738049665 | BJ74: 5.738049665 | BK74: 14.34512416 | BL74: 15.30146577 | BM74: 1.912683222 | BN74: 4.781708054 | BO74: 10.51975772 | BP74: 21.03951544 | BQ74: 13.38878255 | BR74: 0.9563416108 | BS74: 0.9563416108 | BT74: 0.9563416108 | BU74: 0.9563416108 | BV74: 0.9563416108 | BW74: 0 | BX74: 0 | BY74: 0 | BZ74: 0 | CA74: 0 | CB74: 0 | CC74: 0 | CD74: 0 | CE74: 0 | CF74: 0 | CG74: 0 | CH74: 0 | CI74: 0 | CJ74: 0 | CK74: 0 | CL74: 0 | CM74: 0 | CN74: 0 | CO74: 0 | CP74: 0 | CQ74: 0 | CR74: 0 | CS74: 0 | CT74: 0 | CU74: 0 | CV74: 0 | CW74: 0 | CX74: 0 | CY74: 0 | CZ74: 0 | DA74: 0 | DB74: 0 | DC74: 0 | DD74: 0 | DE74: 0 | DF74: 0 | DG74: 0 | DH74: 0 | DI74: 0 | DJ74: 0
C75: Kiosk Mounted ; < = 22kV ; > 600 kVA ; Multiple Phase | D75: 61.28228786 | E75: 7.828300445 | F75: 58.33683826 | G75: 58.33683826 | H75: 57.38049665 | I75: 56.42415504 | J75: 36.34098121 | K75: 21.99585705 | L75: 31.55927316 | M75: 39.21000604 | N75: 25.82122349 | O75: 5.738049665 | P75: 5.738049665 | Q75: 6.694391276 | R75: 1.912683222 | S75: 0 | T75: 0 | U75: 1.912683222 | V75: 1.912683222 | W75: 0.9563416108 | X75: 0.9563416108 | Y75: 0 | Z75: 4.781708054 | AA75: 4.781708054 | AB75: 2.869024833 | AC75: 5.738049665 | AD75: 4.781708054 | AE75: 3.825366443 | AF75: 3.825366443 | AG75: 3.825366443 | AH75: 2.869024833 | AI75: 0 | AJ75: 1.912683222 | AK75: 1.912683222 | AL75: 2.869024833 | AM75: 1.912683222 | AN75: 0.9563416108 | AO75: 0.9563416108 | AP75: 3.825366443 | AQ75: 3.825366443 | AR75: 2.869024833 | AS75: 0 | AT75: 0.9563416108 | AU75: 1.912683222 | AV75: 0 | AW75: 0 | AX75: 0 | AY75: 1.912683222 | AZ75: 1.912683222 | BA75: 0.9563416108 | BB75: 0.9563416108 | BC75: 0 | BD75: 1.912683222 | BE75: 1.912683222 | BF75: 1.912683222 | BG75: 2.869024833 | BH75: 0.9563416108 | BI75: 3.825366443 | BJ75: 3.825366443 | BK75: 1.912683222 | BL75: 1.912683222 | BM75: 0 | BN75: 0 | BO75: 2.869024833 | BP75: 3.825366443 | BQ75: 0 | BR75: 0 | BS75: 0 | BT75: 0 | BU75: 0 | BV75: 0 | BW75: 0 | BX75: 0 | BY75: 0 | BZ75: 0 | CA75: 0 | CB75: 0 | CC75: 0 | CD75: 0 | CE75: 0 | CF75: 0 | CG75: 0 | CH75: 0 | CI75: 0 | CJ75: 0 | CK75: 0 | CL75: 0 | CM75: 0 | CN75: 0 | CO75: 0 | CP75: 0 | CQ75: 0 | CR75: 0 | CS75: 0 | CT75: 0 | CU75: 0 | CV75: 0 | CW75: 0 | CX75: 0 | CY75: 0 | CZ75: 0 | DA75: 0 | DB75: 0 | DC75: 0 | DD75: 0 | DE75: 0 | DF75: 0 | DG75: 0 | DH75: 0 | DI75: 0 | DJ75: 0
C76: Ground Outdoor / Indoor Chamber Mounted; ˂ 22 kV ; < = 60 kVA ; Single Phase | D76: 63.48884422 | E76: 7.967988719 | F76: 0 | G76: 0 | H76: 0 | I76: 0 | J76: 0 | K76: 0 | L76: 0 | M76: 0 | N76: 0 | O76: 0 | P76: 0 | Q76: 0 | R76: 0 | S76: 0 | T76: 0 | U76: 0 | V76: 0 | W76: 0 | X76: 0 | Y76: 0 | Z76: 0 | AA76: 0 | AB76: 0 | AC76: 0 | AD76: 0 | AE76: 0 | AF76: 0 | AG76: 0 | AH76: 0 | AI76: 0 | AJ76: 0.9563416108 | AK76: 1.912683222 | AL76: 0.9563416108 | AM76: 0 | AN76: 0 | AO76: 0 | AP76: 0 | AQ76: 0 | AR76: 0 | AS76: 0 | AT76: 0 | AU76: 0 | AV76: 0 | AW76: 0 | AX76: 0 | AY76: 0.9563416108 | AZ76: 0.9563416108 | BA76: 0 | BB76: 0 | BC76: 0 | BD76: 0 | BE76: 0 | BF76: 0 | BG76: 0 | BH76: 0 | BI76: 0 | BJ76: 0.9563416108 | BK76: 0.9563416108 | BL76: 0.9563416108 | BM76: 0 | BN76: 0 | BO76: 0 | BP76: 0.9563416108 | BQ76: 0.9563416108 | BR76: 0 | BS76: 0 | BT76: 0 | BU76: 0 | BV76: 0 | BW76: 0 | BX76: 0 | BY76: 0 | BZ76: 0 | CA76: 0 | CB76: 0 | CC76: 0 | CD76: 0 | CE76: 0 | CF76: 0 | CG76: 0 | CH76: 0 | CI76: 0 | CJ76: 0 | CK76: 0 | CL76: 0 | CM76: 0 | CN76: 0 | CO76: 0 | CP76: 0 | CQ76: 0 | CR76: 0 | CS76: 0 | CT76: 0 | CU76: 0 | CV76: 0 | CW76: 0 | CX76: 0 | CY76: 0 | CZ76: 0 | DA76: 0 | DB76: 0 | DC76: 0 | DD76: 0 | DE76: 0 | DF76: 0 | DG76: 0 | DH76: 0 | DI76: 0 | DJ76: 0
C77: Ground Outdoor / Indoor Chamber Mounted; ˂ 22 kV ; > 60 kVA and < = 600 kVA ; Single Phase | D77: 100.4202805 | E77: 10.02099199 | F77: 0 | G77: 0 | H77: 0 | I77: 0 | J77: 0 | K77: 0 | L77: 0 | M77: 0 | N77: 0.9563416108 | O77: 1.912683222 | P77: 0.9563416108 | Q77: 1.912683222 | R77: 1.912683222 | S77: 0.9563416108 | T77: 0.9563416108 | U77: 0.9563416108 | V77: 1.912683222 | W77: 2.956341611 | X77: 4.781708054 | Y77: 3.825366443 | Z77: 3.825366443 | AA77: 1.912683222 | AB77: 0.9563416108 | AC77: 0.9563416108 | AD77: 0.9563416108 | AE77: 1.912683222 | AF77: 2.869024833 | AG77: 1.912683222 | AH77: 1.912683222 | AI77: 2.869024833 | AJ77: 4.781708054 | AK77: 6.694391276 | AL77: 8.607074498 | AM77: 8.607074498 | AN77: 6.694391276 | AO77: 14.34512416 | AP77: 16.25780738 | AQ77: 7.650732887 | AR77: 3.825366443 | AS77: 1.912683222 | AT77: 2.869024833 | AU77: 5.738049665 | AV77: 23.90854027 | AW77: 25.82122349 | AX77: 11.47609933 | AY77: 19.12683222 | AZ77: 20.08317383 | BA77: 16.25780738 | BB77: 16.25780738 | BC77: 16.25780738 | BD77: 16.25780738 | BE77: 13.38878255 | BF77: 13.38878255 | BG77: 9.563416108 | BH77: 4.781708054 | BI77: 3.825366443 | BJ77: 2.869024833 | BK77: 4.781708054 | BL77: 3.825366443 | BM77: 0.9563416108 | BN77: 2.869024833 | BO77: 4.781708054 | BP77: 5.738049665 | BQ77: 2.869024833 | BR77: 0 | BS77: 0 | BT77: 0 | BU77: 0.9563416108 | BV77: 0.9563416108 | BW77: 0 | BX77: 0 | BY77: 0 | BZ77: 0 | CA77: 0 | CB77: 0 | CC77: 0 | CD77: 0 | CE77: 0 | CF77: 0 | CG77: 0 | CH77: 0 | CI77: 0 | CJ77: 0 | CK77: 0 | CL77: 0 | CM77: 0 | CN77: 0 | CO77: 0 | CP77: 0 | CQ77: 0 | CR77: 0 | CS77: 0 | CT77: 0 | CU77: 0 | CV77: 0 | CW77: 0 | CX77: 0 | CY77: 0 | CZ77: 0 | DA77: 0 | DB77: 0 | DC77: 0 | DD77: 0 | DE77: 0 | DF77: 0 | DG77: 0 | DH77: 0 | DI77: 0 | DJ77: 0
C78: Ground Outdoor / Indoor Chamber Mounted; ˂ 22 kV ; > 600 kVA ; Single Phase | D78: 63.48884422 | E78: 7.967988719 | F78: 0 | G78: 0 | H78: 0 | I78: 0 | J78: 0 | K78: 0 | L78: 0 | M78: 0 | N78: 0 | O78: 0 | P78: 0 | Q78: 0 | R78: 0 | S78: 0 | T78: 0.9563416108 | U78: 1.912683222 | V78: 1.912683222 | W78: 1.912683222 | X78: 0.9563416108 | Y78: 0.9563416108 | Z78: 1.912683222 | AA78: 1.912683222 | AB78: 3.825366443 | AC78: 4.781708054 | AD78: 3.825366443 | AE78: 2.869024833 | AF78: 2.869024833 | AG78: 1.912683222 | AH78: 4.781708054 | AI78: 4.781708054 | AJ78: 3.825366443 | AK78: 7.650732887 | AL78: 6.694391276 | AM78: 5.738049665 | AN78: 6.694391276 | AO78: 8.607074498 | AP78: 8.607074498 | AQ78: 7.650732887 | AR78: 6.694391276 | AS78: 2.869024833 | AT78: 2.869024833 | AU78: 3.825366443 | AV78: 6.694391276 | AW78: 6.694391276 | AX78: 4.781708054 | AY78: 2.869024833 | AZ78: 0.9563416108 | BA78: 4.781708054 | BB78: 5.738049665 | BC78: 3.825366443 | BD78: 4.781708054 | BE78: 3.825366443 | BF78: 1.912683222 | BG78: 0 | BH78: 0 | BI78: 6.694391276 | BJ78: 7.650732887 | BK78: 1.912683222 | BL78: 1.912683222 | BM78: 0 | BN78: 0 | BO78: 1.912683222 | BP78: 1.912683222 | BQ78: 0 | BR78: 0 | BS78: 0.9563416108 | BT78: 0.9563416108 | BU78: 1.912683222 | BV78: 1.912683222 | BW78: 0 | BX78: 0 | BY78: 0 | BZ78: 0 | CA78: 0 | CB78: 0 | CC78: 0 | CD78: 0 | CE78: 0 | CF78: 0 | CG78: 0 | CH78: 0 | CI78: 0 | CJ78: 0 | CK78: 0 | CL78: 0 | CM78: 0 | CN78: 0 | CO78: 0 | CP78: 0 | CQ78: 0 | CR78: 0 | CS78: 0 | CT78: 0 | CU78: 0 | CV78: 0 | CW78: 0 | CX78: 0 | CY78: 0 | CZ78: 0 | DA78: 0 | DB78: 0 | DC78: 0 | DD78: 0 | DE78: 0 | DF78: 0 | DG78: 0 | DH78: 0 | DI78: 0 | DJ78: 0
C79: Ground Outdoor / Indoor Chamber Mounted; ˂ 22 kV ; < = 60 kVA ; Multiple Phase | E79: 0 | F79: 0 | G79: 0 | H79: 0 | I79: 0 | J79: 0 | K79: 0 | L79: 0 | M79: 0 | N79: 0 | O79: 0 | P79: 0 | Q79: 0 | R79: 0 | S79: 0 | T79: 0 | U79: 0 | V79: 0 | W79: 0 | X79: 0 | Y79: 0 | Z79: 0 | AA79: 0 | AB79: 0 | AC79: 0 | AD79: 0 | AE79: 0 | AF79: 0 | AG79: 0 | AH79: 0 | AI79: 0 | AJ79: 0 | AK79: 0 | AL79: 0 | AM79: 0 | AN79: 0 | AO79: 0 | AP79: 0 | AQ79: 0 | AR79: 0 | AS79: 0 | AT79: 0 | AU79: 0 | AV79: 0 | AW79: 0 | AX79: 0 | AY79: 0 | AZ79: 0 | BA79: 0 | BB79: 0 | BC79: 0 | BD79: 0 | BE79: 0 | BF79: 0 | BG79: 0 | BH79: 0 | BI79: 0 | BJ79: 0 | BK79: 0 | BL79: 0 | BM79: 0 | BN79: 0 | BO79: 0 | BP79: 0 | BQ79: 0 | BR79: 0 | BS79: 0 | BT79: 0 | BU79: 0 | BV79: 0 | BW79: 0 | BX79: 0 | BY79: 0 | BZ79: 0 | CA79: 0 | CB79: 0 | CC79: 0 | CD79: 0 | CE79: 0 | CF79: 0 | CG79: 0 | CH79: 0 | CI79: 0 | CJ79: 0 | CK79: 0 | CL79: 0 | CM79: 0 | CN79: 0 | CO79: 0 | CP79: 0 | CQ79: 0 | CR79: 0 | CS79: 0 | CT79: 0 | CU79: 0 | CV79: 0 | CW79: 0 | CX79: 0 | CY79: 0 | CZ79: 0 | DA79: 0 | DB79: 0 | DC79: 0 | DD79: 0 | DE79: 0 | DF79: 0 | DG79: 0 | DH79: 0 | DI79: 0 | DJ79: 0
C80: Ground Outdoor / Indoor Chamber Mounted; ˂ 22 kV ; > 60 kVA and < = 600 kVA ; Multiple Phase | D80: 67.38740508 | E80: 8.208983194 | F80: 0 | G80: 0 | H80: 0 | I80: 0 | J80: 0 | K80: 0 | L80: 0 | M80: 0 | N80: 0 | O80: 0 | P80: 0.9563416108 | Q80: 0.9563416108 | R80: 0 | S80: 0 | T80: 0 | U80: 0 | V80: 0 | W80: 0 | X80: 0 | Y80: 0 | Z80: 0 | AA80: 0 | AB80: 0 | AC80: 0 | AD80: 0 | AE80: 0 | AF80: 0 | AG80: 0 | AH80: 0 | AI80: 0 | AJ80: 0 | AK80: 0 | AL80: 0 | AM80: 0 | AN80: 0 | AO80: 0 | AP80: 0 | AQ80: 0 | AR80: 0 | AS80: 0 | AT80: 0 | AU80: 0 | AV80: 0 | AW80: 0 | AX80: 0 | AY80: 0 | AZ80: 1 | BA80: 0 | BB80: 0 | BC80: 1 | BD80: 0 | BE80: 0 | BF80: 0 | BG80: 0 | BH80: 0 | BI80: 0 | BJ80: 0 | BK80: 0 | BL80: 2 | BM80: 0 | BN80: 0 | BO80: 0 | BP80: 0 | BQ80: 0 | BR80: 0 | BS80: 0.9563416108 | BT80: 0.9563416108 | BU80: 0 | BV80: 0 | BW80: 0 | BX80: 0 | BY80: 0 | BZ80: 0 | CA80: 0 | CB80: 0 | CC80: 0 | CD80: 0 | CE80: 0 | CF80: 0 | CG80: 0 | CH80: 0 | CI80: 0 | CJ80: 0 | CK80: 0 | CL80: 0 | CM80: 0 | CN80: 0 | CO80: 0 | CP80: 0 | CQ80: 0 | CR80: 0 | CS80: 0 | CT80: 0 | CU80: 0 | CV80: 0 | CW80: 0 | CX80: 0 | CY80: 0 | CZ80: 0 | DA80: 0 | DB80: 0 | DC80: 0 | DD80: 0 | DE80: 0 | DF80: 0 | DG80: 0 | DH80: 0 | DI80: 0 | DJ80: 0
C81: Ground Outdoor / Indoor Chamber Mounted; ˂ 22 kV ; > 600 kVA ; Multiple Phase | D81: 63.48626917 | E81: 7.96782713 | F81: 0 | G81: 0 | H81: 0 | I81: 0 | J81: 0 | K81: 0 | L81: 0 | M81: 0 | N81: 0 | O81: 0 | P81: 0 | Q81: 3 | R81: 0 | S81: 0 | T81: 0 | U81: 0 | V81: 1 | W81: 0 | X81: 2 | Y81: 0 | Z81: 0 | AA81: 0 | AB81: 0 | AC81: 0 | AD81: 0 | AE81: 0 | AF81: 2 | AG81: 0 | AH81: 0 | AI81: 4 | AJ81: 2 | AK81: 0 | AL81: 8 | AM81: 0 | AN81: 4 | AO81: 1 | AP81: 2 | AQ81: 1 | AR81: 2 | AS81: 2 | AT81: 4 | AU81: 0 | AV81: 2 | AW81: 2 | AX81: 1 | AY81: 0 | AZ81: 10 | BA81: 4 | BB81: 1 | BC81: 1 | BD81: 5 | BE81: 2 | BF81: 2 | BG81: 5 | BH81: 1 | BI81: 1 | BJ81: 1 | BK81: 0 | BL81: 0 | BM81: 0 | BN81: 0 | BO81: 0 | BP81: 0 | BQ81: 0 | BR81: 0 | BS81: 0 | BT81: 0 | BU81: 0 | BV81: 0 | BW81: 0 | BX81: 0 | BY81: 0 | BZ81: 0 | CA81: 0 | CB81: 0 | CC81: 0 | CD81: 0 | CE81: 0 | CF81: 0 | CG81: 0 | CH81: 0 | CI81: 0 | CJ81: 0 | CK81: 0 | CL81: 0 | CM81: 0 | CN81: 0 | CO81: 0 | CP81: 0 | CQ81: 0 | CR81: 0 | CS81: 0 | CT81: 0 | CU81: 0 | CV81: 0 | CW81: 0 | CX81: 0 | CY81: 0 | CZ81: 0 | DA81: 0 | DB81: 0 | DC81: 0 | DD81: 0 | DE81: 0 | DF81: 0 | DG81: 0 | DH81: 0 | DI81: 0 | DJ81: 0
C82: Ground Outdoor / Indoor Chamber Mounted; > = 22 kV & < = 33 kV ; < = 15 MVA | D82: 63.20388977 | E82: 7.950087407 | F82: 6 | G82: 8 | H82: 5 | I82: 6 | J82: 2 | K82: 8 | L82: 11 | M82: 6 | N82: 7 | O82: 4 | P82: 3 | Q82: 4.956341611 | R82: 2.956341611 | S82: 2 | T82: 5.956341611 | U82: 4.956341611 | V82: 8.956341611 | W82: 12.78170805 | X82: 5.781708054 | Y82: 2.912683222 | Z82: 3.912683222 | AA82: 2.869024833 | AB82: 4.869024833 | AC82: 1.912683222 | AD82: 1.956341611 | AE82: 0.9563416108 | AF82: 15.91268322 | AG82: 3.912683222 | AH82: 4.912683222 | AI82: 10.51975772 | AJ82: 36.47609933 | AK82: 3.825366443 | AL82: 8.912683222 | AM82: 0.9563416108 | AN82: 10.91268322 | AO82: 16.86902483 | AP82: 1.912683222 | AQ82: 3.825366443 | AR82: 4.825366443 | AS82: 3 | AT82: 1.912683222 | AU82: 7.912683222 | AV82: 6.912683222 | AW82: 12.91268322 | AX82: 1.912683222 | AY82: 3.956341611 | AZ82: 0.9563416108 | BA82: 4.912683222 | BB82: 20.91268322 | BC82: 3.912683222 | BD82: 1.956341611 | BE82: 13.95634161 | BF82: 9.912683222 | BG82: 0.9563416108 | BH82: 6.912683222 | BI82: 9.912683222 | BJ82: 4.956341611 | BK82: 2.956341611 | BL82: 0.9563416108 | BM82: 4.912683222 | BN82: 3.956341611 | BO82: 7.912683222 | BP82: 7.912683222 | BQ82: 2 | BR82: 2 | BS82: 0.9563416108 | BT82: 4.956341611 | BU82: 0.9563416108 | BV82: 0.9563416108 | BW82: 0 | BX82: 0 | BY82: 0 | BZ82: 0 | CA82: 0 | CB82: 0 | CC82: 0 | CD82: 0 | CE82: 0 | CF82: 0 | CG82: 0 | CH82: 0 | CI82: 0 | CJ82: 0 | CK82: 0 | CL82: 0 | CM82: 0 | CN82: 0 | CO82: 0 | CP82: 0 | CQ82: 0 | CR82: 0 | CS82: 0 | CT82: 0 | CU82: 0 | CV82: 0 | CW82: 0 | CX82: 0 | CY82: 0 | CZ82: 0 | DA82: 0 | DB82: 0 | DC82: 0 | DD82: 0 | DE82: 0 | DF82: 0 | DG82: 0 | DH82: 0 | DI82: 0 | DJ82: 0
C83: Ground Outdoor / Indoor Chamber Mounted; > = 22 kV & < = 33 kV ; > 15 MVA and < = 40 MVA | D83: 63.48884422 | E83: 7.967988719 | F83: 0 | G83: 0 | H83: 0 | I83: 0 | J83: 1 | K83: 0 | L83: 0 | M83: 0 | N83: 0 | O83: 0 | P83: 0 | Q83: 0 | R83: 1 | S83: 0 | T83: 0 | U83: 0 | V83: 1 | W83: 0 | X83: 0 | Y83: 0 | Z83: 0 | AA83: 0 | AB83: 0 | AC83: 0 | AD83: 0 | AE83: 0 | AF83: 0 | AG83: 0 | AH83: 0 | AI83: 0 | AJ83: 1 | AK83: 0 | AL83: 0 | AM83: 0 | AN83: 0 | AO83: 1 | AP83: 0 | AQ83: 0 | AR83: 0 | AS83: 0 | AT83: 0 | AU83: 0 | AV83: 0 | AW83: 0 | AX83: 0 | AY83: 0 | AZ83: 0 | BA83: 0 | BB83: 0 | BC83: 0 | BD83: 0 | BE83: 0 | BF83: 0 | BG83: 0 | BH83: 0 | BI83: 0 | BJ83: 0 | BK83: 0 | BL83: 0 | BM83: 0 | BN83: 0 | BO83: 0 | BP83: 0 | BQ83: 0 | BR83: 0 | BS83: 0 | BT83: 0 | BU83: 0 | BV83: 0 | BW83: 0 | BX83: 0 | BY83: 0 | BZ83: 0 | CA83: 0 | CB83: 0 | CC83: 0 | CD83: 0 | CE83: 0 | CF83: 0 | CG83: 0 | CH83: 0 | CI83: 0 | CJ83: 0 | CK83: 0 | CL83: 0 | CM83: 0 | CN83: 0 | CO83: 0 | CP83: 0 | CQ83: 0 | CR83: 0 | CS83: 0 | CT83: 0 | CU83: 0 | CV83: 0 | CW83: 0 | CX83: 0 | CY83: 0 | CZ83: 0 | DA83: 0 | DB83: 0 | DC83: 0 | DD83: 0 | DE83: 0 | DF83: 0 | DG83: 0 | DH83: 0 | DI83: 0 | DJ83: 0
C84: Ground Outdoor / Indoor Chamber Mounted; > = 22 kV & < = 33 kV ; > 40 MVA | E84: 0 | F84: 0 | G84: 0 | H84: 0 | I84: 0 | J84: 0 | K84: 0 | L84: 0 | M84: 0 | N84: 0 | O84: 0 | P84: 0 | Q84: 0 | R84: 0 | S84: 0 | T84: 0 | U84: 0 | V84: 0 | W84: 0 | X84: 0 | Y84: 0 | Z84: 0 | AA84: 0 | AB84: 0 | AC84: 0 | AD84: 0 | AE84: 0 | AF84: 0 | AG84: 0 | AH84: 0 | AI84: 0 | AJ84: 0 | AK84: 0 | AL84: 0 | AM84: 0 | AN84: 0 | AO84: 0 | AP84: 0 | AQ84: 0 | AR84: 0 | AS84: 0 | AT84: 0 | AU84: 0 | AV84: 0 | AW84: 0 | AX84: 0 | AY84: 0 | AZ84: 0 | BA84: 0 | BB84: 0 | BC84: 0 | BD84: 0 | BE84: 0 | BF84: 0 | BG84: 0 | BH84: 0 | BI84: 0 | BJ84: 0 | BK84: 0 | BL84: 0 | BM84: 0 | BN84: 0 | BO84: 0 | BP84: 0 | BQ84: 0 | BR84: 0 | BS84: 0 | BT84: 0 | BU84: 0 | BV84: 0 | BW84: 0 | BX84: 0 | BY84: 0 | BZ84: 0 | CA84: 0 | CB84: 0 | CC84: 0 | CD84: 0 | CE84: 0 | CF84: 0 | CG84: 0 | CH84: 0 | CI84: 0 | CJ84: 0 | CK84: 0 | CL84: 0 | CM84: 0 | CN84: 0 | CO84: 0 | CP84: 0 | CQ84: 0 | CR84: 0 | CS84: 0 | CT84: 0 | CU84: 0 | CV84: 0 | CW84: 0 | CX84: 0 | CY84: 0 | CZ84: 0 | DA84: 0 | DB84: 0 | DC84: 0 | DD84: 0 | DE84: 0 | DF84: 0 | DG84: 0 | DH84: 0 | DI84: 0 | DJ84: 0
C85: Ground Outdoor / Indoor Chamber Mounted; > 33 kV & < = 66 kV ; < = 15 MVA | D85: 76.73262249 | E85: 8.759715891 | F85: 0 | G85: 0 | H85: 2 | I85: 0 | J85: 1 | K85: 1 | L85: 0 | M85: 4 | N85: 3 | O85: 0 | P85: 4 | Q85: 0 | R85: 0 | S85: 0 | T85: 1 | U85: 0 | V85: 0 | W85: 6 | X85: 1 | Y85: 1 | Z85: 0 | AA85: 0 | AB85: 0 | AC85: 0 | AD85: 0 | AE85: 0 | AF85: 4 | AG85: 1 | AH85: 2 | AI85: 1 | AJ85: 2 | AK85: 5 | AL85: 0 | AM85: 0 | AN85: 9 | AO85: 0 | AP85: 0 | AQ85: 1 | AR85: 0 | AS85: 5 | AT85: 5 | AU85: 0 | AV85: 0 | AW85: 3 | AX85: 0 | AY85: 0 | AZ85: 3 | BA85: 0 | BB85: 10 | BC85: 7 | BD85: 5 | BE85: 7 | BF85: 5 | BG85: 5 | BH85: 18 | BI85: 5 | BJ85: 14 | BK85: 5 | BL85: 0 | BM85: 2 | BN85: 5 | BO85: 0 | BP85: 2 | BQ85: 4 | BR85: 2 | BS85: 0 | BT85: 2 | BU85: 1 | BV85: 0 | BW85: 0 | BX85: 0 | BY85: 0 | BZ85: 0 | CA85: 0 | CB85: 0 | CC85: 1 | CD85: 0 | CE85: 0 | CF85: 0 | CG85: 0 | CH85: 0 | CI85: 0 | CJ85: 0 | CK85: 0 | CL85: 0 | CM85: 0 | CN85: 0 | CO85: 0 | CP85: 0 | CQ85: 0 | CR85: 0 | CS85: 0 | CT85: 0 | CU85: 0 | CV85: 0 | CW85: 0 | CX85: 0 | CY85: 0 | CZ85: 0 | DA85: 0 | DB85: 0 | DC85: 0 | DD85: 0 | DE85: 0 | DF85: 0 | DG85: 0 | DH85: 0 | DI85: 0 | DJ85: 0
C86: Ground Outdoor / Indoor Chamber Mounted; > 33 kV & < = 66 kV ; > 15 MVA and < = 40 MVA | D86: 63.62635711 | E86: 7.976613135 | F86: 3 | G86: 0 | H86: 1 | I86: 3 | J86: 5 | K86: 1 | L86: 8 | M86: 4 | N86: 4 | O86: 4 | P86: 2 | Q86: 4 | R86: 2 | S86: 5 | T86: 2 | U86: 5 | V86: 4 | W86: 4 | X86: 0 | Y86: 1 | Z86: 0 | AA86: 0 | AB86: 2 | AC86: 0 | AD86: 3 | AE86: 0 | AF86: 1 | AG86: 5 | AH86: 1 | AI86: 3 | AJ86: 0 | AK86: 1 | AL86: 4 | AM86: 0 | AN86: 2 | AO86: 3 | AP86: 2 | AQ86: 0 | AR86: 4 | AS86: 1 | AT86: 4 | AU86: 0 | AV86: 0 | AW86: 0 | AX86: 0 | AY86: 1 | AZ86: 4 | BA86: 0 | BB86: 4 | BC86: 6 | BD86: 4 | BE86: 2 | BF86: 0 | BG86: 0 | BH86: 0 | BI86: 0 | BJ86: 0 | BK86: 0 | BL86: 0 | BM86: 0 | BN86: 0 | BO86: 2 | BP86: 3 | BQ86: 0 | BR86: 0 | BS86: 0 | BT86: 0 | BU86: 0 | BV86: 0 | BW86: 0 | BX86: 0 | BY86: 0 | BZ86: 0 | CA86: 0 | CB86: 0 | CC86: 0 | CD86: 0 | CE86: 0 | CF86: 0 | CG86: 0 | CH86: 0 | CI86: 0 | CJ86: 0 | CK86: 0 | CL86: 0 | CM86: 0 | CN86: 0 | CO86: 0 | CP86: 0 | CQ86: 0 | CR86: 0 | CS86: 0 | CT86: 0 | CU86: 0 | CV86: 0 | CW86: 0 | CX86: 0 | CY86: 0 | CZ86: 0 | DA86: 0 | DB86: 0 | DC86: 0 | DD86: 0 | DE86: 0 | DF86: 0 | DG86: 0 | DH86: 0 | DI86: 0 | DJ86: 0
C87: Ground Outdoor / Indoor Chamber Mounted; > 33 kV & < = 66 kV ; > 40 MVA | E87: 0 | F87: 0 | G87: 0 | H87: 0 | I87: 0 | J87: 0 | K87: 0 | L87: 0 | M87: 0 | N87: 0 | O87: 0 | P87: 0 | Q87: 0 | R87: 0 | S87: 0 | T87: 0 | U87: 0 | V87: 0 | W87: 0 | X87: 0 | Y87: 0 | Z87: 0 | AA87: 0 | AB87: 0 | AC87: 0 | AD87: 0 | AE87: 0 | AF87: 0 | AG87: 0 | AH87: 0 | AI87: 0 | AJ87: 0 | AK87: 0 | AL87: 0 | AM87: 0 | AN87: 0 | AO87: 0 | AP87: 0 | AQ87: 0 | AR87: 0 | AS87: 0 | AT87: 0 | AU87: 0 | AV87: 0 | AW87: 0 | AX87: 0 | AY87: 0 | AZ87: 0 | BA87: 0 | BB87: 0 | BC87: 0 | BD87: 0 | BE87: 0 | BF87: 0 | BG87: 0 | BH87: 0 | BI87: 0 | BJ87: 0 | BK87: 0 | BL87: 0 | BM87: 0 | BN87: 0 | BO87: 0 | BP87: 0 | BQ87: 0 | BR87: 0 | BS87: 0 | BT87: 0 | BU87: 0 | BV87: 0 | BW87: 0 | BX87: 0 | BY87: 0 | BZ87: 0 | CA87: 0 | CB87: 0 | CC87: 0 | CD87: 0 | CE87: 0 | CF87: 0 | CG87: 0 | CH87: 0 | CI87: 0 | CJ87: 0 | CK87: 0 | CL87: 0 | CM87: 0 | CN87: 0 | CO87: 0 | CP87: 0 | CQ87: 0 | CR87: 0 | CS87: 0 | CT87: 0 | CU87: 0 | CV87: 0 | CW87: 0 | CX87: 0 | CY87: 0 | CZ87: 0 | DA87: 0 | DB87: 0 | DC87: 0 | DD87: 0 | DE87: 0 | DF87: 0 | DG87: 0 | DH87: 0 | DI87: 0 | DJ87: 0
C88: Ground Outdoor / Indoor Chamber Mounted; > 66 kV & < = 132 kV ; < = 100 MVA | E88: 0 | F88: 0 | G88: 0 | H88: 0 | I88: 0 | J88: 0 | K88: 0 | L88: 0 | M88: 0 | N88: 0 | O88: 0 | P88: 0 | Q88: 0 | R88: 0 | S88: 0 | T88: 0 | U88: 0 | V88: 0 | W88: 0 | X88: 0 | Y88: 0 | Z88: 0 | AA88: 0 | AB88: 0 | AC88: 0 | AD88: 0 | AE88: 0 | AF88: 0 | AG88: 0 | AH88: 0 | AI88: 0 | AJ88: 0 | AK88: 0 | AL88: 0 | AM88: 0 | AN88: 0 | AO88: 0 | AP88: 0 | AQ88: 0 | AR88: 0 | AS88: 0 | AT88: 0 | AU88: 0 | AV88: 0 | AW88: 0 | AX88: 0 | AY88: 0 | AZ88: 0 | BA88: 0 | BB88: 0 | BC88: 0 | BD88: 0 | BE88: 0 | BF88: 0 | BG88: 0 | BH88: 0 | BI88: 0 | BJ88: 0 | BK88: 0 | BL88: 0 | BM88: 0 | BN88: 0 | BO88: 0 | BP88: 0 | BQ88: 0 | BR88: 0 | BS88: 0 | BT88: 0 | BU88: 0 | BV88: 0 | BW88: 0 | BX88: 0 | BY88: 0 | BZ88: 0 | CA88: 0 | CB88: 0 | CC88: 0 | CD88: 0 | CE88: 0 | CF88: 0 | CG88: 0 | CH88: 0 | CI88: 0 | CJ88: 0 | CK88: 0 | CL88: 0 | CM88: 0 | CN88: 0 | CO88: 0 | CP88: 0 | CQ88: 0 | CR88: 0 | CS88: 0 | CT88: 0 | CU88: 0 | CV88: 0 | CW88: 0 | CX88: 0 | CY88: 0 | CZ88: 0 | DA88: 0 | DB88: 0 | DC88: 0 | DD88: 0 | DE88: 0 | DF88: 0 | DG88: 0 | DH88: 0 | DI88: 0 | DJ88: 0
C89: Ground Outdoor / Indoor Chamber Mounted; > 66 kV & < = 132 kV ; > 100 MVA | E89: 0 | F89: 0 | G89: 0 | H89: 0 | I89: 0 | J89: 0 | K89: 0 | L89: 0 | M89: 0 | N89: 0 | O89: 0 | P89: 0 | Q89: 0 | R89: 0 | S89: 0 | T89: 0 | U89: 0 | V89: 0 | W89: 0 | X89: 0 | Y89: 0 | Z89: 0 | AA89: 0 | AB89: 0 | AC89: 0 | AD89: 0 | AE89: 0 | AF89: 0 | AG89: 0 | AH89: 0 | AI89: 0 | AJ89: 0 | AK89: 0 | AL89: 0 | AM89: 0 | AN89: 0 | AO89: 0 | AP89: 0 | AQ89: 0 | AR89: 0 | AS89: 0 | AT89: 0 | AU89: 0 | AV89: 0 | AW89: 0 | AX89: 0 | AY89: 0 | AZ89: 0 | BA89: 0 | BB89: 0 | BC89: 0 | BD89: 0 | BE89: 0 | BF89: 0 | BG89: 0 | BH89: 0 | BI89: 0 | BJ89: 0 | BK89: 0 | BL89: 0 | BM89: 0 | BN89: 0 | BO89: 0 | BP89: 0 | BQ89: 0 | BR89: 0 | BS89: 0 | BT89: 0 | BU89: 0 | BV89: 0 | BW89: 0 | BX89: 0 | BY89: 0 | BZ89: 0 | CA89: 0 | CB89: 0 | CC89: 0 | CD89: 0 | CE89: 0 | CF89: 0 | CG89: 0 | CH89: 0 | CI89: 0 | CJ89: 0 | CK89: 0 | CL89: 0 | CM89: 0 | CN89: 0 | CO89: 0 | CP89: 0 | CQ89: 0 | CR89: 0 | CS89: 0 | CT89: 0 | CU89: 0 | CV89: 0 | CW89: 0 | CX89: 0 | CY89: 0 | CZ89: 0 | DA89: 0 | DB89: 0 | DC89: 0 | DD89: 0 | DE89: 0 | DF89: 0 | DG89: 0 | DH89: 0 | DI89: 0 | DJ89: 0
C90: Ground Outdoor / Indoor Chamber Mounted; > 132 kV ; < = 100 MVA | E90: 0 | F90: 0 | G90: 0 | H90: 0 | I90: 0 | J90: 0 | K90: 0 | L90: 0 | M90: 0 | N90: 0 | O90: 0 | P90: 0 | Q90: 0 | R90: 0 | S90: 0 | T90: 0 | U90: 0 | V90: 0 | W90: 0 | X90: 0 | Y90: 0 | Z90: 0 | AA90: 0 | AB90: 0 | AC90: 0 | AD90: 0 | AE90: 0 | AF90: 0 | AG90: 0 | AH90: 0 | AI90: 0 | AJ90: 0 | AK90: 0 | AL90: 0 | AM90: 0 | AN90: 0 | AO90: 0 | AP90: 0 | AQ90: 0 | AR90: 0 | AS90: 0 | AT90: 0 | AU90: 0 | AV90: 0 | AW90: 0 | AX90: 0 | AY90: 0 | AZ90: 0 | BA90: 0 | BB90: 0 | BC90: 0 | BD90: 0 | BE90: 0 | BF90: 0 | BG90: 0 | BH90: 0 | BI90: 0 | BJ90: 0 | BK90: 0 | BL90: 0 | BM90: 0 | BN90: 0 | BO90: 0 | BP90: 0 | BQ90: 0 | BR90: 0 | BS90: 0 | BT90: 0 | BU90: 0 | BV90: 0 | BW90: 0 | BX90: 0 | BY90: 0 | BZ90: 0 | CA90: 0 | CB90: 0 | CC90: 0 | CD90: 0 | CE90: 0 | CF90: 0 | CG90: 0 | CH90: 0 | CI90: 0 | CJ90: 0 | CK90: 0 | CL90: 0 | CM90: 0 | CN90: 0 | CO90: 0 | CP90: 0 | CQ90: 0 | CR90: 0 | CS90: 0 | CT90: 0 | CU90: 0 | CV90: 0 | CW90: 0 | CX90: 0 | CY90: 0 | CZ90: 0 | DA90: 0 | DB90: 0 | DC90: 0 | DD90: 0 | DE90: 0 | DF90: 0 | DG90: 0 | DH90: 0 | DI90: 0 | DJ90: 0
C91: Ground Outdoor / Indoor Chamber Mounted; > 132 kV ; > 100 MVA | E91: 0 | F91: 0 | G91: 0 | H91: 0 | I91: 0 | J91: 0 | K91: 0 | L91: 0 | M91: 0 | N91: 0 | O91: 0 | P91: 0 | Q91: 0 | R91: 0 | S91: 0 | T91: 0 | U91: 0 | V91: 0 | W91: 0 | X91: 0 | Y91: 0 | Z91: 0 | AA91: 0 | AB91: 0 | AC91: 0 | AD91: 0 | AE91: 0 | AF91: 0 | AG91: 0 | AH91: 0 | AI91: 0 | AJ91: 0 | AK91: 0 | AL91: 0 | AM91: 0 | AN91: 0 | AO91: 0 | AP91: 0 | AQ91: 0 | AR91: 0 | AS91: 0 | AT91: 0 | AU91: 0 | AV91: 0 | AW91: 0 | AX91: 0 | AY91: 0 | AZ91: 0 | BA91: 0 | BB91: 0 | BC91: 0 | BD91: 0 | BE91: 0 | BF91: 0 | BG91: 0 | BH91: 0 | BI91: 0 | BJ91: 0 | BK91: 0 | BL91: 0 | BM91: 0 | BN91: 0 | BO91: 0 | BP91: 0 | BQ91: 0 | BR91: 0 | BS91: 0 | BT91: 0 | BU91: 0 | BV91: 0 | BW91: 0 | BX91: 0 | BY91: 0 | BZ91: 0 | CA91: 0 | CB91: 0 | CC91: 0 | CD91: 0 | CE91: 0 | CF91: 0 | CG91: 0 | CH91: 0 | CI91: 0 | CJ91: 0 | CK91: 0 | CL91: 0 | CM91: 0 | CN91: 0 | CO91: 0 | CP91: 0 | CQ91: 0 | CR91: 0 | CS91: 0 | CT91: 0 | CU91: 0 | CV91: 0 | CW91: 0 | CX91: 0 | CY91: 0 | CZ91: 0 | DA91: 0 | DB91: 0 | DC91: 0 | DD91: 0 | DE91: 0 | DF91: 0 | DG91: 0 | DH91: 0 | DI91: 0 | DJ91: 0
C92: Other | E92: 0
B93: SWITCHGEAR BY: HIGHEST OPERATING VOLTAGE ; SWITCH FUNCTION | C93: ˂ = 11 kV ; Fuse | E93: 0
C94: ˂ = 11 kV ; Switch | D94: 63.9852361 | E94: 7.999077203 | F94: 8 | G94: 14 | H94: 11 | I94: 0 | J94: 21 | K94: 40 | L94: 17 | M94: 5 | N94: 9 | O94: 18 | P94: 13 | Q94: 4 | R94: 2 | S94: 2 | T94: 2 | U94: 0 | V94: 3 | W94: 0 | X94: 0 | Y94: 1 | Z94: 0 | AA94: 2 | AB94: 12 | AC94: 0 | AD94: 0 | AE94: 0 | AF94: 6 | AG94: 15 | AH94: 1 | AI94: 9 | AJ94: 5 | AK94: 15 | AL94: 0 | AM94: 8 | AN94: 29 | AO94: 20 | AP94: 11 | AQ94: 28 | AR94: 23 | AS94: 3 | AT94: 44 | AU94: 27 | AV94: 27 | AW94: 6 | AX94: 9 | AY94: 72 | AZ94: 34 | BA94: 107 | BB94: 143 | BC94: 87 | BD94: 81 | BE94: 108 | BF94: 144 | BG94: 34 | BH94: 41 | BI94: 11 | BJ94: 9 | BK94: 0 | BL94: 3 | BM94: 5 | BN94: 55 | BO94: 3 | BP94: 37 | BQ94: 0 | BR94: 0 | BS94: 3 | BT94: 0 | BU94: 3 | BV94: 0 | BW94: 0 | BX94: 0 | BY94: 0 | BZ94: 0 | CA94: 0 | CB94: 0 | CC94: 0 | CD94: 8 | CE94: 0 | CF94: 0 | CG94: 0 | CH94: 0 | CI94: 0 | CJ94: 0 | CK94: 0 | CL94: 0 | CM94: 0 | CN94: 0 | CO94: 0 | CP94: 0 | CQ94: 0 | CR94: 0 | CS94: 0 | CT94: 0 | CU94: 0 | CV94: 0 | CW94: 0 | CX94: 0 | CY94: 0 | CZ94: 0 | DA94: 0 | DB94: 0 | DC94: 0 | DD94: 0 | DE94: 0 | DF94: 0 | DG94: 0 | DH94: 0 | DI94: 0 | DJ94: 0
C95: ˂ = 11 kV ; Circuit Breaker | D95: 62.40011672 | E95: 7.899374451 | F95: 38 | G95: 7 | H95: 20 | I95: 27 | J95: 27 | K95: 65 | L95: 135 | M95: 35 | N95: 20 | O95: 32 | P95: 12 | Q95: 32 | R95: 13 | S95: 14 | T95: 17 | U95: 30 | V95: 31 | W95: 10 | X95: 4 | Y95: 32 | Z95: 11 | AA95: 10 | AB95: 0 | AC95: 0 | AD95: 6 | AE95: 4 | AF95: 9 | AG95: 20 | AH95: 28 | AI95: 0 | AJ95: 26 | AK95: 0 | AL95: 31 | AM95: 0 | AN95: 0 | AO95: 3 | AP95: 0 | AQ95: 0 | AR95: 0 | AS95: 0 | AT95: 0 | AU95: 2 | AV95: 11 | AW95: 0 | AX95: 0 | AY95: 0 | AZ95: 38 | BA95: 42 | BB95: 44 | BC95: 36 | BD95: 12 | BE95: 80 | BF95: 63 | BG95: 2 | BH95: 76 | BI95: 19 | BJ95: 16 | BK95: 15 | BL95: 0 | BM95: 0 | BN95: 30 | BO95: 1 | BP95: 10 | BQ95: 0 | BR95: 0 | BS95: 1 | BT95: 0 | BU95: 0 | BV95: 0 | BW95: 0 | BX95: 0 | BY95: 0 | BZ95: 0 | CA95: 0 | CB95: 0 | CC95: 0 | CD95: 0 | CE95: 0 | CF95: 0 | CG95: 0 | CH95: 0 | CI95: 0 | CJ95: 0 | CK95: 0 | CL95: 0 | CM95: 0 | CN95: 0 | CO95: 0 | CP95: 0 | CQ95: 0 | CR95: 0 | CS95: 0 | CT95: 0 | CU95: 0 | CV95: 0 | CW95: 0 | CX95: 0 | CY95: 0 | CZ95: 0 | DA95: 0 | DB95: 0 | DC95: 0 | DD95: 0 | DE95: 0 | DF95: 0 | DG95: 0 | DH95: 0 | DI95: 0
C96: > 11 kV & < = 22 kV ; Switch | D96: 61.02806033 | E96: 7.812045848 | F96: 0 | G96: 0 | H96: 0 | I96: 0 | J96: 0 | K96: 0 | L96: 0 | M96: 0 | N96: 0 | O96: 0 | P96: 0 | Q96: 0 | R96: 0 | S96: 0 | T96: 0 | U96: 0 | V96: 0 | W96: 0 | X96: 0 | Y96: 0 | Z96: 0 | AA96: 0 | AB96: 0 | AC96: 0 | AD96: 0 | AE96: 0 | AF96: 0 | AG96: 0 | AH96: 0 | AI96: 0 | AJ96: 0 | AK96: 0 | AL96: 0 | AM96: 0 | AN96: 0 | AO96: 0 | AP96: 0 | AQ96: 0 | AR96: 0 | AS96: 0 | AT96: 0 | AU96: 0 | AV96: 0 | AW96: 0 | AX96: 0 | AY96: 0 | AZ96: 0 | BA96: 0 | BB96: 0 | BC96: 0 | BD96: 0 | BE96: 10 | BF96: 0 | BG96: 0 | BH96: 0 | BI96: 0 | BJ96: 0 | BK96: 0 | BL96: 0 | BM96: 0 | BN96: 0 | BO96: 0 | BP96: 0 | BQ96: 0 | BR96: 0 | BS96: 0 | BT96: 0 | BU96: 0 | BV96: 0 | BW96: 0 | BX96: 0 | BY96: 0 | BZ96: 0 | CA96: 0 | CB96: 0 | CC96: 0 | CD96: 0 | CE96: 0 | CF96: 0 | CG96: 0 | CH96: 0 | CI96: 0 | CJ96: 0 | CK96: 0 | CL96: 0 | CM96: 0 | CN96: 0 | CO96: 0 | CP96: 0 | CQ96: 0 | CR96: 0 | CS96: 0 | CT96: 0 | CU96: 0 | CV96: 0 | CW96: 0 | CX96: 0 | CY96: 0 | CZ96: 0 | DA96: 0 | DB96: 0 | DC96: 0 | DD96: 0 | DE96: 0 | DF96: 0 | DG96: 0 | DH96: 0 | DI96: 0 | DJ96: 0
C97: > 11 kV & < = 22 kV ; Circuit Breaker | E97: 0
C98: > 22 kV & < = 33 kV ; Switch | D98: 65.89410308 | E98: 8.117518283 | F98: 4 | G98: 14 | H98: 12 | I98: 7 | J98: 60 | K98: 45 | L98: 33 | M98: 32 | N98: 39 | O98: 10 | P98: 5 | Q98: 14 | R98: 20 | S98: 20 | T98: 17 | U98: 6 | V98: 7 | W98: 9 | X98: 4 | Y98: 0 | Z98: 0 | AA98: 0 | AB98: 8 | AC98: 0 | AD98: 0 | AE98: 3 | AF98: 30 | AG98: 16 | AH98: 4 | AI98: 5 | AJ98: 0 | AK98: 10 | AL98: 3 | AM98: 3 | AN98: 11 | AO98: 4 | AP98: 3 | AQ98: 11 | AR98: 22 | AS98: 13 | AT98: 4 | AU98: 5 | AV98: 9 | AW98: 2 | AX98: 16 | AY98: 45 | AZ98: 10 | BA98: 6 | BB98: 20 | BC98: 79 | BD98: 38 | BE98: 69 | BF98: 70 | BG98: 30 | BH98: 16 | BI98: 4 | BJ98: 3 | BK98: 0 | BL98: 0 | BM98: 7 | BN98: 21 | BO98: 23 | BP98: 34 | BQ98: 8 | BR98: 1 | BS98: 1 | BT98: 0 | BU98: 1 | BV98: 0 | BW98: 0 | BX98: 0 | BY98: 0 | BZ98: 0 | CA98: 0 | CB98: 0 | CC98: 0 | CD98: 4 | CE98: 4 | CF98: 0 | CG98: 0 | CH98: 0 | CI98: 0 | CJ98: 0 | CK98: 0 | CL98: 0 | CM98: 0 | CN98: 0 | CO98: 0 | CP98: 0 | CQ98: 0 | CR98: 0 | CS98: 0 | CT98: 0 | CU98: 0 | CV98: 0 | CW98: 0 | CX98: 0 | CY98: 0 | CZ98: 0 | DA98: 0 | DB98: 0 | DC98: 0 | DD98: 0 | DE98: 0 | DF98: 0 | DG98: 0 | DH98: 0 | DI98: 0 | DJ98: 0
C99: > 22 kV & < = 33 kV ; Circuit Breaker | D99: 65.71464359 | E99: 8.106456908 | F99: 3 | G99: 0 | H99: 11 | I99: 1 | J99: 11 | K99: 21 | L99: 20 | M99: 14 | N99: 9 | O99: 3 | P99: 5 | Q99: 7 | R99: 7 | S99: 11 | T99: 7 | U99: 7 | V99: 1 | W99: 0 | X99: 3 | Y99: 0 | Z99: 0 | AA99: 0 | AB99: 0 | AC99: 0 | AD99: 0 | AE99: 0 | AF99: 0 | AG99: 0 | AH99: 2 | AI99: 2 | AJ99: 0 | AK99: 0 | AL99: 0 | AM99: 0 | AN99: 0 | AO99: 0 | AP99: 0 | AQ99: 0 | AR99: 0 | AS99: 0 | AT99: 0 | AU99: 0 | AV99: 0 | AW99: 0 | AX99: 0 | AY99: 0 | AZ99: 0 | BA99: 0 | BB99: 0 | BC99: 0 | BD99: 20 | BE99: 19 | BF99: 0 | BG99: 5 | BH99: 1 | BI99: 2 | BJ99: 0 | BK99: 9 | BL99: 0 | BM99: 3 | BN99: 26 | BO99: 0 | BP99: 0 | BQ99: 0 | BR99: 16 | BS99: 0 | BT99: 0 | BU99: 3 | BV99: 0 | BW99: 0 | BX99: 0 | BY99: 3 | BZ99: 0 | CA99: 0 | CB99: 0 | CC99: 0 | CD99: 0 | CE99: 0 | CF99: 0 | CG99: 0 | CH99: 0 | CI99: 0 | CJ99: 0 | CK99: 0 | CL99: 0 | CM99: 0 | CN99: 0 | CO99: 0 | CP99: 0 | CQ99: 0 | CR99: 0 | CS99: 0 | CT99: 0 | CU99: 0 | CV99: 0 | CW99: 0 | CX99: 0 | CY99: 0 | CZ99: 0 | DA99: 0 | DB99: 0 | DC99: 0 | DD99: 0 | DE99: 0 | DF99: 0 | DG99: 0 | DH99: 0 | DI99: 0
C100: > 33 kV & < = 66 kV ; Switch | D100: 71.91892273 | E100: 8.480502504 | F100: 2 | G100: 1 | H100: 17 | I100: 35 | J100: 58 | K100: 71 | L100: 73 | M100: 83 | N100: 63 | O100: 21 | P100: 24 | Q100: 18 | R100: 22 | S100: 12 | T100: 7 | U100: 20 | V100: 20 | W100: 13 | X100: 3 | Y100: 2 | Z100: 9 | AA100: 1 | AB100: 12 | AC100: 0 | AD100: 0 | AE100: 0 | AF100: 17 | AG100: 12 | AH100: 0 | AI100: 2 | AJ100: 25 | AK100: 9 | AL100: 4 | AM100: 21 | AN100: 1 | AO100: 5 | AP100: 0 | AQ100: 0 | AR100: 7 | AS100: 4 | AT100: 10 | AU100: 18 | AV100: 6 | AW100: 3 | AX100: 0 | AY100: 12 | AZ100: 14 | BA100: 86 | BB100: 75 | BC100: 38 | BD100: 49 | BE100: 31 | BF100: 74 | BG100: 34 | BH100: 65 | BI100: 22 | BJ100: 25 | BK100: 4 | BL100: 0 | BM100: 30 | BN100: 33 | BO100: 0 | BP100: 39 | BQ100: 14 | BR100: 10 | BS100: 13 | BT100: 0 | BU100: 0 | BV100: 0 | BW100: 0 | BX100: 0 | BY100: 0 | BZ100: 0 | CA100: 0 | CB100: 0 | CC100: 0 | CD100: 0 | CE100: 8 | CF100: 0 | CG100: 0 | CH100: 6 | CI100: 15 | CJ100: 0 | CK100: 0 | CL100: 0 | CM100: 6 | CN100: 0 | CO100: 0 | CP100: 0 | CQ100: 0 | CR100: 0 | CS100: 0 | CT100: 0 | CU100: 0 | CV100: 0 | CW100: 0 | CX100: 0 | CY100: 0 | CZ100: 0 | DA100: 0 | DB100: 0 | DC100: 0 | DD100: 0 | DE100: 0 | DF100: 0 | DG100: 0 | DH100: 0 | DI100: 0 | DJ100: 0
C101: > 33 kV & < = 66 kV ; Circuit Breaker | D101: 59.11575664 | E101: 7.688677171 | F101: 4 | G101: 8 | H101: 9 | I101: 10 | J101: 11 | K101: 14 | L101: 40 | M101: 40 | N101: 30 | O101: 15 | P101: 24 | Q101: 16 | R101: 19 | S101: 11 | T101: 2 | U101: 13 | V101: 11 | W101: 8 | X101: 7 | Y101: 2 | Z101: 7 | AA101: 1 | AB101: 1 | AC101: 1 | AD101: 0 | AE101: 0 | AF101: 2 | AG101: 8 | AH101: 0 | AI101: 13 | AJ101: 6 | AK101: 4 | AL101: 2 | AM101: 12 | AN101: 11 | AO101: 0 | AP101: 10 | AQ101: 0 | AR101: 0 | AS101: 0 | AT101: 0 | AU101: 0 | AV101: 0 | AW101: 0 | AX101: 0 | AY101: 2 | AZ101: 8 | BA101: 11 | BB101: 24 | BC101: 6 | BD101: 6 | BE101: 3 | BF101: 0 | BG101: 15 | BH101: 11 | BI101: 0 | BJ101: 0 | BK101: 0 | BL101: 0 | BM101: 2 | BN101: 6 | BO101: 0 | BP101: 0 | BQ101: 3 | BR101: 8 | BS101: 0 | BT101: 7 | BU101: 0 | BV101: 0 | BW101: 0 | BX101: 1 | BY101: 0 | BZ101: 0 | CA101: 0 | CB101: 0 | CC101: 0 | CD101: 0 | CE101: 0 | CF101: 0 | CG101: 0 | CH101: 0 | CI101: 0 | CJ101: 0 | CK101: 0 | CL101: 0 | CM101: 0 | CN101: 0 | CO101: 0 | CP101: 0 | CQ101: 0 | CR101: 0 | CS101: 0 | CT101: 0 | CU101: 0 | CV101: 0 | CW101: 0 | CX101: 0 | CY101: 0 | CZ101: 0 | DA101: 0 | DB101: 0 | DC101: 0 | DD101: 0 | DE101: 0 | DF101: 0 | DG101: 0 | DH101: 0 | DI101: 0
C102: > 66 kV & < = 132 kV ; Switch | E102: 0
C103: > 66 kV & < = 132 kV ; Circuit Breaker | E103: 0
C104: > 132 kV ; Switch | E104: 0
C105: > 132 kV ; Circuit Breaker | E105: 0
C106: Other | E106: 0
B107: PUBLIC LIGHTING BY: ASSET TYPE ; LIGHTING OBLIGATION | C107: Luminaires ; Major Road | E107: 0
C108: Luminaires ; Minor Road | E108: 0
C109: Brackets ; Major Road | E109: 0
C110: Brackets ; Minor Road | E110: 0
C111: Lamps ; Major Road | E111: 0
C112: Lamps ; Minor Road | E112: 0
C113: Poles / Columns ; Major Road | E113: 0
C114: Poles / Columns ; Minor Road | E114: 0
C115: Other | E115: 0
B116: SCADA, NETWORK CONTROL AND PROTECTION SYSTEMS BY: FUNCTION | C116: Field Devices | D116: 34.56093052 | E116: 5.878854524 | F116: 132 | G116: 143 | H116: 160 | I116: 181 | J116: 198 | K116: 212 | L116: 230 | M116: 201 | N116: 156 | O116: 111 | P116: 74 | Q116: 74 | R116: 63 | S116: 63 | T116: 64 | U116: 58 | V116: 47 | W116: 40 | X116: 37 | Y116: 22 | Z116: 22 | AA116: 12 | AB116: 4 | AC116: 9 | AD116: 30 | AE116: 141 | AF116: 217 | AG116: 198 | AH116: 177 | AI116: 183 | AJ116: 162 | AK116: 115 | AL116: 102 | AM116: 116 | AN116: 112 | AO116: 90 | AP116: 83 | AQ116: 87 | AR116: 99 | AS116: 101 | AT116: 94 | AU116: 79 | AV116: 79 | AW116: 73 | AX116: 67 | AY116: 77 | AZ116: 105 | BA116: 134 | BB116: 148 | BC116: 159 | BD116: 142 | BE116: 102 | BF116: 93 | BG116: 103 | BH116: 102 | BI116: 88 | BJ116: 78 | BK116: 81 | BL116: 81 | BM116: 79 | BN116: 79 | BO116: 55 | BP116: 32 | BQ116: 16 | BR116: 1 | BS116: 1 | BT116: 0 | BU116: 0 | BV116: 1 | BW116: 1 | BX116: 1 | BY116: 1 | BZ116: 0 | CA116: 0 | CB116: 0 | CC116: 0 | CD116: 0 | CE116: 0 | CF116: 0 | CG116: 1 | CH116: 1 | CI116: 1 | CJ116: 1 | CK116: 1 | CL116: 1 | CM116: 1 | CN116: 1 | CO116: 1 | CP116: 1 | CQ116: 1 | CR116: 1 | CS116: 1 | CT116: 0 | CU116: 0 | CV116: 0 | CW116: 0 | CX116: 0 | CY116: 0 | CZ116: 0 | DA116: 0 | DB116: 0 | DC116: 0 | DD116: 0 | DE116: 0 | DF116: 0 | DG116: 0 | DH116: 0 | DI116: 0 | DJ116: 0
C117: Local Network Wiring Assets | E117: 0
C118: Communications Network Assets | D118: 10 | E118: 3.16227766 | F118: 447 | G118: 209 | H118: 255 | I118: 206 | J118: 141 | K118: 409 | L118: 274 | M118: 283 | N118: 199 | O118: 80 | P118: 63 | Q118: 251 | R118: 190 | S118: 42 | T118: 47 | U118: 0 | V118: 18 | W118: 0 | X118: 0 | Y118: 1 | Z118: 12 | AA118: 0 | AB118: 3 | AC118: 14 | AD118: 3 | AE118: 24 | AF118: 1 | AG118: 2 | AH118: 4 | AI118: 0 | AJ118: 0 | AK118: 0 | AL118: 7 | AM118: 1 | AN118: 4 | AO118: 3 | AP118: 3 | AQ118: 0 | AR118: 0 | AS118: 0 | AT118: 0 | AU118: 0 | AV118: 0 | AW118: 0 | AX118: 0 | AY118: 0 | AZ118: 0 | BA118: 0 | BB118: 0 | BC118: 0 | BD118: 0 | BE118: 0 | BF118: 0 | BG118: 0 | BH118: 0 | BI118: 0 | BJ118: 0 | BK118: 0 | BL118: 0 | BM118: 0 | BN118: 0 | BO118: 0 | BP118: 0 | BQ118: 0 | BR118: 0 | BS118: 0 | BT118: 0 | BU118: 0 | BV118: 0 | BW118: 0 | BX118: 0 | BY118: 0 | BZ118: 0 | CA118: 0 | CB118: 0 | CC118: 0 | CD118: 0 | CE118: 0 | CF118: 0 | CG118: 0 | CH118: 0 | CI118: 0 | CJ118: 0 | CK118: 0
C119: Master Station Assets | D119: 12 | E119: 3.464101615 | F119: 10 | G119: 9 | H119: 12 | I119: 33 | J119: 23 | K119: 22 | L119: 14 | M119: 8 | N119: 18 | O119: 18 | P119: 16 | Q119: 24 | R119: 34 | S119: 29 | T119: 28 | U119: 14 | V119: 22 | W119: 0 | X119: 16
C120: Communications Site Infrastructure | D120: 25 | E120: 5 | F120: 0 | G120: 0 | H120: 0 | I120: 2 | J120: 0 | K120: 0 | L120: 1 | M120: 0 | N120: 0 | O120: 1 | P120: 3 | Q120: 7 | R120: 1 | S120: 5 | T120: 8 | U120: 5 | V120: 2 | W120: 0 | X120: 0 | Y120: 1 | Z120: 0 | AA120: 0 | AB120: 0 | AC120: 0 | AD120: 0 | AE120: 0 | AF120: 2 | AG120: 1 | AH120: 4 | AI120: 1 | AJ120: 7 | AK120: 0 | AL120: 3 | AM120: 1 | AN120: 1 | AO120: 0 | AP120: 0 | AQ120: 6 | AR120: 0 | AS120: 1 | AT120: 0 | AU120: 1 | AV120: 1 | AW120: 1 | AX120: 0 | AY120: 0 | AZ120: 0 | BA120: 2 | BB120: 0 | BC120: 1 | BD120: 0 | BE120: 0 | BF120: 0 | BG120: 0 | BH120: 0 | BI120: 0 | BJ120: 0 | BK120: 0 | BL120: 0 | BM120: 0 | BN120: 0 | BO120: 0 | BP120: 0 | BQ120: 0 | BR120: 0 | BS120: 0 | BT120: 0 | BU120: 0 | BV120: 0 | BW120: 0 | BX120: 0 | BY120: 0 | BZ120: 0 | CA120: 0 | CB120: 0 | CC120: 0 | CD120: 0 | CE120: 0 | CF120: 0 | CG120: 0 | CH120: 0 | CI120: 0 | CJ120: 0 | CK120: 0
C121: Communications Linear Assets | D121: 32.5 | E121: 5.700877125 | F121: 6.67 | G121: 17.89 | H121: 117.51 | I121: 92.931 | J121: 91.675 | K121: 210.8 | L121: 205.9 | M121: 186.56 | N121: 180.26 | O121: 172.8 | P121: 157.9 | Q121: 182 | R121: 161.55 | S121: 153.95 | T121: 169.6 | U121: 90.8 | V121: 82.03 | W121: 26.63 | X121: 25.21 | Y121: 23.31 | Z121: 24.55 | AA121: 8.74 | AB121: 1.46 | AC121: 2.91 | AD121: 4.37 | AE121: 4.37 | AF121: 7.28 | AG121: 26.22 | AH121: 4.37 | AI121: 7.28 | AJ121: 5.83 | AK121: 5.83 | AL121: 2.91 | AM121: 2.91 | AN121: 11.65 | AO121: 8.74 | AP121: 10.2 | AQ121: 2.91 | AR121: 5.83 | AS121: 17.48 | AT121: 17.48 | AU121: 13.11 | AV121: 8.74 | AW121: 1.46 | AX121: 0 | AY121: 1.46 | AZ121: 15.95 | BA121: 29.13 | BB121: 28.63 | BC121: 17.05 | BD121: 19.91 | BE121: 13.11 | BF121: 28.25 | BG121: 7.28 | BH121: 1.46 | BI121: 13.11 | BJ121: 0 | BK121: 7.28 | BL121: 0 | BM121: 1.46 | BN121: 7.28 | BO121: 5.83 | BP121: 11.65 | BQ121: 0 | BR121: 0 | BS121: 0 | BT121: 0 | BU121: 0 | BV121: 0 | BW121: 0 | BX121: 0 | BY121: 0 | BZ121: 8.74 | CA121: 0 | CB121: 0 | CC121: 0 | CD121: 0 | CE121: 0 | CF121: 0 | CG121: 0 | CH121: 0 | CI121: 0 | CJ121: 0 | CK121: 0
C122: AFLC | E122: 0
C123: Other | E123: 0
B124: OTHER BY: DNSP DEFINED | C124: ˂ = 1 kV; stobie pole | D124: 76.79893656 | E124: 8.763500246 | F124: 1220 | G124: 1498.392783 | H124: 1281.552865 | I124: 1396.238106 | J124: 1564.516249 | K124: 1800.45442 | L124: 801.757049 | M124: 572.0920106 | N124: 516.8433844 | O124: 535.6263401 | P124: 818.0221345 | Q124: 448.9272297 | R124: 631.4011152 | S124: 344.2121022 | T124: 182.4738855 | U124: 291.3361468 | V124: 219.7980894 | W124: 531.8699049 | X124: 744.4105102 | Y124: 46.65525482 | Z124: 320.3660831 | AA124: 14.51496817 | AB124: 966.2821665 | AC124: 569.1941088 | AD124: 453.0743635 | AE124: 12.44140128 | AF124: 1378.921976 | AG124: 1297.016084 | AH124: 870.8980899 | AI124: 1253.471179 | AJ124: 555.7159241 | AK124: 1181.933122 | AL124: 1226.51481 | AM124: 1080.328345 | AN124: 1564.506212 | AO124: 1234.809078 | AP124: 1768.752549 | AQ124: 1947.079301 | AR124: 2380.454779 | AS124: 1731.428345 | AT124: 1424.540447 | AU124: 3875.4965 | AV124: 4281.915609 | AW124: 5002.4801 | AX124: 3616.30064 | AY124: 5817.391884 | AZ124: 5019.068635 | BA124: 8831.321345 | BB124: 8403.129784 | BC124: 5255.455259 | BD124: 11917.82565 | BE124: 6288.091566 | BF124: 12633.20622 | BG124: 10351.24587 | BH124: 12220.56641 | BI124: 11627.52628 | BJ124: 11606.79062 | BK124: 9643.122779 | BL124: 9897.134722 | BM124: 7571.629465 | BN124: 8113.867205 | BO124: 6913.271981 | BP124: 6203.075324 | BQ124: 14703.66275 | BR124: 4787.865928 | BS124: 2265.371817 | BT124: 890.5969753 | BU124: 27.99315289 | BV124: 145.1496817 | BW124: 18.66210193 | BX124: 65.31735675 | BY124: 186.6210193 | BZ124: 205.2831212 | CA124: 251.938376 | CB124: 114.0461784 | CC124: 93.31050964 | CD124: 192.8417199 | CE124: 243.6441085 | CF124: 1637.081052 | CG124: 579.5619432 | CH124: 525.6492043 | CI124: 549.4952234 | CJ124: 498.6928348 | CK124: 671.8356694 | CL124: 166.9221339 | CM124: 47.69203826 | CN124: 18.66210193 | CO124: 2.073566881 | CP124: 7.257484083 | CQ124: 1.03678344 | CR124: 1.03678344 | CS124: 0 | CT124: 0 | CU124: 0 | CV124: 2.073566881 | CW124: 0 | CX124: 0 | CY124: 0 | CZ124: 0 | DA124: 0 | DB124: 0 | DC124: 0 | DD124: 0 | DE124: 0 | DF124: 0 | DG124: 0 | DH124: 0 | DI124: 0 | DJ124: 0
C125: > 1 kV & < = 11 kV; stobie pole | D125: 73.63996714 | E125: 8.581373267 | F125: 1812 | G125: 1528.340674 | H125: 1214.935913 | I125: 1728.863071 | J125: 1542.551272 | K125: 1305.604372 | L125: 1187.640117 | M125: 982.4407302 | N125: 923.7229594 | O125: 916.9520684 | P125: 1026.287873 | Q125: 570.4983033 | R125: 944.0630286 | S125: 410.1091006 | T125: 314.6876762 | U125: 321.793527 | V125: 325.8540131 | W125: 772.507489 | X125: 1157.238551 | Y125: 48.72583374 | Z125: 1144.041971 | AA125: 36.5443753 | AB125: 1819.097793 | AC125: 711.6001968 | AD125: 1035.423967 | AE125: 75.11899368 | AF125: 2484.002399 | AG125: 1705.404181 | AH125: 1801.840727 | AI125: 2464.71509 | AJ125: 1298.340445 | AK125: 2361.172693 | AL125: 2564.197 | AM125: 2478.926791 | AN125: 1999.789426 | AO125: 2538.818962 | AP125: 2842.340301 | AQ125: 3370.2035 | AR125: 4526.42693 | AS125: 3354.976677 | AT125: 3142.816276 | AU125: 6242.997447 | AV125: 6541.443179 | AW125: 5744.572773 | AX125: 7392.115026 | AY125: 9106.655301 | AZ125: 6565.806096 | BA125: 9406.116154 | BB125: 8860.995889 | BC125: 7217.514122 | BD125: 11190.69981 | BE125: 6926.174241 | BF125: 8085.443036 | BG125: 5856.236142 | BH125: 6336.388629 | BI125: 6999.262992 | BJ125: 5356.796346 | BK125: 6908.917175 | BL125: 3950.853019 | BM125: 2415.989256 | BN125: 3531.607824 | BO125: 2445.427781 | BP125: 4940.596516 | BQ125: 11291.19685 | BR125: 2384.520488 | BS125: 944.0630286 | BT125: 363.4135099 | BU125: 20.30243072 | BV125: 104.5575182 | BW125: 5.075607681 | BX125: 14.21170151 | BY125: 227.3872241 | BZ125: 105.5726398 | CA125: 106.5877613 | CB125: 57.86192756 | CC125: 56.84680602 | CD125: 93.39118133 | CE125: 57.86192756 | CF125: 580.6495187 | CG125: 156.3287166 | CH125: 204.0394288 | CI125: 199.9789426 | CJ125: 170.5404181 | CK125: 224.3418595 | CL125: 70.043386 | CM125: 21.31755226 | CN125: 12.18145843 | CO125: 2.030243072 | CP125: 5.075607681 | CQ125: 0 | CR125: 0 | CS125: 0 | CT125: 0 | CU125: 0 | CV125: 1.015121536 | CW125: 0 | CX125: 0 | CY125: 1.015121536 | CZ125: 0 | DA125: 0 | DB125: 0 | DC125: 0 | DD125: 0 | DE125: 0 | DF125: 0 | DG125: 0 | DH125: 0 | DI125: 0 | DJ125: 0
C126: ˃ 11 kV & < = 22 kV; stobie pole | D126: 71.94157814 | E126: 8.481838135 | F126: 249 | G126: 248.5674904 | H126: 257.4317446 | I126: 195.5683021 | J126: 237.9279023 | K126: 133.9608412 | L126: 188.94418 | M126: 157.3593769 | N126: 131.960013 | O126: 168.9502386 | P126: 246.7761562 | Q126: 132.1646359 | R126: 196.1818815 | S126: 172.4335485 | T126: 108.4163029 | U126: 127.0019549 | V126: 85.70050612 | W126: 184.8239831 | X126: 347.9647056 | Y126: 13.42297084 | Z126: 256.0689821 | AA126: 11.3578984 | AB126: 517.3006454 | AC126: 451.2183274 | AD126: 815.7036125 | AE126: 7.227753528 | AF126: 714.5150631 | AG126: 580.2853547 | AH126: 1034.601291 | AI126: 704.1897009 | AJ126: 716.5801355 | AK126: 861.1352061 | AL126: 930.3151327 | AM126: 661.8557159 | AN126: 582.3504271 | AO126: 474.9666604 | AP126: 866.2978872 | AQ126: 895.2089013 | AR126: 1204.969767 | AS126: 557.5695579 | AT126: 1980.404467 | AU126: 3026.363656 | AV126: 3846.197413 | AW126: 3327.864232 | AX126: 3021.200975 | AY126: 3437.313071 | AZ126: 1948.395844 | BA126: 4272.634871 | BB126: 7034.669255 | BC126: 4753.796749 | BD126: 8268.550036 | BE126: 2657.748226 | BF126: 9512.756179 | BG126: 7002.660633 | BH126: 6090.931152 | BI126: 5481.734783 | BJ126: 5111.054281 | BK126: 4364.530595 | BL126: 3020.168439 | BM126: 2937.565541 | BN126: 3979.394585 | BO126: 540.0164422 | BP126: 608.1638326 | BQ126: 944.7706398 | BR126: 138.3598533 | BS126: 70.21246285 | BT126: 20.65072437 | BU126: 2.065072437 | BV126: 21.68326058 | BW126: 1.032536218 | BX126: 4.130144873 | BY126: 6.19521731 | BZ126: 0 | CA126: 12.39043462 | CB126: 1.032536218 | CC126: 8.260289747 | CD126: 11.3578984 | CE126: 4.130144873 | CF126: 6.19521731 | CG126: 2.065072437 | CH126: 10.32536218 | CI126: 2.065072437 | CJ126: 0 | CK126: 1.032536218 | CL126: 1.032536218 | CM126: 1.032536218 | CN126: 0 | CO126: 0 | CP126: 3.097608655 | CQ126: 0 | CR126: 0 | CS126: 0 | CT126: 0 | CU126: 0 | CV126: 0 | CW126: 0 | CX126: 0 | CY126: 0 | CZ126: 0 | DA126: 0 | DB126: 0 | DC126: 1.032536218 | DD126: 0 | DE126: 0 | DF126: 0 | DG126: 0 | DH126: 0 | DI126: 0 | DJ126: 0
C127: > 22 kV & < = 66 kV; stobie pole | D127: 80.54013181 | E127: 8.974415402 | F127: 219 | G127: 93.83672327 | H127: 158.6497961 | I127: 101.7753409 | J127: 95.97091858 | K127: 175.9466841 | L127: 256.9221466 | M127: 203.5345985 | N127: 174.946987 | O127: 158.9518339 | P127: 424.2264288 | Q127: 124.53425 | R127: 99.22241055 | S127: 399.9270629 | T127: 98.20993698 | U127: 75.93551828 | V127: 60.74841462 | W127: 75.93551828 | X127: 270.3304451 | Y127: 37.46152235 | Z127: 795.8042316 | AA127: 22.2744187 | AB127: 75.93551828 | AC127: 632.7959857 | AD127: 428.2763231 | AE127: 52.64862601 | AF127: 265.2680772 | AG127: 232.8689227 | AH127: 350.3158577 | AI127: 572.047571 | AJ127: 286.5300223 | AK127: 254.1308678 | AL127: 486.9997906 | AM127: 434.3511646 | AN127: 539.6484166 | AO127: 136.6839329 | AP127: 173.1329817 | AQ127: 332.0913333 | AR127: 441.4384796 | AS127: 314.8792825 | AT127: 1671.593876 | AU127: 564.960256 | AV127: 1077.271886 | AW127: 578.1224125 | AX127: 293.6173373 | AY127: 620.6463027 | AZ127: 443.4634268 | BA127: 549.7731523 | BB127: 1321.278018 | BC127: 1451.88711 | BD127: 930.4632173 | BE127: 976.0245283 | BF127: 2115.057302 | BG127: 1858.901487 | BH127: 1066.134677 | BI127: 2566.620518 | BJ127: 726.9560283 | BK127: 705.6940832 | BL127: 860.6025405 | BM127: 362.4655406 | BN127: 199.4572947 | BO127: 638.8708271 | BP127: 375.6276971 | BQ127: 991.2116319 | BR127: 354.365752 | BS127: 311.8418617 | BT127: 46.57378454 | BU127: 11.13720935 | BV127: 117.4469349 | BW127: 0 | BX127: 17.21205081 | BY127: 19.23699796 | BZ127: 134.6589857 | CA127: 47.58625812 | CB127: 4.049894308 | CC127: 75.93551828 | CD127: 73.91057113 | CE127: 34.42410162 | CF127: 54.67357316 | CG127: 13.1621565 | CH127: 14.17463008 | CI127: 16.19957723 | CJ127: 3.037420731 | CK127: 8.099788617 | CL127: 7.087315039 | CM127: 1.012473577 | CN127: 0 | CO127: 0 | CP127: 0 | CQ127: 0 | CR127: 0 | CS127: 0 | CT127: 0 | CU127: 0 | CV127: 0 | CW127: 0 | CX127: 0 | CY127: 0 | CZ127: 0 | DA127: 0 | DB127: 0 | DC127: 0 | DD127: 0
C128: > 66 kV & < = 132 kV; stobie pole | D128: 86.28428567 | E128: 9.288933505 | F128: 0 | G128: 0 | H128: 0 | I128: 0 | J128: 0 | K128: 0 | L128: 0 | M128: 0 | N128: 0 | O128: 0 | P128: 0 | Q128: 0 | R128: 0 | S128: 0 | T128: 0 | U128: 0 | V128: 0 | W128: 0 | X128: 0 | Y128: 0 | Z128: 0 | AA128: 0 | AB128: 0 | AC128: 0 | AD128: 0 | AE128: 0 | AF128: 0 | AG128: 0 | AH128: 0 | AI128: 0 | AJ128: 0 | AK128: 0 | AL128: 0 | AM128: 0 | AN128: 0 | AO128: 0 | AP128: 0 | AQ128: 0 | AR128: 0 | AS128: 0 | AT128: 0 | AU128: 0 | AV128: 0 | AW128: 0 | AX128: 0 | AY128: 0 | AZ128: 0 | BA128: 0 | BB128: 0 | BC128: 0 | BD128: 0 | BE128: 0 | BF128: 0 | BG128: 0 | BH128: 0 | BI128: 0 | BJ128: 0 | BK128: 0 | BL128: 0 | BM128: 0 | BN128: 0 | BO128: 0 | BP128: 0 | BQ128: 0 | BR128: 0 | BS128: 0 | BT128: 0 | BU128: 0 | BV128: 0 | BW128: 0 | BX128: 0 | BY128: 0 | BZ128: 0 | CA128: 0 | CB128: 0 | CC128: 0 | CD128: 0 | CE128: 0 | CF128: 0 | CG128: 0 | CH128: 0 | CI128: 0 | CJ128: 0 | CK128: 0 | CL128: 0 | CM128: 0 | CN128: 0 | CO128: 0 | CP128: 0 | CQ128: 0 | CR128: 0 | CS128: 0 | CT128: 0 | CU128: 0 | CV128: 0 | CW128: 0 | CX128: 0 | CY128: 0 | CZ128: 0 | DA128: 0 | DB128: 0 | DC128: 0 | DD128: 0
C129: > 132 kV; stobie pole | D129: 50 | E129: 7.071067812
C130: Pole REFURBISHED; STOBIE Pole | D130: 20 | E130: 4.472135955 | F130: 6112 | G130: 4102 | H130: 2676 | I130: 3715 | J130: 2563 | K130: 3210 | L130: 3005 | M130: 1811 | N130: 917 | O130: 1232 | P130: 2349 | Q130: 2467
C131: Pole Mounted ;> = 22 kV & < = 33 kV ; < = 60kVA | D131: 60.14347317 | E131: 7.755222316 | F131: 36.34098121 | G131: 42.07903088 | H131: 14.34512416 | I131: 27.73390671 | J131: 22.95219866 | K131: 5.738049665 | L131: 12.43244094 | M131: 16.25780738 | N131: 10.51975772 | O131: 7.650732887 | P131: 8.607074498 | Q131: 11.47609933 | R131: 14.34512416 | S131: 11.47609933 | T131: 9.563416108 | U131: 11.47609933 | V131: 12.43244094 | W131: 11.47609933 | X131: 14.34512416 | Y131: 16.25780738 | Z131: 18.17049061 | AA131: 18.17049061 | AB131: 30.60293155 | AC131: 27.73390671 | AD131: 21.99585705 | AE131: 24.86488188 | AF131: 21.99585705 | AG131: 28.69024833 | AH131: 30.60293155 | AI131: 25.82122349 | AJ131: 32.51561477 | AK131: 25.82122349 | AL131: 16.25780738 | AM131: 9.563416108 | AN131: 6.694391276 | AO131: 8.607074498 | AP131: 10.51975772 | AQ131: 9.563416108 | AR131: 11.47609933 | AS131: 17.214149 | AT131: 13.38878255 | AU131: 10.51975772 | AV131: 14.34512416 | AW131: 12.43244094 | AX131: 16.25780738 | AY131: 17.214149 | AZ131: 23.90854027 | BA131: 24.86488188 | BB131: 20.08317383 | BC131: 22.95219866 | BD131: 21.03951544 | BE131: 18.17049061 | BF131: 17.214149 | BG131: 13.38878255 | BH131: 21.03951544 | BI131: 15.30146577 | BJ131: 5.738049665 | BK131: 8.607074498 | BL131: 6.694391276 | BM131: 4.781708054 | BN131: 9.563416108 | BO131: 7.650732887 | BP131: 3.825366443 | BQ131: 2.869024833 | BR131: 0.9563416108 | BS131: 0 | BT131: 0 | BU131: 0 | BV131: 0 | BW131: 0 | BX131: 0 | BY131: 0 | BZ131: 0 | CA131: 0 | CB131: 0 | CC131: 0 | CD131: 0 | CE131: 0 | CF131: 0 | CG131: 0 | CH131: 0 | CI131: 0 | CJ131: 0 | CK131: 0 | CL131: 0 | CM131: 0 | CN131: 0 | CO131: 0 | CP131: 0 | CQ131: 0 | CR131: 0 | CS131: 0 | CT131: 0 | CU131: 0 | CV131: 0 | CW131: 0 | CX131: 0 | CY131: 0 | CZ131: 0 | DA131: 0 | DB131: 0 | DC131: 0 | DD131: 0 | DE131: 0 | DF131: 0 | DG131: 0 | DH131: 0 | DI131: 0 | DJ131: 0
C132: Pole Mounted ;> = 22 kV & < = 33 kV ; > 60 KVA AND < = 600 KVA | D132: 55.43155852 | E132: 7.445237304 | F132: 48.77342215 | G132: 19.12683222 | H132: 21.99585705 | I132: 32.51561477 | J132: 13.38878255 | K132: 9.563416108 | L132: 20.08317383 | M132: 23.90854027 | N132: 16.25780738 | O132: 13.38878255 | P132: 14.34512416 | Q132: 12.43244094 | R132: 10.51975772 | S132: 12.43244094 | T132: 16.25780738 | U132: 13.38878255 | V132: 7.650732887 | W132: 9.563416108 | X132: 10.51975772 | Y132: 6.694391276 | Z132: 10.51975772 | AA132: 13.38878255 | AB132: 15.30146577 | AC132: 18.17049061 | AD132: 15.30146577 | AE132: 14.34512416 | AF132: 10.51975772 | AG132: 8.607074498 | AH132: 14.34512416 | AI132: 19.12683222 | AJ132: 17.214149 | AK132: 9.563416108 | AL132: 9.563416108 | AM132: 10.51975772 | AN132: 8.607074498 | AO132: 3.825366443 | AP132: 7.650732887 | AQ132: 6.694391276 | AR132: 4.781708054 | AS132: 7.650732887 | AT132: 7.650732887 | AU132: 4.781708054 | AV132: 3.825366443 | AW132: 2.869024833 | AX132: 4.781708054 | AY132: 6.694391276 | AZ132: 8.607074498 | BA132: 15.30146577 | BB132: 12.43244094 | BC132: 15.30146577 | BD132: 12.43244094 | BE132: 8.607074498 | BF132: 8.607074498 | BG132: 12.43244094 | BH132: 7.650732887 | BI132: 3.825366443 | BJ132: 0.9563416108 | BK132: 1.912683222 | BL132: 1.912683222 | BM132: 4.781708054 | BN132: 1.912683222 | BO132: 0.9563416108 | BP132: 1.912683222 | BQ132: 0 | BR132: 0 | BS132: 0 | BT132: 0 | BU132: 0 | BV132: 0 | BW132: 0 | BX132: 0 | BY132: 0 | BZ132: 0 | CA132: 0 | CB132: 0 | CC132: 0 | CD132: 0 | CE132: 0 | CF132: 0 | CG132: 0 | CH132: 0 | CI132: 0 | CJ132: 0 | CK132: 0 | CL132: 0 | CM132: 0 | CN132: 0 | CO132: 0 | CP132: 0 | CQ132: 0 | CR132: 0 | CS132: 0 | CT132: 0 | CU132: 0 | CV132: 0 | CW132: 0 | CX132: 0 | CY132: 0 | CZ132: 0 | DA132: 0 | DB132: 0 | DC132: 0 | DD132: 0 | DE132: 0 | DF132: 0 | DG132: 0 | DH132: 0 | DI132: 0 | DJ132: 0
C133: Kiosk Mounted; > = 22 kV & < = 33 kV ; | D133: 63.48884422 | E133: 7.967988719 | F133: 1.912683222 | G133: 2.869024833 | H133: 3.825366443 | I133: 2.869024833 | J133: 2.869024833 | K133: 0.9563416108 | L133: 0.9563416108 | M133: 0.9563416108 | N133: 1.912683222 | O133: 2.869024833 | P133: 3.825366443 | Q133: 3.825366443 | R133: 2.869024833 | S133: 1.912683222 | T133: 1.912683222 | U133: 0.9563416108 | V133: 0.9563416108 | W133: 0.9563416108 | X133: 1.912683222 | Y133: 1.912683222 | Z133: 2.869024833 | AA133: 1.912683222 | AB133: 0 | AC133: 0 | AD133: 0 | AE133: 0 | AF133: 0 | AG133: 0 | AH133: 0 | AI133: 0.9563416108 | AJ133: 1.912683222 | AK133: 0.9563416108 | AL133: 0 | AM133: 0 | AN133: 0 | AO133: 0 | AP133: 0 | AQ133: 0 | AR133: 0 | AS133: 0 | AT133: 0 | AU133: 0 | AV133: 0 | AW133: 0 | AX133: 0 | AY133: 0.9563416108 | AZ133: 1.912683222 | BA133: 0.9563416108 | BB133: 0 | BC133: 0 | BD133: 0 | BE133: 0 | BF133: 0 | BG133: 0 | BH133: 0 | BI133: 0 | BJ133: 0 | BK133: 0 | BL133: 0 | BM133: 0 | BN133: 0 | BO133: 0 | BP133: 0 | BQ133: 0 | BR133: 0 | BS133: 0 | BT133: 0 | BU133: 0 | BV133: 0 | BW133: 0 | BX133: 0 | BY133: 0 | BZ133: 0 | CA133: 0 | CB133: 0 | CC133: 0 | CD133: 0 | CE133: 0 | CF133: 0 | CG133: 0 | CH133: 0 | CI133: 0 | CJ133: 0 | CK133: 0 | CL133: 0 | CM133: 0 | CN133: 0 | CO133: 0 | CP133: 0 | CQ133: 0 | CR133: 0 | CS133: 0 | CT133: 0 | CU133: 0 | CV133: 0 | CW133: 0 | CX133: 0 | CY133: 0 | CZ133: 0 | DA133: 0 | DB133: 0 | DC133: 0 | DD133: 0 | DE133: 0 | DF133: 0 | DG133: 0 | DH133: 0 | DI133: 0 | DJ133: 0
C134: Recloser ;SWITCHGEAR | D134: 36.31858243 | E134: 6.026490059 | F134: 182 | G134: 109 | H134: 174 | I134: 207 | J134: 182 | K134: 134 | L134: 152 | M134: 65 | N134: 24 | O134: 30 | P134: 21 | Q134: 6 | R134: 15 | S134: 47 | T134: 16 | U134: 16 | V134: 9 | W134: 3 | X134: 2
C135: Sectionalizer ;SWITCHGEAR | D135: 42.43084879 | E135: 6.51389659 | F135: 0 | G135: 0 | H135: 41 | I135: 0 | J135: 0 | K135: 0 | L135: 0 | M135: 0 | N135: 0 | O135: 0 | P135: 0 | Q135: 0 | R135: 0 | S135: 0 | T135: 40 | U135: 8 | V135: 25 | W135: 25 | X135: 12 | Y135: 13 | Z135: 7 | AA135: 33 | AB135: 41 | AC135: 56 | AD135: 30 | AE135: 38 | AF135: 6 | AG135: 55 | AH135: 53 | AI135: 3 | AJ135: 16 | AK135: 57 | AL135: 37 | AM135: 23 | AN135: 7 | AO135: 15 | AP135: 5 | AQ135: 0 | AR135: 0 | AS135: 1 | AT135: 8 | AU135: 14 | AV135: 4 | AW135: 0 | AX135: 0 | AY135: 0 | AZ135: 0 | BA135: 0 | BB135: 0 | BC135: 1 | BD135: 2
C136: >= 11 kV & < ≈ 22 kV ; LOAD BREAK SWITCH; GROUND LEVEL (Switching Cubicle);SWITCHGEAR | D136: 47.40534283 | E136: 6.885153799 | F136: 332 | G136: 123 | H136: 259 | I136: 257 | J136: 301 | K136: 256 | L136: 399 | M136: 378 | N136: 450 | O136: 454 | P136: 417 | Q136: 335 | R136: 553 | S136: 377 | T136: 289 | U136: 278 | V136: 153 | W136: 52 | X136: 25 | Y136: 115 | Z136: 84 | AA136: 422 | AB136: 0 | AC136: 4 | AD136: 0 | AE136: 1 | AF136: 457 | AG136: 13 | AH136: 39 | AI136: 50 | AJ136: 25 | AK136: 23 | AL136: 265 | AM136: 2 | AN136: 1 | AO136: 0 | AP136: 1 | AQ136: 115 | AR136: 1 | AS136: 0 | AT136: 0 | AU136: 0 | AV136: 100 | AW136: 0 | AX136: 2 | AY136: 4 | AZ136: 4 | BA136: 5 | BB136: 4 | BC136: 7 | BD136: 10 | BE136: 8 | BF136: 10 | BG136: 10 | BH136: 10 | BI136: 10 | BJ136: 7 | BK136: 9 | BL136: 9 | BM136: 10 | BN136: 9 | BO136: 10 | BP136: 3 | BQ136: 4 | BR136: 0 | BS136: 0 | BT136: 0 | BU136: 0
C137: > 22 kV & < ≈ 33 kV ; LOAD BREAK SWITCH; GROUND LEVEL (Switching Cubicle);SWITCHGEAR | D137: 61 | E137: 7.810249676
C138: Pipework Switchyard Substations | F138: 0 | G138: - | H138: - | I138: - | J138: - | K138: - | L138: - | M138: - | N138: - | O138: - | P138: - | Q138: - | R138: - | S138: - | T138: - | U138: - | V138: - | W138: - | X138: - | Y138: - | Z138: - | AA138: - | AB138: - | AC138: - | AD138: - | AE138: - | AF138: 1 | AG138: 1 | AN138: 3 | AW138: 1 | AY138: 3 | AZ138: 5 | BA138: 2 | BB138: 4 | BC138: 1 | BD138: 2 | BE138: 4 | BF138: 4 | BG138: 2 | BH138: 3 | BI138: 1 | BJ138: 2 | BM138: 1 | BP138: 3 | BQ138: 1 | BU138: 1 | CD138: 1
C140: ˂ = 11 kV ; Circuit Breaker REFURBISHED | F140: 38 | G140: 7 | H140: 20 | I140: 27 | J140: 27 | K140: 65 | L140: 135 | M140: 35 | N140: 20 | O140: 32 | P140: 12 | Q140: 32 | R140: 13 | S140: 14 | T140: 17 | U140: 30 | V140: 31 | W140: 10 | X140: 4 | Y140: 32 | Z140: 11 | AA140: 10 | AB140: - | AC140: - | AD140: 6 | AE140: 4 | AF140: 9 | AG140: 20 | AH140: 28 | AI140: - | AJ140: 26 | AK140: - | AL140: 31 | AM140: - | AN140: - | AO140: 3 | AP140: - | AQ140: - | AR140: - | AS140: - | AT140: - | AU140: 2 | AV140: 11 | AW140: - | AX140: - | AY140: - | AZ140: 38 | BA140: 42 | BB140: 44 | BC140: 36 | BD140: 12 | BE140: 80 | BF140: 63 | BG140: 2 | BH140: 76 | BI140: 19 | BJ140: 16 | BK140: 15 | BL140: - | BM140: - | BN140: 30 | BO140: 1 | BP140: 10 | BQ140: - | BR140: - | BS140: 1 | BT140: - | BU140: - | BV140: - | BW140: - | BX140: - | BY140: - | BZ140: - | CA140: - | CB140: - | CC140: - | CD140: -
C141: > 22 kV & < = 33 kV ; Circuit Breaker REFURBISHED | F141: 3 | G141: - | H141: 11 | I141: 1 | J141: 11 | K141: 21 | L141: 20 | M141: 14 | N141: 9 | O141: 3 | P141: 5 | Q141: 7 | R141: 7 | S141: 11 | T141: 7 | U141: 7 | V141: 1 | W141: - | X141: 3 | Y141: - | Z141: - | AA141: - | AB141: - | AC141: - | AD141: - | AE141: - | AF141: - | AG141: - | AH141: 2 | AI141: 2 | AJ141: - | AK141: - | AL141: - | AM141: - | AN141: - | AO141: - | AP141: - | AQ141: - | AR141: - | AS141: - | AT141: - | AU141: - | AV141: - | AW141: - | AX141: - | AY141: - | AZ141: - | BA141: - | BB141: - | BC141: - | BD141: 20 | BE141: 19 | BF141: - | BG141: 5 | BH141: 1 | BI141: 2 | BJ141: - | BK141: 9 | BL141: - | BM141: 3 | BN141: 26 | BO141: - | BP141: - | BQ141: - | BR141: 16 | BS141: - | BT141: - | BU141: 3 | BV141: - | BW141: - | BX141: - | BY141: 3 | BZ141: - | CA141: - | CB141: - | CC141: - | CD141: -
C142: > 33 kV & < = 66 kV ; Circuit Breaker REFURBISHED | F142: 4 | G142: 8 | H142: 9 | I142: 10 | J142: 11 | K142: 14 | L142: 40 | M142: 40 | N142: 30 | O142: 15 | P142: 24 | Q142: 16 | R142: 19 | S142: 11 | T142: 2 | U142: 13 | V142: 11 | W142: 8 | X142: 7 | Y142: 2 | Z142: 7 | AA142: 1 | AB142: 1 | AC142: 1 | AD142: - | AE142: - | AF142: 2 | AG142: 8 | AH142: - | AI142: 13 | AJ142: 6 | AK142: 4 | AL142: 2 | AM142: 12 | AN142: 11 | AO142: - | AP142: 10 | AQ142: - | AR142: - | AS142: - | AT142: - | AU142: - | AV142: - | AW142: - | AX142: - | AY142: 2 | AZ142: 8 | BA142: 11 | BB142: 24 | BC142: 6 | BD142: 6 | BE142: 3 | BF142: - | BG142: 15 | BH142: 11 | BI142: - | BJ142: - | BK142: - | BL142: - | BM142: 2 | BN142: 6 | BO142: - | BP142: - | BQ142: 3 | BR142: 8 | BS142: - | BT142: 7 | BU142: - | BV142: - | BW142: - | BX142: 1 | BY142: - | BZ142: - | CA142: - | CB142: - | CC142: - | CD142: -
C143: Ground Outdoor / Indoor Chamber Mounted; ˂ 22 kV ; > 600 kVA ; Multiple Phase REFURBISHED | F143: 0 | G143: - | H143: - | I143: - | J143: - | K143: - | L143: - | M143: - | N143: - | O143: - | P143: - | Q143: 3 | R143: - | S143: - | T143: - | U143: - | V143: 1 | W143: - | X143: 2 | Y143: - | Z143: - | AA143: - | AB143: - | AC143: - | AD143: - | AE143: - | AF143: 2 | AG143: - | AH143: - | AI143: 4 | AJ143: 2 | AK143: - | AL143: 8 | AM143: - | AN143: 4 | AO143: 1 | AP143: 2 | AQ143: 1 | AR143: 2 | AS143: 2 | AT143: 4 | AU143: - | AV143: 2 | AW143: 2 | AX143: 1 | AY143: - | AZ143: 10 | BA143: 4 | BB143: 1 | BC143: 1 | BD143: 5 | BE143: 2 | BF143: 2 | BG143: 5 | BH143: 1 | BI143: 1 | BJ143: 1 | BK143: - | BL143: - | BM143: - | BN143: - | BO143: - | BP143: - | BQ143: - | BR143: - | BS143: - | BT143: - | BU143: - | BV143: - | BW143: - | BX143: - | BY143: - | BZ143: - | CA143: - | CB143: - | CC143: - | CD143: -
C144: Ground Outdoor / Indoor Chamber Mounted; > = 22 kV & < = 33 kV ; < = 15 MVA REFURBISHED | F144: 6 | G144: 8 | H144: 5 | I144: 6 | J144: 2 | K144: 8 | L144: 11 | M144: 6 | N144: 7 | O144: 4 | P144: 3 | Q144: 4 | R144: 2 | S144: 2 | T144: 5 | U144: 4 | V144: 8 | W144: 8 | X144: 1 | Y144: 1 | Z144: 2 | AA144: - | AB144: 2 | AC144: - | AD144: 1 | AE144: - | AF144: 14 | AG144: 2 | AH144: 3 | AI144: - | AJ144: 25 | AK144: - | AL144: 7 | AM144: - | AN144: 9 | AO144: 14 | AP144: - | AQ144: - | AR144: 1 | AS144: 3 | AT144: - | AU144: 6 | AV144: 5 | AW144: 11 | AX144: - | AY144: 3 | AZ144: - | BA144: 3 | BB144: 19 | BC144: 2 | BD144: 1 | BE144: 13 | BF144: 8 | BG144: - | BH144: 5 | BI144: 8 | BJ144: 4 | BK144: 2 | BL144: - | BM144: 3 | BN144: 3 | BO144: 6 | BP144: 6 | BQ144: 2 | BR144: 2 | BS144: - | BT144: 4 | BU144: - | BV144: - | BW144: - | BX144: - | BY144: - | BZ144: - | CA144: - | CB144: - | CC144: - | CD144: -
C145: Ground Outdoor / Indoor Chamber Mounted; > 33 kV & < = 66 kV ; < = 15 MVA REFURBISHED | F145: 0 | G145: - | H145: 2 | I145: - | J145: 1 | K145: 1 | L145: - | M145: 4 | N145: 3 | O145: - | P145: 4 | Q145: - | R145: - | S145: - | T145: 1 | U145: - | V145: - | W145: 6 | X145: 1 | Y145: 1 | Z145: - | AA145: - | AB145: - | AC145: - | AD145: - | AE145: - | AF145: 4 | AG145: 1 | AH145: 2 | AI145: 1 | AJ145: 2 | AK145: 5 | AL145: - | AM145: - | AN145: 9 | AO145: - | AP145: - | AQ145: 1 | AR145: - | AS145: 5 | AT145: 5 | AU145: - | AV145: - | AW145: 3 | AX145: - | AY145: - | AZ145: 3 | BA145: - | BB145: 10 | BC145: 7 | BD145: 5 | BE145: 7 | BF145: 5 | BG145: 5 | BH145: 18 | BI145: 5 | BJ145: 14 | BK145: 5 | BL145: - | BM145: 2 | BN145: 5 | BO145: - | BP145: 2 | BQ145: 4 | BR145: 2 | BS145: - | BT145: 2 | BU145: 1 | BV145: - | BW145: - | BX145: - | BY145: - | BZ145: - | CA145: - | CB145: - | CC145: 1 | CD145: -
C146: Ground Outdoor / Indoor Chamber Mounted; > 33 kV & < = 66 kV ; > 15 MVA and < = 40 MVA REFURBISHED | F146: 3 | G146: - | H146: 1 | I146: 3 | J146: 5 | K146: 1 | L146: 8 | M146: 4 | N146: 4 | O146: 4 | P146: 2 | Q146: 4 | R146: 2 | S146: 5 | T146: 2 | U146: 5 | V146: 4 | W146: 4 | X146: - | Y146: 1 | Z146: - | AA146: - | AB146: 2 | AC146: - | AD146: 3 | AE146: - | AF146: 1 | AG146: 5 | AH146: 1 | AI146: 3 | AJ146: - | AK146: 1 | AL146: 4 | AM146: - | AN146: 2 | AO146: 3 | AP146: 2 | AQ146: - | AR146: 4 | AS146: 1 | AT146: 4 | AU146: - | AV146: - | AW146: - | AX146: - | AY146: 1 | AZ146: 4 | BA146: - | BB146: 4 | BC146: 6 | BD146: 4 | BE146: 2 | BF146: - | BG146: - | BH146: - | BI146: - | BJ146: - | BK146: - | BL146: - | BM146: - | BN146: - | BO146: 2 | BP146: 3 | BQ146: - | BR146: - | BS146: - | BT146: - | BU146: - | BV146: - | BW146: - | BX146: - | BY146: - | BZ146: - | CA146: - | CB146: - | CC146: - | CD146: -

Sheet 5.3 MD - Network level
B1: REGULATORY REPORTING STATEMENT
B2: =INDEX(dms_TradingNameFull_List,MATCH(dms_TradingName,dms_TradingName_List)) -> SA Power Networks
B3: =CONCATENATE((LOOKUP(dms_Model,dms_Model_List,dms_Worksheet_List))&" "&CRY) -> CATEGORY ANALYSIS 2017-18
B4: 5.3 MAXIMUM DEMAND AT NETWORK LEVEL
B7: 5.3.1 - RAW AND WEATHER CORRECTED COINCIDENT MD AT NETWORK LEVEL (Summed at transmission connection point)
C8: UNIT | D8: =CRY -> 2017-18
B9: Raw network coincident MD | C9: MW | D9: 2629.638
B10: Date MD occurred | D10: 2018-01-18
B11: Half hour time period MD occurred | D11: 19:30:00
B12: Winter/summer peaking | D12: Summer
B13: Embedded generation | C13: MW | D13: 142.277
B14: Weather corrected (10% POE) network coincident MD | C14: MW | D14: 2913.56
B15: Weather corrected (50% POE) network coincident MD | C15: MW | D15: 2625.517

Sheet 5.4 MD & utilisation-Spatial
B1: REGULATORY REPORTING STATEMENT
B2: =INDEX(dms_TradingNameFull_List,MATCH(dms_TradingName,dms_TradingName_List)) -> SA Power Networks
B3: =CONCATENATE((LOOKUP(dms_Model,dms_Model_List,dms_Worksheet_List))&" "&CRY) -> CATEGORY ANALYSIS 2017-18
B4: 5.4 MAXIMUM DEMAND AND UTILISATION AT SPATIAL LEVEL
B6: There is ONE table on this worksheet. It has two sub-tables based on the Network Level. Each sub-table has been grouped for ease of navigation. See the Instructions sheet on how to group or ungroup data.
B8: 5.4.1 NON-COINCIDENT & COINCIDENT MAXIMUM DEMAND
B9: NETWORK LEVEL | C9: SUBSTATION | D9: FORECASTING ELEMENTS | E9: UNIT | F9: MAX DEMAND | G9: =CRY -> 2017-18
B10: SUBTRANSMISSION SUBSTATION | C10: Angas Creek 33kV | D10: Substation Rating | E10: MVA | F10: Non-Coincident | G10: 50
F11: Coincident | G11: 50
D12: Raw Adjusted MD | E12: MW | F12: Non-Coincident | G12: 17.8913
F13: Coincident | G13: 16.2037
D14: Raw Adjusted MD | E14: MVA | F14: Non-Coincident | G14: 18.50529603
F15: Coincident | G15: 16.68123729
D16: Date MD occurred | F16: Non-Coincident | G16: 2018-02-07
F17: Coincident | G17: 2018-01-18
D18: Half hour time period MD occurred | F18: Non-Coincident | G18: 19:30:00
F19: Coincident | G19: 19:30:00
D20: Winter/Summer Peaking | F20: Non-Coincident | G20: Summer
F21: Coincident | G21: Summer
D22: Adjustments - Embedded generation | E22: MW | F22: Non-Coincident | G22: 0.1090855511
F23: Coincident | G23: 0.313604756
D24: Weather Corrected MD 10% POE | E24: MW | F24: Non-Coincident | G24: 17.53266774
F25: Coincident | G25: 15.87889579
D26: Weather Corrected MD 10% POE | E26: MVA | F26: Non-Coincident | G26: 18.13435618
F27: Coincident | G27: 16.34686082
D28: Weather Corrected MD 50% POE | E28: MW | F28: Non-Coincident | G28: 16.02083387
F29: Coincident | G29: 14.50966591
D30: Weather Corrected MD 50% POE | E30: MVA | F30: Non-Coincident | G30: 16.57063899
F31: Coincident | G31: 14.93727853
C32: Ardrossan West 33kV | D32: Substation Rating | E32: MVA | F32: Non-Coincident | G32: 50
F33: Coincident | G33: 50
D34: Raw Adjusted MD | E34: MW | F34: Non-Coincident | G34: 9.7483
F35: Coincident | G35: 9.7483
D36: Raw Adjusted MD | E36: MVA | F36: Non-Coincident | G36: 9.860263068
F37: Coincident | G37: 9.860263068
D38: Date MD occurred | F38: Non-Coincident | G38: 2018-01-18
F39: Coincident | G39: 2018-01-18
D40: Half hour time period MD occurred | F40: Non-Coincident | G40: 19:30:00
F41: Coincident | G41: 19:30:00
D42: Winter/Summer Peaking | F42: Non-Coincident | G42: Summer
F43: Coincident | G43: Summer
D44: Adjustments - Embedded generation | E44: MW | F44: Non-Coincident | G44: 0.2081019935
F45: Coincident | G45: 0.2081019935
D46: Weather Corrected MD 10% POE | E46: MW | F46: Non-Coincident | G46: 8.828710059
F47: Coincident | G47: 8.828710059
D48: Weather Corrected MD 10% POE | E48: MVA | F48: Non-Coincident | G48: 8.930111275
F49: Coincident | G49: 8.930111275
D50: Weather Corrected MD 50% POE | E50: MW | F50: Non-Coincident | G50: 7.967018316
F51: Coincident | G51: 7.967018316
D52: Weather Corrected MD 50% POE | E52: MVA | F52: Non-Coincident | G52: 8.058522662
F53: Coincident | G53: 8.058522662
C54: Baroota 33kV | D54: Substation Rating | E54: MVA | F54: Non-Coincident | G54: 10
F55: Coincident | G55: 10
D56: Raw Adjusted MD | E56: MW | F56: Non-Coincident | G56: 7.6639
F57: Coincident | G57: 7.0303
D58: Raw Adjusted MD | E58: MVA | F58: Non-Coincident | G58: 7.66928318
F59: Coincident | G59: 7.034526034
D60: Date MD occurred | F60: Non-Coincident | G60: 2018-02-08
F61: Coincident | G61: 2018-01-18
D62: Half hour time period MD occurred | F62: Non-Coincident | G62: 20:00:00
F63: Coincident | G63: 19:30:00
D64: Winter/Summer Peaking | F64: Non-Coincident | G64: Summer
F65: Coincident | G65: Summer
D66: Adjustments - Embedded generation | E66: MW | F66: Non-Coincident | G66: 0.03425392
F67: Coincident | G67: 0.1388488756
D68: Weather Corrected MD 10% POE | E68: MW | F68: Non-Coincident | G68: 7.760210471
F69: Coincident | G69: 7.118648166
D70: Weather Corrected MD 10% POE | E70: MVA | F70: Non-Coincident | G70: 7.765661301
F71: Coincident | G71: 7.122927308
D72: Weather Corrected MD 50% POE | E72: MW | F72: Non-Coincident | G72: 6.985849963
F73: Coincident | G73: 6.408306605
D74: Weather Corrected MD 50% POE | E74: MVA | F74: Non-Coincident | G74: 6.990756875
F75: Coincident | G75: 6.412158749
C76: Berri + Monash 66kV | D76: Substation Rating | E76: MVA | F76: Non-Coincident | G76: 160
F77: Coincident | G77: 160
D78: Raw Adjusted MD | E78: MW | F78: Non-Coincident | G78: 87.5526
F79: Coincident | G79: 80.5406
D80: Raw Adjusted MD | E80: MVA | F80: Non-Coincident | G80: 89.4756792
F81: Coincident | G81: 82.50299237
D82: Date MD occurred | F82: Non-Coincident | G82: 2018-01-28
F83: Coincident | G83: 2018-01-18
D84: Half hour time period MD occurred | F84: Non-Coincident | G84: 19:30:00
F85: Coincident | G85: 19:30:00
D86: Winter/Summer Peaking | F86: Non-Coincident | G86: Summer
F87: Coincident | G87: Summer
D88: Adjustments - Embedded generation | E88: MW | F88: Non-Coincident | G88: 0.904456836
F89: Coincident | G89: 0.904456836
D90: Weather Corrected MD 10% POE | E90: MW | F90: Non-Coincident | G90: 90.42961548
F91: Coincident | G91: 83.18719819
D92: Weather Corrected MD 10% POE | E92: MVA | F92: Non-Coincident | G92: 92.41588787
F93: Coincident | G93: 85.2140756
D94: Weather Corrected MD 50% POE | E94: MW | F94: Non-Coincident | G94: 83.6687082
F95: Coincident | G95: 76.9677652
D96: Weather Corrected MD 50% POE | E96: MVA | F96: Non-Coincident | G96: 85.50647832
F97: Coincident | G97: 78.84310453
C98: Blanche 33kV | D98: Substation Rating | E98: MVA | F98: Non-Coincident | G98: 110
F99: Coincident | G99: 110
D100: Raw Adjusted MD | E100: MW | F100: Non-Coincident | G100: 36.0594
F101: Coincident | G101: 33.8083
D102: Raw Adjusted MD | E102: MVA | F102: Non-Coincident | G102: 37.95178633
F103: Coincident | G103: 35.47157716
D104: Date MD occurred | F104: Non-Coincident | G104: 2018-01-28
F105: Coincident | G105: 2018-01-18
D106: Half hour time period MD occurred | F106: Non-Coincident | G106: 18:00:00
F107: Coincident | G107: 19:30:00
D108: Winter/Summer Peaking | F108: Non-Coincident | G108: Summer
F109: Coincident | G109: Summer
D110: Adjustments - Embedded generation | E110: MW | F110: Non-Coincident | G110: 1.687925345
F111: Coincident | G111: 0.251112662
D112: Weather Corrected MD 10% POE | E112: MW | F112: Non-Coincident | G112: 34.87464228
F113: Coincident | G113: 32.6975038
D114: Weather Corrected MD 10% POE | E114: MVA | F114: Non-Coincident | G114: 36.70485289
F115: Coincident | G115: 34.30613279
D116: Weather Corrected MD 50% POE | E116: MW | F116: Non-Coincident | G116: 32.82351366
F117: Coincident | G117: 30.77442211
D118: Weather Corrected MD 50% POE | E118: MVA | F118: Non-Coincident | G118: 34.54608166
F119: Coincident | G119: 32.28844066
C120: Brinkworth 33kV | D120: Substation Rating | E120: MVA | F120: Non-Coincident | G120: 20
F121: Coincident | G121: 20
D122: Raw Adjusted MD | E122: MW | F122: Non-Coincident | G122: 4.6903
F123: Coincident | G123: 3.7885
D124: Raw Adjusted MD | E124: MVA | F124: Non-Coincident | G124: 4.69433523
F125: Coincident | G125: 3.814650582
D126: Date MD occurred | F126: Non-Coincident | G126: 2018-01-28
F127: Coincident | G127: 2018-01-18
D128: Half hour time period MD occurred | F128: Non-Coincident | G128: 18:00:00
F129: Coincident | G129: 19:30:00
D130: Winter/Summer Peaking | F130: Non-Coincident | G130: Summer
F131: Coincident | G131: Summer
D132: Adjustments - Embedded generation | E132: MW | F132: Non-Coincident | G132: 0.451432
F133: Coincident | G133: 0.06715954091
D134: Weather Corrected MD 10% POE | E134: MW | F134: Non-Coincident | G134: 4.467480523
F135: Coincident | G135: 3.608521834
D136: Weather Corrected MD 10% POE | E136: MVA | F136: Non-Coincident | G136: 4.471324053
F137: Coincident | G137: 3.633430095
D138: Weather Corrected MD 50% POE | E138: MW | F138: Non-Coincident | G138: 4.030021299
F139: Coincident | G139: 3.255172525
D140: Weather Corrected MD 50% POE | E140: MVA | F140: Non-Coincident | G140: 4.033488468
F141: Coincident | G141: 3.277641749
C142: Clare North 33kV | D142: Substation Rating | E142: MVA | F142: Non-Coincident | G142: 80
F143: Coincident | G143: 80
D144: Raw Adjusted MD | E144: MW | F144: Non-Coincident | G144: 11.2729
F145: Coincident | G145: 10.46
D146: Raw Adjusted MD | E146: MVA | F146: Non-Coincident | G146: 11.88361842
F147: Coincident | G147: 11.02272351
D148: Date MD occurred | F148: Non-Coincident | G148: 2018-02-07
F149: Coincident | G149: 2018-01-18
D150: Half hour time period MD occurred | F150: Non-Coincident | G150: 19:30:00
F151: Coincident | G151: 19:30:00
D152: Winter/Summer Peaking | F152: Non-Coincident | G152: Summer
F153: Coincident | G153: Summer
D154: Adjustments - Embedded generation | E154: MW | F154: Non-Coincident | G154: 0.05328925006
F155: Coincident | G155: 0.1528051147
D156: Weather Corrected MD 10% POE | E156: MW | F156: Non-Coincident | G156: 11.49989188
F157: Coincident | G157: 10.67062327
D158: Weather Corrected MD 10% POE | E158: MVA | F158: Non-Coincident | G158: 12.12290777
F159: Coincident | G159: 11.24467782
D160: Weather Corrected MD 50% POE | E160: MW | F160: Non-Coincident | G160: 10.4801332
F161: Coincident | G161: 9.724400397
D162: Weather Corrected MD 50% POE | E162: MVA | F162: Non-Coincident | G162: 11.04790284
F163: Coincident | G163: 10.24755037
C164: Dalrymple 33kV | D164: Substation Rating | E164: MVA | F164: Non-Coincident | G164: 50
F165: Coincident | G165: 50
D166: Raw Adjusted MD | E166: MW | F166: Non-Coincident | G166: 6.2215
F167: Coincident | G167: 6.2215
D168: Raw Adjusted MD | E168: MVA | F168: Non-Coincident | G168: 6.2223279
F169: Coincident | G169: 6.2223279
D170: Date MD occurred | F170: Non-Coincident | G170: 2018-01-18
F171: Coincident | G171: 2018-01-18
D172: Half hour time period MD occurred | F172: Non-Coincident | G172: 19:30:00
F173: Coincident | G173: 19:30:00
D174: Winter/Summer Peaking | F174: Non-Coincident | G174: Summer
F175: Coincident | G175: Summer
D176: Adjustments - Embedded generation | E176: MW | F176: Non-Coincident | G176: 0.1340953615
F177: Coincident | G177: 0.1340953615
D178: Weather Corrected MD 10% POE | E178: MW | F178: Non-Coincident | G178: 5.41941395
F179: Coincident | G179: 5.41941395
D180: Weather Corrected MD 10% POE | E180: MVA | F180: Non-Coincident | G180: 5.420135116
F181: Coincident | G181: 5.420135116
D182: Weather Corrected MD 50% POE | E182: MW | F182: Non-Coincident | G182: 4.964058258
F183: Coincident | G183: 4.964058258
D184: Weather Corrected MD 50% POE | E184: MVA | F184: Non-Coincident | G184: 4.96471883
F185: Coincident | G185: 4.96471883
C186: Davenport West 33kV | D186: Substation Rating | E186: MVA | F186: Non-Coincident | G186: 120
F187: Coincident | G187: 120
D188: Raw Adjusted MD | E188: MW | F188: Non-Coincident | G188: 28.9099
F189: Coincident | G189: 26.9251
D190: Raw Adjusted MD | E190: MVA | F190: Non-Coincident | G190: 29.0474326
F191: Coincident | G191: 27.34122371
D192: Date MD occurred | F192: Non-Coincident | G192: 2018-02-08
F193: Coincident | G193: 2018-01-18
D194: Half hour time period MD occurred | F194: Non-Coincident | G194: 19:00:00
F195: Coincident | G195: 19:30:00
D196: Winter/Summer Peaking | F196: Non-Coincident | G196: Summer
F197: Coincident | G197: Summer
D198: Adjustments - Embedded generation | E198: MW | F198: Non-Coincident | G198: 0.6022961467
F199: Coincident | G199: 0.3486778054
D200: Weather Corrected MD 10% POE | E200: MW | F200: Non-Coincident | G200: 29.76680822
F201: Coincident | G201: 27.72317746
D202: Weather Corrected MD 10% POE | E202: MVA | F202: Non-Coincident | G202: 29.90841738
... 11226 more rows

Sheet 6.3 Sustained interruptionss
B1: REGULATORY REPORTING STATEMENT
B2: =INDEX(dms_TradingNameFull_List,MATCH(dms_TradingName,dms_TradingName_List)) -> SA Power Networks
B3: =CONCATENATE((LOOKUP(dms_Model,dms_Model_List,dms_Worksheet_List))&" "&CRY) -> CATEGORY ANALYSIS 2017-18
B4: 6.3 SUSTAINED INTERRUPTIONS TO SUPPLY
B6: =CONCATENATE("6.3.1 - SUSTAINED INTERRUPTIONS TO SUPPLY (for ",CRY,")") -> 6.3.1 - SUSTAINED INTERRUPTIONS TO SUPPLY (for 2017-18)
B8: There is ONE table on this worksheet. It has been grouped into five subgroups of 10000 rows each for navigation purposes. See the Instructions sheet on how to group and ungroup data.
B10: Definitions:
B11: Feeder classification definitions (column E) | G11: Average duration of sustained customer interruption (column I) | I11: Effect on unplanned SAIDI (column J) | K11: Effect on unplanned SAIFI (column K)
B12: CBD feeder: a feeder supplying predominantly commercial, high-rise buildings, supplied by a predominantly underground distribution network containing significant interconnection and redundancy when compared to urban areas. Urban feeder: a feeder, that is not a CBD feeder, with actual maximum demand over the reporting period per total feeder route length greater than 0.3 MVA/km. Short rural feeder: a feeder that is not a CBD or urban feeder with a total feeder route length less than 200 km. Long rural feeder: a feeder that is not a CBD or urban feeder with a total feeder route length greater than 200 km. | G12: The average duration of an interruption experienced by an affected customer. | I12: The sum of the duration of each unplanned sustained customer interruption (in minutes) divided by the total number of distribution customers. Unplanned SAIDI excludes momentary interruptions (one minute or less). | K12: The total number of unplanned sustained customer interruptions divided by the total number of distribution customers. Unplanned SAIFI excludes momentary interruptions (one minute or less). SAIFI is expressed per 0.01 interruptions.
B14: Date of event | C14: Time of interruption | D14: Asset ID | E14: Feeder classification | F14: Reason for interruption | G14: Detailed reason for interruption | H14: Number of customers affected by the interruption | I14: Average duration of sustained customer interruption | J14: Effect on unplanned SAIDI | K14: Effect on unplanned SAIFI | L14: MED
B15: (DD/MM/YYYY) | C15: (HH:MM) | D15: (eg. feeder ID) | E15: (drop down) | F15: (select from options in drop-down box) | G15: (select from options in column 'O' that correspond with reason in column 'F') | I15: (minutes)
B16: 1/07/2017 | C16: 08:26:00 | D16: YK30 | E16: Rural Long | F16: Planned | H16: 18 | I16: 99 | J16: 0.012509 | K16: 0.00012636
B17: 1/07/2017 | C17: 09:47:00 | D17: AP424D | E17: Urban | F17: Unknown | G17: Unknown | H17: 1117 | I17: 110.2112802 | J17: 0.198292 | K17: 0.0017992
B18: 1/07/2017 | C18: 10:15:54 | D18: NL511A | E18: Urban | F18: Overloads | H18: 1 | I18: 143 | J18: 0.00023 | K18: 1.61e-06
B19: 1/07/2017 | C19: 10:19:58 | D19: SM411E | E19: Urban | F19: Asset failure | G19: LV | H19: 10.33332253 | I19: 356.0000258 | J19: 0.005925 | K19: 1.664e-05
B20: 1/07/2017 | C20: 11:32:00 | D20: G42 | E20: Rural Long | F20: Planned | H20: 1 | I20: 143 | J20: 0.001004 | K20: 7.02e-06
B21: 1/07/2017 | C21: 14:09:54 | D21: EL10 | E21: Urban | F21: Asset failure | G21: LV | H21: 24.00001144 | I21: 400.0000127 | J21: 0.015463 | K21: 3.866e-05
B22: 1/07/2017 | C22: 14:34:00 | D22: HH341H | E22: Urban | F22: Vegetation | G22: Blow-in/Fall-in - NSP responsibility | H22: 1668 | I22: 64 | J22: 0.17195 | K22: 0.00268672
B23: 1/07/2017 | C23: 18:00:00 | D23: MTB14 | E23: Rural Short | F23: Asset failure | G23: HV | H23: 283 | I23: 240 | J23: 0.539341 | K23: 0.00224725
B24: 1/07/2017 | C24: 18:18:55 | D24: SM179A | E24: Urban | F24: Asset failure | G24: LV | H24: 61 | I24: 92 | J24: 0.009039 | K24: 9.826e-05
B25: 1/07/2017 | C25: 18:55:37 | D25: SM216B | E25: Urban | F25: Overloads | H25: 29.66663742 | I25: 138.9999999 | J25: 0.006642 | K25: 4.779e-05
B26: 2/07/2017 | C26: 01:59:24 | D26: SM402B | E26: Urban | F26: Asset failure | G26: LV | H26: 17.3333168 | I26: 368.9999857 | J26: 0.010302 | K26: 2.792e-05
B27: 2/07/2017 | C27: 02:28:00 | D27: CBD367K | E27: CBD | F27: Planned | H27: 1 | I27: 262 | J27: 0.050608 | K27: 0.00019316
B28: 2/07/2017 | C28: 08:45:00 | D28: MT01 | E28: Rural Long | F28: Planned | H28: 2 | I28: 172 | J28: 0.002415 | K28: 1.404e-05
B29: 2/07/2017 | C29: 08:51:00 | D29: AP344C | E29: Urban | F29: Planned | H29: 68 | I29: 52.77941176 | J29: 0.005781 | K29: 0.00010953
B30: 2/07/2017 | C30: 08:53:00 | D30: PL04 | E30: Urban | F30: Planned | H30: 55 | I30: 335.0909091 | J30: 0.029686 | K30: 8.859e-05
B31: 2/07/2017 | C31: 08:54:00 | D31: NU14 | E31: Rural Long | F31: Planned | H31: 1 | I31: 74 | J31: 0.000519 | K31: 7.02e-06
B32: 2/07/2017 | C32: 09:30:00 | D32: CBD367B | E32: CBD | F32: Planned | H32: 1 | I32: 196 | J32: 0.03786 | K32: 0.00019316
B33: 2/07/2017 | C33: 13:35:58 | D33: AP149C | E33: Urban | F33: Vegetation | G33: Grow-in - NSP responsibility | H33: 2.666663885 | I33: 172.0000039 | J33: 0.000739 | K33: 4.3e-06
B34: 2/07/2017 | C34: 13:48:21 | D34: AP125D | E34: Urban | F34: Overloads | H34: 1 | I34: 329 | J34: 0.00053 | K34: 1.61e-06
B35: 2/07/2017 | C35: 16:14:39 | D35: HH107A | E35: Urban | F35: Asset failure | G35: LV | H35: 1 | I35: 78 | J35: 0.000126 | K35: 1.61e-06
B36: 2/07/2017 | C36: 17:38:36 | D36: WK31 | E36: Rural Short | F36: Unknown | G36: Unknown | H36: 4.333329201 | I36: 124.0000009 | J36: 0.004267 | K36: 3.441e-05
B37: 2/07/2017 | C37: 18:21:49 | D37: SM350E | E37: Urban | F37: Asset failure | G37: LV | H37: 51 | I37: 91 | J37: 0.007475 | K37: 8.215e-05
B38: 2/07/2017 | C38: 18:22:51 | D38: HH428C | E38: Urban | F38: Asset failure | G38: LV | H38: 32.33330154 | I38: 61.99999929 | J38: 0.003229 | K38: 5.208e-05
B39: 2/07/2017 | C39: 20:36:28 | D39: SA17 | E39: Urban | F39: Asset failure | G39: LV | H39: 1 | I39: 121 | J39: 0.000195 | K39: 1.61e-06
B40: 2/07/2017 | C40: 22:08:59 | D40: CBD366Q | E40: Urban | F40: Asset failure | G40: LV | H40: 1 | I40: 159 | J40: 0.000256 | K40: 1.61e-06
B41: 2/07/2017 | C41: 22:25:33 | D41: AP149H | E41: Urban | F41: Unknown | G41: Unknown | H41: 11.9999876 | I41: 80.00000127 | J41: 0.001546 | K41: 1.933e-05
B42: 2/07/2017 | C42: 23:23:04 | D42: HH428C | E42: Urban | F42: Unknown | G42: Unknown | H42: 11.66665459 | I42: 526.0000284 | J42: 0.009885 | K42: 1.879e-05
B43: 3/07/2017 | C43: 01:15:00 | D43: VH11 | E43: Urban | F43: Planned | H43: 16 | I43: 179 | J43: 0.004613 | K43: 2.577e-05
B44: 3/07/2017 | C44: 05:06:00 | D44: CD17 | E44: Rural Long | F44: Unknown | G44: Unknown | H44: 35 | I44: 474.3428571 | J44: 0.116542 | K44: 0.00024569
B45: 3/07/2017 | C45: 06:20:52 | D45: HH341E | E45: Urban | F45: Vegetation | G45: Blow-in/Fall-in - NSP responsibility | H45: 1 | I45: 143 | J45: 0.00023 | K45: 1.61e-06
B46: 3/07/2017 | C46: 07:04:00 | D46: CM17 | E46: Rural Long | F46: Asset failure | G46: Distribution substation | H46: 19 | I46: 391.7894737 | J46: 0.052255 | K46: 0.00013337
B47: 3/07/2017 | C47: 07:17:28 | D47: EL25 | E47: Urban | F47: Asset failure | G47: LV | H47: 1 | I47: 108 | J47: 0.000174 | K47: 1.61e-06
B48: 3/07/2017 | C48: 07:33:31 | D48: SG10 | E48: Rural Short | F48: Asset failure | G48: LV | H48: 1 | I48: 152 | J48: 0.001207 | K48: 7.94e-06
B49: 3/07/2017 | C49: 07:49:35 | D49: SG10 | E49: Rural Short | F49: Asset failure | G49: LV | H49: 1 | I49: 134 | J49: 0.001064 | K49: 7.94e-06
B50: 3/07/2017 | C50: 09:00:00 | D50: EL01R | E50: Urban | F50: Planned | H50: 592 | I50: 51.65202703 | J50: 0.049253 | K50: 0.00095356
B51: 3/07/2017 | C51: 09:10:03 | D51: HH522A | E51: Urban | F51: Asset failure | G51: LV | H51: 1 | I51: 122 | J51: 0.000197 | K51: 1.61e-06
B52: 3/07/2017 | C52: 09:16:21 | D52: HH145D | E52: Urban | F52: Asset failure | G52: LV | H52: 1 | I52: 480 | J52: 0.000773 | K52: 1.61e-06
B53: 3/07/2017 | C53: 09:23:00 | D53: SA41 | E53: Urban | F53: Planned | H53: 61 | I53: 195.1639344 | J53: 0.019176 | K53: 9.826e-05
B54: 3/07/2017 | C54: 09:26:46 | D54: MTB11 | E54: Rural Short | F54: Planned | H54: 10 | I54: 428 | J54: 0.033987 | K54: 7.941e-05
B55: 3/07/2017 | C55: 09:36:14 | D55: SD44400 | E55: Rural Short | F55: Planned | H55: 14 | I55: 123 | J55: 0.013674 | K55: 0.00011117
B56: 3/07/2017 | C56: 09:57:00 | D56: MB27 | E56: Rural Short | F56: Planned | H56: 2 | I56: 118 | J56: 0.001874 | K56: 1.588e-05
B57: 3/07/2017 | C57: 10:10:00 | D57: KI32 | E57: Rural Short | F57: Planned | H57: 1 | I57: 45 | J57: 0.000357 | K57: 7.94e-06
B58: 3/07/2017 | C58: 10:12:05 | D58: NL234A | E58: Urban | F58: Planned | H58: 70 | I58: 293 | J58: 0.033036 | K58: 0.00011275
B59: 3/07/2017 | C59: 10:19:34 | D59: MTB13 | E59: Rural Short | F59: Planned | H59: 3 | I59: 239 | J59: 0.005694 | K59: 2.382e-05
B60: 3/07/2017 | C60: 10:20:00 | D60: CM27 | E60: Rural Long | F60: Planned | H60: 1 | I60: 115 | J60: 0.000807 | K60: 7.02e-06
B61: 3/07/2017 | C61: 10:26:00 | D61: EL12 | E61: Urban | F61: Planned | H61: 27 | I61: 173 | J61: 0.007524 | K61: 4.349e-05
B62: 3/07/2017 | C62: 10:26:29 | D62: CM05 | E62: Rural Long | F62: Planned | H62: 54 | I62: 194 | J62: 0.073539 | K62: 0.00037907
B63: 3/07/2017 | C63: 10:44:00 | D63: SG13 | E63: Rural Short | F63: Planned | H63: 180 | I63: 251 | J63: 0.358766 | K63: 0.00142935
B64: 3/07/2017 | C64: 11:12:00 | D64: KA09 | E64: Rural Long | F64: Planned | H64: 77 | I64: 205.4935065 | J64: 0.111073 | K64: 0.00054052
B65: 3/07/2017 | C65: 11:30:00 | D65: ST24 | E65: Rural Short | F65: Planned | H65: 2 | I65: 40 | J65: 0.000635 | K65: 1.588e-05
B66: 3/07/2017 | C66: 12:50:35 | D66: HH177B | E66: Urban | F66: Asset failure | G66: LV | H66: 1 | I66: 370 | J66: 0.000596 | K66: 1.61e-06
B67: 3/07/2017 | C67: 13:00:00 | D67: AP125A | E67: Urban | F67: Planned | H67: 86 | I67: 29 | J67: 0.004017 | K67: 0.00013852
B68: 3/07/2017 | C68: 13:01:00 | D68: R18 | E68: Rural Long | F68: Vegetation | G68: Blow-in/Fall-in - NSP responsibility | H68: 34 | I68: 111 | J68: 0.026492 | K68: 0.00023867
B69: 3/07/2017 | C69: 13:10:00 | D69: VH32 | E69: Rural Short | F69: Asset failure | G69: HV | H69: 27.6666708 | I69: 2 | J69: 0.000439 | K69: 0.0002197
B70: 3/07/2017 | C70: 13:16:02 | D70: AP226A | E70: Urban | F70: Vegetation | G70: Grow-in - NSP responsibility | H70: 28.66663742 | I70: 284.0000059 | J70: 0.013114 | K70: 4.617e-05
B71: 3/07/2017 | C71: 14:10:26 | D71: SM216B | E71: Urban | F71: Asset failure | G71: LV | H71: 2 | I71: 275 | J71: 0.000886 | K71: 3.22e-06
B72: 3/07/2017 | C72: 14:35:00 | D72: SM126D | E72: Urban | F72: Vegetation | G72: Blow-in/Fall-in - NSP responsibility | H72: 2109 | I72: 67 | J72: 0.227603 | K72: 0.00339705
B73: 3/07/2017 | C73: 15:48:00 | D73: VH33 | E73: Rural Short | F73: Asset failure | G73: HV | H73: 2 | I73: 1351 | J73: 0.021456 | K73: 1.588e-05
B74: 3/07/2017 | C74: 15:58:41 | D74: SM349C | E74: Urban | F74: Overloads | H74: 1 | I74: 362 | J74: 0.000583 | K74: 1.61e-06
B75: 3/07/2017 | C75: 16:30:10 | D75: ME347A | E75: Urban | F75: Vegetation | G75: Grow-in - NSP responsibility | H75: 1 | I75: 221 | J75: 0.000356 | K75: 1.61e-06
B76: 3/07/2017 | C76: 16:37:07 | D76: MV62 | E76: Rural Short | F76: Overloads | H76: 1 | I76: 62 | J76: 0.000492 | K76: 7.94e-06
B77: 3/07/2017 | C77: 16:38:09 | D77: KA02 | E77: Rural Short | F77: Asset failure | G77: LV | H77: 1 | I77: 88 | J77: 0.000699 | K77: 7.94e-06
B78: 3/07/2017 | C78: 16:39:20 | D78: MV61 | E78: Urban | F78: Asset failure | G78: LV | H78: 1 | I78: 85 | J78: 0.000137 | K78: 1.61e-06
B79: 3/07/2017 | C79: 17:05:30 | D79: SM411E | E79: Urban | F79: Asset failure | G79: LV | H79: 1 | I79: 262 | J79: 0.000422 | K79: 1.61e-06
B80: 3/07/2017 | C80: 17:23:10 | D80: M11 | E80: Rural Long | F80: Other | H80: 1 | I80: 106 | J80: 0.000744 | K80: 7.02e-06
B81: 3/07/2017 | C81: 17:48:19 | D81: MTB21 | E81: Rural Short | F81: Asset failure | G81: LV | H81: 1 | I81: 290 | J81: 0.002303 | K81: 7.94e-06
B82: 3/07/2017 | C82: 17:55:26 | D82: SM349D | E82: Urban | F82: Overloads | H82: 1 | I82: 301 | J82: 0.000485 | K82: 1.61e-06
B83: 3/07/2017 | C83: 18:00:57 | D83: MI32 | E83: Rural Long | F83: Asset failure | G83: LV | H83: 1 | I83: 243 | J83: 0.001706 | K83: 7.02e-06
B84: 3/07/2017 | C84: 18:18:21 | D84: NL451C | E84: Urban | F84: Unknown | G84: Unknown | H84: 18.3333149 | I84: 112.9999982 | J84: 0.003337 | K84: 2.953e-05
B85: 3/07/2017 | C85: 18:52:16 | D85: HH409E | E85: Urban | F85: Asset failure | G85: LV | H85: 2.666663885 | I85: 261.0000205 | J85: 0.001121 | K85: 4.3e-06
B86: 3/07/2017 | C86: 19:00:39 | D86: ME131C | E86: Urban | F86: Overloads | H86: 1 | I86: 245 | J86: 0.000395 | K86: 1.61e-06
B87: 3/07/2017 | C87: 20:13:00 | D87: SA17 | E87: Urban | F87: Vegetation | G87: Blow-in/Fall-in - NSP responsibility | H87: 2244 | I87: 30 | J87: 0.108435 | K87: 0.0036145
B88: 3/07/2017 | C88: 21:56:00 | D88: MTB53 | E88: Rural Long | F88: Vegetation | G88: Blow-in/Fall-in - NSP responsibility | H88: 92 | I88: 112 | J88: 0.072331 | K88: 0.00064582
B89: 3/07/2017 | C89: 22:02:00 | D89: SM374A | E89: Urban | F89: Planned | H89: 160 | I89: 311 | J89: 0.080151 | K89: 0.00025772
B90: 3/07/2017 | C90: 22:06:00 | D90: MTB41 | E90: Rural Short | F90: Vegetation | G90: Blow-in/Fall-in - NSP responsibility | H90: 43 | I90: 166.8837209 | J90: 0.056983 | K90: 0.00034146
B91: 4/07/2017 | C91: 02:17:00 | D91: MTB53 | E91: Rural Long | F91: Unknown | G91: Unknown | H91: 392 | I91: 151.6045918 | J91: 0.417176 | K91: 0.00275174
B92: 4/07/2017 | C92: 02:18:41 | D92: MTB54 | E92: Rural Long | F92: Vegetation | G92: Blow-in/Fall-in - NSP responsibility | H92: 1 | I92: 256 | J92: 0.001797 | K92: 7.02e-06
B93: 4/07/2017 | C93: 06:02:12 | D93: CN25 | E93: Rural Long | F93: Other | H93: 3 | I93: 357 | J93: 0.007518 | K93: 2.106e-05
B94: 4/07/2017 | C94: 06:29:46 | D94: SM349C | E94: Urban | F94: Vegetation | G94: Grow-in - NSP responsibility | H94: 1 | I94: 190 | J94: 0.000306 | K94: 1.61e-06
B95: 4/07/2017 | C95: 06:49:27 | D95: AP355A | E95: Urban | F95: Vegetation | G95: Grow-in - NSP responsibility | H95: 1 | I95: 158 | J95: 0.000254 | K95: 1.61e-06
B96: 4/07/2017 | C96: 07:16:43 | D96: SA17 | E96: Urban | F96: Asset failure | G96: LV | H96: 1 | I96: 674 | J96: 0.001086 | K96: 1.61e-06
B97: 4/07/2017 | C97: 07:48:00 | D97: SSD443 | E97: Rural Short | F97: Planned | H97: 24 | I97: 225 | J97: 0.04288 | K97: 0.00019058
B98: 4/07/2017 | C98: 07:48:41 | D98: SA42 | E98: Urban | F98: Planned | H98: 3 | I98: 355 | J98: 0.001715 | K98: 4.83e-06
B99: 4/07/2017 | C99: 08:03:36 | D99: ME231B | E99: Urban | F99: Asset failure | G99: LV | H99: 12 | I99: 94 | J99: 0.001817 | K99: 1.933e-05
B100: 4/07/2017 | C100: 08:20:07 | D100: SA744D | E100: Urban | F100: Planned | H100: 38 | I100: 295 | J100: 0.018056 | K100: 6.121e-05
B101: 4/07/2017 | C101: 08:22:48 | D101: HH107B | E101: Urban | F101: Planned | H101: 22 | I101: 376 | J101: 0.013324 | K101: 3.544e-05
B102: 4/07/2017 | C102: 08:28:00 | D102: YK02 | E102: Rural Short | F102: Planned | H102: 71 | I102: 364 | J102: 0.205223 | K102: 0.0005638
B103: 4/07/2017 | C103: 08:29:18 | D103: NL115F | E103: Urban | F103: Overloads | H103: 1 | I103: 171 | J103: 0.000275 | K103: 1.61e-06
B104: 4/07/2017 | C104: 08:45:43 | D104: SM216A | E104: Urban | F104: Asset failure | G104: LV | H104: 1 | I104: 262 | J104: 0.000422 | K104: 1.61e-06
B105: 4/07/2017 | C105: 08:46:00 | D105: MV53 | E105: Rural Short | F105: Planned | H105: 6 | I105: 404 | J105: 0.019249 | K105: 4.764e-05
B106: 4/07/2017 | C106: 09:10:00 | D106: NL210A | E106: Urban | F106: Planned | H106: 45 | I106: 235 | J106: 0.017034 | K106: 7.248e-05
B107: 4/07/2017 | C107: 09:12:00 | D107: EL12 | E107: Urban | F107: Planned | H107: 92 | I107: 109 | J107: 0.016153 | K107: 0.00014819
B108: 4/07/2017 | C108: 09:24:53 | D108: SA744D | E108: Urban | F108: Planned | H108: 46 | I108: 320 | J108: 0.02371 | K108: 7.409e-05
B109: 4/07/2017 | C109: 09:27:00 | D109: ST35 | E109: Rural Long | F109: Planned | H109: 92 | I109: 346 | J109: 0.223452 | K109: 0.00064582
B110: 4/07/2017 | C110: 09:38:00 | D110: NU15 | E110: Rural Long | F110: Planned | H110: 30 | I110: 21 | J110: 0.004422 | K110: 0.00021059
B111: 4/07/2017 | C111: 09:56:33 | D111: EL08G | E111: Urban | F111: Planned | H111: 31 | I111: 267 | J111: 0.013332 | K111: 4.993e-05
B112: 4/07/2017 | C112: 10:00:00 | D112: PA12 | E112: Rural Long | F112: Unknown | G112: Unknown | H112: 2 | I112: 145 | J112: 0.002036 | K112: 1.404e-05
B113: 4/07/2017 | C113: 10:07:19 | D113: AP214C | E113: Urban | F113: Asset failure | G113: LV | H113: 85 | I113: 118 | J113: 0.016156 | K113: 0.00013691
B114: 4/07/2017 | C114: 10:34:00 | D114: GA39 | E114: Rural Long | F114: Planned | H114: 1 | I114: 231 | J114: 0.001622 | K114: 7.02e-06
B115: 4/07/2017 | C115: 10:44:00 | D115: NL234C | E115: Urban | F115: Planned | H115: 168 | I115: 274 | J115: 0.074146 | K115: 0.0002706
B116: 4/07/2017 | C116: 10:46:43 | D116: VH10 | E116: Rural Short | F116: Overloads | H116: 1 | I116: 278 | J116: 0.002208 | K116: 7.94e-06
B117: 4/07/2017 | C117: 10:47:00 | D117: HH145C | E117: Urban | F117: Planned | H117: 86 | I117: 178 | J117: 0.024657 | K117: 0.00013852
B118: 4/07/2017 | C118: 10:48:26 | D118: HH130C | E118: Urban | F118: Overloads | H118: 1 | I118: 174 | J118: 0.00028 | K118: 1.61e-06
B119: 4/07/2017 | C119: 11:02:07 | D119: AP424E | E119: Urban | F119: Asset failure | G119: LV | H119: 1 | I119: 236 | J119: 0.00038 | K119: 1.61e-06
B120: 4/07/2017 | C120: 11:05:00 | D120: BM44 | E120: Rural Short | F120: Planned | H120: 2 | I120: 32 | J120: 0.000508 | K120: 1.588e-05
B121: 4/07/2017 | C121: 11:29:30 | D121: HH428B | E121: Urban | F121: Asset failure | G121: LV | H121: 1 | I121: 290 | J121: 0.000467 | K121: 1.61e-06
B122: 4/07/2017 | C122: 11:50:00 | D122: GA37 | E122: Rural Long | F122: Planned | H122: 1 | I122: 36 | J122: 0.000253 | K122: 7.02e-06
B123: 4/07/2017 | C123: 14:05:12 | D123: SM179D | E123: Urban | F123: Asset failure | G123: LV | H123: 1 | I123: 288 | J123: 0.000464 | K123: 1.61e-06
B124: 4/07/2017 | C124: 15:52:43 | D124: SA18 | E124: Urban | F124: Asset failure | G124: LV | H124: 1 | I124: 349 | J124: 0.000562 | K124: 1.61e-06
B125: 4/07/2017 | C125: 16:03:21 | D125: HH432C | E125: Urban | F125: Asset failure | G125: LV | H125: 1 | I125: 166 | J125: 0.000267 | K125: 1.61e-06
B126: 4/07/2017 | C126: 16:06:00 | D126: W04 | E126: Rural Long | F126: Unknown | G126: Unknown | H126: 2 | I126: 35 | J126: 0.000491 | K126: 1.404e-05
B127: 4/07/2017 | C127: 16:07:45 | D127: AP149D | E127: Urban | F127: Asset failure | G127: LV | H127: 6 | I127: 213 | J127: 0.002059 | K127: 9.66e-06
B128: 4/07/2017 | C128: 18:17:00 | D128: HH177G | E128: Urban | F128: Third Party | G128: Vehicle impact | H128: 2257 | I128: 84.51528578 | J128: 0.307251 | K128: 0.00363544
B129: 4/07/2017 | C129: 18:23:37 | D129: HH409D | E129: Urban | F129: Asset failure | G129: LV | H129: 1 | I129: 221 | J129: 0.000356 | K129: 1.61e-06
B130: 4/07/2017 | C130: 18:28:17 | D130: HH107B | E130: Urban | F130: Overloads | H130: 30.66663551 | I130: 145.9999944 | J130: 0.007212 | K130: 4.94e-05
B131: 4/07/2017 | C131: 19:58:03 | D131: NL511A | E131: Urban | F131: Asset failure | G131: LV | H131: 1 | I131: 130 | J131: 0.000209 | K131: 1.61e-06
B132: 4/07/2017 | C132: 20:48:00 | D132: WK21 | E132: Rural Short | F132: Unknown | G132: Unknown | H132: 68 | I132: 345.3676471 | J132: 0.18649 | K132: 0.00053998
B133: 4/07/2017 | C133: 20:48:00 | D133: WK21 | E133: Rural Short | F133: Unknown | G133: Unknown | I133: 1 | J133: 0.000746 | K133: 0
B134: 4/07/2017 | C134: 21:38:33 | D134: SA33 | E134: Urban | F134: Asset failure | G134: LV | H134: 1 | I134: 62 | J134: 0.0001 | K134: 1.61e-06
B135: 4/07/2017 | C135: 21:53:00 | D135: PP09 | E135: Rural Long | F135: Weather | H135: 767 | I135: 8.741851369 | J135: 0.047067 | K135: 0.00538414
B136: 4/07/2017 | C136: 22:15:00 | D136: AP351E | E136: Urban | F136: Planned | H136: 16 | I136: 312 | J136: 0.008041 | K136: 2.577e-05
B137: 4/07/2017 | C137: 22:52:59 | D137: HH130B | E137: Urban | F137: Asset failure | G137: LV | H137: 9.333324432 | I137: 80.99999877 | J137: 0.001218 | K137: 1.503e-05
B138: 4/07/2017 | C138: 22:55:00 | D138: WK11 | E138: Rural Short | F138: Asset failure | G138: HV | H138: 15.6666708 | I138: 855.000016 | J138: 0.106367 | K138: 0.00012441
B139: 4/07/2017 | C139: 23:43:00 | D139: ST13 | E139: Rural Short | F139: Unknown | G139: Unknown | H139: 264 | I139: 281.6704545 | J139: 0.590488 | K139: 0.00209638
B140: 4/07/2017 | C140: 23:43:00 | D140: ST13 | E140: Rural Short | F140: Unknown | G140: Unknown | I140: 1 | J140: 0.00293 | K140: 0
B141: 5/07/2017 | C141: 01:14:00 | D141: AP226C | E141: Urban | F141: Asset failure | G141: LV | H141: 61 | I141: 24 | J141: 0.002358 | K141: 9.826e-05
B142: 5/07/2017 | C142: 02:12:02 | D142: HH386C | E142: Urban | F142: Asset failure | G142: LV | H142: 96 | I142: 53 | J142: 0.008195 | K142: 0.00015463
B143: 5/07/2017 | C143: 05:51:55 | D143: SA12 | E143: Urban | F143: Asset failure | G143: LV | H143: 22.66664314 | I143: 198.0000116 | J143: 0.007229 | K143: 3.651e-05
B144: 5/07/2017 | C144: 07:30:00 | D144: NU13 | E144: Rural Long | F144: Third Party | G144: Vehicle impact | H144: 715 | I144: 94.62937063 | J144: 0.474955 | K144: 0.00501911
B145: 5/07/2017 | C145: 08:02:00 | D145: CN11 | E145: Rural Long | F145: Unknown | G145: Unknown | H145: 15 | I145: 243 | J145: 0.025587 | K145: 0.0001053
B146: 5/07/2017 | C146: 08:17:25 | D146: SA744D | E146: Urban | F146: Planned | H146: 54 | I146: 345 | J146: 0.030008 | K146: 8.698e-05
B147: 5/07/2017 | C147: 08:27:00 | D147: AP355A | E147: Urban | F147: Planned | H147: 108 | I147: 353 | J147: 0.061408 | K147: 0.00017396
B148: 5/07/2017 | C148: 08:37:40 | D148: NL760C | E148: Urban | F148: Planned | H148: 63 | I148: 158 | J148: 0.016033 | K148: 0.00010148
B149: 5/07/2017 | C149: 08:47:03 | D149: MI08 | E149: Rural Long | F149: Overloads | H149: 1 | I149: 188 | J149: 0.00132 | K149: 7.02e-06
B150: 5/07/2017 | C150: 08:52:19 | D150: NL115D | E150: Urban | F150: Planned | H150: 36 | I150: 127 | J150: 0.007364 | K150: 5.799e-05
B151: 5/07/2017 | C151: 08:53:11 | D151: NL115D | E151: Urban | F151: Planned | H151: 47 | I151: 126 | J151: 0.009539 | K151: 7.57e-05
B152: 5/07/2017 | C152: 08:53:23 | D152: NL115D | E152: Urban | F152: Planned | H152: 73 | I152: 126 | J152: 0.014816 | K152: 0.00011758
B153: 5/07/2017 | C153: 08:59:20 | D153: NU26 | E153: Rural Long | F153: Asset failure | G153: LV | H153: 1 | I153: 362 | J153: 0.002541 | K153: 7.02e-06
B154: 5/07/2017 | C154: 09:07:27 | D154: VH31 | E154: Rural Short | F154: Asset failure | G154: LV | H154: 1 | I154: 130 | J154: 0.001032 | K154: 7.94e-06
